Workbook

Sheet Accueil
B2: DIGES 3 : Digestion anaérobie et gaz à effet de serre
B3: Application pour le calcul du bilan des émissions de gaz à effet de serre des installations de méthanisation (en fonctionnement ou en projet)
B5: Préalable : Activation des macros Excel L’outil de simulation contenant des macros, il est nécessaire de les activer avant toute simulation. Pour cela, il faut fermer cet Excel, faire un clic droit sur le fichier, cliquer sur propriétés, cocher la case "débloquer" dans la section "sécurité" en bas de la fenêtre, puis le relancer et ouvrir le fichier du calculateur. Il faudra enfin cliquer sur le bouton "activer le contenu" dans le ruban jaune qui s'affiche en haut de la page. Il faut également veiller à saisir les chiffres décimaux avec un séparateur décimal conforme à la configuration de l’ordinateur que vous utilisez (voir Guide Utilisateur)
B6: Charte graphique : les cellules des onglets de formulaire avec un fond gris sont modifiables directement, celles avec un fond bleu sont modifiables avec une liste déroulante. Les cellules encadrées en rouge sont nécessaires au calcul des émissions. La navigation se fait à l'aide des onglets à gauche de chaque page.
A7: Guide utilisateur Guide méthodologique
B8: DIGES 3 permet de quantifier le bilan des émissions potentielles de Gaz à Effet de Serre (GES) générées par des installations de traitement de substrats par digestion anaérobie au regard des émissions de GES évitées (N2O, CH4 et CO2). Il intègre, en plus de l'évaluation GES, une estimation du stockage de carbone par les cultures intermédiraires à vocation énergétique, un bilan énergétique, un bilan des flux d'azote, et des indicateurs complémentaires sur économie circulaire et la biodiversité.
B10: DIGES 3 considère les émissions de GES et les consommations d'énergie aux étapes : - De production des substrats cultivés telles que les cultures principales dédiées à la production d’énergie et les cultures intermédiaires à vocation énergétique (CIVE), à travers notamment la consommation de diesel nécessaire au machinisme agricole et à la production et l’usage de fertilisants ; - De stockage des effluents d’élevage en amont de leur prise en charge pour leur traitement en unité de méthanisation ; - De collecte des substrats en camion depuis leurs gisements jusqu’à l’unité de digestion anaérobie ; - De prétraitement des substrats par broyage et hygiénisation ; - De digestion anaérobie par les émissions fugitives structurelle de biogaz, les émissions des torchères, et les consommations électriques et thermiques de l’unité ; - De gestion du digestat à travers les consommations électriques liées à la séparation des phases, mais aussi par les émissions de GES liées aux configurations de stockage des digestats, leur transport vers le lieu d’épandage et les émissions de GES liées à leur épandage ; - De gestion du biogaz pour sa valorisation en cogénération (production d’électricité et/ou de chaleur) ou en épuration et injection (production de biométhane injecté dans le réseau de distribution de gaz de ville pour la production de chaleur ou production de BioGNV ), et cela en comptabilisant les étapes de consommation d’énergies liées aux traitements des gaz et les émissions de GES associées à la combustion et aux imbrûlés du biogaz et du biométhane.
A11: Version 1.2
B46: DIGES 3 prend en compte le remplacement des filières de références qui auraient pu être en fonctionnement dans une situation antérieure à l'intsallation de l'unité de méthanisation. Cette prise en compte est également réalisée par substitution. Les filières de références ont été choisis de manière conventionnelle et ne prennent pas en compte les particularités locales. L’outil considère ainsi les émissions évitées de GES : - Des filières de référence de gestion des effluents d’élevage (stockage à l’air libre, épandage et bénéfices initialement fournis en termes de pouvoir fertilisant) ; - Issues de la consommation de diesel préalablement utilisé pour la production de Cultures Intermédiaires Piège à Nitrates (CIPAN), dans les cas où la culture de CIVE remplace une culture de CIPAN ; - Des filières de référence de traitement des déchets (incinération, enfouissement, station de traitement de l’eau) et du transport liés à ces traitements de référence (transport vers l'unité de traitement de référence) ; - Des filières de référence de production de fertilisants suite à leur substitution par l’usage de digestat sur des cultures (hors CIVE et cultures principales associées au fonctionnement direct de l’unité de méthanisation) ; - Des filières de référence de production d’énergies (gaz naturel substitué par la chaleur produite par cogénération, mix électrique français substitué par l’électricité produite par cogénération, gaz naturel substitué par la chaleur produite par le biométhane injecté, diesel substitué par le BioGNV) ; - Du transport de CO2 fossile dans le cas où le CO2 biogénique est capté et liquéfié en sortie de l’étape d’épuration du biogaz en biométhane.
B49: Précision sur le module d’estimation du potentiel de stockage de carbone permis par les CIVE et les résultats obtenus :
B50: Un module d’estimation de stockage de carbone est intégré au calculateur. Ce module reprend la méthode de modélisation qui a été appliquée pour le projet CARBOCIMS porté par l’INRAE
B51: Ce module permet, via le modèle AMG (Clivot et al., 2019; Levavasseur et al., 2020), de simuler l'évolution du stock carbone qui est intégrée à long terme à la matière organique du sol à travers l’implantation de CIVE dans une rotation de culture. Cette simulation aboutit à une masse de carbone stocké additionnelle provenant initialement de la photosynthèse, elle est ensuite traduite en masse de CO2 et est mise en perspective du bilan GES. L’inclusion de ce flux de stockage de CO2 au sein du bilan GES de l’unité de méthanisation n’est pas réalisé.
B52: En effet, le flux de stockage futur reste soumis à de fortes hypothèses et certains paramètres agronomiques du modèle ne sont pas modifiables par l’utilisateur par souci de facilité d’usage. Ce flux de stockage est aussi tributaire du maintien des rotations cultures et des itinéraires techniques durant une période de 100 ans, ce qui n’est pas assuré.
B54: Contact :
B55: outil.metha@ademe.fr
B57: L’ADEME dispose de la propriété pleine et entière de l’outil DIGES3. DIGES 3 © 2024 by ADEME is licensed under CC BY-ND 4.0 :
B58: https://creativecommons.org/licenses/by-nd/4.0/

Sheet Formulaire input (hidden)
F1: Existe dans DIGES 2
B2: Objectif de l'onglet | G2: Données spécifiques | H2: Données par défaut | I2: Valeurs à cocher dans des cases | J2: Liste déroulante | K2: Intégrer en version beta et tester pour le péreniser en version finale en l'état ou en valeur par défaut | L2: Pas en paramètre
C3: Type de subtrat | D3: Nombre max possible à intégrer au calculateur ? | L3: Pas un paramètre
D4: Type de substrat | J4: X
D5: Tonnage à l'année de fonctionnement | G5: X
D6: Caractérisation --> valeur par défaut à faire apparaitre --> valeurs spécifiques si connues ? | G6: X ? | H6: X
E7: Conversion d'unité de DIGES 2 en point fort
D9: Substrat agricoles : paramétrisations poussées --> à faire dans un autre onglet ? Ou apparition automatique des paramètres ?
E10: ITK | G10: X en Litre de diesel par hectare ou : nombre de passages par activité, Passage de tracteurs U-N d'azote épandu Traitement phyto ?) | I10: X tracteur au biométhane | K10: Liste des étapes ITK des CIVE à figer, ou juste nombre de passage de tracteur ou litre de diesel
E11: AMG | G11: 8 paramètres de conditions pédoclimatiques : %argile, %CaCO3, pH, C/N (ou choix entre luvisol, calcosol, cambisol ou autre ?), température moyenne annuelle, pluviométrie annuelle, Evapotranspiration potentielle, mm d’irrigation sur la rotation 2 paramètres de type de CIVE : CIVE hiver (modélisé par une céréale), CIVE été (modélisé par un maïs ensilage), ET rendement en biomasse de la CIVE 2 paramètres de rotation : durée totale de la rotation en année ET place de la CIVE/CIPAN/sol nu dans la rotation (ce paramètre va permettre de déterminer la fréquence d’introduction de ces couvert intermédiaire) 2 paramètres de la culture suivant la CIVE/CIPAN/sol nu : type de culture à choisir parmi blé d’hiver, orge d’hiver, maïs grain, colza, betterave, tournesol, soja, ET le rendement en grain (ou racine pour la betterave) en t MS/ha/an. Ces deux derniers paramètres sont nécessaires puisque des pertes de rendement sur cette culture peuvent être observés et donc un retour au sol moins important de carbone via les résidus de culture. | H11: X (taux d'insertion des CIVE, sol, pluvio comme CARBOCims) | K11: Liste de type de sol avec caractérisation %argil, % CaCO3 par défaut ?
E12: Si présence de CIVE dans les substrats : Culture remplacée par CIVE | I12: X (sol nu ou CIPAN ou CIMS)
D13: Filière de référence substituée par substrat : pas en paramètre | H13: X
D14: Distance à renseigner | E14: Tout substrat | G14: distance jusqu'au méthaniseur
E15: Soupe de déconditionnement | F15: Déconditionneur sur place : prendre les distances | G15: distance jusqu'au déconditionneur
F16: Déconditionneur centralisé | G16: distance entre le déconditionneur et le méthaniseur | I16: Cocher 20 - 30 - 50 km pour les distances amont | K16: OUI
D17: Distance à renseigner pour la filière de référence substituée | G17: distance jusqu'à l'autre centrale de traitement des déchets
C20: Caractéristiques de l'installation | E20: Voie Sèche ? STEU ? ISDND ? | I20: X
D21: Unité en cogé
E22: Stockage substrat ? | I22: Ouvert, couvert, couvert avec récup ?
E23: Prétraitement par type de substrat ? | G23: X pourcentage pour chaque substrat | I23: broyage hygiénisation tassement de silo d'ensilage
E26: Taux de modulation du BMP et temps de séjour hydrolique | F26: Capacité en m3 du digesteur | G26: X
F27: Capacité en m3 du post-digesteur (si il existe) | G27: X
F28: Volume occupé par les substrats --> estimation uniquement sur le poids d'eau via la MS | G28: X (si connu, sinon hypothèse volume = poids, données ligne 5)
E30: Consommation électrique | F30: renseigner source(s) et quantité de MWh si ils sont connus | G30: X (nb de MWh associé à chaque source d'électricité si connus) | H30: X | I30: autoconsommation source exterieur ? mix Fr ou Photovoltaique ou autre ?
F31: Cocher sur les étapes prises en compte par ces consommations (intègrent-elles le broyage, post-traitement en plus du mélange du digesteur ?) | I31: X (broyage/post-traitement ?)
E33: Consommation thermique | F33: renseigner source et quantité de MWh si ils sont connus | G33: X (nb de MWh associé à chaque source de chaleur si connus) | H33: X | I33: autoconsommation et/ou source extérieure (gaz naturel ou géothermie)
F34: étapes prises en compte par ces consommations | I34: X (hygiénisation ?)
E36: Valorisation du biogaz
F37: rendement élec de la cogé | G37: X si connu | H37: X
F38: rendement thermique de la cogé (ET part de la chaleur valorisée, en moyenne 51%) | G38: X si connu | H38: X
F39: Part en autoconsommation | G39: X si connu | H39: X
F41: Renseigner les productions en kWh elec et thermique à l'année | G41: X | H41: X
F42: kWh vendu | G42: X | H42: X
F43: Cela permettra de faire un contrôle de cohérence sur ces grandeurs | L43: Pas un paramètre : Calcul par défaut avec le taux de modulation du volume de gaz produit
F44: %autoconsommé, % consommé sur place, %vendu ? | G44: X
F45: Type d'énergie évité : uniquement mix Fr pour l'élec ?
F46: Type d'énergie évité : uniquement GN pour le thermique vendu et conso sur place ? | L46: Pas un paramètre
D48: Unité en épuration / injection
E49: Stockage substrat ? | F49: Ouvert, couvert, couvert avec récup ? | I49: X (Ouvert, couvert, couvert avec récup ?)
E50: Prétraitement par type de substrat ? | F50: choix entre broyage hygiénisation… | I50: X (broyage, hygiénisation ?)
E52: taux de modulation du BMP et temps de séjour hydrolique | F52: Capacité en m3 du digesteur | G52: X
F53: Capacité en m3 du post-digesteur (si il existe) | G53: X
F54: Volume occupé par les substrats --> estimation uniquement sur le poids d'eau via la MS | G54: X (si connu, sinon hypothèse volume = poids, données ligne 5)
E56: Consommation électrique
F57: Epurateur en kWh / Nm3 --> par défaut ? | H57: X
F58: présence d'une cogé ? Et part du biogaz détourné vers la cogé ? | G58: X (% du biogaz détourné) | H58: X (6%) | I58: X (avec ou sans cogé)
F59: Rendement de l'épurateur (%) | G59: X | H59: X (99,3%?)
F60: membranaire ou PSA ? | I60: X (membranaire ou PSA)
F61: Epurateur --> 61% de l'électricité de l'unité | G61: X | H61: X (61%?)
F62: Présence d'un oxydateur thermique pour les Off-Gaz | I62: X (oxydateur thermique ou non)
E63: CO2 après épuration | F63: masse de CO2 valorisé par captage | G63: X | H63: X si valorisation mais masse pas connue ?
F64: Compression liquéfaction ? Consommation élec… --> évitement | L64: Pas un paramètre
E65: Biométhane après épuration
F66: Renseigner les productions injecté dans le réseau en kWh à l'année | G66: X | H66: X
F67: kWh vendu | G67: X | H67: X
F68: cela permettra de faire un contrôle de cohérence sur ces grandeurs…
F69: %autoconsommé, % consommé sur place, %vendu ? | G69: X
F71: Renseigner les productions de BioGNV en kWh à l'année si station BioGNV sur place | G71: X
D73: Torchère
D75: Valorisation du digestat
E76: Post-traitement digestat | F76: Choix entre presse à visse et centrifugeuse | I76: X
F77: % du digestat brut séparé | G77: X
F78: % du digestat liquide recirculé | G78: X
E80: Stockage digestat brut | F80: Ouvert, couvert, couvert avec récup ? | I80: X
E81: Stockage digestat liquide | F81: Ouvert, couvert, couvert avec récup ? | I81: X
E83: distance de transport | G83: X
E85: Matériel d'épandage principal | F85: Digestat brut | I85: X
F86: Digestat liquide | I86: X
F87: Digestat solide | I87: X

Sheet Description des substrats
C2: Nom du projet de méthanisation
C3: Année du diagnotic DIGES
C4: Type d'installation | E4: Votre choix
C5: Type de valorisation énergétique principale | E5: Votre choix
C6: Type de voie de digestion | E6: Humide
C7: Capacité moyenne annuelle de production de biométhane (Nm3 par heure)
C8: Capacité annuelle de production de biométhane (GWh par an)
C9: Puissance électrique installée (kWe, si cogénération)
C10: Puissance thermique installée (kWth, si cogénération ou chaleur seule)
C11: Heures de fonctionnement par an
L12: Caractérisation des substrats : les données préremplies peuvent être écrasées si des données spécifiques sont disponibles
B13: ACTIONS | C13: Tableau 1 : Informations sur le mélange de substrats pris en charge par le méthaniseur | D13: N° substrat | E13: Catégorie 1 | F13: Catégorie 2 | G13: Nom du substrat | H13: Tonnage annuel en matière brute (MB) incorporé dans le digesteur | I13: Distance de collecte parcourue jusqu'au méthaniseur (km) | J13: % de camions roulant au bioGNV utilisés pour la collecte | K13: Distance de collecte qui aurait été parcourue pour le traitement du substrat en filière de référence (km) | L13: Taux de matière sèche (% MS/MB) | M13: Taux de matière organique (% MO/MS) | N13: Potentiel méthanogène (Nm3 CH4 / MO), (attention, il ne s'agit pas du potentiel biogaz) | O13: Taux de CH4 dans le biogaz issu du substrat (%vol de CH4) | P13: Teneur en azote total (kg/t MB) | Q13: Teneur en azote ammoniacal NH4+ (kg/t MB) | R13: Teneur en phosphore (kg P2O5 / tMB) | S13: Teneur en potassium (kg K2O / tMB) | T13: Teneur en carbone organique total (kg COT/tMB) | U13: Broyage : pourcentage du substrat broyé avant incorporation dans le digesteur (% de la masse du substrat) | V13: Hygiénisation : pourcentage du substrat hygiénisé avant incorporation dans le digesteur (% de la masse du substrat)
P16: (1) Quantité de carburant spécifique | R16: (2) Choix d'ITK par défaut | T16: (3) ITK spécifique (nombre de passages au champ)
C17: Tableau 2 : Paramètres de production pour les substrats végétaux cultivés | D17: N° substrat | E17: Rappel du substrat (Catégorie + Nom) | F17: Rappel du tonnage annuel en matière brute (MB) incorporé dans le digesteur | G17: Rendement de la culture (tMS / ha) | H17: Fertilisation en azote de synthèse (kg unité d'azote appliquée / ha) | I17: Fertilisation en azote organique_lisier fumier (kg unité d'azote appliquée / ha) | J17: Fertilisation en azote organique_digestat (kg unité d'azote appliquée / ha) | K17: Fertilisation en potassium minéral (kg K2O / ha) | L17: Fertilisation en phosphore minéral (kg P2O5 / ha) | M17: Application de produits phytosanitaires (kg de matière active / ha) | N17: Choisir le type de carburant consommé par le tracteur pour cette culture (Diesel/Gazole Non Routier ou BioGNV - le BioGNV peut être sélectionné uniquement pour les installations avec un poste d'épuration) | O17: Cocher "Consommation énergétique de l'ITK connue" (1) ou "choisir un ITK par défaut" (2) ou "paramétres de culture connus" (3) | P17: L de diesel / ha | Q17: kg de bioGNV / ha | R17: ITK par défaut | S17: L équivalent de diesel /ha (si le carburant utilisé est du bioGNV, l'équivalence appliquée est de 1 L de diesel = 0,83 kg de diesel = 0,77 kg de biométhane ) | T17: Déchaumage | U17: Labour | V17: Reprise (Chisel) | W17: Préparation lit (vibroculteur) | X17: Semis | Y17: Fertilisation minérale | Z17: Fertilisation organique (hors digestat) | AA17: Protection des plantes (épandeur porté) | AB17: Récolte (ensileuse) | AC17: Transport sur l'exploitation | AD17: L équivalent de diesel /ha (si le carburant utilisé est du bioGNV, l'équivalence appliquée dans la suite des calculs est de 1 L de diesel = 0,83 kg de diesel = 0,77 kg de biométhane )
C20: Tableau 3 : Paramètres agronomiques pour la production de CIVE (nécessaire entre autre pour l'évaluation du stockage potentiel de carbone) | D20: N° substrat | E20: Rappel du substrat (Catégorie + Nom) | F20: Rappel du tonnage annuel en matière brute (MB) incorporé dans le digesteur | G20: Calcul du stokage de carbone doit-il être mené ? (tous les paramètres de cette ligne doivent être remplis) | H20: La CIVE est cultivée en mélange d'espèce avec au moins 20% de légumineuses | I20: La CIVE est cultivée en remplacement d'une CIPAN ou d'un sol nu | J20: Type de sol | K20: pH du sol | L20: Température moyenne annuelle (°C) | M20: Pluviométrie annuelle (mm/an) | N20: Evapotranspiration annuelle (mm/an) | O20: Irrigation moyenne annuelle sur l'ensemble de la rotation (mm/an) | P20: Nombre d'années de la rotation dans laquelle les CIVE s'intègrent | Q20: Année d'intégration de la CIVE dans la rotation (ne peut être supérieur au nombre d'années de la rotation) | R20: Culture principale suivant la CIVE pouvant être impactée sur son rendement | S20: Objectif de rendement initial en grains (ou en racines pour la betterave sucrière) de la cultures principale suivant la CIVE (tMS/ha/an)
C22: Cas des soupes de déconditionnement
D24: Type de déconditionneur ? | E24: Votre choix
E25: Distance jusqu'au méthaniseur ? | G25: 0 | H25: km
E26: Distance moyenne des déchets en amont du déconditionnement ? | G26: Votre choix | H26: km
E27: Distance entre le déconditionneur et le méthaniseur ? | G27: 0 | H27: km

Sheet Formulaire ITK (hidden)
A3: Carburant consommé par le tracteur ? | B3: Cocher "diesel" ou "biométhane" | C3: biométhane
B4: Si biométhane : renseigner les ITK ou les équivalent diesel spécifique pour déterminer les MJ de biométhane autoconsommé
C5: diesel | J5: ITK léger
C6: biométhane | F6: L de diesel/ha | J6: ITK moyen
F7: kg de biométhane/ha | J7: ITK lourd
A9: Sélectionner pour afficher les substrats avec un amont agricole --> cultures dédiées et CIVE | F9: (1) L de diesel/ha ou kg de biométhane/ha spécifique | J9: (2) Liste déroulante: ITK par défaut léger, moyen, lourd | L9: (3) Renseigner le nombre de passages
A10: n° substrat | B10: Nom du substrat | C10: Surface de culture (ha) | D10: Rendement de culture (tMS / ha) | E10: Cocher "Consommation énergétique de l'ITK connue" (1) ou "choisir un ITK par défaut" (3) ou "paramétres de culture connus" (2) | F10: Unité | G10: Quantité/ha | H10: kg de diesel | I10: kg de biométhane | J10: ITK par défaut | K10: kg équivalent de diesel | L10: Déchaumage | M10: Labour | N10: Reprise (Chisel) | O10: Préparation lit (vibroculteur) | P10: Semis | Q10: Fertilisation | R10: Protection des plantes (épandeur porté) | S10: Récolte (ensileuse) | T10: Broyage | U10: Transport sur l'exploitation | V10: Calcul kg équivalent de diesel | W10: TOTAL des consommations de diesel (t) | X10: TOTAL des consommations de biométhane (t)
A11: Substrat 4 | C11: 10 | D11: 7 | H11: =IF(F11="L de diesel/ha",G11*0.83*C11,"") ->  | I11: =IF(F11="kg de biométhane/ha",G11*'BDD modélisation ICV'!A$142*C11,"") ->  | K11: =IF(J11="ITK léger",'BDD ITK culture'!N$17*C11,IF(J11="ITK moyen",'BDD ITK culture'!N$18*C11,IF(J11="ITK lourd",'BDD ITK culture'!N$19*C11,""))) ->  | L11: 0 | M11: 1 | N11: 1 | O11: 0 | P11: 1 | Q11: 0 | R11: 0 | S11: 1 | T11: 0 | U11: 1 | V11: =(L11*'BDD ITK culture'!D$13+M11*'BDD ITK culture'!E$13+N11*'BDD ITK culture'!F$13+O11*'BDD ITK culture'!G$13+P11*'BDD ITK culture'!H$13+Q11*'BDD ITK culture'!I$13+R11*'BDD ITK culture'!K$13+S11*'BDD ITK culture'!L$13+T11*'BDD ITK culture'!#REF!+U11*'BDD ITK culture'!M$13)*C11 ->  | W11: =IF(C3="diesel",(H14+J14+V14)/1000,0) -> 0.00 | X11: =IF(C3="biométhane",(I14+(J14+V14)*'BDD modélisation ICV'!A147)/1000,0) -> 
A12: Substrat 6 | C12: 10 | D12: 6 | H12: =IF(F12="L de diesel/ha",G12*0.83*C12,"") ->  | I12: =IF(F12="kg de biométhane/ha",G12*'BDD modélisation ICV'!A$142*C12,"") ->  | J12: ITK lourd | K12: =IF(J12="ITK léger",'BDD ITK culture'!N$17*C12,IF(J12="ITK moyen",'BDD ITK culture'!N$18*C12,IF(J12="ITK lourd",'BDD ITK culture'!N$19*C12,""))) -> 808.4 | V12: =L12*'BDD ITK culture'!D$13+M12*'BDD ITK culture'!E$13+N12*'BDD ITK culture'!F$13+O12*'BDD ITK culture'!G$13+P12*'BDD ITK culture'!H$13+Q12*'BDD ITK culture'!I$13+R12*'BDD ITK culture'!K$13+S12*'BDD ITK culture'!L$13+T12*'BDD ITK culture'!#REF!+U12*'BDD ITK culture'!M$13 -> 
A13: Substrat 7 | C13: 10 | D13: 6 | F13: kg de biométhane/ha | G13: 56 | H13: =IF(F13="L de diesel/ha",G13*0.83*C13,"") ->  | I13: =IF(F13="kg de biométhane/ha",G13*C13,"") -> 560.00 | K13: =IF(J13="ITK léger",'BDD ITK culture'!N$17*C13,IF(J13="ITK moyen",'BDD ITK culture'!N$18*C13,IF(J13="ITK lourd",'BDD ITK culture'!N$19*C13,""))) ->  | V13: =L13*'BDD ITK culture'!D$13+M13*'BDD ITK culture'!E$13+N13*'BDD ITK culture'!F$13+O13*'BDD ITK culture'!G$13+P13*'BDD ITK culture'!H$13+Q13*'BDD ITK culture'!I$13+R13*'BDD ITK culture'!K$13+S13*'BDD ITK culture'!L$13+T13*'BDD ITK culture'!#REF!+U13*'BDD ITK culture'!M$13 -> 
A14: TOTAL | H14: =SUM(H11:H13) -> 0.00 | I14: =SUM(I11:I13) -> 560.00 | J14: =SUM(K11:K13) -> 808.4 | V14: =SUM(V11:V13) -> 
B15: Attention Ensilage
J18: Paramètre Agronomique (utilisés uniquement pour l'estimation du potentiel de stockage de carbone par les CIVE)
A19: n° substrat | B19: Nom du substrat | C19: Type de CIVE | D19: CIVE en remplacement de CIPAN ou sol nu | E19: Fertilisation en azote de synthèse (kg unité d'azote appliquée / ha) | F19: Fertilisation en azote organique_digestat (kg unité d'azote appliquée / ha) | G19: Fertilisation en oxyde de potassium (kg K2O / ha) | H19: Fertilisation en pentoxyde de phosphore (kg P2O5 / ha) | I19: Application de pesticides (kg / ha) | J19: Type de sol | K19: Température moyenne annuelle | L19: Pluviométrie annuelle (mm / an) | M19: Evapotranspiration annuelle (mm / an) | N19: Irrigation moyenne annuelle sur l'ensemble de la rotation (mm / an) | O19: Nombre d'année de la rotation dans laquelle les CIVE s'intègrent (nombre d'année) | P19: Année d'intégration de la CIVE dans la rotation | Q19: Culture principale suivant la CIVE pouvant être impacté sur son rendement | R19: Objectif de rendement initial en grains (ou en racines pour la betterave sucrière) de la culture principale suivante (tMS / ha / an)
A20: Substrat 4 | C20: CIVE d'hiver (ensilage céréal immature) | D20: CIPAN | F20: Hors digestat ? | J20: Calcosol | K20: 13.8 | L20: 638 | M20: 990 | N20: 180 | O20: 2 | P20: 1 | Q20: Tournesol | R20: 2.1
A21: Substrat 6 | C21: CIVE d'été (ensilage de maïs) | D21: CIPAN | J21: Calcosol | K21: 11.5 | L21: 694 | M21: 777 | N21: 0 | O21: 4 | P21: 3 | Q21: Betterave | R21: 16
A22: Substrat 7 | J22: Cambisol | K22: 11.5 | L22: 694 | M22: 777 | N22: 0 | O22: 5 | P22: 3 | Q22: Colza | R22: 3
A23: …
D24: ITK CIPAN

Sheet Caractéristique de installation
B4: Caractéristiques techniques de l'installation | C4: Volume utile du/des digesteur(s) ? (m3 de remplissage) | D4: 0 | E4: m3
C5: Présence d'un post-digesteur ? | D5: Votre choix
D6: Capacité du post-digesteur ? (m3 de remplissage) | E6: 0 | F6: m3
C7: Présence d'un système de traitement des airs viciés ? | D7: Votre choix
B9: Pratiques visant à limiter les émissions fugitives structurelles de biogaz (hors stockage du digestat, cogénératrice, épurateur, poste d'injection, et l'imbrûlés de méthane de torchère, de cogénératrices, de chaudière, de moteur thermique) | C9: Présence d'une torchère automatique ? | D9: Votre choix
C10: Passage annuel d'une caméra IR ? | D10: Votre choix
C11: Passage hebdomadaire d'un renifleur de méthane ? | D11: Votre choix
C12: Utilisation d'un outil de pilotage pour la bonne gestion de l'alimentation du digesteur ? | D12: Votre choix
C13: Maintenance et suivi quotidien des soupapes ? | D13: Votre choix
C14: Ronde journalière sur les éléments clés ? | D14: Votre choix
C15: Graissage annuel des passages de câbles ? | D15: Votre choix
B17: Pourcentage de biogaz envoyé en torchère | C17: Pourcentage de la production du biogaz envoyé en torchère ? (valeur %) | D17: 0.00% | E17: % (s'aider de la calculette ci-dessous, renseigner 0% si la valeur n'est pas connue, la valeur de 1,5% du biogaz produit va alors s'appliquer)
C18: Calculette pour le calcul du % de biogaz envoyé en torchère | D18: Heures de fonctionnement annuel de la torchère ? | E18: 0 | F18: h
D19: Débit en biogaz de la torchère (m3 de biogaz/h) ? | E19: 0 | F19: m3/h
D20: Production annuelle de biogaz (Nm3) ? | E20: 0 | F20: Nm3
E21: =IFERROR(E18*E19/E20,0) -> 0.0% | F21: Estimation du biogaz envoyé en torchère, en pourcentage
B23: Consommations électriques de l'installation | C23: Source(s) et consommations d'électricité ?
C25: Autoconsommation (dont auxiliaires moteurs en cogénération) | D25: Votre choix | E25: 0 | F25: MWh
C26: Mix électrique français | D26: Votre choix | E26: 0 | F26: MWh
C27: Photovoltaique | D27: Votre choix | E27: 0 | F27: MWh
C28: Source inconnue | D28: Votre choix | E28: 0 | F28: MWh
C29: Etapes prises en compte dans la consommation d'électricité ? | D29: Broyage | E29: Votre choix
D30: Post traitement (séparation des phases du digestat) | E30: Votre choix
B32: Consommations thermiques de l'installation | C32: Source(s) et consommations thermique ?
C33: Autocosommation | D33: Votre choix | E33: 0 | F33: MWh
C34: Géothermie | D34: Votre choix | E34: 0 | F34: MWh
C35: Gaz naturel | D35: Votre choix | E35: 0 | F35: MWh
C36: Source inconnue / Chaleur fatale | D36: Votre choix | E36: 0 | F36: MWh
C37: Etape d'hygiènisation prise en compte dans la consommation thermique ? | D37: Votre choix

Sheet Valorisation du biogaz
B3: Rendement de l'installation
C4: Existe-il une valorisation du biogaz en injection ou en GNV en complément de la cogénération ? | D4: Votre choix
D5: Part du biogaz détourné vers un épurateur ? | E5: 0.00% | F5: %
C7: Type d'épurateur ? | D7: Votre choix
C8: Rendement de l'épurateur ? | D8: =IF(D7="membranaire",'BDD modélisation ICV'!B48,IF(D7="PSA",'BDD modélisation ICV'!B49,0)) -> 0.00% | E8: % (0 = inconnu)
C10: Présence d'un cogénérateur en complément du poste d'épuration ? | D10: Votre choix
D11: Part du biogaz détourné vers le cogénérateur ? | E11: 0% | F11: % (0 = inconnue)
C12: Présence d'un oxydateur thermique pour les off-gaz ? | D12: Votre choix
C13: Technologie de captage du CO2 ? | D13: Votre choix
D14: Quantité de CO2 valorisée par captage ? | E14: 0% | F14: % (0 =inconnue)
C15: Présence d'une station BioGNV sur place ? | D15: Votre choix
D16: Pourcentage de la production annuelle de biométhane valorisé en BioGNV (usage tracteur et usage transport)? | E16: 0% | F16: %
B19: Production énergétique de l'installation
C21: Production électrique brute annuelle ? | D21: 0 | E21: MWh (0 =inconnue)
C22: Si production électrique inconnue : | D22: Rendement électrique brut ? | E22: 0.00% | F22: % (0 =inconnu)
C24: Production thermique brute annuelle ? | D24: 0 | E24: MWh (0 =inconnue)
C25: Si production thermique inconnue : | D25: Rendement thermique brut ? | E25: 0.00% | F25: % (0 =inconnu)
C26: Si production thermique inconnue : | D26: Chaleur valorisée ? | E26: 0.00% | F26: % (0 =inconnu)
C28: Production brute annuelle de biométhane (injecté dans le réseau et valorisé en BioGNV) ? | D28: 0 | E28: MWh (0 =inconnue)

Sheet Valorisation du digestat
B3: Post-traitement du digestat
C5: Système de séparation des phases du digestat ? | D5: Votre choix
D6: Pourcentage du digestat brut séparé ? | E6: 0.00%
D7: Pourcentage du digestat liquide recirculé ? | E7: 0.00%
D8: Conditions de stockage du digestat liquide ? | E8: Votre choix
C9: Condition principale de stockage du digestat brut ? | D9: Votre choix
C10: Distance moyenne de transport du digestat vers le lieu d'épandage ? | D10: 0 | E10: km (0 = inconnu)
C12: Matériel principal d'épandage pour le digestat brut (pour le calcul de l'abattement de la volatilisation d'ammoniac) ? | D12: Votre choix
D13: Matériel d'épandage principal pour le digestat liquide ? | E13: Votre choix
D14: Durée avant incorporation du digestat solide ? | E14: Sans incorporation

Sheet Economie circulaireBiodiversité
C7: 1. Gestion des cultures - méthanisation agricole
C8: seulement si présence de substrats agricoles
C9: % de la SAU occupé par les cultures principales dédiées ? | D9: 0.00% | E9: %
C10: % de la SAU occupé par les CIVE d'été ? | D10: 0.00% | E10: %
C11: % de la SAU occupé par les CIVE d'hiver ? | D11: 0.00% | E11: %
C12: % de la SAU occupé par les prairies fauchées pour la méthanisation ? | D12: 0.00% | E12: %
C14: 2. Gestion des CIVE
C15: seulement si présence de CIVE
C16: Irrigation des CIVE ? | D16: Votre choix
C17: Usage de pesticides sur les CIVE ? | D17: Votre choix
C18: Fertilisation minérale des CIVE ? | D18: Votre choix
C19: Pratique de techniques culturales simplifiées sur les CIVE ? | D19: Votre choix
C20: Au moins une des CIVE est-elle cultivée avec au moins deux espèces végétales différentes ? | D20: Votre choix
C22: 3. Production agricole
C23: seulement si présence de substrats agricoles
C24: % de substitution des engrais minéraux sur l'exploitation ? | D24: 0% | E24: %
C25: L'exploitation a-t-elle obtenu une certification HVE niveau 3 ? | D25: Votre choix
C26: L'exploitation a-t-elle obtenu une certification Agriculture Biologique ? | D26: Votre choix
C27: L'exploitation a-t-elle réalisé des bilans humiques et/ou des analyses de la qualité des sols ? | D27: Votre choix
C29: 4. Economie circulaire et Intégration dans le territoire
C30: L'installation de méthanisation est-elle gouvernée localement ? | D30: Votre choix
C31: A quelle hauteur l'installation de méthanisation est-elle financée / détenue par des acteurs locaux (agriculteurs, collectivités, citoyens, entreprises…) ? (Faible= moins de 20% du capital, moyenne = entre 20 et 50%, forte = plus de 50% du capital) | D31: Votre choix
C32: Implication de la collectivité locale dans l'installation de méthanisation (maîtrise directe de l'approvisionnement en biodéchets, achat d'énergie, concertation…) ? (Faible= moins de 20% de l'approvisionnement, moyenne = entre 20 et 50%, forte = plus de 50% de l'approvisionnement) | D32: Votre choix
C33: A quelle hauteur le digestat est-il épandu sur les terres des actionnaires agricoles ? (Faible= moins de 20% du digestat, moyenne = entre 20 et 50%, forte = plus de 50% du digestat) | D33: Votre choix
C35: 5. Plateforme et aménagement du site de méthanisation
C36: Surface du site de méthanisation ? | D36: 0 | E36: ha
C37: Le site de méthanisation est-il installé sur une surface déjà artificialisée ? | D37: Votre choix
C38: % de surface au sol imperméabilisée par l'installation ? | D38: 80% | E38: %
C39: L'intégration paysagère suit-elle les préconisations de l'ICPE ? | D39: Votre choix
C40: Combien de mètres de linéaires de haies ont été plantés sur l'installation ? | D40: 0 | E40: m

Sheet Parametres
B2: Type Installation | D2: Valorisation | F2: Substrats | I2: Biomasse agricole animale | J2: Biomasse agricole végétale | K2: Déchets/Résidus de collectivité | L2: Déchets/Résidus d'industrie | M2: Déchets résidus industriels liquides
B3: Votre choix | D3: Votre choix | F3: Votre choix | I3: Effluents d'élevage | J3: Cultures principales | K3: Déchets verts | L3: IAA | M3: Autres déchets/résidus industriels liquides
B4: A la ferme | D4: Cogénération | F4: Substrat 1 | J4: Cultures principales déclassées | K4: Biodéchets | L4: Maritime
B5: Centralisée/territoriale | D5: Epuration/injection | F5: Substrat 2 | J5: CIVES | K5: Algues | L5: IAA animales
B6: STEP | D6: Chaleur seule | J6: Déchets/Résidus | K6: Autres | L6: IAA viande
B7: Industrielle | J7: Déchets/Résidus de cultures | K7: STEP/STEU | L7: IAA Confiserie/chocolaterie/Pâtisserie
L8: IAA végétales
L9: Autres déchets/Résidus d'industrie
B11: Pré Traitement | D11: Caractérisations | E11: Déconditionneur | G11: Distance amont déconditionneur
B12: Broyage | D12: Données spécifiques | E12: Déconditionneur sur place | G12: Votre choix
B13: Hygiènisation | D13: Données par défaut | E13: Déconditionneur centralisé | G13: 20
B14: Tassement de silo d'ensilage | G14: 30
B15: Aucun | G15: 50 | L15: =SUBSTITUTE(SUBSTITUTE(SUBSTITUTE(G26,"/","_")," ","_"),"'","_") -> Biomasse_agricole_végétale
B17: ITK léger | D17: Votre choix | E17: Votre choix | G17: Votre choix
B18: ITK moyen | D18: Oui | E18: Faible | G18: Diesel | H18: CIVE d'hiver
B19: ITK lourd | D19: Non | E19: Moyenne | G19: BioGNV | H19: CIVE d'été
D20: Non concerné | E20: Forte | H20: Ne pas calculer la quantité de carbone stockée
D21: Votre choix
D22: A l'air libre
D23: Couvert
B26: =_xlfn.UNIQUE('BDD caractérisation substrats'!A4:A87) -> Biomasse agricole animale | G26: Biomasse agricole végétale | H26: CIVES | I26: Céréales - Matures
B27: Biomasse agricole végétale
B28: Déchets/Résidus de collectivité
B29: Déchets/Résidus d'industrie
F32: Paramètres de production pour les substrats agricoles | G32: Substrat 8 | H32: Rappel du substrat (Catégorie + Nom) | I32: Rappel du tonnage annuel en matière brute (MB) incorporé dans le digesteur | J32: Rendement de la culture (tMS / ha) | K32: Fertilisation en azote de synthèse (kg unité d'azote appliquée / ha) | L32: Fertilisation en azote organique_lisier fumier (kg unité d'azote appliquée / ha) | M32: Fertilisation en azote organique_digestat (kg unité d'azote appliquée / ha) | N32: Fertilisation en potassium (kg K2O / ha) | O32: Fertilisation en phosphore (kg P2O5 / ha) | P32: Application de produits phytosanitaires (kg de matière active / ha) | Q32: Choisir le type de carburant consommé par le tracteur pour cette culture (le biométhane peut être séléectionné uniquement pour les installations avec un poste d'épuration) | R32: Cocher "Consommation énergétique de l'ITK connue" (1) ou "choisir un ITK par défaut" (3) ou "paramétres de culture connus" (2) | S32: L de diesel / ha | T32: kg de biométhane / ha | U32: ITK par défaut | V32: L équivalent de diesel /ha (si le carburant utilisé est du biométhane, l'équivalence appliquée est de 1 L de diesel = 0,83 kg de diesel = 0,77 kg de biométhane ) | W32: Déchaumage | X32: Labour | Y32: Reprise (Chisel) | Z32: Préparation lit (vibroculteur) | AA32: Semis | AB32: Fertilisation minérale | AC32: Fertilisation organique | AD32: Protection des plantes (épandeur porté) | AE32: Récolte (ensileuse) | AF32: Transport sur l'exploitation | AG32: L équivalent de diesel /ha (si le carburant utilisé est du biométhane, l'équivalence appliquée est de 1 L de diesel = 0,83 kg de diesel = 0,77 kg de biométhane )
V33: =IF($R33="ITK simplifié",'BDD ITK culture'!$N$17,IF($R33="ITK moyen",'BDD ITK culture'!$N$18,IF($R33="ITK soutenu",'BDD ITK culture'!$N$19,0))) -> 0 | AG33: =SUMPRODUCT(W33:AF33,'BDD ITK culture'!$D$13:$M$13) -> 0
F35: Paramètres agronomiques pour la production de CIVE (nécessaire entre autre pour l'évaluation du stockage potentiel de carbone) | G35: n° substrat | H35: Rappel du substrat (Catégorie + Nom) | I35: Rappel du tonnage annuel en matière brute (MB) incorporé dans le digesteur | J35: Calcul du stockage de carbone ? | K35: La CIVE est cultivée en mélange d'espèce avec au moins 20% de légumineuses | L35: La CIVE est cultivée en remplacement d'une CIPAN ou d'un sol nu | M35: Type de sol | N35: pH du sol | O35: Température moyenne annuelle | P35: Pluviométrie annuelle (mm / an) | Q35: Evapotranspiration annuelle (mm / an) | R35: Irrigation moyenne annuelle sur l'ensemble de la rotation (mm / an) | S35: Nombre d'année de la rotation dans laquelle les CIVE s'intègrent (nombre d'année) | T35: Année d'intégration de la CIVE dans la rotation | U35: Cultures principales suivant la CIVE pouvant être impacté sur son rendement | V35: Objectif de rendement initial en grains (ou en racines pour la betterave sucrière) de la Cultures principales suivant la CIVE (tMS / ha / an)
G36: Substrat 4 | I36: renvoie vers la colone déjà rempli, cellule non modifiable | J36: Non
G38: Substrats | H38: Catégorie du substrat (catégorie 1) | I38: Catégorie du substrat (catégorie 2) | J38: Nom du substrat | K38: Catégorie pour score azote | L38: Quantité (tonnes) | M38: km parcourus | N38: t.km | O38: % de camions roulant au biométhane utilisés pour la collecte | P38: % MS/MB | Q38: % MO/MS | R38: Potentiel méthanogène (Nm3 CH4 / t MO) | S38: %vol CH4 | T38: Azote total (kg/t MB) | U38: Azote NH4+ (kg/t MB) | V38: P2O5 (kg / tMB) | W38: K2O (kg / tMB) | X38: kgC/tMB | Y38: Broyage : pourcentage du substrat broyé avant incorporation dans le digesteur (% de la masse du substrat) | Z38: Hygiénisation : pourcentage du substrat hygiénisé avant incorporation dans le digesteur (% de la masse du substrat) | AA38: MS (t) | AB38: Flux de matière sèche dans le digestat (t MS/an) | AC38: MO (t) | AD38: Flux de matière organique dans le digestat (t MO/an) | AE38: Potentiel méthanogène (Nm3 CH4 / t MB) | AF38: CH4 potentiel (Nm3) | AG38: CH4 exprimé (Nm3) | AH38: CH4 potentiel (kg) | AI38: CH4 exprimé (kg) | AJ38: Potentiel méthanogène (Nm3 CH4 / t MS) | AK38: %vol CO2 | AL38: Potentiel de production de CO2 (Nm3 CO2 / t MB) | AM38: CO2 potentiel (Nm3) | AN38: CO2 exprimé (Nm3) | AO38: CO2 potentiel (kg) | AP38: CO2 exprimé (kg) | AQ38: Biogaz potentiel (Nm3) | AR38: Biogaz exprimé (Nm3) | AS38: Biogaz potentiel (kg) | AT38: Biogaz exprimé (kg) | AU38: C biogaz potentiel (kg C) | AV38: C biogaz exprimé (kg C) | AW38: N total (kg) | AX38: NH4+ (kg) | AY38: Flux de NH4+ dans le digestat (t NH4+/an) | AZ38: P2O5 total (kg) | BA38: K2O total (kg) | BB38: C total (kg) | BC38: Taux de minéralisation (%) | BD38: Pourcentage de carbone biodégradable (%C_biodeg/C_tot) | BE38: Flux de carbone organique dans le digestat (t C/an) | BF38: Flux de MB dans le digestat (t) | BG38: Vérif MB dans le digestat (sys-métha) | BH38: Masse sèche récoltée (avant ensilage) | BI38: Rendement de culture (tMS / ha) | BJ38: hectares | BK38: Consommation de diesel évité par les CIVE pour le remplacement de CIPAN (kg / an) | BL38: (1) Consommation de diesel à l'hectare (kg / ha / an) | BM38: (1) Consommation de biométhane à l'hectare (kg / ha / an) | BN38: (2) Consommation de diesel à l'hectare (kg / ha / an) | BO38: (2) Consommation de biométhane à l'hectare (kg / ha / an) | BP38: (3) Consommation de diesel à l'hectare (kg / ha / an) | BQ38: (3) Consommation de biométhane à l'hectare (kg / ha / an) | BR38: Consommation de diesel à l'hectare (kg / ha / an) | BS38: Consommation de biométhane à l'hectare (kg / ha / an) | BT38: Consommation de diesel à l'ensilage (kg / an) | BU38: Consommation de biométhane à l'ensilage (kg / an) | BV38: Consommation de diesel globale (kg / an) | BW38: Consommation de biométhane globale (kg / an) | BX38: Emissions à 20 ans (kg CO2 eq / an) | BY38: Emissions à 100 ans (kg CO2 eq / an) | BZ38: Stockage C à 20 ans (tC / ha / an) | CA38: Stockage C à 20 ans (tC / an) | CB38: Stockage eq CO2 à 20 ans (kg eq CO2 / an) | CC38: Stockage C à 100 ans (tC / ha / an) | CD38: Stockage C à 100 ans (tC /an) | CE38: Stockage eq CO2 à 100 ans (kg eq CO2 / an) | CF38: Utilisation de fertilisant azoté évitée par les légumineuses cultivée avec des CIVE (kg / an) | CG38: Fertilisation N minéral (kg UN) | CH38: Fertilisation azote organique - lisier et fumier (kg UN) | CI38: Fertilisation azote organique - digestat (kg UN) | CJ38: Fertilisation K (kg K2O) | CK38: Fertilisation P (kg P2O5) | CL38: Phytosanitaires (kg) | CM38: Pré-stockage effluents d'élevage - avec méthanisation (kg eq CO2 20 ans) | CN38: Pré-stockage effluents d'élevage - avec méthanisation (kg eq CO2 100 ans) | CO38: km filière de réf | CP38: t.km de référence | CQ38: Filière de traitement de référence | CR38: kg CO2 à 20 ans / kg de déchets traités | CS38: kg CO2 à 100 ans / kg de déchets traités | CT38: kWh fossile et nucléaire / kg de déchets traités | CU38: kg CO2 à 20 ans / an | CV38: kg CO2 à 100 ans / an | CW38: kWh fossile et nucléaire / an | CX38: Emission au stockage des effluents (kg eq CO2 20 ans / tMB) | CY38: Emission au stockage des effluents (kg eq CO2 100 ans / tMB) | CZ38: Emission à l'épandage des effluents (kg eq CO2 20 ans / tMB) | DA38: Emission à l'épandage des effluents (kg eq CO2 100 ans / tMB) | DB38: substitution à l'épandage des effluents (kg eq CO2 20 ans / tMB) | DC38: substitution à l'épandage des effluents (kg eq CO2 100 ans / tMB) | DD38: substitution à l'épandage des effluents (kWh eq / tMB)
G39: Substrat 1 | K39: =VLOOKUP($E39,'BDD caractérisation substrats'!$C$4:$BU$111,4,FALSE) ->  | N39: =L39*M39 -> 0 | Y39: 100% | Z39: 50% | AA39: =P39*L39 -> 0 | AB39: =AD39+AA39-AC39 ->  | AC39: =Q39*AA39 -> 0 | AD39: =AC39*(1-BC39) ->  | AE39: =AJ39*P39 -> 0.0 | AF39: =AE39*L39 -> 0 | AG39: =AF39*'Données projet'!$B$24 ->  | AH39: =AF39*'BDD modélisation ICV'!$B$131 -> 0.00 | AI39: =AH39*'Données projet'!$B$24 ->  | AJ39: =R39*Q39 -> 0 | AK39: =1-S39 -> 100% | AL39: =AE39*AK39/S39 ->  | AM39: =AL39*L39 ->  | AN39: =AM39*'Données projet'!$B$24 ->  | AO39: =AM39*'BDD modélisation ICV'!$C$131 ->  | AP39: =AO39*'Données projet'!$B$24 ->  | AQ39: =AF39+AM39 ->  | AR39: =AG39+AN39 ->  | AS39: =AH39+AO39 ->  | AT39: =AI39+AP39 ->  | AU39: =(AF39+AM39)/0.0224*0.012 ->  | AV39: =(AG39+AN39)/0.0224*0.012 ->  | AW39: =T39*L39 -> 0 | AX39: =U39*L39 -> 0 | AY39: =AX39/1000+((AW39-AX39)/1000)*BC39 ->  | AZ39: =V39*L39 -> 0 | BA39: =W39*L39 -> 0 | BB39: =X39*L39 -> 0 | BC39: =1-(BE39*1000/BB39) ->  | BD39: =IF(((((AE39+AL39)/0.0224)*0.000012)*1000)/X39>1,1,((((AE39+AL39)/0.0224)*0.000012)*1000)/X39) ->  | BE39: =(BB39/1000)*(1-BD39*('Données projet'!$B$24)) ->  | BF39: =L39-AG39*'BDD modélisation ICV'!G$131/1000-AN39*'BDD modélisation ICV'!H$131/1000 ->  | BG39: =L39-(AA39-AB39) ->  | BH39: =IF(OR(I39="Cultures principales",I39="CIVE d'été",I39="CIVE d'hiver"),AA39/0.9,0) -> 0.00 | BI39: =IF(ISNA(_xlfn.XLOOKUP(G39,'Description des substrats'!$D$17:$D$20,'Description des substrats'!$G$17:$G$20)),0,_xlfn.XLOOKUP(G39,'Description des substrats'!$D$17:$D$20,'Description des substrats'!$G$17:$G$20)) -> 0 | BJ39: =IF(OR(I39="Cultures principales",I39="CIVE d'été",I39="CIVE d'hiver"),BH39/BI39,0) -> 0.00 | BL39: =IF(ISNA(_xlfn.XLOOKUP(G39,'Description des substrats'!$D$17:$D$20,'Description des substrats'!$P$17:$P$20)),0,_xlfn.XLOOKUP(G39,'Description des substrats'!$D$17:$D$20,'Description des substrats'!$P$17:$P$20*'BDD modélisation ICV'!$A$135)) -> 0.00 | BM39: =IF(ISNA(_xlfn.XLOOKUP(G39,'Description des substrats'!$D$17:$D$20,'Description des substrats'!$Q$17:$Q$20)),0,_xlfn.XLOOKUP(G39,'Description des substrats'!$D$17:$D$20,'Description des substrats'!$Q$17:$Q$20)) -> 0.00 | BN39: =IF(ISNA(_xlfn.XLOOKUP(G39,'Description des substrats'!$D$17:$D$20,'Description des substrats'!$N$17:$N$20)),0,IF(_xlfn.XLOOKUP(G39,'Description des substrats'!$D$17:$D$20,'Description des substrats'!$N$17:$N$20)="diesel",_xlfn.XLOOKUP(G39,'Description des substrats'!$D$17:$D$20,'Description des substrats'!$S$17:$S50)*'BDD modélisation ICV'!$A$135,0)) -> 0.00 | BO39: =IF(ISNA(_xlfn.XLOOKUP(G39,'Description des substrats'!$D$17:$D$20,'Description des substrats'!$N$17:$N$20)),0,IF(_xlfn.XLOOKUP(G39,'Description des substrats'!$D$17:$D$20,'Description des substrats'!$N$17:$N$20)="biométhane",_xlfn.XLOOKUP(G39,'Description des substrats'!$D$17:$D$20,'Description des substrats'!$S$17:$S$20)*'BDD modélisation ICV'!$A$138,0)) -> 0.00 | BP39: =_xlfn.SINGLE(IF(ISNA(_xlfn.XLOOKUP(G39,'Description des substrats'!$D$17:$D$20,'Description des substrats'!$N$17:$N$20)),0,IF(_xlfn.XLOOKUP(G39,'Description des substrats'!$D$17:$D$20,'Description des substrats'!$N$17:$N$20)="diesel",_xlfn.XLOOKUP(G39,'Description des substrats'!$D$17:$D$20,'Description des substrats'!$AD$17:$AE$20)*'BDD modélisation ICV'!$A$135,0))) -> 0.00 | BQ39: =IF(ISNA(_xlfn.XLOOKUP(G39,'Description des substrats'!$D$17:$D$20,'Description des substrats'!$N$17:$N$20)),0,IF(_xlfn.XLOOKUP(G39,'Description des substrats'!$D$17:$D$20,'Description des substrats'!$N$17:$N$20)="biométhane",_xlfn.XLOOKUP(G39,'Description des substrats'!$D$17:$D$20,'Description des substrats'!$AD$17:$AE$20)*'BDD modélisation ICV'!$A$138,0)) -> 0.00 | BR39: =BL39+BN39+BP39 -> 0.00 | BS39: 0.00 | BT39: =IF(H39="Biomasse agricole végétale",AA39*'BDD modélisation ICV'!$D$6*'BDD modélisation ICV'!$A$135,0) -> 0.00 | BU39: =BT39*'BDD modélisation ICV'!$A$148 -> 0.00 | BV39: =IF(ISNA(_xlfn.XLOOKUP(G39,'Description des substrats'!$D$17:$D$20,'Description des substrats'!$N$17:$N$20)),0,IF(_xlfn.XLOOKUP(G39,'Description des substrats'!$D$17:$D$20,'Description des substrats'!$N$17:$N$20)="diesel",BR39*BJ39+BT39,0)) -> 0.00 | BW39: =IF(ISNA(_xlfn.XLOOKUP(G39,'Description des substrats'!$D$17:$D$20,'Description des substrats'!$N$17:$N$20)),0,IF(_xlfn.XLOOKUP(G39,'Description des substrats'!$D$17:$D$20,'Description des substrats'!$N$17:$N$20)="biométhane",BS39*BJ39+BU39,0)) -> 0.00 | BX39: =BV39*('BDD export Ecoinvent - SIMAPRO'!$D$8+'BDD export Ecoinvent - SIMAPRO'!$E$8)+BW39*0 -> 0.00 | BY39: =BV39*('BDD export Ecoinvent - SIMAPRO'!$D$9+'BDD export Ecoinvent - SIMAPRO'!$E$9)+BW39*0 -> 0.00 | CA39: =BJ39*BZ39 -> 0.00 | CB39: =CA39*44/12 -> 0.00 | CD39: =CC39*BJ39 -> 0.00 | CE39: =CD39*44/12 -> 0.00 | CF39: =IF(ISNA(_xlfn.XLOOKUP(G39,'Description des substrats'!$D$20:$D$24,'Description des substrats'!$H$20:$H$24)),0,(IF(_xlfn.XLOOKUP(G39,'Description des substrats'!$D$20:$D$24,'Description des substrats'!$H$20:$H$24)="Oui",BJ39*20,0))) -> 0.00 | CG39: =IF(ISNA(_xlfn.XLOOKUP(G39,'Description des substrats'!$D$17:$D$20,'Description des substrats'!$H$17:$H$20)),0,_xlfn.XLOOKUP(G39,'Description des substrats'!$D$17:$D$20,'Description des substrats'!$H$17:$H$20)) -> 0.00 | CH39: =IF(ISNA(_xlfn.XLOOKUP(G39,'Description des substrats'!$D$17:$D$20,'Description des substrats'!$I$17:$I$20)),0,_xlfn.XLOOKUP(G39,'Description des substrats'!$D$17:$D$20,'Description des substrats'!$I$17:$I$20)) -> 0.00 | CI39: =IF(ISNA(_xlfn.XLOOKUP(G39,'Description des substrats'!$D$17:$D$20,'Description des substrats'!$J$17:$J$20)),0,_xlfn.XLOOKUP(G39,'Description des substrats'!$D$17:$D$20,'Description des substrats'!$J$17:$J$20)) -> 0.00 | CJ39: =IF(ISNA(_xlfn.XLOOKUP(G39,'Description des substrats'!$D$17:$D$20,'Description des substrats'!$K$17:$K$20)),0,_xlfn.XLOOKUP(G39,'Description des substrats'!$D$17:$D$20,'Description des substrats'!$K$17:$K$20)) -> 0.00 | CK39: =IF(ISNA(_xlfn.XLOOKUP(G39,'Description des substrats'!$D$17:$D$20,'Description des substrats'!$L$17:$L$20)),0,_xlfn.XLOOKUP(G39,'Description des substrats'!$D$17:$D$20,'Description des substrats'!$L$17:$L$20)) -> 0.00 | CL39: =IF(ISNA(_xlfn.XLOOKUP(G39,'Description des substrats'!$D$17:$D$20,'Description des substrats'!$M$17:$M$20)),0,_xlfn.XLOOKUP(G39,'Description des substrats'!$D$17:$D$20,'Description des substrats'!$M$17:$M$20)) -> 0.00 | CM39: =CX39*8/180*L39 ->  | CN39: =CY39*8/180*L39 ->  | CO39: ='Description des substrats'!P42 -> 0 | CP39: =L39*CO39 -> 0 | CQ39: =VLOOKUP(J39,'BDD caractérisation substrats'!$C$4:$BU$111,16,FALSE) ->  | CR39: =VLOOKUP(J39,'BDD caractérisation substrats'!$C$4:$BU$111,17,FALSE) ->  | CS39: =VLOOKUP(J39,'BDD caractérisation substrats'!$C$4:$BU$111,18,FALSE) ->  | CT39: =VLOOKUP(J39,'BDD caractérisation substrats'!$C$4:$BU$111,19,FALSE) ->  | CU39: =(CR39+CX39+CZ39+DB39)*L39 ->  | CV39: =(CS39+CY39+DA39+DC39)*L39 ->  | CW39: =(CT39+DD39)*L39 ->  | CX39: =VLOOKUP(J39,'BDD caractérisation substrats'!$C$4:$BU$111,20,FALSE) ->  | CY39: =VLOOKUP(J39,'BDD caractérisation substrats'!$C$4:$BU$111,21,FALSE) ->  | CZ39: =VLOOKUP(J39,'BDD caractérisation substrats'!$C$4:$BU$111,22,FALSE) ->  | DA39: =VLOOKUP(J39,'BDD caractérisation substrats'!$C$4:$BU$111,23,FALSE) ->  | DB39: =VLOOKUP(J39,'BDD caractérisation substrats'!$C$4:$BU$111,24,FALSE) ->  | DC39: =VLOOKUP(J39,'BDD caractérisation substrats'!$C$4:$BU$111,25,FALSE) ->  | DD39: =VLOOKUP(J39,'BDD caractérisation substrats'!$C$4:$BU$111,26,FALSE) -> 
F43: Table S2 Soil characteristics of the first layer (0-25 cm) used in AMG for the different case study | K43: Table S1: Climate characteristics of thecase studiesfor the reference period (1981-2010) | O43: Production agricole | AA43: Estimation du stockage potentiel
B44: https://www6.hautsdefrance.inrae.fr/agroimpact/Nos-dispositifs-outils/Modeles-et-outils-d-aide-a-la-decision/AMG-et-SIMEOS-AMG/AMG-model-description | D44: Substrat CIVE numéro | E44: Numéro du cas CIVE (pour l'incrémentation) | F44: Type | G44: Clay (%) | H44: CaCO3 (%) | I44: pH | J44: C:N | K44: Temperature (°C) | L44: Rainfall (mm) | M44: PET (mm) | N44: Irrigation (mm) | O44: Sans métha CC | P44: t DM / ha | Q44: Avec métha CC | R44: Rendement CIVE t DM / ha | S44: Place de la culture suivant la CC | T44: Nombre de culture | U44: Nombre d'insertion de CC sur 30 ans | V44: Cultures principaless suivantes | W44: Primary crop following the CC | X44: Crop grain (or root for sugarbeet) yields (tDMha-1) of the primarycrops used in AMG | Y44: Nombre d'insertion de CC sur 100 ans | AA44: tC / ha / an à 20 ans | AB44: kg CO2 eq / ha / an à 20 ans | AC44: tC / ha / an à 30 ans | AD44: kg CO2 eq / ha / an à 30 ans | AE44: tC / ha / an à 100 ans | AF44: kg CO2 eq / ha / an à 100 ans
B45: https://www6.hautsdefrance.inrae.fr/agroimpact/content/download/3760/36367/version/1/file/AMG_detailed_model_description.pdf | D45: ='Description des substrats'!B28 -> 0 | E45: 1 | F45: ='Description des substrats'!#REF! ->  | G45: =VLOOKUP(F45,$AB$170:$AF$180,2,FALSE) ->  | H45: =VLOOKUP(F45,$AB$170:$AF$180,3,FALSE) ->  | I45: 8 | J45: =VLOOKUP(F45,$AB$170:$AF$180,5,FALSE) ->  | K45: ='Description des substrats'!#REF! ->  | L45: ='Description des substrats'!#REF! ->  | M45: ='Description des substrats'!#REF! ->  | N45: ='Description des substrats'!#REF! ->  | O45: =IF('Description des substrats'!#REF!="CIPAN","Mustard","") ->  | P45: =IF(O45="Mustard",2,"") ->  | Q45: ='Description des substrats'!#REF! ->  | R45: ='Description des substrats'!#REF! ->  | S45: ='Description des substrats'!#REF! ->  | T45: ='Description des substrats'!#REF! ->  | U45: =30/T45 ->  | V45: ='Description des substrats'!#REF! ->  | W45: =VLOOKUP(V45,$Q$168:$R$174,2,FALSE) ->  | Y45: =100/T45 ->  | AB45: =IFERROR(-AA45/12*44*1000,0) -> 0 | AD45: =IFERROR(-AC45/12*44*1000,0) -> 0 | AF45: =IFERROR(-AE45/12*44*1000,0) -> 0 | AG45: =IFERROR(-AF45/12*44*1000,0) -> 0
L48: Taux de matière sèche (% MS/MB) | M48: Taux de matière organique (% MO/MS) | N48: Potentiel méthanogène (Nm3 CH4 / MO), (attention, il ne s'agit pas du potentiel biogaz) | O48: Taux de CH4 dans le biogaz issu du substrat (%vol de CH4) | P48: Teneur en azote total (kg/t MB) | Q48: Teneur en azote ammoniacal NH4+ (kg/t MB) | R48: Teneur en phosphore (kg P2O5 / tMB) | S48: Teneur en potassium (kg K2O / tMB) | T48: Teneur en carbone organique total (kg COT/tMB) | U48: Broyage : pourcentage du substrat broyé avant incorporation dans le digesteur (% de la masse du substrat) | V48: Hygiénisation : pourcentage du substrat hygiénisé avant incorporation dans le digesteur (% de la masse du substrat)
D50: Substrat 1 | E50: Biomasse agricole animale | F50: Effluents d'élevage | G50: Déchets restauration | H50: 5000 | J50: 0.00% | K50: 20 | L50: =IFERROR(VLOOKUP($G50,'BDD caractérisation substrats'!$C$4:$BU$111,5,FALSE),0) -> 27% | M50: =IFERROR(VLOOKUP($G50,'BDD caractérisation substrats'!$C$4:$BU$111,6,FALSE),0) -> 82% | N50: =IFERROR(VLOOKUP($G50,'BDD caractérisation substrats'!$C$4:$BU$111,7,FALSE),0) -> 324.96 | O50: =IFERROR(VLOOKUP($G50,'BDD caractérisation substrats'!$C$4:$BU$111,8,FALSE),0) -> 61% | P50: =IFERROR(VLOOKUP($G50,'BDD caractérisation substrats'!$C$4:$BU$111,9,FALSE),0) -> 8.09 | Q50: =IFERROR(VLOOKUP($G50,'BDD caractérisation substrats'!$C$4:$BU$111,10,FALSE),0) -> 0.60 | R50: =IFERROR(VLOOKUP($G50,'BDD caractérisation substrats'!$C$4:$BU$111,11,FALSE),0) -> 2.65 | S50: =IFERROR(VLOOKUP($G50,'BDD caractérisation substrats'!$C$4:$BU$111,12,FALSE),0) -> 2.44 | T50: =L50*M50*0.45*1000 -> 99.73 | U50: 100% | V50: 0%

Sheet Feuil1 (hidden)
A1: N° substrat | B1: Nom | C1: % MB | D1: % prod énergétique | I1: contributive 66
A2: Substrat 2 | B2: Bovin - Lisiers autres | C2: ='Données projet substrat'!G7/'Données projet substrat'!$G$4 ->  | D2: ='Données projet substrat'!AB7/'Données projet substrat'!$AB$4 ->  | I2: A | J2: B
A3: Substrat 9 | B3: Féculerie/ transformation de pomme de terre | C3: ='Données projet substrat'!G14/'Données projet substrat'!$G$4 ->  | D3: ='Données projet substrat'!AB14/'Données projet substrat'!$AB$4 ->  | I3: Valorisation du digestat (séparation, stockage et épandage) | J3: ='Calculs d''impacts'!P$35 -> 0.00
A4: Substrat 8 | B4: Soupe de déconditionnement | C4: ='Données projet substrat'!G13/'Données projet substrat'!$G$4 ->  | D4: ='Données projet substrat'!AB13/'Données projet substrat'!$AB$4 ->  | I4: Méthaniseur (estimation des émissions fugitives structurelles) | J4: ='Calculs d''impacts'!M$35 -> 0.00
A5: Substrat 1 | B5: Volaille - Fumier (autres), fientes | C5: ='Données projet substrat'!G6/'Données projet substrat'!$G$4 ->  | D5: ='Données projet substrat'!AB6/'Données projet substrat'!$AB$4 ->  | I5: Valorisation du biogaz en cogénération | J5: ='Calculs d''impacts'!N$35 -> 0.00
A6: Substrat 4 | B6: Céréales immatures, ensilées, non ensilées | C6: ='Données projet substrat'!G9/'Données projet substrat'!$G$4 ->  | D6: ='Données projet substrat'!AB9/'Données projet substrat'!$AB$4 ->  | I6: Stockage des effluents bruts et biodéchets | J6: ='Calculs d''impacts'!I$35 -> 0.00
A7: Substrat 10 | B7: Transformation/conserverie des fruits et légumes | C7: ='Données projet substrat'!G15/'Données projet substrat'!$G$4 ->  | D7: ='Données projet substrat'!AB15/'Données projet substrat'!$AB$4 ->  | I7: Transport des substrats | J7: ='Calculs d''impacts'!J$35 -> 0.00
A8: Substrat 5 | B8: Mélanges - Autres - Immatures , ensilée, non ensilée | C8: ='Données projet substrat'!G10/'Données projet substrat'!$G$4 ->  | D8: ='Données projet substrat'!AB10/'Données projet substrat'!$AB$4 ->  | I8: Méthaniseur | J8: ='Calculs d''impacts'!L$35 -> 0.00
A9: Substrat 6 | B9: Aliments pour animaux (bétails) | C9: ='Données projet substrat'!G11/'Données projet substrat'!$G$4 ->  | D9: ='Données projet substrat'!AB11/'Données projet substrat'!$AB$4 ->  | I9: Valorisation du digestat (transport) | J9: ='Calculs d''impacts'!Q$35 -> 
A10: Substrat 3 | B10: Bovin - Fumier | C10: ='Données projet substrat'!G8/'Données projet substrat'!$G$4 ->  | D10: ='Données projet substrat'!AB8/'Données projet substrat'!$AB$4 ->  | I10: Valorisation du biogaz en injection (biométhane et BioGNV) | J10: ='Calculs d''impacts'!O$35 -> 0.00
A11: Substrat 7 | B11: Issus de stockage - céréales | C11: ='Données projet substrat'!G12/'Données projet substrat'!$G$4 ->  | D11: ='Données projet substrat'!AB12/'Données projet substrat'!$AB$4 ->  | I11: Prétraitement | J11: ='Calculs d''impacts'!K$35 -> 0.00
I12: Production de substrats cultivés (cultures dédiées) | J12: ='Calculs d''impacts'!G$35 -> 0.00
I13: Production de substrats cultivés (CIVE) | J13: ='Calculs d''impacts'!H$35 -> 0.00
I15: contributive 25
I16: A | J16: B
I17: Méthaniseur (estimation des émissions fugitives structurelles) | J17: ='Calculs d''impacts'!M$35 -> 0.00
I18: Valorisation du digestat (séparation, stockage et épandage) | J18: ='Calculs d''impacts'!P$37 -> 0.00
I19: Valorisation du biogaz en cogénération | J19: ='Calculs d''impacts'!N$37 -> 0.00
I20: Stockage des effluents bruts et biodéchets | J20: ='Calculs d''impacts'!I$37 -> 0.00
I21: Transport des substrats | J21: ='Calculs d''impacts'!J$37 -> 0.00
I22: Production de substrats cultivés (CIVE) | J22: ='Calculs d''impacts'!H$37 -> 0.00
I23: Méthaniseur | J23: ='Calculs d''impacts'!L$37 -> 0.00
I24: Valorisation du digestat (transport) | J24: ='Calculs d''impacts'!Q$37 -> 
I25: Valorisation du biogaz en injection (biométhane et BioGNV) | J25: ='Calculs d''impacts'!O$37 -> 0.00
I26: Prétraitement | J26: ='Calculs d''impacts'!K$37 -> 0.00
I27: Production de substrats cultivés (cultures dédiées) | J27: ='Calculs d''impacts'!G$37 -> 0.00

Sheet Données projet substrat (hidden)
C1: Si données spécifique --> prendre la données spé --> sinon prendre la données par défaut | Y1: Somme MB des matières Hygiénisation - broyage
A3: 1. Liste des substrats | CK3: Filière de référence
A4: TOTAL | B4: =COUNTIF(B6:B22,"Substrat*") -> 0 | G4: =SUM(G6:G1150) -> 0 | H4: =SUMPRODUCT(H6:H1150,G6:G1150)/G4 ->  | I4: =SUM(I5:I1150) -> 0 | J4: =SUMPRODUCT(J6:J1150,I6:I1150) -> 0 | N4: =AA4/(AA4+AH4) ->  | T4: =SUMPRODUCT(G6:G1150,T6:T1150) -> 0 | U4: =SUMPRODUCT(G6:G1150,U6:U1150) -> 0 | V4: =SUM(V6:V1150) -> 0 | W4: 0.00E+00 | X4: 0 | Y4: 0.00E+00 | Z4: 0.0 | AA4: 0 | AB4: 0 | AC4: 0 | AD4: 0 | AE4: 0 | AF4: 0 | AG4: 0 | AH4: 0 | AI4: 0 | AJ4: 0 | AK4: 0 | AL4: 0 | AM4: 0 | AN4: 0 | AO4: 0 | AP4: 0 | AQ4: 0 | AR4: 0 | AS4: 0 | AT4: 0 | AU4: 0 | AV4: 0 | AW4: 0 | AX4: 0 | AY4: 0 | AZ4: 0 | BA4: 0 | BB4: 0 | BC4: 0 | BE4: =SUM(BE6:BE1150) -> 0.00 | BF4: =SUM(BF6:BF1150) -> 0.00 | BO4: =SUM(BO6:BO1150) -> 0.00 | BP4: 0.00 | BQ4: 0.00 | BR4: 0.00 | BS4: 0.00 | BT4: 0.00 | BU4: 0.00 | BV4: 0.00 | BW4: 0.00 | BX4: 0.00 | BY4: 0.00 | BZ4: 0.00 | CA4: 0.00 | CB4: 0.00 | CC4: 0.00 | CD4: 0.00 | CE4: 0.00 | CF4: 0.00 | CG4: 0.00 | CH4: 0.00 | CI4: 0.00 | CK4: =SUM(CK6:CK1150) -> 0 | CP4: =SUM(CP6:CP1150) -> 0.00 | CQ4: =SUM(CQ6:CQ1150) -> 0.00 | CR4: =SUM(CR6:CR1150) -> 0.00
B5: Substrats | C5: Catégorie du substrat (catégorie 1) | D5: Catégorie du substrat (catégorie 2) | E5: Nom du substrat | F5: Catégorie pour score azote | G5: Quantité (tonnes) | H5: km parcourus | I5: t.km | J5: % de camions roulant au biométhane utilisés pour la collecte | K5: % MS/MB | L5: % MO/MS | M5: Potentiel méthanogène (Nm3 CH4 / t MO) | N5: %vol CH4 | O5: Azote total (kg/t MB) | P5: Azote NH4+ (kg/t MB) | Q5: P2O5 (kg / tMB) | R5: K2O (kg / tMB) | S5: kgC/tMB | T5: Broyage : pourcentage du substrat broyé avant incorporation dans le digesteur (% de la masse du substrat) | U5: Hygiénisation : pourcentage du substrat hygiénisé avant incorporation dans le digesteur (% de la masse du substrat) | V5: MS (t) | W5: Flux de matière sèche dans le digestat (t MS/an) | X5: MO (t) | Y5: Flux de matière organique dans le digestat (t MO/an) | Z5: Potentiel méthanogène (Nm3 CH4 / t MB) | AA5: CH4 potentiel (Nm3) | AB5: CH4 exprimé (Nm3) | AC5: CH4 potentiel (kg) | AD5: CH4 exprimé (kg) | AE5: Potentiel méthanogène (Nm3 CH4 / t MS) | AF5: %vol CO2 | AG5: Potentiel de production de CO2 (Nm3 CO2 / t MB) | AH5: CO2 potentiel (Nm3) | AI5: CO2 exprimé (Nm3) | AJ5: CO2 potentiel (kg) | AK5: CO2 exprimé (kg) | AL5: Biogaz potentiel (Nm3) | AM5: Biogaz exprimé (Nm3) | AN5: Biogaz potentiel (kg) | AO5: Biogaz exprimé (kg) | AP5: C biogaz potentiel (kg C) | AQ5: C biogaz exprimé (kg C) | AR5: N total (kg) | AS5: NH4+ (kg) | AT5: Flux de NH4+ dans le digestat (t NH4+/an) | AU5: P2O5 total (kg) | AV5: K2O total (kg) | AW5: C total (kg) | AX5: Taux de minéralisation (%) | AY5: Pourcentage de carbone biodégradable (%C_biodeg/C_tot) | AZ5: Flux de carbone organique dans le digestat (t C/an) | BA5: Flux de MB dans le digestat (t) | BB5: Vérif MB dans le digestat (sys-métha) | BC5: Masse sèche récoltée (avant ensilage) | BD5: Rendement de culture (tMS / ha) | BE5: hectares | BF5: Consommation de diesel évité par les CIVE pour le remplacement de CIPAN (kg / an) | BG5: (1) Consommation de diesel à l'hectare (kg / ha / an) | BH5: (1) Consommation de bioGNV à l'hectare (kg / ha / an) | BI5: (2) Consommation de diesel à l'hectare (kg / ha / an) | BJ5: (2) Consommation de bioGNV à l'hectare (kg / ha / an) | BK5: (3) Consommation de diesel à l'hectare (kg / ha / an) | BL5: (3) Consommation de bioGNV à l'hectare (kg / ha / an) | BM5: Consommation de diesel à l'hectare (kg / ha / an) | BN5: Consommation de bioGNV à l'hectare (kg / ha / an) | BO5: Consommation de diesel à l'ensilage (kg / an) | BP5: Consommation de bioGNV à l'ensilage (kg / an) | BQ5: Consommation de diesel globale (kg / an) | BR5: Consommation de bioGNV globale (kg / an) | BS5: Emissions à 20 ans (kg CO2 eq / an) | BT5: Emissions à 100 ans (kg CO2 eq / an) | BU5: Stockage C à 20 ans (tC / ha / an) | BV5: Stockage C à 20 ans (tC / an) | BW5: Stockage eq CO2 à 20 ans (t eq CO2 / an) | BX5: Stockage C à 100 ans (tC / ha / an) | BY5: Stockage C à 100 ans (tC /an) | BZ5: Stockage eq CO2 à 100 ans (t eq CO2 / an) | CA5: Utilisation de fertilisant azoté évitée par les légumineuses cultivée avec des CIVE (kg / an) | CB5: Fertilisation N minéral (kg UN) | CC5: Fertilisation azote organique - lisier et fumier (kg UN) | CD5: Fertilisation azote organique - digestat (kg UN) | CE5: Fertilisation K (kg K2O) | CF5: Fertilisation P (kg P2O5) | CG5: Phytosanitaires (kg) | CH5: Pré-stockage effluents d'élevage - avec méthanisation (kg eq CO2 20 ans) | CI5: Pré-stockage effluents d'élevage - avec méthanisation (kg eq CO2 100 ans) | CJ5: km filière de réf | CK5: t.km de référence | CL5: Filière de traitement de référence | CM5: kg CO2 à 20 ans / kg de déchets traités | CN5: kg CO2 à 100 ans / kg de déchets traités | CO5: kWh fossile et nucléaire / kg de déchets traités | CP5: kg CO2 à 20 ans / an | CQ5: kg CO2 à 100 ans / an | CR5: kWh fossile et nucléaire / an | CS5: Emission au stockage des effluents (kg eq CO2 20 ans / tMB) | CT5: Emission au stockage des effluents (kg eq CO2 100 ans / tMB) | CU5: Emission à l'épandage des effluents (kg eq CO2 20 ans / tMB) | CV5: Emission à l'épandage des effluents (kg eq CO2 100 ans / tMB) | CW5: substitution à l'épandage des effluents (kg eq CO2 20 ans / tMB) | CX5: substitution à l'épandage des effluents (kg eq CO2 100 ans / tMB) | CY5: substitution à l'épandage des effluents (kWh eq / tMB)

Sheet Données projet (hidden)
A1: Données du projet obtenues via le formulaire de saisie (se remplit automatiquement, invisible pour l'utilisateur) :
A4: 2. Paramètres de l'installation
B5: Données du calculateur | C5: Données utilisateur | D5: Données par défaut | E5: Sources
A6: Nom de l'installation | B6: =IF(D6="/",C6,IF(C6=0,D6,C6)) -> 0 | C6: ='Description des substrats'!E2 -> 0 | D6: /
A7: Année du diagnostic | B7: 0 | C7: ='Description des substrats'!E3 -> 0 | D7: /
A8: Type d'installation | B8: Votre choix | C8: ='Description des substrats'!E4 -> Votre choix | D8: /
A9: Type de valorisation énergétique | B9: =IF(D9="/",C9,IF(C9=0,D9,C9)) -> Votre choix | C9: ='Description des substrats'!E5 -> Votre choix | D9: /
A10: Capacité annuelle de l'unité (Nm3.h) | B10: ='Description des substrats'!E7 -> 0 | C10: ='Description des substrats'!E7 -> 0 | D10: /
A11: Puissance de l'unité (kW) | B11: ='Description des substrats'!E8 -> 0 | C11: ='Description des substrats'!E8 -> 0 | D11: /
A12: Puissance électrique de la cogénératrice (kW) | B12: ='Description des substrats'!E9 -> 0 | C12: ='Description des substrats'!E9 -> 0 | D12: /
A13: Puissance thermique de la cogénératrice (kW) | B13: ='Description des substrats'!E10 -> 0 | C13: ='Description des substrats'!E10 -> 0 | D13: /
A14: Heures de fonctionnement par an | B14: ='Description des substrats'!C11 -> Heures de fonctionnement par an | C14: ='Description des substrats'!C11 -> Heures de fonctionnement par an | D14: /
A15: Type de déconditionneur | B15: Votre choix | C15: =soupes -> Votre choix | D15: /
A16: Distance pré-déconditionnement (km) | B16: 0 | C16: =IF(C15="Déconditionneur sur place",distplace,IF(C15="Déconditionneur centralisé",distcentralise,0)) -> 0 | D16: /
A17: Distance post-déconditionnement (km) | B17: 0 | C17: =IF(C15="Déconditionneur centralisé",distmetha,0) -> 0 | D17: /
A18: Distance total des soupes | B18: =B16+B17 -> 0 | C18: / | D18: /
A19: Capacité (m3) | B19: 0 | C19: ='Caractéristique de installation'!D4 -> 0 | D19: /
A20: Post-digesteur | B20: Votre choix | C20: ='Caractéristique de installation'!D5 -> Votre choix | D20: /
A21: Capacité post-digesteur (m3) | B21: 0 | C21: =IF(C20="oui",'Caractéristique de installation'!E6,0) -> 0 | D21: /
A22: Volume substrats annuel (m3) | B22: 0 | D22: ='Données projet substrat'!G4 -> 0 | E22: Calcul d'un volume hypothétique avec l'hypothèse que les substrats ont tous la masse volumique de l'eau
A23: Estimation du TSH | D23: =(B19+B21)/(B22/365) ->  | E23: donnée calculée (capacité digesteur et post-digesteur/volume substrats)
A24: % du BMP atteint considéré | D24: =IF(B23<80,IF(OR(C90="couvert avec récupération",C91="couvert avec récupération"),0.95,0.9),IF(B23>80,IF(OR(C90="couvert avec récupération",C91="couvert avec récupération"),1,0.95))) ->  | E24: donnée calculée (BDD ICV)
A25: Traitement des airs viciés | B25: =IF(D25="/",C25,IF(C25="",D25,C25)) -> Votre choix | C25: ='Caractéristique de installation'!D7 -> Votre choix | D25: /
A26: % biogaz envoyé en torchère | B26: =IF(D26="/",C26,IF(C26=0,D26,C26)) -> 1.5% | C26: ='Caractéristique de installation'!D17 -> 0.0% | D26: ='BDD modélisation ICV'!B71 -> 1.5% | E26: AREC IDF, 2022
A27: Usage mix électrique français | B27: =IF(D27="/",C27,IF(C27="",D27,C27)) -> Votre choix | C27: ='Caractéristique de installation'!D26 -> Votre choix | D27: Oui
A28: MWh mix électrique FR | B28: =C28 -> 0 | C28: =IF(C27="oui",'Caractéristique de installation'!E26+'Caractéristique de installation'!E28,'Caractéristique de installation'!E28) -> 0 | D28: /
A29: % mix électrique français | B29: =IF(D29="/",C29,IF(C29=0,D29,C29)) -> 100% | C29: =IF(C28=0,0,C28/C36) -> 0% | D29: =IF(B36=0,100%,0%) -> 100%
A30: Usage autoconsommation e. | B30: =IF(D30="/",C30,IF(C30=0,D30,C30)) -> Votre choix | C30: ='Caractéristique de installation'!D25 -> Votre choix | D30: Non
A31: MWh autoconsommation e. | B31: =IF(D31="/",C31,IF(C31="",D31,C31)) -> 0 | C31: =IF(C30="oui",'Caractéristique de installation'!E25,0) -> 0 | D31: /
A32: % autoconsommation e. | B32: =IF(D32="/",C32,IF(C32="",D32,C32)) -> 0% | C32: =IF(C31=0,0,C31/C36) -> 0% | D32: 0%
A33: Usage photovoltaïque | B33: =IF(D33="/",C33,IF(C33=0,D33,C33)) -> Votre choix | C33: ='Caractéristique de installation'!D27 -> Votre choix | D33: Non
A34: MWh photovoltaïque | B34: 0 | C34: =IF(C33="oui",'Caractéristique de installation'!E27,0) -> 0 | D34: /
A35: % photovoltaïque | B35: =IF(D35="/",C35,IF(C35="",D35,C35)) -> 0% | C35: =IF(C34=0,0,C34/C36) -> 0% | D35: 0%
A36: Consommation électricité (MWh) | B36: 0 | C36: =C28+C31+C34 -> 0 | D36: /
A37: Comprend broyage | B37: Votre choix | C37: ='Caractéristique de installation'!E29 -> Votre choix | D37: /
A38: Comprend post-traitement (séparation des phases du digestat) | B38: Votre choix | C38: ='Caractéristique de installation'!E30 -> Votre choix | D38: /
A39: Usage Gaz Naturel | B39: Votre choix | C39: ='Caractéristique de installation'!D35 -> Votre choix | D39: Oui
A40: MWh Gaz Naturel | B40: 0 | C40: =IF(C39="oui",'Caractéristique de installation'!E35+'Caractéristique de installation'!E36,'Caractéristique de installation'!E36) -> 0 | D40: /
A41: % Gaz Naturel | B41: =IF(D41="/",C41,IF(C41=0,D41,C41)) -> 0% | C41: =IF(C40=0,0,C40/C51) -> 0% | D41: 0%
A42: Usage autoconsommation th. | B42: Votre choix | C42: ='Caractéristique de installation'!D33 -> Votre choix | D42: Non
A43: MWh autoconsommation th. | B43: 0 | C43: =IF(C42="oui",'Caractéristique de installation'!E33,0) -> 0 | D43: /
A44: % autoconsommation th. | B44: =IF(D44="/",C44,IF(C44="",D44,C44)) -> 0% | C44: =IF(C43=0,0,C43/C51) -> 0% | D44: =IF(B51=0,100%,0%) -> 100% | E44: 100% par défaut
A45: Usage Géothermie (ou utilisation de chaleur fatale?) | B45: Votre choix | C45: ='Caractéristique de installation'!D34 -> Votre choix | D45: Non
A46: MWh Géothermie | B46: 0 | C46: =IF(C45="oui",'Caractéristique de installation'!E34,0) -> 0 | D46: /
A47: % Géothermie | B47: =IF(D47="/",C47,IF(C47="",D47,C47)) -> 0% | C47: =IF(C46=0,0,C46/C51) -> 0.0% | D47: 0%
A48: Usage source inconnue/chaleur fatale | B48: =IF(D48="/",C48,IF(C48=0,D48,C48)) -> Votre choix | C48: ='Caractéristique de installation'!D36 -> Votre choix | D48: Non
A49: MWh Source inconnue/chaleur fatale | B49: =IF(D49="/",C49,IF(C49=0,D49,C49)) -> 0 | C49: ='Caractéristique de installation'!E36 -> 0 | D49: /
A50: % source inconnue/chaleur fatale | B50: =IF(D50="/",C50,IF(C50="",D50,C50)) -> 0% | C50: =IF(C49=0,0,C49/C51) -> 0.0% | D50: 0%
A51: Consommation thermique (MWh) | B51: =IF(D51="/",C51,IF(C51=0,D51,C51)) -> 0 | C51: =C40+C43+C46+C49 -> 0 | D51: /
A52: Comprend hygiènisation | B52: Votre choix | C52: ='Caractéristique de installation'!D37 -> Votre choix | D52: non
A53: Rendement électrique | B53: 0.0% | C53: ='Valorisation du biogaz'!E22 -> 0.0% | D53: =IF(B9="cogénération",'BDD modélisation ICV'!B65,0) -> 0.0% | E53: PROdige
A54: Rendement thermique | B54: 0% | C54: ='Valorisation du biogaz'!E25 -> 0.0% | D54: =IF(OR(B9="cogénération",B9="chaleur seule"),'BDD modélisation ICV'!B66,0) -> 0.0% | E54: Bilan IDF 2020 / AREC IDF, 2022
A55: Chaleur valorisée | B55: 0% | C55: ='Valorisation du biogaz'!E26 -> 0.00% | D55: =IF(OR(B9="cogénération",B9="chaleur seule"),'BDD modélisation ICV'!B67,0) -> 0% | E55: PROdige
A56: Présence épurateur (réseau ou bioGNV en plus de cogé) | B56: non | C56: =IF(B9="cogénération",'Valorisation du biogaz'!D4,"non") -> non | D56: /
A57: % biogaz détourné en épuration | B57: 0% | C57: =IF(C56="oui",'Valorisation du biogaz'!E5,0) -> 0.00% | D57: /
A58: Rendement épurateur | B58: 97.0% | C58: ='Valorisation du biogaz'!D8 -> 0.0% | D58: =IF(B61="membranaire",'BDD modélisation ICV'!B48,'BDD modélisation ICV'!B49) -> 97.0%
A59: Présence cogénérateur (en plus de épuration/injection) | B59: non | C59: =IF(B9="Epuration/injection",'Valorisation du biogaz'!D10,"non") -> non | D59: /
A60: % biogaz détourné vers cogé | B60: =IF(D60="/",C60,IF(C60=0,D60,C60)) -> 0% | C60: =IF(C59="oui",'Valorisation du biogaz'!E11,0) -> 0% | D60: =IF(C59="oui",'BDD modélisation ICV'!B34,0) -> 0% | E60: DREAL Bretagne 2022
A61: Type d'épurateur | B61: Votre choix | C61: ='Valorisation du biogaz'!D7 -> Votre choix | D61: /
A62: Présence oxydateur thermique | B62: Votre choix | C62: ='Valorisation du biogaz'!D12 -> Votre choix | D62: /
A63: Captage CO2 | B63: Votre choix | C63: ='Valorisation du biogaz'!D13 -> Votre choix | D63: / | E63: GRDF/Solagro?
A64: % CO2 capté (t) | B64: 0% | C64: =IF(C63="oui",'Valorisation du biogaz'!E14,0) -> 0% | D64: =IF(C63="Oui",'BDD modélisation ICV'!B54,0) -> 0% | E64: GRDF
A65: Production électrique brute annuelle (MWh) | B65: =IF(D65="/",C65,IF(C65=0,D65,C65)) -> 0 | C65: =IF('Description des substrats'!E5="Cogénération",'Valorisation du biogaz'!D21,0) -> 0 | D65: /
A66: Production thermique brute annuelle (MWh) | B66: =IF(D66="/",C66,IF(C66=0,D66,C66)) -> 0 | C66: =IF('Description des substrats'!E5="Epuration/injection",0,'Valorisation du biogaz'!D24) -> 0 | D66: /
A67: Production biométhane brut annuelle (MWh) | B67: 0 | C67: =IF('Description des substrats'!E5="Epuration/injection",'Valorisation du biogaz'!D28,0) -> 0 | D67: /
A68: Présence station BioGNV | B68: Votre choix | C68: ='Valorisation du biogaz'!D15 -> Votre choix | D68: / | E68: REDII?
A69: % de la production valorisée en BioGNV | B69: 0% | C69: =IF(B68="oui",'Valorisation du biogaz'!E16,0) -> 0% | D69: / | E69: REDII?
A70: % énergie électrique autoconsommé | B70: =IF(D70="/",C70,IF(C70=0,D70,C70)) -> 0% | C70: =IFERROR(B31/('Calculs fonctionnement'!B230*'Calculs fonctionnement'!B220+'Calculs fonctionnement'!C230*'Calculs fonctionnement'!C220),0) -> 0% | D70: =IF(OR(B9="cogénération",B59="oui"),IF(B36=0,'BDD modélisation ICV'!C58,0),0) -> 0% | E70: 14% from ADEME grand Est 2021
A71: % énergie électrique vendue | B71: 100% | C71: =1-B70 -> 100% | D71: /
A72: % énergie thermique valorisée autoconsommé | B72: 0% | C72: =IFERROR(B43/('Calculs fonctionnement'!B231*'Calculs fonctionnement'!B221+'Calculs fonctionnement'!C231*'Calculs fonctionnement'!C221),0) -> 0% | D72: =IF(B51=0,IF(B9="cogénération",'BDD modélisation ICV'!F60,IF(B59="oui",('BDD modélisation ICV'!B34*'Calculs fonctionnement'!E124)/('Calculs fonctionnement'!C231*1000),0)),0) -> 0% | E72: 22% ADEME grand Est 2021
A73: % énergie thermique vendue | B73: 0% | C73: =B55*(1-B72) -> 0% | D73: /
A75: Emissions fugitives
A76: Présence d'une torchère automatique ? | B76: ='Caractéristique de installation'!D9 -> Votre choix | C76: =IF(B76="Non",'BDD modélisation ICV'!C164,'BDD modélisation ICV'!D164) -> 5.0%
A77: Passage annuel d'une caméra IR ? | B77: ='Caractéristique de installation'!D10 -> Votre choix | C77: =IF($B$76="Non",IF(B77="Oui",'BDD modélisation ICV'!C165,0),IF(B77="Oui",'BDD modélisation ICV'!D165,0)) -> 0.0%
A78: Passage hebdomadaire d'un renifleur de méthane ? | B78: ='Caractéristique de installation'!D11 -> Votre choix | C78: =IF($B$76="Non",IF(B78="Oui",'BDD modélisation ICV'!C166,0),IF(B78="Oui",'BDD modélisation ICV'!D166,0)) -> 0.0%
A79: Utilisation d'un outil de pilotage pour la bonne gestion de l'alimentation du digesteur ? | B79: ='Caractéristique de installation'!D12 -> Votre choix | C79: =IF($B$76="Non",IF(B79="Oui",'BDD modélisation ICV'!C167,0),IF(B79="Oui",'BDD modélisation ICV'!D167,0)) -> 0.0%
A80: Maintenance et suivi quotidien des soupapes ? | B80: ='Caractéristique de installation'!D13 -> Votre choix | C80: =IF($B$76="Non",IF(B80="Oui",'BDD modélisation ICV'!C168,0),IF(B80="Oui",'BDD modélisation ICV'!D168,0)) -> 0.0%
A81: Ronde journalière sur les éléments clés ? | B81: ='Caractéristique de installation'!D14 -> Votre choix | C81: =IF($B$76="Non",IF(B81="Oui",'BDD modélisation ICV'!C169,0),IF(B81="Oui",'BDD modélisation ICV'!D169,0)) -> 0.0%
A82: Graissage annuel des passages de câbles ? | B82: ='Caractéristique de installation'!D15 -> Votre choix | C82: =IF($B$76="Non",IF(OR(B82="Oui",B82="non concerné"),'BDD modélisation ICV'!C170,0),IF(OR(B82="Oui",B82="non concerné"),'BDD modélisation ICV'!D170,0)) -> 0.0%
B83: TOTAL abattement | C83: =SUM(C76:C82) -> 5.0%
A85: 3. Paramètres du digestat
B86: Données du calculateur | C86: Données utilisateur | D86: Données par défaut | E86: Sources
A87: Post-traitement digestat | B87: =IF(D87="/",C87,IF(C87=0,D87,C87)) -> Votre choix | C87: ='Valorisation du digestat'!D5 -> Votre choix | D87: /
A88: % séparation | B88: =IF(B87="pas de post-traitement",0,IF(D88="/",C88,IF(C88=0,D88,C88))) -> 0% | C88: ='Valorisation du digestat'!E6 -> 0.00% | D88: /
A89: % digestat liquide recirculé | B89: =IF(B87="pas de post-traitement",0,IF(D89="/",C89,IF(C89=0,D89,C89))) -> 0% | C89: ='Valorisation du digestat'!E7 -> 0.00% | D89: /
A90: Stockage digestat liquide | B90: =IF(D90="/",C90,IF(C90=0,D90,C90)) -> Votre choix | C90: ='Valorisation du digestat'!E8 -> Votre choix | D90: /
A91: Stockage digestat brut | B91: Votre choix | C91: ='Valorisation du digestat'!D9 -> Votre choix | D91: /
A92: Transport digestat (km) | C92: ='Valorisation du digestat'!D10 -> 0 | D92: =IF(B8="à la ferme",'BDD modélisation ICV'!F17,IF(B8="centralisée/territoriale",'BDD modélisation ICV'!F18,IF(B8="industrielle",'BDD modélisation ICV'!F19,IF(B8="STEP",'BDD modélisation ICV'!F20,"")))) ->  | E92: ADEME grand Est 2021
A93: Matériel d'épandage (brut) | B93: Votre choix | C93: ='Valorisation du digestat'!D12 -> Votre choix | D93: /
A94: Matériel d'épandage (liquide) | B94: Votre choix | C94: ='Valorisation du digestat'!E13 -> Votre choix | D94: /
A95: Matériel d'épandage (solide) | B95: =IF(D95="/",C95,IF(C95=0,D95,C95)) -> Sans incorporation | C95: ='Valorisation du digestat'!E14 -> Sans incorporation | D95: /
A97: 4. Economie circulaire et biodiversité
A99: 1. Gestion des cultures - méthanisation agricole
A100: % de la SAU occuppé par les cultures principales ? | B100: ='Economie circulaireBiodiversité'!D9 -> 0.00%
A101: % de la SAU occupé par les CIVE d'été ? | B101: ='Economie circulaireBiodiversité'!D10 -> 0.00%
A102: % de la SAU occupé par les CIVE d'hiver ? | B102: ='Economie circulaireBiodiversité'!D11 -> 0.00%
A103: % de la SAU occupé par les prairies ? | B103: ='Economie circulaireBiodiversité'!D12 -> 0.00%
A104: 2. Gestion des CIVE
A105: Irrigation des CIVE ? | B105: ='Economie circulaireBiodiversité'!D16 -> Votre choix
A106: Usage de perticides sur les CIVE ? | B106: ='Economie circulaireBiodiversité'!D17 -> Votre choix
A107: Fertilisation minérale des CIVE ? | B107: ='Economie circulaireBiodiversité'!D18 -> Votre choix
A108: Pratique de techniques culturales simplifiées sur les CIVE ? | B108: ='Economie circulaireBiodiversité'!D19 -> Votre choix
A109: Au moins une des CIVE est-elle cultivée avec au moins deux espèces végétales différentes ? | B109: ='Economie circulaireBiodiversité'!D20 -> Votre choix
A110: 3. Exploitation
A111: % de substitution des engrais minéraux sur l'exploitation ? | B111: ='Economie circulaireBiodiversité'!D24 -> 0
A112: L'exploitation a-t-elle obtenu une certification HVE niveau 3 ? | B112: ='Economie circulaireBiodiversité'!D25 -> Votre choix
A113: L'exploitation a-t-elle obtenu une certification Agriculture Biologique ? | B113: ='Economie circulaireBiodiversité'!D26 -> Votre choix
A114: L'exploitation a-t-elle réalisé des bilans humiques et/ou des analyses de la qualité des sols ? | B114: ='Economie circulaireBiodiversité'!D27 -> Votre choix
A115: 4. Economie circulaire et Intégration dans le territoire
A116: L'exploitation est-elle gouvernée localement ? | B116: ='Economie circulaireBiodiversité'!D30 -> Votre choix
A117: A quelle hauteur l'exploitation est-elle financée par des acteurs locaux (collectivités, citoyens, entreprises…) ? | B117: ='Economie circulaireBiodiversité'!D31 -> Votre choix
A118: A quelle hauteur la collectivité locale est-elle impliquée dans l'exploitation (approvisionnement en biodéchets, achat d'énergie, concertation…) ? | B118: ='Economie circulaireBiodiversité'!D32 -> Votre choix
A119: A quelle hauteur le digestat est-il épandu sur les terres des actionnaires agricoles ? (Faible= moins de 20% du digestat, moyenne = entre 20 et 50%, forte = plus de 50% du digestat) | B119: ='Economie circulaireBiodiversité'!D33 -> Votre choix
A120: 5. Biodiversité sur le site de méthanisation
A121: Surface du site de méthanisation ? | B121: ='Economie circulaireBiodiversité'!D36 -> 0
A122: Le site de méthanisation est-il installé sur une surface déjà artificialisée ? | B122: ='Economie circulaireBiodiversité'!D37 -> Votre choix
A123: % de surface au sol imperméabilisée par l'installation ? | B123: ='Economie circulaireBiodiversité'!D38 -> 0.8
A124: A quelle hauteur l'intégration paysagère a-t-elle été prise en compte lors de la conception du projet ? | B124: ='Economie circulaireBiodiversité'!D39 -> Votre choix
A125: Combien de mètres de linéaires de haies ont été plantés sur l'installation ? | B125: ='Economie circulaireBiodiversité'!D40 -> 0

Sheet Calcul AMG (hidden)
C34: Ccrop_AG | F34: 9 | G34: 10 | H34: 11 | I34: 12 | J34: 13 | K34: 14 | L34: 15 | M34: 16 | N34: 17 | O34: 18 | P34: 19 | Q34: 20 | R34: 21 | S34: 22 | T34: 23 | U34: 24 | V34: 25 | W34: 26 | X34: 27 | Y34: 28 | Z34: 29 | AA34: 30 | AB34: 31 | AC34: 32 | AD34: 33 | AE34: 34 | AF34: 35 | AG34: 36 | AH34: 37 | AI34: 38 | AJ34: 39 | AK34: 40 | AL34: 41 | AM34: 42 | AN34: 43 | AO34: 44 | AP34: 45 | AQ34: 46 | AR34: 47 | AS34: 48 | AT34: 49 | AU34: 50 | AV34: 51 | AW34: 52 | AX34: 53 | AY34: 54 | AZ34: 55 | BA34: 56 | BB34: 57 | BC34: 58 | BD34: 59 | BE34: 60 | BF34: 61 | BG34: 62 | BH34: 63 | BI34: 64 | BJ34: 65 | BK34: 66 | BL34: 67 | BM34: 68 | BN34: 69 | BO34: 70 | BP34: 71 | BQ34: 72 | BR34: 73 | BS34: 74 | BT34: 75 | BU34: 76 | BV34: 77 | BW34: 78 | BX34: 79 | BY34: 80 | BZ34: 81 | CA34: 82 | CB34: 83 | CC34: 84 | CD34: 85 | CE34: 86 | CF34: 87 | CG34: 88 | CH34: 89 | CI34: 90 | CJ34: 91 | CK34: 92 | CL34: 93 | CM34: 94 | CN34: 95 | CO34: 96 | CP34: 97 | CQ34: 98 | CR34: 99 | CS34: 100 | CT34: 101 | CU34: 102 | CV34: 103 | CW34: 104 | CX34: 105 | CY34: 106 | CZ34: 107 | DA34: 108 | DB34: 109 | DC34: 110
E35: Année | F35: 1 | G35: 2 | H35: 3 | I35: 4 | J35: 5 | K35: 6 | L35: 7 | M35: 8 | N35: 9 | O35: 10 | P35: 11 | Q35: 12 | R35: 13 | S35: 14 | T35: 15 | U35: 16 | V35: 17 | W35: 18 | X35: 19 | Y35: 20 | Z35: 21 | AA35: 22 | AB35: 23 | AC35: 24 | AD35: 25 | AE35: 26 | AF35: 27 | AG35: 28 | AH35: 29 | AI35: 30 | AJ35: 31 | AK35: 32 | AL35: 33 | AM35: 34 | AN35: 35 | AO35: 36 | AP35: 37 | AQ35: 38 | AR35: 39 | AS35: 40 | AT35: 41 | AU35: 42 | AV35: 43 | AW35: 44 | AX35: 45 | AY35: 46 | AZ35: 47 | BA35: 48 | BB35: 49 | BC35: 50 | BD35: 51 | BE35: 52 | BF35: 53 | BG35: 54 | BH35: 55 | BI35: 56 | BJ35: 57 | BK35: 58 | BL35: 59 | BM35: 60 | BN35: 61 | BO35: 62 | BP35: 63 | BQ35: 64 | BR35: 65 | BS35: 66 | BT35: 67 | BU35: 68 | BV35: 69 | BW35: 70 | BX35: 71 | BY35: 72 | BZ35: 73 | CA35: 74 | CB35: 75 | CC35: 76 | CD35: 77 | CE35: 78 | CF35: 79 | CG35: 80 | CH35: 81 | CI35: 82 | CJ35: 83 | CK35: 84 | CL35: 85 | CM35: 86 | CN35: 87 | CO35: 88 | CP35: 89 | CQ35: 90 | CR35: 91 | CS35: 92 | CT35: 93 | CU35: 94 | CV35: 95 | CW35: 96 | CX35: 97 | CY35: 98 | CZ35: 99 | DA35: 100 | DB35: 101 | DC35: 102
F36: =IF(F51=1,$T$160,"") ->  | G36: =IF(G51=1,$T$160,"") ->  | AL36: =IF(AL51=1,$T$160,"") ->  | BR36: =IF(BR51=1,$T$160,"") ->  | DB36: =IF(DB51=1,$T$160,"") -> 
D37: Paramètre | E37: Y théorique | F37: =F51*$U$160 -> 0 | G37: 0 | H37: 0 | I37: 0 | J37: 0 | K37: 0 | L37: 0 | M37: 0 | N37: 0 | O37: 0 | P37: 0 | Q37: 0 | R37: 0 | S37: 0 | T37: 0 | U37: 0 | V37: 0 | W37: 0 | X37: 0 | Y37: 0 | Z37: 0 | AA37: 0 | AB37: 0 | AC37: 0 | AD37: 0 | AE37: 0 | AF37: 0 | AG37: 0 | AH37: 0 | AI37: 0 | AJ37: 0 | AK37: 0 | AL37: =AL51*$U$160 -> 0 | AM37: 0 | AN37: 0 | AO37: 0 | AP37: 0 | AQ37: 0 | AR37: 0 | AS37: 0 | AT37: 0 | AU37: 0 | AV37: 0 | AW37: 0 | AX37: 0 | AY37: 0 | AZ37: 0 | BA37: 0 | BB37: 0 | BC37: 0 | BD37: 0 | BE37: 0 | BF37: 0 | BG37: 0 | BH37: 0 | BI37: 0 | BJ37: 0 | BK37: 0 | BL37: 0 | BM37: 0 | BN37: 0 | BO37: 0 | BP37: 0 | BQ37: 0 | BR37: =BR51*$U$160 -> 0 | BS37: 0 | BT37: 0 | BU37: 0 | BV37: 0 | BW37: 0 | BX37: 0 | BY37: 0 | BZ37: 0 | CA37: 0 | CB37: 0 | CC37: 0 | CD37: 0 | CE37: 0 | CF37: 0 | CG37: 0 | CH37: 0 | CI37: 0 | CJ37: 0 | CK37: 0 | CL37: 0 | CM37: 0 | CN37: 0 | CO37: 0 | CP37: 0 | CQ37: 0 | CR37: 0 | CS37: 0 | CT37: 0 | CU37: 0 | CV37: 0 | CW37: 0 | CX37: 0 | CY37: 0 | CZ37: 0 | DA37: 0 | DB37: =DB51*$U$160 -> 0 | DC37: 0
E38: Y sans métha | F38: =F37*(1-F57)*F51 -> 0 | G38: 0 | H38: 0 | I38: 0 | J38: 0 | K38: 0 | L38: 0 | M38: 0 | N38: 0 | O38: 0 | P38: 0 | Q38: 0 | R38: 0 | S38: 0 | T38: 0 | U38: 0 | V38: 0 | W38: 0 | X38: 0 | Y38: 0 | Z38: 0 | AA38: 0 | AB38: 0 | AC38: 0 | AD38: 0 | AE38: 0 | AF38: 0 | AG38: 0 | AH38: 0 | AI38: 0 | AJ38: 0 | AK38: 0 | AL38: =AL37*(1-AL57)*AL51 -> 0 | AM38: 0 | AN38: 0 | AO38: 0 | AP38: 0 | AQ38: 0 | AR38: 0 | AS38: 0 | AT38: 0 | AU38: 0 | AV38: 0 | AW38: 0 | AX38: 0 | AY38: 0 | AZ38: 0 | BA38: 0 | BB38: 0 | BC38: 0 | BD38: 0 | BE38: 0 | BF38: 0 | BG38: 0 | BH38: 0 | BI38: 0 | BJ38: 0 | BK38: 0 | BL38: 0 | BM38: 0 | BN38: 0 | BO38: 0 | BP38: 0 | BQ38: 0 | BR38: =BR37*(1-BR57)*BR51 -> 0 | BS38: 0 | BT38: 0 | BU38: 0 | BV38: 0 | BW38: 0 | BX38: 0 | BY38: 0 | BZ38: 0 | CA38: 0 | CB38: 0 | CC38: 0 | CD38: 0 | CE38: 0 | CF38: 0 | CG38: 0 | CH38: 0 | CI38: 0 | CJ38: 0 | CK38: 0 | CL38: 0 | CM38: 0 | CN38: 0 | CO38: 0 | CP38: 0 | CQ38: 0 | CR38: 0 | CS38: 0 | CT38: 0 | CU38: 0 | CV38: 0 | CW38: 0 | CX38: =CX37*(1-CX57)*CX51 -> 0 | CY38: =CY37*(1-CY57)*CY51 -> 0 | CZ38: =CZ37*(1-CZ57)*CZ51 -> 0 | DA38: =DA37*(1-DA57)*DA51 -> 0 | DB38: =DB37*(1-DB57)*DB51 -> 0 | DC38: 0
E39: Y avec métha | F39: =F37*(1-F67)*F51 -> 0 | G39: 0 | H39: 0 | I39: 0 | J39: 0 | K39: 0 | L39: 0 | M39: 0 | N39: 0 | O39: 0 | P39: 0 | Q39: 0 | R39: 0 | S39: 0 | T39: 0 | U39: 0 | V39: 0 | W39: 0 | X39: 0 | Y39: 0 | Z39: 0 | AA39: 0 | AB39: 0 | AC39: 0 | AD39: 0 | AE39: 0 | AF39: 0 | AG39: 0 | AH39: 0 | AI39: 0 | AJ39: 0 | AK39: 0 | AL39: =AL37*(1-AL67)*AL51 -> 0 | AM39: 0 | AN39: 0 | AO39: 0 | AP39: 0 | AQ39: 0 | AR39: 0 | AS39: 0 | AT39: 0 | AU39: 0 | AV39: 0 | AW39: 0 | AX39: 0 | AY39: 0 | AZ39: 0 | BA39: 0 | BB39: 0 | BC39: 0 | BD39: 0 | BE39: 0 | BF39: 0 | BG39: 0 | BH39: 0 | BI39: 0 | BJ39: 0 | BK39: 0 | BL39: 0 | BM39: 0 | BN39: 0 | BO39: 0 | BP39: 0 | BQ39: 0 | BR39: =BR37*(1-BR67)*BR51 -> 0 | BS39: 0 | BT39: 0 | BU39: 0 | BV39: 0 | BW39: 0 | BX39: 0 | BY39: 0 | BZ39: 0 | CA39: 0 | CB39: 0 | CC39: 0 | CD39: 0 | CE39: 0 | CF39: 0 | CG39: 0 | CH39: 0 | CI39: 0 | CJ39: 0 | CK39: 0 | CL39: 0 | CM39: 0 | CN39: 0 | CO39: 0 | CP39: 0 | CQ39: 0 | CR39: 0 | CS39: 0 | CT39: 0 | CU39: 0 | CV39: 0 | CW39: 0 | CX39: 0 | CY39: 0 | CZ39: 0 | DA39: 0 | DB39: =DB37*(1-DB67)*DB51 -> 0 | DC39: 0
D40: Paramètre | E40: HI | F40: =IFERROR(VLOOKUP(F36,$R$168:$X$178,3,FALSE),0) -> 0 | G40: 0 | H40: 0 | I40: 0 | J40: 0 | K40: 0 | L40: 0 | M40: 0 | N40: 0 | O40: 0 | P40: 0 | Q40: 0 | R40: 0 | S40: 0 | T40: 0 | U40: 0 | V40: 0 | W40: 0 | X40: 0 | Y40: 0 | Z40: 0 | AA40: 0 | AB40: 0 | AC40: 0 | AD40: 0 | AE40: 0 | AF40: 0 | AG40: 0 | AH40: 0 | AI40: 0 | AJ40: 0 | AK40: 0 | AL40: =IFERROR(VLOOKUP(AL36,$R$168:$X$178,3,FALSE),0) -> 0 | AM40: 0 | AN40: 0 | AO40: 0 | AP40: 0 | AQ40: 0 | AR40: 0 | AS40: 0 | AT40: 0 | AU40: 0 | AV40: 0 | AW40: 0 | AX40: 0 | AY40: 0 | AZ40: 0 | BA40: 0 | BB40: 0 | BC40: 0 | BD40: 0 | BE40: 0 | BF40: 0 | BG40: 0 | BH40: 0 | BI40: 0 | BJ40: 0 | BK40: 0 | BL40: 0 | BM40: 0 | BN40: 0 | BO40: 0 | BP40: 0 | BQ40: 0 | BR40: =IFERROR(VLOOKUP(BR36,$R$168:$X$178,3,FALSE),0) -> 0 | BS40: 0 | BT40: 0 | BU40: 0 | BV40: 0 | BW40: 0 | BX40: 0 | BY40: 0 | BZ40: 0 | CA40: 0 | CB40: 0 | CC40: 0 | CD40: 0 | CE40: 0 | CF40: 0 | CG40: 0 | CH40: 0 | CI40: 0 | CJ40: 0 | CK40: 0 | CL40: 0 | CM40: 0 | CN40: 0 | CO40: 0 | CP40: 0 | CQ40: 0 | CR40: 0 | CS40: 0 | CT40: 0 | CU40: 0 | CV40: 0 | CW40: 0 | CX40: 0 | CY40: 0 | CZ40: 0 | DA40: 0 | DB40: =IFERROR(VLOOKUP(DB36,$R$168:$X$178,3,FALSE),0) -> 0 | DC40: 0
D41: Calcul | E41: Ccrop_AG sans métha | F41: =IFERROR(F38*(1-F40)/F40*0.44,0) -> 0 | G41: 0 | H41: 0 | I41: 0 | J41: 0 | K41: 0 | L41: 0 | M41: 0 | N41: 0 | O41: 0 | P41: 0 | Q41: 0 | R41: 0 | S41: 0 | T41: 0 | U41: 0 | V41: 0 | W41: 0 | X41: 0 | Y41: 0 | Z41: 0 | AA41: 0 | AB41: 0 | AC41: 0 | AD41: 0 | AE41: 0 | AF41: 0 | AG41: 0 | AH41: 0 | AI41: 0 | AJ41: 0 | AK41: 0 | AL41: =IFERROR(AL38*(1-AL40)/AL40*0.44,0) -> 0 | AM41: 0 | AN41: 0 | AO41: 0 | AP41: 0 | AQ41: 0 | AR41: 0 | AS41: 0 | AT41: 0 | AU41: 0 | AV41: 0 | AW41: 0 | AX41: 0 | AY41: 0 | AZ41: 0 | BA41: 0 | BB41: 0 | BC41: 0 | BD41: 0 | BE41: 0 | BF41: 0 | BG41: 0 | BH41: 0 | BI41: 0 | BJ41: 0 | BK41: 0 | BL41: 0 | BM41: 0 | BN41: 0 | BO41: 0 | BP41: 0 | BQ41: 0 | BR41: =IFERROR(BR38*(1-BR40)/BR40*0.44,0) -> 0 | BS41: 0 | BT41: 0 | BU41: 0 | BV41: 0 | BW41: 0 | BX41: 0 | BY41: 0 | BZ41: 0 | CA41: 0 | CB41: 0 | CC41: 0 | CD41: 0 | CE41: 0 | CF41: 0 | CG41: 0 | CH41: 0 | CI41: 0 | CJ41: 0 | CK41: 0 | CL41: 0 | CM41: 0 | CN41: 0 | CO41: 0 | CP41: 0 | CQ41: 0 | CR41: 0 | CS41: 0 | CT41: 0 | CU41: 0 | CV41: 0 | CW41: 0 | CX41: =IFERROR(CX38*(1-CX40)/CX40*0.44,0) -> 0 | CY41: =IFERROR(CY38*(1-CY40)/CY40*0.44,0) -> 0 | CZ41: =IFERROR(CZ38*(1-CZ40)/CZ40*0.44,0) -> 0 | DA41: =IFERROR(DA38*(1-DA40)/DA40*0.44,0) -> 0 | DB41: =IFERROR(DB38*(1-DB40)/DB40*0.44,0) -> 0 | DC41: 0
E42: Ccrop_AG avec métha | F42: =IFERROR(F39*(1-F40)/F40*0.44,0) -> 0 | G42: 0 | H42: 0 | I42: 0 | J42: 0 | K42: 0 | L42: 0 | M42: 0 | N42: 0 | O42: 0 | P42: 0 | Q42: 0 | R42: 0 | S42: 0 | T42: 0 | U42: 0 | V42: 0 | W42: 0 | X42: 0 | Y42: 0 | Z42: 0 | AA42: 0 | AB42: 0 | AC42: 0 | AD42: 0 | AE42: 0 | AF42: 0 | AG42: 0 | AH42: 0 | AI42: 0 | AJ42: 0 | AK42: 0 | AL42: =IFERROR(AL39*(1-AL40)/AL40*0.44,0) -> 0 | AM42: 0 | AN42: 0 | AO42: 0 | AP42: 0 | AQ42: 0 | AR42: 0 | AS42: 0 | AT42: 0 | AU42: 0 | AV42: 0 | AW42: 0 | AX42: 0 | AY42: 0 | AZ42: 0 | BA42: 0 | BB42: 0 | BC42: 0 | BD42: 0 | BE42: 0 | BF42: 0 | BG42: 0 | BH42: 0 | BI42: 0 | BJ42: 0 | BK42: 0 | BL42: 0 | BM42: 0 | BN42: 0 | BO42: 0 | BP42: 0 | BQ42: 0 | BR42: =IFERROR(BR39*(1-BR40)/BR40*0.44,0) -> 0 | BS42: 0 | BT42: 0 | BU42: 0 | BV42: 0 | BW42: 0 | BX42: 0 | BY42: 0 | BZ42: 0 | CA42: 0 | CB42: 0 | CC42: 0 | CD42: 0 | CE42: 0 | CF42: 0 | CG42: 0 | CH42: 0 | CI42: 0 | CJ42: 0 | CK42: 0 | CL42: 0 | CM42: 0 | CN42: 0 | CO42: 0 | CP42: 0 | CQ42: 0 | CR42: 0 | CS42: 0 | CT42: 0 | CU42: 0 | CV42: 0 | CW42: 0 | CX42: 0 | CY42: 0 | CZ42: 0 | DA42: 0 | DB42: =IFERROR(DB39*(1-DB40)/DB40*0.44,0) -> 0 | DC42: 0
C45: Culture de couverture_AG
E46: Place de la culture suivant la CC
E47: Place de la culture suivant la CC | F47: =V160 -> 0
E48: Nombre de culture | F48: =W160 -> 0
F49: 1 | G49: =IF(F49=$F$48,1,F49+1) -> 2 | H49: 3 | I49: 4 | J49: 5 | K49: 6 | L49: 7 | M49: 8 | N49: 9 | O49: 10 | P49: 11 | Q49: 12 | R49: 13 | S49: 14 | T49: 15 | U49: 16 | V49: 17 | W49: 18 | X49: 19 | Y49: 20 | Z49: 21 | AA49: 22 | AB49: 23 | AC49: 24 | AD49: 25 | AE49: 26 | AF49: 27 | AG49: 28 | AH49: 29 | AI49: 30 | AJ49: 31 | AK49: 32 | AL49: 33 | AM49: =IF(AL49=$F$48,1,AL49+1) -> 34 | AN49: 35 | AO49: 36 | AP49: 37 | AQ49: 38 | AR49: 39 | AS49: 40 | AT49: 41 | AU49: 42 | AV49: 43 | AW49: 44 | AX49: 45 | AY49: 46 | AZ49: 47 | BA49: 48 | BB49: 49 | BC49: 50 | BD49: 51 | BE49: 52 | BF49: 53 | BG49: 54 | BH49: 55 | BI49: 56 | BJ49: 57 | BK49: 58 | BL49: 59 | BM49: 60 | BN49: 61 | BO49: 62 | BP49: 63 | BQ49: 64 | BR49: 65 | BS49: =IF(BR49=$F$48,1,BR49+1) -> 66 | BT49: 67 | BU49: 68 | BV49: 69 | BW49: 70 | BX49: 71 | BY49: 72 | BZ49: 73 | CA49: 74 | CB49: 75 | CC49: 76 | CD49: 77 | CE49: 78 | CF49: 79 | CG49: 80 | CH49: 81 | CI49: 82 | CJ49: 83 | CK49: 84 | CL49: 85 | CM49: 86 | CN49: 87 | CO49: 88 | CP49: 89 | CQ49: 90 | CR49: 91 | CS49: 92 | CT49: 93 | CU49: 94 | CV49: 95 | CW49: 96 | CX49: 97 | CY49: 98 | CZ49: 99 | DA49: 100 | DB49: =IF(DA49=$F$48,1,DA49+1) -> 101 | DC49: =IF(DB49=$F$48,1,DB49+1) -> 102
E51: Année d'introduction des résidus de la CC et de la culture impactée | F51: =IF(F49=$F$47,1,0) -> 0 | G51: 0 | H51: 0 | I51: 0 | J51: 0 | K51: 0 | L51: 0 | M51: 0 | N51: 0 | O51: 0 | P51: 0 | Q51: 0 | R51: 0 | S51: 0 | T51: 0 | U51: 0 | V51: 0 | W51: 0 | X51: 0 | Y51: 0 | Z51: 0 | AA51: 0 | AB51: 0 | AC51: 0 | AD51: 0 | AE51: 0 | AF51: 0 | AG51: 0 | AH51: 0 | AI51: 0 | AJ51: 0 | AK51: 0 | AL51: =IF(AL49=$F$47,1,0) -> 0 | AM51: 0 | AN51: 0 | AO51: 0 | AP51: 0 | AQ51: 0 | AR51: 0 | AS51: 0 | AT51: 0 | AU51: 0 | AV51: 0 | AW51: 0 | AX51: 0 | AY51: 0 | AZ51: 0 | BA51: 0 | BB51: 0 | BC51: 0 | BD51: 0 | BE51: 0 | BF51: 0 | BG51: 0 | BH51: 0 | BI51: 0 | BJ51: 0 | BK51: 0 | BL51: 0 | BM51: 0 | BN51: 0 | BO51: 0 | BP51: 0 | BQ51: 0 | BR51: =IF(BR49=$F$47,1,0) -> 0 | BS51: 0 | BT51: 0 | BU51: 0 | BV51: 0 | BW51: 0 | BX51: 0 | BY51: 0 | BZ51: 0 | CA51: 0 | CB51: 0 | CC51: 0 | CD51: 0 | CE51: 0 | CF51: 0 | CG51: 0 | CH51: 0 | CI51: 0 | CJ51: 0 | CK51: 0 | CL51: 0 | CM51: 0 | CN51: 0 | CO51: 0 | CP51: 0 | CQ51: 0 | CR51: 0 | CS51: 0 | CT51: 0 | CU51: 0 | CV51: 0 | CW51: 0 | CX51: 0 | CY51: 0 | CZ51: 0 | DA51: 0 | DB51: =IF(DB49=$F$47,1,0) -> 0 | DC51: 0
D53: Sans métha | F53: =IF(F51=1,$AB$160,"") ->  | AL53: =IF(AL51=1,$AB$160,"") ->  | BR53: =IF(BR51=1,$AB$160,"") ->  | DB53: =IF(DB51=1,$AB$160,"") -> 
E54: Y | F54: =IFERROR($AC$160*F51,0) -> 0 | G54: 0 | H54: 0 | I54: 0 | J54: 0 | K54: 0 | L54: 0 | M54: 0 | N54: 0 | O54: 0 | P54: 0 | Q54: 0 | R54: 0 | S54: 0 | T54: 0 | U54: 0 | V54: 0 | W54: 0 | X54: 0 | Y54: 0 | Z54: 0 | AA54: 0 | AB54: 0 | AC54: 0 | AD54: 0 | AE54: 0 | AF54: 0 | AG54: 0 | AH54: 0 | AI54: 0 | AJ54: 0 | AK54: 0 | AL54: =IFERROR($AC$160*AL51,0) -> 0 | AM54: 0 | AN54: 0 | AO54: 0 | AP54: 0 | AQ54: 0 | AR54: 0 | AS54: 0 | AT54: 0 | AU54: 0 | AV54: 0 | AW54: 0 | AX54: 0 | AY54: 0 | AZ54: 0 | BA54: 0 | BB54: 0 | BC54: 0 | BD54: 0 | BE54: 0 | BF54: 0 | BG54: 0 | BH54: 0 | BI54: 0 | BJ54: 0 | BK54: 0 | BL54: 0 | BM54: 0 | BN54: 0 | BO54: 0 | BP54: 0 | BQ54: 0 | BR54: =IFERROR($AC$160*BR51,0) -> 0 | BS54: 0 | BT54: 0 | BU54: 0 | BV54: 0 | BW54: 0 | BX54: 0 | BY54: 0 | BZ54: 0 | CA54: 0 | CB54: 0 | CC54: 0 | CD54: 0 | CE54: 0 | CF54: 0 | CG54: 0 | CH54: 0 | CI54: 0 | CJ54: 0 | CK54: 0 | CL54: 0 | CM54: 0 | CN54: 0 | CO54: 0 | CP54: 0 | CQ54: 0 | CR54: 0 | CS54: 0 | CT54: 0 | CU54: 0 | CV54: 0 | CW54: 0 | CX54: 0 | CY54: 0 | CZ54: 0 | DA54: 0 | DB54: =IFERROR($AC$160*DB51,0) -> 0 | DC54: 0
E55: HI | F55: =IFERROR(VLOOKUP(F53,$R$168:$X$178,3,FALSE)*F51,0) -> 0 | G55: 0 | H55: 0 | I55: 0 | J55: 0 | K55: 0 | L55: 0 | M55: 0 | N55: 0 | O55: 0 | P55: 0 | Q55: 0 | R55: 0 | S55: 0 | T55: 0 | U55: 0 | V55: 0 | W55: 0 | X55: 0 | Y55: 0 | Z55: 0 | AA55: 0 | AB55: 0 | AC55: 0 | AD55: 0 | AE55: 0 | AF55: 0 | AG55: 0 | AH55: 0 | AI55: 0 | AJ55: 0 | AK55: 0 | AL55: =IFERROR(VLOOKUP(AL53,$R$168:$X$178,3,FALSE)*AL51,0) -> 0 | AM55: 0 | AN55: 0 | AO55: 0 | AP55: 0 | AQ55: 0 | AR55: 0 | AS55: 0 | AT55: 0 | AU55: 0 | AV55: 0 | AW55: 0 | AX55: 0 | AY55: 0 | AZ55: 0 | BA55: 0 | BB55: 0 | BC55: 0 | BD55: 0 | BE55: 0 | BF55: 0 | BG55: 0 | BH55: 0 | BI55: 0 | BJ55: 0 | BK55: 0 | BL55: 0 | BM55: 0 | BN55: 0 | BO55: 0 | BP55: 0 | BQ55: 0 | BR55: =IFERROR(VLOOKUP(BR53,$R$168:$X$178,3,FALSE)*BR51,0) -> 0 | BS55: 0 | BT55: 0 | BU55: 0 | BV55: 0 | BW55: 0 | BX55: 0 | BY55: 0 | BZ55: 0 | CA55: 0 | CB55: 0 | CC55: 0 | CD55: 0 | CE55: 0 | CF55: 0 | CG55: 0 | CH55: 0 | CI55: 0 | CJ55: 0 | CK55: 0 | CL55: 0 | CM55: 0 | CN55: 0 | CO55: 0 | CP55: 0 | CQ55: 0 | CR55: 0 | CS55: 0 | CT55: 0 | CU55: 0 | CV55: 0 | CW55: 0 | CX55: 0 | CY55: 0 | CZ55: 0 | DA55: 0 | DB55: =IFERROR(VLOOKUP(DB53,$R$168:$X$178,3,FALSE)*DB51,0) -> 0 | DC55: 0
E57: % réduction de la culture suivante | F57: =IF(F54>5,(F54-5)*$R$140/100,0) -> 0 | G57: 0 | H57: 0 | I57: 0 | J57: 0 | K57: 0 | L57: 0 | M57: 0 | N57: 0 | O57: 0 | P57: 0 | Q57: 0 | R57: 0 | S57: 0 | T57: 0 | U57: 0 | V57: 0 | W57: 0 | X57: 0 | Y57: 0 | Z57: 0 | AA57: 0 | AB57: 0 | AC57: 0 | AD57: 0 | AE57: 0 | AF57: 0 | AG57: 0 | AH57: 0 | AI57: 0 | AJ57: 0 | AK57: 0 | AL57: =IF(AL54>5,(AL54-5)*$R$140/100,0) -> 0 | AM57: 0 | AN57: 0 | AO57: 0 | AP57: 0 | AQ57: 0 | AR57: 0 | AS57: 0 | AT57: 0 | AU57: 0 | AV57: 0 | AW57: 0 | AX57: 0 | AY57: 0 | AZ57: 0 | BA57: 0 | BB57: 0 | BC57: 0 | BD57: 0 | BE57: 0 | BF57: 0 | BG57: 0 | BH57: 0 | BI57: 0 | BJ57: 0 | BK57: 0 | BL57: 0 | BM57: 0 | BN57: 0 | BO57: 0 | BP57: 0 | BQ57: 0 | BR57: =IF(BR54>5,(BR54-5)*$R$140/100,0) -> 0 | BS57: 0 | BT57: 0 | BU57: 0 | BV57: 0 | BW57: 0 | BX57: 0 | BY57: 0 | BZ57: 0 | CA57: 0 | CB57: 0 | CC57: 0 | CD57: 0 | CE57: 0 | CF57: 0 | CG57: 0 | CH57: 0 | CI57: 0 | CJ57: 0 | CK57: 0 | CL57: 0 | CM57: 0 | CN57: 0 | CO57: 0 | CP57: 0 | CQ57: 0 | CR57: 0 | CS57: 0 | CT57: 0 | CU57: 0 | CV57: 0 | CW57: 0 | CX57: 0 | CY57: 0 | CZ57: 0 | DA57: 0 | DB57: =IF(DB54>5,(DB54-5)*$R$140/100,0) -> 0 | DC57: 0
E58: Ccovercrop_AG sans métha | F58: =IFERROR(F54*(1-F55)/1*0.44,0) -> 0 | G58: 0 | H58: 0 | I58: 0 | J58: 0 | K58: 0 | L58: 0 | M58: 0 | N58: 0 | O58: 0 | P58: 0 | Q58: 0 | R58: 0 | S58: 0 | T58: 0 | U58: 0 | V58: 0 | W58: 0 | X58: 0 | Y58: 0 | Z58: 0 | AA58: 0 | AB58: 0 | AC58: 0 | AD58: 0 | AE58: 0 | AF58: 0 | AG58: 0 | AH58: 0 | AI58: 0 | AJ58: 0 | AK58: 0 | AL58: =IFERROR(AL54*(1-AL55)/1*0.44,0) -> 0 | AM58: 0 | AN58: 0 | AO58: 0 | AP58: 0 | AQ58: 0 | AR58: 0 | AS58: 0 | AT58: 0 | AU58: 0 | AV58: 0 | AW58: 0 | AX58: 0 | AY58: 0 | AZ58: 0 | BA58: 0 | BB58: 0 | BC58: 0 | BD58: 0 | BE58: 0 | BF58: 0 | BG58: 0 | BH58: 0 | BI58: 0 | BJ58: 0 | BK58: 0 | BL58: 0 | BM58: 0 | BN58: 0 | BO58: 0 | BP58: 0 | BQ58: 0 | BR58: =IFERROR(BR54*(1-BR55)/1*0.44,0) -> 0 | BS58: 0 | BT58: 0 | BU58: 0 | BV58: 0 | BW58: 0 | BX58: 0 | BY58: 0 | BZ58: 0 | CA58: 0 | CB58: 0 | CC58: 0 | CD58: 0 | CE58: 0 | CF58: 0 | CG58: 0 | CH58: 0 | CI58: 0 | CJ58: 0 | CK58: 0 | CL58: 0 | CM58: 0 | CN58: 0 | CO58: 0 | CP58: 0 | CQ58: 0 | CR58: 0 | CS58: 0 | CT58: 0 | CU58: 0 | CV58: 0 | CW58: 0 | CX58: 0 | CY58: 0 | CZ58: 0 | DA58: 0 | DB58: =IFERROR(DB54*(1-DB55)/1*0.44,0) -> 0 | DC58: 0
D61: Avec métha | F61: =IF(F51=1,$Z$160,"") ->  | AL61: =IF(AL51=1,$Z$160,"") ->  | BR61: =IF(BR51=1,$Z$160,"") -> 
F62: =IF(F61="CIVE d'été","Silage maize",IF(F61="CIVE d'hiver","Silage winter cereals","")) ->  | AL62: =IF(AL61="CIVE d'été","Silage maize",IF(AL61="CIVE d'hiver","Silage winter cereals","")) ->  | BR62: =IF(BR61="CIVE d'été","Silage maize",IF(BR61="CIVE d'hiver","Silage winter cereals","")) ->  | CX62: =IF(CX61="CIVE d'été","Silage maize",IF(CX61="CIVE d'hiver","Silage winter cereals","")) -> 
F63: =F62 ->  | AL63: =AL62 ->  | BR63: =BR62 ->  | CX63: =CX62 ->  | DA63: =IF(DA61=$R$178,$R$178,IF(DA61="","",$R$177)) -> 
E64: Y | F64: =$AA$160*F51 -> 0 | G64: 0 | H64: 0 | I64: 0 | J64: 0 | K64: 0 | L64: 0 | M64: 0 | N64: 0 | O64: 0 | P64: 0 | Q64: 0 | R64: 0 | S64: 0 | T64: 0 | U64: 0 | V64: 0 | W64: 0 | X64: 0 | Y64: 0 | Z64: 0 | AA64: 0 | AB64: 0 | AC64: 0 | AD64: 0 | AE64: 0 | AF64: 0 | AG64: 0 | AH64: 0 | AI64: 0 | AJ64: 0 | AK64: 0 | AL64: =$AA$160*AL51 -> 0 | AM64: 0 | AN64: 0 | AO64: 0 | AP64: 0 | AQ64: 0 | AR64: 0 | AS64: 0 | AT64: 0 | AU64: 0 | AV64: 0 | AW64: 0 | AX64: 0 | AY64: 0 | AZ64: 0 | BA64: 0 | BB64: 0 | BC64: 0 | BD64: 0 | BE64: 0 | BF64: 0 | BG64: 0 | BH64: 0 | BI64: 0 | BJ64: 0 | BK64: 0 | BL64: 0 | BM64: 0 | BN64: 0 | BO64: 0 | BP64: 0 | BQ64: 0 | BR64: =$AA$160*BR51 -> 0 | BS64: 0 | BT64: 0 | BU64: 0 | BV64: 0 | BW64: 0 | BX64: 0 | BY64: 0 | BZ64: 0 | CA64: 0 | CB64: 0 | CC64: 0 | CD64: 0 | CE64: 0 | CF64: 0 | CG64: 0 | CH64: 0 | CI64: 0 | CJ64: 0 | CK64: 0 | CL64: 0 | CM64: 0 | CN64: 0 | CO64: 0 | CP64: 0 | CQ64: 0 | CR64: 0 | CS64: 0 | CT64: 0 | CU64: 0 | CV64: 0 | CW64: 0 | CX64: 0 | CY64: 0 | CZ64: 0 | DA64: 0 | DB64: =$AA$160*DB51 -> 0 | DC64: 0
E65: HI | F65: =IFERROR(VLOOKUP(F63,$R$168:$X$178,3,FALSE)*F51,0) -> 0 | G65: 0 | H65: 0 | I65: 0 | J65: 0 | K65: 0 | L65: 0 | M65: 0 | N65: 0 | O65: 0 | P65: 0 | Q65: 0 | R65: 0 | S65: 0 | T65: 0 | U65: 0 | V65: 0 | W65: 0 | X65: 0 | Y65: 0 | Z65: 0 | AA65: 0 | AB65: 0 | AC65: 0 | AD65: 0 | AE65: 0 | AF65: 0 | AG65: 0 | AH65: 0 | AI65: 0 | AJ65: 0 | AK65: 0 | AL65: =IFERROR(VLOOKUP(AL63,$R$168:$X$178,3,FALSE)*AL51,0) -> 0 | AM65: 0 | AN65: 0 | AO65: 0 | AP65: 0 | AQ65: 0 | AR65: 0 | AS65: 0 | AT65: 0 | AU65: 0 | AV65: 0 | AW65: 0 | AX65: 0 | AY65: 0 | AZ65: 0 | BA65: 0 | BB65: 0 | BC65: 0 | BD65: 0 | BE65: 0 | BF65: 0 | BG65: 0 | BH65: 0 | BI65: 0 | BJ65: 0 | BK65: 0 | BL65: 0 | BM65: 0 | BN65: 0 | BO65: 0 | BP65: 0 | BQ65: 0 | BR65: =IFERROR(VLOOKUP(BR63,$R$168:$X$178,3,FALSE)*BR51,0) -> 0 | BS65: 0 | BT65: 0 | BU65: 0 | BV65: 0 | BW65: 0 | BX65: 0 | BY65: 0 | BZ65: 0 | CA65: 0 | CB65: 0 | CC65: 0 | CD65: 0 | CE65: 0 | CF65: 0 | CG65: 0 | CH65: 0 | CI65: 0 | CJ65: 0 | CK65: 0 | CL65: 0 | CM65: 0 | CN65: 0 | CO65: 0 | CP65: 0 | CQ65: 0 | CR65: 0 | CS65: 0 | CT65: 0 | CU65: 0 | CV65: 0 | CW65: 0 | CX65: 0 | CY65: 0 | CZ65: 0 | DA65: 0 | DB65: =IFERROR(VLOOKUP(DB63,$R$168:$X$178,3,FALSE)*DB51,0) -> 0 | DC65: 0
E67: % réduction de la culture suivante | F67: =IF(F64>5,(F64-5)*$R$140/100,0) -> 0 | G67: =IF(G64>5,(G64-5)*$R$140/100,0) -> 0 | H67: 0 | I67: 0 | J67: 0 | K67: 0 | L67: 0 | M67: 0 | N67: 0 | O67: 0 | P67: 0 | Q67: 0 | R67: 0 | S67: 0 | T67: 0 | U67: 0 | V67: 0 | W67: 0 | X67: 0 | Y67: 0 | Z67: 0 | AA67: 0 | AB67: 0 | AC67: 0 | AD67: 0 | AE67: 0 | AF67: 0 | AG67: 0 | AH67: 0 | AI67: 0 | AJ67: 0 | AK67: 0 | AL67: =IF(AL64>5,(AL64-5)*$R$140/100,0) -> 0 | AM67: 0 | AN67: 0 | AO67: 0 | AP67: 0 | AQ67: 0 | AR67: 0 | AS67: 0 | AT67: 0 | AU67: 0 | AV67: 0 | AW67: 0 | AX67: 0 | AY67: 0 | AZ67: 0 | BA67: 0 | BB67: 0 | BC67: 0 | BD67: 0 | BE67: 0 | BF67: 0 | BG67: 0 | BH67: 0 | BI67: 0 | BJ67: 0 | BK67: 0 | BL67: 0 | BM67: 0 | BN67: 0 | BO67: 0 | BP67: 0 | BQ67: 0 | BR67: =IF(BR64>5,(BR64-5)*$R$140/100,0) -> 0 | BS67: 0 | BT67: 0 | BU67: 0 | BV67: 0 | BW67: 0 | BX67: 0 | BY67: 0 | BZ67: 0 | CA67: 0 | CB67: 0 | CC67: 0 | CD67: 0 | CE67: 0 | CF67: 0 | CG67: 0 | CH67: 0 | CI67: 0 | CJ67: 0 | CK67: 0 | CL67: 0 | CM67: 0 | CN67: 0 | CO67: 0 | CP67: 0 | CQ67: 0 | CR67: 0 | CS67: 0 | CT67: 0 | CU67: 0 | CV67: 0 | CW67: 0 | CX67: 0 | CY67: 0 | CZ67: 0 | DA67: 0 | DB67: =IF(DB64>5,(DB64-5)*$R$140/100,0) -> 0 | DC67: 0
E68: Ccovercrop_AG avec métha | F68: =IFERROR(F64*(1-F65)/F65*0.44,0) -> 0 | G68: 0 | H68: 0 | I68: 0 | J68: 0 | K68: 0 | L68: 0 | M68: 0 | N68: 0 | O68: 0 | P68: 0 | Q68: 0 | R68: 0 | S68: 0 | T68: 0 | U68: 0 | V68: 0 | W68: 0 | X68: 0 | Y68: 0 | Z68: 0 | AA68: 0 | AB68: 0 | AC68: 0 | AD68: 0 | AE68: 0 | AF68: 0 | AG68: 0 | AH68: 0 | AI68: 0 | AJ68: 0 | AK68: 0 | AL68: =IFERROR(AL64*(1-AL65)/AL65*0.44,0) -> 0 | AM68: 0 | AN68: 0 | AO68: 0 | AP68: 0 | AQ68: 0 | AR68: 0 | AS68: 0 | AT68: 0 | AU68: 0 | AV68: 0 | AW68: 0 | AX68: 0 | AY68: 0 | AZ68: 0 | BA68: 0 | BB68: 0 | BC68: 0 | BD68: 0 | BE68: 0 | BF68: 0 | BG68: 0 | BH68: 0 | BI68: 0 | BJ68: 0 | BK68: 0 | BL68: 0 | BM68: 0 | BN68: 0 | BO68: 0 | BP68: 0 | BQ68: 0 | BR68: =IFERROR(BR64*(1-BR65)/BR65*0.44,0) -> 0 | BS68: 0 | BT68: 0 | BU68: 0 | BV68: 0 | BW68: 0 | BX68: 0 | BY68: 0 | BZ68: 0 | CA68: 0 | CB68: 0 | CC68: 0 | CD68: 0 | CE68: 0 | CF68: 0 | CG68: 0 | CH68: 0 | CI68: 0 | CJ68: 0 | CK68: 0 | CL68: 0 | CM68: 0 | CN68: 0 | CO68: 0 | CP68: 0 | CQ68: 0 | CR68: 0 | CS68: 0 | CT68: 0 | CU68: 0 | CV68: 0 | CW68: 0 | CX68: 0 | CY68: 0 | CZ68: 0 | DA68: 0 | DB68: =IFERROR(DB64*(1-DB65)/DB65*0.44,0) -> 0 | DC68: 0
E69: Charvested covercrop_AG avec métha | F69: =IFERROR(F64*(F65)/(F65)*0.44,0) -> 0 | G69: 0 | H69: 0 | I69: 0 | J69: 0 | K69: 0 | L69: 0 | M69: 0 | N69: 0 | O69: 0 | P69: 0 | Q69: 0 | R69: 0 | S69: 0 | T69: 0 | U69: 0 | V69: 0 | W69: 0 | X69: 0 | Y69: 0 | Z69: 0 | AA69: 0 | AB69: 0 | AC69: 0 | AD69: 0 | AE69: 0 | AF69: 0 | AG69: 0 | AH69: 0 | AI69: 0 | AJ69: 0 | AK69: 0 | AL69: =IFERROR(AL64*(AL65)/(AL65)*0.44,0) -> 0 | AM69: 0 | AN69: 0 | AO69: 0 | AP69: 0 | AQ69: 0 | AR69: 0 | AS69: 0 | AT69: 0 | AU69: 0 | AV69: 0 | AW69: 0 | AX69: 0 | AY69: 0 | AZ69: 0 | BA69: 0 | BB69: 0 | BC69: 0 | BD69: 0 | BE69: 0 | BF69: 0 | BG69: 0 | BH69: 0 | BI69: 0 | BJ69: 0 | BK69: 0 | BL69: 0 | BM69: 0 | BN69: 0 | BO69: 0 | BP69: 0 | BQ69: 0 | BR69: =IFERROR(BR64*(BR65)/(BR65)*0.44,0) -> 0 | BS69: 0 | BT69: 0 | BU69: 0 | BV69: 0 | BW69: 0 | BX69: 0 | BY69: 0 | BZ69: 0 | CA69: 0 | CB69: 0 | CC69: 0 | CD69: 0 | CE69: 0 | CF69: 0 | CG69: 0 | CH69: 0 | CI69: 0 | CJ69: 0 | CK69: 0 | CL69: 0 | CM69: 0 | CN69: 0 | CO69: 0 | CP69: 0 | CQ69: 0 | CR69: 0 | CS69: 0 | CT69: 0 | CU69: 0 | CV69: 0 | CW69: 0 | CX69: 0 | CY69: 0 | CZ69: 0 | DA69: 0 | DB69: =IFERROR(DB64*(DB65)/(DB65)*0.44,0) -> 0 | DC69: 0
D70: C retour au sol par le digestat | E70: %Cdig | F70: =F69*0.2 -> 0 | G70: 0 | H70: 0 | I70: 0 | J70: 0 | K70: 0 | L70: 0 | M70: 0 | N70: 0 | O70: 0 | P70: 0 | Q70: 0 | R70: 0 | S70: 0 | T70: 0 | U70: 0 | V70: 0 | W70: 0 | X70: 0 | Y70: 0 | Z70: 0 | AA70: 0 | AB70: 0 | AC70: 0 | AD70: 0 | AE70: 0 | AF70: 0 | AG70: 0 | AH70: 0 | AI70: 0 | AJ70: 0 | AK70: 0 | AL70: =AL69*0.2 -> 0 | AM70: 0 | AN70: 0 | AO70: 0 | AP70: 0 | AQ70: 0 | AR70: 0 | AS70: 0 | AT70: 0 | AU70: 0 | AV70: 0 | AW70: 0 | AX70: 0 | AY70: 0 | AZ70: 0 | BA70: 0 | BB70: 0 | BC70: 0 | BD70: 0 | BE70: 0 | BF70: 0 | BG70: 0 | BH70: 0 | BI70: 0 | BJ70: 0 | BK70: 0 | BL70: 0 | BM70: 0 | BN70: 0 | BO70: 0 | BP70: 0 | BQ70: 0 | BR70: =BR69*0.2 -> 0 | BS70: 0 | BT70: 0 | BU70: 0 | BV70: 0 | BW70: 0 | BX70: 0 | BY70: 0 | BZ70: 0 | CA70: 0 | CB70: 0 | CC70: 0 | CD70: 0 | CE70: 0 | CF70: 0 | CG70: 0 | CH70: 0 | CI70: 0 | CJ70: 0 | CK70: 0 | CL70: 0 | CM70: 0 | CN70: 0 | CO70: 0 | CP70: 0 | CQ70: 0 | CR70: 0 | CS70: 0 | CT70: 0 | CU70: 0 | CV70: 0 | CW70: 0 | CX70: =CX69*0.2 -> 0 | CY70: =CY69*0.2 -> 0 | CZ70: =CZ69*0.2 -> 0 | DA70: =DA69*0.2 -> 0 | DB70: =DB69*0.2 -> 0 | DC70: 0
C73: Ccrop_BG | D73: Paramètre | E73: SRR | F73: =IFERROR(VLOOKUP(F36,$R$168:$X$178,4,FALSE),0) -> 0 | G73: 0 | H73: 0 | I73: 0 | J73: 0 | K73: 0 | L73: 0 | M73: 0 | N73: 0 | O73: 0 | P73: 0 | Q73: 0 | R73: 0 | S73: 0 | T73: 0 | U73: 0 | V73: 0 | W73: 0 | X73: 0 | Y73: 0 | Z73: 0 | AA73: 0 | AB73: 0 | AC73: 0 | AD73: 0 | AE73: 0 | AF73: 0 | AG73: 0 | AH73: 0 | AI73: 0 | AJ73: 0 | AK73: 0 | AL73: =IFERROR(VLOOKUP(AL36,$R$168:$X$178,4,FALSE),0) -> 0 | AM73: 0 | AN73: 0 | AO73: 0 | AP73: 0 | AQ73: 0 | AR73: 0 | AS73: 0 | AT73: 0 | AU73: 0 | AV73: 0 | AW73: 0 | AX73: 0 | AY73: 0 | AZ73: 0 | BA73: 0 | BB73: 0 | BC73: 0 | BD73: 0 | BE73: 0 | BF73: 0 | BG73: 0 | BH73: 0 | BI73: 0 | BJ73: 0 | BK73: 0 | BL73: 0 | BM73: 0 | BN73: 0 | BO73: 0 | BP73: 0 | BQ73: 0 | BR73: =IFERROR(VLOOKUP(BR36,$R$168:$X$178,4,FALSE),0) -> 0 | BS73: 0 | BT73: 0 | BU73: 0 | BV73: 0 | BW73: 0 | BX73: 0 | BY73: 0 | BZ73: 0 | CA73: 0 | CB73: 0 | CC73: 0 | CD73: 0 | CE73: 0 | CF73: 0 | CG73: 0 | CH73: 0 | CI73: 0 | CJ73: 0 | CK73: 0 | CL73: 0 | CM73: 0 | CN73: 0 | CO73: 0 | CP73: 0 | CQ73: 0 | CR73: 0 | CS73: 0 | CT73: 0 | CU73: 0 | CV73: 0 | CW73: 0 | CX73: 0 | CY73: 0 | CZ73: 0 | DA73: 0 | DB73: =IFERROR(VLOOKUP(DB36,$R$168:$X$178,4,FALSE),0) -> 0 | DC73: 0
D74: Paramètre | E74: beta | F74: =IFERROR(VLOOKUP(F36,$R$168:$X$178,5,FALSE),0) -> 0 | G74: 0 | H74: 0 | I74: 0 | J74: 0 | K74: 0 | L74: 0 | M74: 0 | N74: 0 | O74: 0 | P74: 0 | Q74: 0 | R74: 0 | S74: 0 | T74: 0 | U74: 0 | V74: 0 | W74: 0 | X74: 0 | Y74: 0 | Z74: 0 | AA74: 0 | AB74: 0 | AC74: 0 | AD74: 0 | AE74: 0 | AF74: 0 | AG74: 0 | AH74: 0 | AI74: 0 | AJ74: 0 | AK74: 0 | AL74: =IFERROR(VLOOKUP(AL36,$R$168:$X$178,5,FALSE),0) -> 0 | AM74: 0 | AN74: 0 | AO74: 0 | AP74: 0 | AQ74: 0 | AR74: 0 | AS74: 0 | AT74: 0 | AU74: 0 | AV74: 0 | AW74: 0 | AX74: 0 | AY74: 0 | AZ74: 0 | BA74: 0 | BB74: 0 | BC74: 0 | BD74: 0 | BE74: 0 | BF74: 0 | BG74: 0 | BH74: 0 | BI74: 0 | BJ74: 0 | BK74: 0 | BL74: 0 | BM74: 0 | BN74: 0 | BO74: 0 | BP74: 0 | BQ74: 0 | BR74: =IFERROR(VLOOKUP(BR36,$R$168:$X$178,5,FALSE),0) -> 0 | BS74: 0 | BT74: 0 | BU74: 0 | BV74: 0 | BW74: 0 | BX74: 0 | BY74: 0 | BZ74: 0 | CA74: 0 | CB74: 0 | CC74: 0 | CD74: 0 | CE74: 0 | CF74: 0 | CG74: 0 | CH74: 0 | CI74: 0 | CJ74: 0 | CK74: 0 | CL74: 0 | CM74: 0 | CN74: 0 | CO74: 0 | CP74: 0 | CQ74: 0 | CR74: 0 | CS74: 0 | CT74: 0 | CU74: 0 | CV74: 0 | CW74: 0 | CX74: 0 | CY74: 0 | CZ74: 0 | DA74: 0 | DB74: =IFERROR(VLOOKUP(DB36,$R$168:$X$178,5,FALSE),0) -> 0 | DC74: 0
D75: Calcul | E75: Ccrop_BG sans métha | F75: =IFERROR(1.65*F38/(F40*F73)*(1-F74^($R$146))*0.4,0) -> 0 | G75: 0 | H75: 0 | I75: 0 | J75: 0 | K75: 0 | L75: 0 | M75: 0 | N75: 0 | O75: 0 | P75: 0 | Q75: 0 | R75: 0 | S75: 0 | T75: 0 | U75: 0 | V75: 0 | W75: 0 | X75: 0 | Y75: 0 | Z75: 0 | AA75: 0 | AB75: 0 | AC75: 0 | AD75: 0 | AE75: 0 | AF75: 0 | AG75: 0 | AH75: 0 | AI75: 0 | AJ75: 0 | AK75: 0 | AL75: =IFERROR(1.65*AL38/(AL40*AL73)*(1-AL74^($R$146))*0.4,0) -> 0 | AM75: 0 | AN75: 0 | AO75: 0 | AP75: 0 | AQ75: 0 | AR75: 0 | AS75: 0 | AT75: 0 | AU75: 0 | AV75: 0 | AW75: 0 | AX75: 0 | AY75: 0 | AZ75: 0 | BA75: 0 | BB75: 0 | BC75: 0 | BD75: 0 | BE75: 0 | BF75: 0 | BG75: 0 | BH75: 0 | BI75: 0 | BJ75: 0 | BK75: 0 | BL75: 0 | BM75: 0 | BN75: 0 | BO75: 0 | BP75: 0 | BQ75: 0 | BR75: =IFERROR(1.65*BR38/(BR40*BR73)*(1-BR74^($R$146))*0.4,0) -> 0 | BS75: 0 | BT75: 0 | BU75: 0 | BV75: 0 | BW75: 0 | BX75: 0 | BY75: 0 | BZ75: 0 | CA75: 0 | CB75: 0 | CC75: 0 | CD75: 0 | CE75: 0 | CF75: 0 | CG75: 0 | CH75: 0 | CI75: 0 | CJ75: 0 | CK75: 0 | CL75: 0 | CM75: 0 | CN75: 0 | CO75: 0 | CP75: 0 | CQ75: 0 | CR75: 0 | CS75: 0 | CT75: 0 | CU75: 0 | CV75: 0 | CW75: 0 | CX75: =IFERROR(1.65*CX38/(CX40*CX73)*(1-CX74^($R$146))*0.4,0) -> 0 | CY75: =IFERROR(1.65*CY38/(CY40*CY73)*(1-CY74^($R$146))*0.4,0) -> 0 | CZ75: =IFERROR(1.65*CZ38/(CZ40*CZ73)*(1-CZ74^($R$146))*0.4,0) -> 0 | DA75: =IFERROR(1.65*DA38/(DA40*DA73)*(1-DA74^($R$146))*0.4,0) -> 0 | DB75: =IFERROR(1.65*DB38/(DB40*DB73)*(1-DB74^($R$146))*0.4,0) -> 0 | DC75: 0
E76: Ccrop_BG avec métha | F76: =IFERROR(1.65*F39/(F40*F73)*(1-F74^($R$146))*0.4,0) -> 0 | G76: 0 | H76: 0 | I76: 0 | J76: 0 | K76: 0 | L76: 0 | M76: 0 | N76: 0 | O76: 0 | P76: 0 | Q76: 0 | R76: 0 | S76: 0 | T76: 0 | U76: 0 | V76: 0 | W76: 0 | X76: 0 | Y76: 0 | Z76: 0 | AA76: 0 | AB76: 0 | AC76: 0 | AD76: 0 | AE76: 0 | AF76: 0 | AG76: 0 | AH76: 0 | AI76: 0 | AJ76: 0 | AK76: 0 | AL76: =IFERROR(1.65*AL39/(AL40*AL73)*(1-AL74^($R$146))*0.4,0) -> 0 | AM76: 0 | AN76: 0 | AO76: 0 | AP76: 0 | AQ76: 0 | AR76: 0 | AS76: 0 | AT76: 0 | AU76: 0 | AV76: 0 | AW76: 0 | AX76: 0 | AY76: 0 | AZ76: 0 | BA76: 0 | BB76: 0 | BC76: 0 | BD76: 0 | BE76: 0 | BF76: 0 | BG76: 0 | BH76: 0 | BI76: 0 | BJ76: 0 | BK76: 0 | BL76: 0 | BM76: 0 | BN76: 0 | BO76: 0 | BP76: 0 | BQ76: 0 | BR76: =IFERROR(1.65*BR39/(BR40*BR73)*(1-BR74^($R$146))*0.4,0) -> 0 | BS76: 0 | BT76: 0 | BU76: 0 | BV76: 0 | BW76: 0 | BX76: 0 | BY76: 0 | BZ76: 0 | CA76: 0 | CB76: 0 | CC76: 0 | CD76: 0 | CE76: 0 | CF76: 0 | CG76: 0 | CH76: 0 | CI76: 0 | CJ76: 0 | CK76: 0 | CL76: 0 | CM76: 0 | CN76: 0 | CO76: 0 | CP76: 0 | CQ76: 0 | CR76: 0 | CS76: 0 | CT76: 0 | CU76: 0 | CV76: 0 | CW76: 0 | CX76: 0 | CY76: 0 | CZ76: 0 | DA76: 0 | DB76: =IFERROR(1.65*DB39/(DB40*DB73)*(1-DB74^($R$146))*0.4,0) -> 0 | DC76: 0
D78: Culture de couverture
D79: Sans métha | E79: SRR | F79: =IFERROR(VLOOKUP(F53,$R$168:$X$178,4,FALSE)*F51,0) -> 0 | G79: 0 | H79: 0 | I79: 0 | J79: 0 | K79: 0 | L79: 0 | M79: 0 | N79: 0 | O79: 0 | P79: 0 | Q79: 0 | R79: 0 | S79: 0 | T79: 0 | U79: 0 | V79: 0 | W79: 0 | X79: 0 | Y79: 0 | Z79: 0 | AA79: 0 | AB79: 0 | AC79: 0 | AD79: 0 | AE79: 0 | AF79: 0 | AG79: 0 | AH79: 0 | AI79: 0 | AJ79: 0 | AK79: 0 | AL79: =IFERROR(VLOOKUP(AL53,$R$168:$X$178,4,FALSE)*AL51,0) -> 0 | AM79: 0 | AN79: 0 | AO79: 0 | AP79: 0 | AQ79: 0 | AR79: 0 | AS79: 0 | AT79: 0 | AU79: 0 | AV79: 0 | AW79: 0 | AX79: 0 | AY79: 0 | AZ79: 0 | BA79: 0 | BB79: 0 | BC79: 0 | BD79: 0 | BE79: 0 | BF79: 0 | BG79: 0 | BH79: 0 | BI79: 0 | BJ79: 0 | BK79: 0 | BL79: 0 | BM79: 0 | BN79: 0 | BO79: 0 | BP79: 0 | BQ79: 0 | BR79: =IFERROR(VLOOKUP(BR53,$R$168:$X$178,4,FALSE)*BR51,0) -> 0 | BS79: 0 | BT79: 0 | BU79: 0 | BV79: 0 | BW79: 0 | BX79: 0 | BY79: 0 | BZ79: 0 | CA79: 0 | CB79: 0 | CC79: 0 | CD79: 0 | CE79: 0 | CF79: 0 | CG79: 0 | CH79: 0 | CI79: 0 | CJ79: 0 | CK79: 0 | CL79: 0 | CM79: 0 | CN79: 0 | CO79: 0 | CP79: 0 | CQ79: 0 | CR79: 0 | CS79: 0 | CT79: 0 | CU79: 0 | CV79: 0 | CW79: 0 | CX79: 0 | CY79: 0 | CZ79: 0 | DA79: 0 | DB79: =IFERROR(VLOOKUP(DB53,$R$168:$X$178,4,FALSE)*DB51,0) -> 0 | DC79: 0
E80: beta | F80: =IFERROR(VLOOKUP(F53,$R$168:$X$178,5,FALSE)*F51,0) -> 0 | G80: 0 | H80: 0 | I80: 0 | J80: 0 | K80: 0 | L80: 0 | M80: 0 | N80: 0 | O80: 0 | P80: 0 | Q80: 0 | R80: 0 | S80: 0 | T80: 0 | U80: 0 | V80: 0 | W80: 0 | X80: 0 | Y80: 0 | Z80: 0 | AA80: 0 | AB80: 0 | AC80: 0 | AD80: 0 | AE80: 0 | AF80: 0 | AG80: 0 | AH80: 0 | AI80: 0 | AJ80: 0 | AK80: 0 | AL80: =IFERROR(VLOOKUP(AL53,$R$168:$X$178,5,FALSE)*AL51,0) -> 0 | AM80: 0 | AN80: 0 | AO80: 0 | AP80: 0 | AQ80: 0 | AR80: 0 | AS80: 0 | AT80: 0 | AU80: 0 | AV80: 0 | AW80: 0 | AX80: 0 | AY80: 0 | AZ80: 0 | BA80: 0 | BB80: 0 | BC80: 0 | BD80: 0 | BE80: 0 | BF80: 0 | BG80: 0 | BH80: 0 | BI80: 0 | BJ80: 0 | BK80: 0 | BL80: 0 | BM80: 0 | BN80: 0 | BO80: 0 | BP80: 0 | BQ80: 0 | BR80: =IFERROR(VLOOKUP(BR53,$R$168:$X$178,5,FALSE)*BR51,0) -> 0 | BS80: 0 | BT80: 0 | BU80: 0 | BV80: 0 | BW80: 0 | BX80: 0 | BY80: 0 | BZ80: 0 | CA80: 0 | CB80: 0 | CC80: 0 | CD80: 0 | CE80: 0 | CF80: 0 | CG80: 0 | CH80: 0 | CI80: 0 | CJ80: 0 | CK80: 0 | CL80: 0 | CM80: 0 | CN80: 0 | CO80: 0 | CP80: 0 | CQ80: 0 | CR80: 0 | CS80: 0 | CT80: 0 | CU80: 0 | CV80: 0 | CW80: 0 | CX80: 0 | CY80: 0 | CZ80: 0 | DA80: 0 | DB80: =IFERROR(VLOOKUP(DB53,$R$168:$X$178,5,FALSE)*DB51,0) -> 0 | DC80: 0
E81: Ccovercrop_BG sans métha | F81: =IFERROR(1.65*F54/(1*F79)*(1-F80^($R$146))*0.4,0) -> 0 | G81: 0 | H81: 0 | I81: 0 | J81: 0 | K81: 0 | L81: 0 | M81: 0 | N81: 0 | O81: 0 | P81: 0 | Q81: 0 | R81: 0 | S81: 0 | T81: 0 | U81: 0 | V81: 0 | W81: 0 | X81: 0 | Y81: 0 | Z81: 0 | AA81: 0 | AB81: 0 | AC81: 0 | AD81: 0 | AE81: 0 | AF81: 0 | AG81: 0 | AH81: 0 | AI81: 0 | AJ81: 0 | AK81: 0 | AL81: =IFERROR(1.65*AL54/(1*AL79)*(1-AL80^($R$146))*0.4,0) -> 0 | AM81: 0 | AN81: 0 | AO81: 0 | AP81: 0 | AQ81: 0 | AR81: 0 | AS81: 0 | AT81: 0 | AU81: 0 | AV81: 0 | AW81: 0 | AX81: 0 | AY81: 0 | AZ81: 0 | BA81: 0 | BB81: 0 | BC81: 0 | BD81: 0 | BE81: 0 | BF81: 0 | BG81: 0 | BH81: 0 | BI81: 0 | BJ81: 0 | BK81: 0 | BL81: 0 | BM81: 0 | BN81: 0 | BO81: 0 | BP81: 0 | BQ81: 0 | BR81: =IFERROR(1.65*BR54/(1*BR79)*(1-BR80^($R$146))*0.4,0) -> 0 | BS81: 0 | BT81: 0 | BU81: 0 | BV81: 0 | BW81: 0 | BX81: 0 | BY81: 0 | BZ81: 0 | CA81: 0 | CB81: 0 | CC81: 0 | CD81: 0 | CE81: 0 | CF81: 0 | CG81: 0 | CH81: 0 | CI81: 0 | CJ81: 0 | CK81: 0 | CL81: 0 | CM81: 0 | CN81: 0 | CO81: 0 | CP81: 0 | CQ81: 0 | CR81: 0 | CS81: 0 | CT81: 0 | CU81: 0 | CV81: 0 | CW81: 0 | CX81: =IFERROR(1.65*CX54/(1*CX79)*(1-CX80^($R$146))*0.4,0) -> 0 | CY81: =IFERROR(1.65*CY54/(1*CY79)*(1-CY80^($R$146))*0.4,0) -> 0 | CZ81: =IFERROR(1.65*CZ54/(1*CZ79)*(1-CZ80^($R$146))*0.4,0) -> 0 | DA81: =IFERROR(1.65*DA54/(1*DA79)*(1-DA80^($R$146))*0.4,0) -> 0 | DB81: =IFERROR(1.65*DB54/(1*DB79)*(1-DB80^($R$146))*0.4,0) -> 0 | DC81: 0
D84: Avec métha | E84: SRR | F84: =IFERROR(VLOOKUP(F63,$R$168:$X$178,4,FALSE)*F51,0) -> 0 | G84: 0 | H84: 0 | I84: 0 | J84: 0 | K84: 0 | L84: 0 | M84: 0 | N84: 0 | O84: 0 | P84: 0 | Q84: 0 | R84: 0 | S84: 0 | T84: 0 | U84: 0 | V84: 0 | W84: 0 | X84: 0 | Y84: 0 | Z84: 0 | AA84: 0 | AB84: 0 | AC84: 0 | AD84: 0 | AE84: 0 | AF84: 0 | AG84: 0 | AH84: 0 | AI84: 0 | AJ84: 0 | AK84: 0 | AL84: =IFERROR(VLOOKUP(AL63,$R$168:$X$178,4,FALSE)*AL51,0) -> 0 | AM84: 0 | AN84: 0 | AO84: 0 | AP84: 0 | AQ84: 0 | AR84: 0 | AS84: 0 | AT84: 0 | AU84: 0 | AV84: 0 | AW84: 0 | AX84: 0 | AY84: 0 | AZ84: 0 | BA84: 0 | BB84: 0 | BC84: 0 | BD84: 0 | BE84: 0 | BF84: 0 | BG84: 0 | BH84: 0 | BI84: 0 | BJ84: 0 | BK84: 0 | BL84: 0 | BM84: 0 | BN84: 0 | BO84: 0 | BP84: 0 | BQ84: 0 | BR84: =IFERROR(VLOOKUP(BR63,$R$168:$X$178,4,FALSE)*BR51,0) -> 0 | BS84: 0 | BT84: 0 | BU84: 0 | BV84: 0 | BW84: 0 | BX84: 0 | BY84: 0 | BZ84: 0 | CA84: 0 | CB84: 0 | CC84: 0 | CD84: 0 | CE84: 0 | CF84: 0 | CG84: 0 | CH84: 0 | CI84: 0 | CJ84: 0 | CK84: 0 | CL84: 0 | CM84: 0 | CN84: 0 | CO84: 0 | CP84: 0 | CQ84: 0 | CR84: 0 | CS84: 0 | CT84: 0 | CU84: 0 | CV84: 0 | CW84: 0 | CX84: 0 | CY84: 0 | CZ84: 0 | DA84: 0 | DB84: =IFERROR(VLOOKUP(DB63,$R$168:$X$178,4,FALSE)*DB51,0) -> 0 | DC84: 0
E85: beta | F85: =IFERROR(VLOOKUP(F63,$R$168:$X$178,5,FALSE)*F51,0) -> 0 | G85: 0 | H85: 0 | I85: 0 | J85: 0 | K85: 0 | L85: 0 | M85: 0 | N85: 0 | O85: 0 | P85: 0 | Q85: 0 | R85: 0 | S85: 0 | T85: 0 | U85: 0 | V85: 0 | W85: 0 | X85: 0 | Y85: 0 | Z85: 0 | AA85: 0 | AB85: 0 | AC85: 0 | AD85: 0 | AE85: 0 | AF85: 0 | AG85: 0 | AH85: 0 | AI85: 0 | AJ85: 0 | AK85: 0 | AL85: =IFERROR(VLOOKUP(AL63,$R$168:$X$178,5,FALSE)*AL51,0) -> 0 | AM85: 0 | AN85: 0 | AO85: 0 | AP85: 0 | AQ85: 0 | AR85: 0 | AS85: 0 | AT85: 0 | AU85: 0 | AV85: 0 | AW85: 0 | AX85: 0 | AY85: 0 | AZ85: 0 | BA85: 0 | BB85: 0 | BC85: 0 | BD85: 0 | BE85: 0 | BF85: 0 | BG85: 0 | BH85: 0 | BI85: 0 | BJ85: 0 | BK85: 0 | BL85: 0 | BM85: 0 | BN85: 0 | BO85: 0 | BP85: 0 | BQ85: 0 | BR85: =IFERROR(VLOOKUP(BR63,$R$168:$X$178,5,FALSE)*BR51,0) -> 0 | BS85: 0 | BT85: 0 | BU85: 0 | BV85: 0 | BW85: 0 | BX85: 0 | BY85: 0 | BZ85: 0 | CA85: 0 | CB85: 0 | CC85: 0 | CD85: 0 | CE85: 0 | CF85: 0 | CG85: 0 | CH85: 0 | CI85: 0 | CJ85: 0 | CK85: 0 | CL85: 0 | CM85: 0 | CN85: 0 | CO85: 0 | CP85: 0 | CQ85: 0 | CR85: 0 | CS85: 0 | CT85: 0 | CU85: 0 | CV85: 0 | CW85: 0 | CX85: 0 | CY85: 0 | CZ85: 0 | DA85: 0 | DB85: =IFERROR(VLOOKUP(DB63,$R$168:$X$178,5,FALSE)*DB51,0) -> 0 | DC85: 0
E86: Ccovercrop_BG avec métha | F86: =IFERROR(1.65*F64/(F65*F84)*(1-F85^($R$146))*0.4,0) -> 0 | G86: 0 | H86: 0 | I86: 0 | J86: 0 | K86: 0 | L86: 0 | M86: 0 | N86: 0 | O86: 0 | P86: 0 | Q86: 0 | R86: 0 | S86: 0 | T86: 0 | U86: 0 | V86: 0 | W86: 0 | X86: 0 | Y86: 0 | Z86: 0 | AA86: 0 | AB86: 0 | AC86: 0 | AD86: 0 | AE86: 0 | AF86: 0 | AG86: 0 | AH86: 0 | AI86: 0 | AJ86: 0 | AK86: 0 | AL86: =IFERROR(1.65*AL64/(AL65*AL84)*(1-AL85^($R$146))*0.4,0) -> 0 | AM86: 0 | AN86: 0 | AO86: 0 | AP86: 0 | AQ86: 0 | AR86: 0 | AS86: 0 | AT86: 0 | AU86: 0 | AV86: 0 | AW86: 0 | AX86: 0 | AY86: 0 | AZ86: 0 | BA86: 0 | BB86: 0 | BC86: 0 | BD86: 0 | BE86: 0 | BF86: 0 | BG86: 0 | BH86: 0 | BI86: 0 | BJ86: 0 | BK86: 0 | BL86: 0 | BM86: 0 | BN86: 0 | BO86: 0 | BP86: 0 | BQ86: 0 | BR86: =IFERROR(1.65*BR64/(BR65*BR84)*(1-BR85^($R$146))*0.4,0) -> 0 | BS86: 0 | BT86: 0 | BU86: 0 | BV86: 0 | BW86: 0 | BX86: 0 | BY86: 0 | BZ86: 0 | CA86: 0 | CB86: 0 | CC86: 0 | CD86: 0 | CE86: 0 | CF86: 0 | CG86: 0 | CH86: 0 | CI86: 0 | CJ86: 0 | CK86: 0 | CL86: 0 | CM86: 0 | CN86: 0 | CO86: 0 | CP86: 0 | CQ86: 0 | CR86: 0 | CS86: 0 | CT86: 0 | CU86: 0 | CV86: 0 | CW86: 0 | CX86: =IFERROR(1.65*CX64/(CX65*CX84)*(1-CX85^($R$146))*0.4,0) -> 0 | CY86: =IFERROR(1.65*CY64/(CY65*CY84)*(1-CY85^($R$146))*0.4,0) -> 0 | CZ86: =IFERROR(1.65*CZ64/(CZ65*CZ84)*(1-CZ85^($R$146))*0.4,0) -> 0 | DA86: =IFERROR(1.65*DA64/(DA65*DA84)*(1-DA85^($R$146))*0.4,0) -> 0 | DB86: =IFERROR(1.65*DB64/(DB65*DB84)*(1-DB85^($R$146))*0.4,0) -> 0 | DC86: 0
C89: Calcul C hum input | E89: Hag | F89: =IFERROR(VLOOKUP(F36,$R$168:$X$178,6,FALSE),0) -> 0 | G89: 0 | H89: 0 | I89: 0 | J89: 0 | K89: 0 | L89: 0 | M89: 0 | N89: 0 | O89: 0 | P89: 0 | Q89: 0 | R89: 0 | S89: 0 | T89: 0 | U89: 0 | V89: 0 | W89: 0 | X89: 0 | Y89: 0 | Z89: 0 | AA89: 0 | AB89: 0 | AC89: 0 | AD89: 0 | AE89: 0 | AF89: 0 | AG89: 0 | AH89: 0 | AI89: 0 | AJ89: 0 | AK89: 0 | AL89: =IFERROR(VLOOKUP(AL36,$R$168:$X$178,6,FALSE),0) -> 0 | AM89: 0 | AN89: 0 | AO89: 0 | AP89: 0 | AQ89: 0 | AR89: 0 | AS89: 0 | AT89: 0 | AU89: 0 | AV89: 0 | AW89: 0 | AX89: 0 | AY89: 0 | AZ89: 0 | BA89: 0 | BB89: 0 | BC89: 0 | BD89: 0 | BE89: 0 | BF89: 0 | BG89: 0 | BH89: 0 | BI89: 0 | BJ89: 0 | BK89: 0 | BL89: 0 | BM89: 0 | BN89: 0 | BO89: 0 | BP89: 0 | BQ89: 0 | BR89: =IFERROR(VLOOKUP(BR36,$R$168:$X$178,6,FALSE),0) -> 0 | BS89: 0 | BT89: 0 | BU89: 0 | BV89: 0 | BW89: 0 | BX89: 0 | BY89: 0 | BZ89: 0 | CA89: 0 | CB89: 0 | CC89: 0 | CD89: 0 | CE89: 0 | CF89: 0 | CG89: 0 | CH89: 0 | CI89: 0 | CJ89: 0 | CK89: 0 | CL89: 0 | CM89: 0 | CN89: 0 | CO89: 0 | CP89: 0 | CQ89: 0 | CR89: 0 | CS89: 0 | CT89: 0 | CU89: 0 | CV89: 0 | CW89: 0 | CX89: 0 | CY89: 0 | CZ89: 0 | DA89: 0 | DB89: =IFERROR(VLOOKUP(DB36,$R$168:$X$178,6,FALSE),0) -> 0 | DC89: 0
E90: Hbg | F90: =IFERROR(VLOOKUP(F36,$R$168:$X$178,7,FALSE),0) -> 0 | G90: 0 | H90: 0 | I90: 0 | J90: 0 | K90: 0 | L90: 0 | M90: 0 | N90: 0 | O90: 0 | P90: 0 | Q90: 0 | R90: 0 | S90: 0 | T90: 0 | U90: 0 | V90: 0 | W90: 0 | X90: 0 | Y90: 0 | Z90: 0 | AA90: 0 | AB90: 0 | AC90: 0 | AD90: 0 | AE90: 0 | AF90: 0 | AG90: 0 | AH90: 0 | AI90: 0 | AJ90: 0 | AK90: 0 | AL90: =IFERROR(VLOOKUP(AL36,$R$168:$X$178,7,FALSE),0) -> 0 | AM90: 0 | AN90: 0 | AO90: 0 | AP90: 0 | AQ90: 0 | AR90: 0 | AS90: 0 | AT90: 0 | AU90: 0 | AV90: 0 | AW90: 0 | AX90: 0 | AY90: 0 | AZ90: 0 | BA90: 0 | BB90: 0 | BC90: 0 | BD90: 0 | BE90: 0 | BF90: 0 | BG90: 0 | BH90: 0 | BI90: 0 | BJ90: 0 | BK90: 0 | BL90: 0 | BM90: 0 | BN90: 0 | BO90: 0 | BP90: 0 | BQ90: 0 | BR90: =IFERROR(VLOOKUP(BR36,$R$168:$X$178,7,FALSE),0) -> 0 | BS90: 0 | BT90: 0 | BU90: 0 | BV90: 0 | BW90: 0 | BX90: 0 | BY90: 0 | BZ90: 0 | CA90: 0 | CB90: 0 | CC90: 0 | CD90: 0 | CE90: 0 | CF90: 0 | CG90: 0 | CH90: 0 | CI90: 0 | CJ90: 0 | CK90: 0 | CL90: 0 | CM90: 0 | CN90: 0 | CO90: 0 | CP90: 0 | CQ90: 0 | CR90: 0 | CS90: 0 | CT90: 0 | CU90: 0 | CV90: 0 | CW90: 0 | CX90: 0 | CY90: 0 | CZ90: 0 | DA90: 0 | DB90: =IFERROR(VLOOKUP(DB36,$R$168:$X$178,7,FALSE),0) -> 0 | DC90: 0
D91: Sans métha | E91: Cab | F91: =F41*F89 -> 0 | G91: 0 | H91: 0 | I91: 0 | J91: 0 | K91: 0 | L91: 0 | M91: 0 | N91: 0 | O91: 0 | P91: 0 | Q91: 0 | R91: 0 | S91: 0 | T91: 0 | U91: 0 | V91: 0 | W91: 0 | X91: 0 | Y91: 0 | Z91: 0 | AA91: 0 | AB91: 0 | AC91: 0 | AD91: 0 | AE91: 0 | AF91: 0 | AG91: 0 | AH91: 0 | AI91: 0 | AJ91: 0 | AK91: 0 | AL91: =AL41*AL89 -> 0 | AM91: 0 | AN91: 0 | AO91: 0 | AP91: 0 | AQ91: 0 | AR91: 0 | AS91: 0 | AT91: 0 | AU91: 0 | AV91: 0 | AW91: 0 | AX91: 0 | AY91: 0 | AZ91: 0 | BA91: 0 | BB91: 0 | BC91: 0 | BD91: 0 | BE91: 0 | BF91: 0 | BG91: 0 | BH91: 0 | BI91: 0 | BJ91: 0 | BK91: 0 | BL91: 0 | BM91: 0 | BN91: 0 | BO91: 0 | BP91: 0 | BQ91: 0 | BR91: =BR41*BR89 -> 0 | BS91: 0 | BT91: 0 | BU91: 0 | BV91: 0 | BW91: 0 | BX91: 0 | BY91: 0 | BZ91: 0 | CA91: 0 | CB91: 0 | CC91: 0 | CD91: 0 | CE91: 0 | CF91: 0 | CG91: 0 | CH91: 0 | CI91: 0 | CJ91: 0 | CK91: 0 | CL91: 0 | CM91: 0 | CN91: 0 | CO91: 0 | CP91: 0 | CQ91: 0 | CR91: 0 | CS91: 0 | CT91: 0 | CU91: 0 | CV91: 0 | CW91: 0 | CX91: 0 | CY91: 0 | CZ91: 0 | DA91: 0 | DB91: =DB41*DB89 -> 0 | DC91: 0
E92: Cbg | F92: =F75*F90 -> 0 | G92: 0 | H92: 0 | I92: 0 | J92: 0 | K92: 0 | L92: 0 | M92: 0 | N92: 0 | O92: 0 | P92: 0 | Q92: 0 | R92: 0 | S92: 0 | T92: 0 | U92: 0 | V92: 0 | W92: 0 | X92: 0 | Y92: 0 | Z92: 0 | AA92: 0 | AB92: 0 | AC92: 0 | AD92: 0 | AE92: 0 | AF92: 0 | AG92: 0 | AH92: 0 | AI92: 0 | AJ92: 0 | AK92: 0 | AL92: =AL75*AL90 -> 0 | AM92: 0 | AN92: 0 | AO92: 0 | AP92: 0 | AQ92: 0 | AR92: 0 | AS92: 0 | AT92: 0 | AU92: 0 | AV92: 0 | AW92: 0 | AX92: 0 | AY92: 0 | AZ92: 0 | BA92: 0 | BB92: 0 | BC92: 0 | BD92: 0 | BE92: 0 | BF92: 0 | BG92: 0 | BH92: 0 | BI92: 0 | BJ92: 0 | BK92: 0 | BL92: 0 | BM92: 0 | BN92: 0 | BO92: 0 | BP92: 0 | BQ92: 0 | BR92: =BR75*BR90 -> 0 | BS92: 0 | BT92: 0 | BU92: 0 | BV92: 0 | BW92: 0 | BX92: 0 | BY92: 0 | BZ92: 0 | CA92: 0 | CB92: 0 | CC92: 0 | CD92: 0 | CE92: 0 | CF92: 0 | CG92: 0 | CH92: 0 | CI92: 0 | CJ92: 0 | CK92: 0 | CL92: 0 | CM92: 0 | CN92: 0 | CO92: 0 | CP92: 0 | CQ92: 0 | CR92: 0 | CS92: 0 | CT92: 0 | CU92: 0 | CV92: 0 | CW92: 0 | CX92: 0 | CY92: 0 | CZ92: 0 | DA92: 0 | DB92: =DB75*DB90 -> 0 | DC92: 0
D94: CC | E94: Hag | F94: =IFERROR(VLOOKUP(F53,$R$168:$X$178,6,FALSE)*F51,0) -> 0 | G94: 0 | H94: 0 | I94: 0 | J94: 0 | K94: 0 | L94: 0 | M94: 0 | N94: 0 | O94: 0 | P94: 0 | Q94: 0 | R94: 0 | S94: 0 | T94: 0 | U94: 0 | V94: 0 | W94: 0 | X94: 0 | Y94: 0 | Z94: 0 | AA94: 0 | AB94: 0 | AC94: 0 | AD94: 0 | AE94: 0 | AF94: 0 | AG94: 0 | AH94: 0 | AI94: 0 | AJ94: 0 | AK94: 0 | AL94: =IFERROR(VLOOKUP(AL53,$R$168:$X$178,6,FALSE)*AL51,0) -> 0 | AM94: 0 | AN94: 0 | AO94: 0 | AP94: 0 | AQ94: 0 | AR94: 0 | AS94: 0 | AT94: 0 | AU94: 0 | AV94: 0 | AW94: 0 | AX94: 0 | AY94: 0 | AZ94: 0 | BA94: 0 | BB94: 0 | BC94: 0 | BD94: 0 | BE94: 0 | BF94: 0 | BG94: 0 | BH94: 0 | BI94: 0 | BJ94: 0 | BK94: 0 | BL94: 0 | BM94: 0 | BN94: 0 | BO94: 0 | BP94: 0 | BQ94: 0 | BR94: =IFERROR(VLOOKUP(BR53,$R$168:$X$178,6,FALSE)*BR51,0) -> 0 | BS94: 0 | BT94: 0 | BU94: 0 | BV94: 0 | BW94: 0 | BX94: 0 | BY94: 0 | BZ94: 0 | CA94: 0 | CB94: 0 | CC94: 0 | CD94: 0 | CE94: 0 | CF94: 0 | CG94: 0 | CH94: 0 | CI94: 0 | CJ94: 0 | CK94: 0 | CL94: 0 | CM94: 0 | CN94: 0 | CO94: 0 | CP94: 0 | CQ94: 0 | CR94: 0 | CS94: 0 | CT94: 0 | CU94: 0 | CV94: 0 | CW94: 0 | CX94: 0 | CY94: 0 | CZ94: 0 | DA94: 0 | DB94: =IFERROR(VLOOKUP(DB53,$R$168:$X$178,6,FALSE)*DB51,0) -> 0 | DC94: 0
E95: Hbg | F95: =IFERROR(VLOOKUP(F53,$R$168:$X$178,7,FALSE)*F51,0) -> 0 | G95: 0 | H95: 0 | I95: 0 | J95: 0 | K95: 0 | L95: 0 | M95: 0 | N95: 0 | O95: 0 | P95: 0 | Q95: 0 | R95: 0 | S95: 0 | T95: 0 | U95: 0 | V95: 0 | W95: 0 | X95: 0 | Y95: 0 | Z95: 0 | AA95: 0 | AB95: 0 | AC95: 0 | AD95: 0 | AE95: 0 | AF95: 0 | AG95: 0 | AH95: 0 | AI95: 0 | AJ95: 0 | AK95: 0 | AL95: =IFERROR(VLOOKUP(AL53,$R$168:$X$178,7,FALSE)*AL51,0) -> 0 | AM95: 0 | AN95: 0 | AO95: 0 | AP95: 0 | AQ95: 0 | AR95: 0 | AS95: 0 | AT95: 0 | AU95: 0 | AV95: 0 | AW95: 0 | AX95: 0 | AY95: 0 | AZ95: 0 | BA95: 0 | BB95: 0 | BC95: 0 | BD95: 0 | BE95: 0 | BF95: 0 | BG95: 0 | BH95: 0 | BI95: 0 | BJ95: 0 | BK95: 0 | BL95: 0 | BM95: 0 | BN95: 0 | BO95: 0 | BP95: 0 | BQ95: 0 | BR95: =IFERROR(VLOOKUP(BR53,$R$168:$X$178,7,FALSE)*BR51,0) -> 0 | BS95: 0 | BT95: 0 | BU95: 0 | BV95: 0 | BW95: 0 | BX95: 0 | BY95: 0 | BZ95: 0 | CA95: 0 | CB95: 0 | CC95: 0 | CD95: 0 | CE95: 0 | CF95: 0 | CG95: 0 | CH95: 0 | CI95: 0 | CJ95: 0 | CK95: 0 | CL95: 0 | CM95: 0 | CN95: 0 | CO95: 0 | CP95: 0 | CQ95: 0 | CR95: 0 | CS95: 0 | CT95: 0 | CU95: 0 | CV95: 0 | CW95: 0 | CX95: 0 | CY95: 0 | CZ95: 0 | DA95: 0 | DB95: =IFERROR(VLOOKUP(DB53,$R$168:$X$178,7,FALSE)*DB51,0) -> 0 | DC95: 0
E96: CCab | F96: =F58*F94 -> 0 | G96: 0 | H96: 0 | I96: 0 | J96: 0 | K96: 0 | L96: 0 | M96: 0 | N96: 0 | O96: 0 | P96: 0 | Q96: 0 | R96: 0 | S96: 0 | T96: 0 | U96: 0 | V96: 0 | W96: 0 | X96: 0 | Y96: 0 | Z96: 0 | AA96: 0 | AB96: 0 | AC96: 0 | AD96: 0 | AE96: 0 | AF96: 0 | AG96: 0 | AH96: 0 | AI96: 0 | AJ96: 0 | AK96: 0 | AL96: =AL58*AL94 -> 0 | AM96: 0 | AN96: 0 | AO96: 0 | AP96: 0 | AQ96: 0 | AR96: 0 | AS96: 0 | AT96: 0 | AU96: 0 | AV96: 0 | AW96: 0 | AX96: 0 | AY96: 0 | AZ96: 0 | BA96: 0 | BB96: 0 | BC96: 0 | BD96: 0 | BE96: 0 | BF96: 0 | BG96: 0 | BH96: 0 | BI96: 0 | BJ96: 0 | BK96: 0 | BL96: 0 | BM96: 0 | BN96: 0 | BO96: 0 | BP96: 0 | BQ96: 0 | BR96: =BR58*BR94 -> 0 | BS96: 0 | BT96: 0 | BU96: 0 | BV96: 0 | BW96: 0 | BX96: 0 | BY96: 0 | BZ96: 0 | CA96: 0 | CB96: 0 | CC96: 0 | CD96: 0 | CE96: 0 | CF96: 0 | CG96: 0 | CH96: 0 | CI96: 0 | CJ96: 0 | CK96: 0 | CL96: 0 | CM96: 0 | CN96: 0 | CO96: 0 | CP96: 0 | CQ96: 0 | CR96: 0 | CS96: 0 | CT96: 0 | CU96: 0 | CV96: 0 | CW96: 0 | CX96: 0 | CY96: 0 | CZ96: 0 | DA96: 0 | DB96: =DB58*DB94 -> 0 | DC96: 0
E97: CCbg | F97: =F81*F95 -> 0 | G97: 0 | H97: 0 | I97: 0 | J97: 0 | K97: 0 | L97: 0 | M97: 0 | N97: 0 | O97: 0 | P97: 0 | Q97: 0 | R97: 0 | S97: 0 | T97: 0 | U97: 0 | V97: 0 | W97: 0 | X97: 0 | Y97: 0 | Z97: 0 | AA97: 0 | AB97: 0 | AC97: 0 | AD97: 0 | AE97: 0 | AF97: 0 | AG97: 0 | AH97: 0 | AI97: 0 | AJ97: 0 | AK97: 0 | AL97: =AL81*AL95 -> 0 | AM97: 0 | AN97: 0 | AO97: 0 | AP97: 0 | AQ97: 0 | AR97: 0 | AS97: 0 | AT97: 0 | AU97: 0 | AV97: 0 | AW97: 0 | AX97: 0 | AY97: 0 | AZ97: 0 | BA97: 0 | BB97: 0 | BC97: 0 | BD97: 0 | BE97: 0 | BF97: 0 | BG97: 0 | BH97: 0 | BI97: 0 | BJ97: 0 | BK97: 0 | BL97: 0 | BM97: 0 | BN97: 0 | BO97: 0 | BP97: 0 | BQ97: 0 | BR97: =BR81*BR95 -> 0 | BS97: 0 | BT97: 0 | BU97: 0 | BV97: 0 | BW97: 0 | BX97: 0 | BY97: 0 | BZ97: 0 | CA97: 0 | CB97: 0 | CC97: 0 | CD97: 0 | CE97: 0 | CF97: 0 | CG97: 0 | CH97: 0 | CI97: 0 | CJ97: 0 | CK97: 0 | CL97: 0 | CM97: 0 | CN97: 0 | CO97: 0 | CP97: 0 | CQ97: 0 | CR97: 0 | CS97: 0 | CT97: 0 | CU97: 0 | CV97: 0 | CW97: 0 | CX97: 0 | CY97: 0 | CZ97: 0 | DA97: 0 | DB97: =DB81*DB95 -> 0 | DC97: 0
D99: avec métha
D100: Calcul | E100: Cab | F100: =F42*F89 -> 0 | G100: 0 | H100: 0 | I100: 0 | J100: 0 | K100: 0 | L100: 0 | M100: 0 | N100: 0 | O100: 0 | P100: 0 | Q100: 0 | R100: 0 | S100: 0 | T100: 0 | U100: 0 | V100: 0 | W100: 0 | X100: 0 | Y100: 0 | Z100: 0 | AA100: 0 | AB100: 0 | AC100: 0 | AD100: 0 | AE100: 0 | AF100: 0 | AG100: 0 | AH100: 0 | AI100: 0 | AJ100: 0 | AK100: 0 | AL100: =AL42*AL89 -> 0 | AM100: 0 | AN100: 0 | AO100: 0 | AP100: 0 | AQ100: 0 | AR100: 0 | AS100: 0 | AT100: 0 | AU100: 0 | AV100: 0 | AW100: 0 | AX100: 0 | AY100: 0 | AZ100: 0 | BA100: 0 | BB100: 0 | BC100: 0 | BD100: 0 | BE100: 0 | BF100: 0 | BG100: 0 | BH100: 0 | BI100: 0 | BJ100: 0 | BK100: 0 | BL100: 0 | BM100: 0 | BN100: 0 | BO100: 0 | BP100: 0 | BQ100: 0 | BR100: =BR42*BR89 -> 0 | BS100: 0 | BT100: 0 | BU100: 0 | BV100: 0 | BW100: 0 | BX100: 0 | BY100: 0 | BZ100: 0 | CA100: 0 | CB100: 0 | CC100: 0 | CD100: 0 | CE100: 0 | CF100: 0 | CG100: 0 | CH100: 0 | CI100: 0 | CJ100: 0 | CK100: 0 | CL100: 0 | CM100: 0 | CN100: 0 | CO100: 0 | CP100: 0 | CQ100: 0 | CR100: 0 | CS100: 0 | CT100: 0 | CU100: 0 | CV100: 0 | CW100: 0 | CX100: 0 | CY100: 0 | CZ100: 0 | DA100: 0 | DB100: =DB42*DB89 -> 0 | DC100: 0
E101: Cbg | F101: =F76*F90 -> 0 | G101: 0 | H101: 0 | I101: 0 | J101: 0 | K101: 0 | L101: 0 | M101: 0 | N101: 0 | O101: 0 | P101: 0 | Q101: 0 | R101: 0 | S101: 0 | T101: 0 | U101: 0 | V101: 0 | W101: 0 | X101: 0 | Y101: 0 | Z101: 0 | AA101: 0 | AB101: 0 | AC101: 0 | AD101: 0 | AE101: 0 | AF101: 0 | AG101: 0 | AH101: 0 | AI101: 0 | AJ101: 0 | AK101: 0 | AL101: =AL76*AL90 -> 0 | AM101: 0 | AN101: 0 | AO101: 0 | AP101: 0 | AQ101: 0 | AR101: 0 | AS101: 0 | AT101: 0 | AU101: 0 | AV101: 0 | AW101: 0 | AX101: 0 | AY101: 0 | AZ101: 0 | BA101: 0 | BB101: 0 | BC101: 0 | BD101: 0 | BE101: 0 | BF101: 0 | BG101: 0 | BH101: 0 | BI101: 0 | BJ101: 0 | BK101: 0 | BL101: 0 | BM101: 0 | BN101: 0 | BO101: 0 | BP101: 0 | BQ101: 0 | BR101: =BR76*BR90 -> 0 | BS101: 0 | BT101: 0 | BU101: 0 | BV101: 0 | BW101: 0 | BX101: 0 | BY101: 0 | BZ101: 0 | CA101: 0 | CB101: 0 | CC101: 0 | CD101: 0 | CE101: 0 | CF101: 0 | CG101: 0 | CH101: 0 | CI101: 0 | CJ101: 0 | CK101: 0 | CL101: 0 | CM101: 0 | CN101: 0 | CO101: 0 | CP101: 0 | CQ101: 0 | CR101: 0 | CS101: 0 | CT101: 0 | CU101: 0 | CV101: 0 | CW101: 0 | CX101: 0 | CY101: 0 | CZ101: 0 | DA101: 0 | DB101: =DB76*DB90 -> 0 | DC101: 0
D103: CC avec métha | E103: Hag | F103: =IFERROR(VLOOKUP(F63,$R$168:$X$178,6,FALSE)*F51,0) -> 0 | G103: 0 | H103: 0 | I103: 0 | J103: 0 | K103: 0 | L103: 0 | M103: 0 | N103: 0 | O103: 0 | P103: 0 | Q103: 0 | R103: 0 | S103: 0 | T103: 0 | U103: 0 | V103: 0 | W103: 0 | X103: 0 | Y103: 0 | Z103: 0 | AA103: 0 | AB103: 0 | AC103: 0 | AD103: 0 | AE103: 0 | AF103: 0 | AG103: 0 | AH103: 0 | AI103: 0 | AJ103: 0 | AK103: 0 | AL103: =IFERROR(VLOOKUP(AL63,$R$168:$X$178,6,FALSE)*AL51,0) -> 0 | AM103: 0 | AN103: 0 | AO103: 0 | AP103: 0 | AQ103: 0 | AR103: 0 | AS103: 0 | AT103: 0 | AU103: 0 | AV103: 0 | AW103: 0 | AX103: 0 | AY103: 0 | AZ103: 0 | BA103: 0 | BB103: 0 | BC103: 0 | BD103: 0 | BE103: 0 | BF103: 0 | BG103: 0 | BH103: 0 | BI103: 0 | BJ103: 0 | BK103: 0 | BL103: 0 | BM103: 0 | BN103: 0 | BO103: 0 | BP103: 0 | BQ103: 0 | BR103: =IFERROR(VLOOKUP(BR63,$R$168:$X$178,6,FALSE)*BR51,0) -> 0 | BS103: 0 | BT103: 0 | BU103: 0 | BV103: 0 | BW103: 0 | BX103: 0 | BY103: 0 | BZ103: 0 | CA103: 0 | CB103: 0 | CC103: 0 | CD103: 0 | CE103: 0 | CF103: 0 | CG103: 0 | CH103: 0 | CI103: 0 | CJ103: 0 | CK103: 0 | CL103: 0 | CM103: 0 | CN103: 0 | CO103: 0 | CP103: 0 | CQ103: 0 | CR103: 0 | CS103: 0 | CT103: 0 | CU103: 0 | CV103: 0 | CW103: 0 | CX103: 0 | CY103: 0 | CZ103: 0 | DA103: 0 | DB103: =IFERROR(VLOOKUP(DB63,$R$168:$X$178,6,FALSE)*DB51,0) -> 0 | DC103: 0
E104: Hbg | F104: =IFERROR(VLOOKUP(F63,$R$168:$X$178,7,FALSE)*F51,0) -> 0 | G104: 0 | H104: 0 | I104: 0 | J104: 0 | K104: 0 | L104: 0 | M104: 0 | N104: 0 | O104: 0 | P104: 0 | Q104: 0 | R104: 0 | S104: 0 | T104: 0 | U104: 0 | V104: 0 | W104: 0 | X104: 0 | Y104: 0 | Z104: 0 | AA104: 0 | AB104: 0 | AC104: 0 | AD104: 0 | AE104: 0 | AF104: 0 | AG104: 0 | AH104: 0 | AI104: 0 | AJ104: 0 | AK104: 0 | AL104: =IFERROR(VLOOKUP(AL63,$R$168:$X$178,7,FALSE)*AL51,0) -> 0 | AM104: 0 | AN104: 0 | AO104: 0 | AP104: 0 | AQ104: 0 | AR104: 0 | AS104: 0 | AT104: 0 | AU104: 0 | AV104: 0 | AW104: 0 | AX104: 0 | AY104: 0 | AZ104: 0 | BA104: 0 | BB104: 0 | BC104: 0 | BD104: 0 | BE104: 0 | BF104: 0 | BG104: 0 | BH104: 0 | BI104: 0 | BJ104: 0 | BK104: 0 | BL104: 0 | BM104: 0 | BN104: 0 | BO104: 0 | BP104: 0 | BQ104: 0 | BR104: =IFERROR(VLOOKUP(BR63,$R$168:$X$178,7,FALSE)*BR51,0) -> 0 | BS104: 0 | BT104: 0 | BU104: 0 | BV104: 0 | BW104: 0 | BX104: 0 | BY104: 0 | BZ104: 0 | CA104: 0 | CB104: 0 | CC104: 0 | CD104: 0 | CE104: 0 | CF104: 0 | CG104: 0 | CH104: 0 | CI104: 0 | CJ104: 0 | CK104: 0 | CL104: 0 | CM104: 0 | CN104: 0 | CO104: 0 | CP104: 0 | CQ104: 0 | CR104: 0 | CS104: 0 | CT104: 0 | CU104: 0 | CV104: 0 | CW104: 0 | CX104: 0 | CY104: 0 | CZ104: 0 | DA104: 0 | DB104: =IFERROR(VLOOKUP(DB63,$R$168:$X$178,7,FALSE)*DB51,0) -> 0 | DC104: 0
E105: CCab | F105: =F68*F103 -> 0 | G105: 0 | H105: 0 | I105: 0 | J105: 0 | K105: 0 | L105: 0 | M105: 0 | N105: 0 | O105: 0 | P105: 0 | Q105: 0 | R105: 0 | S105: 0 | T105: 0 | U105: 0 | V105: 0 | W105: 0 | X105: 0 | Y105: 0 | Z105: 0 | AA105: 0 | AB105: 0 | AC105: 0 | AD105: 0 | AE105: 0 | AF105: 0 | AG105: 0 | AH105: 0 | AI105: 0 | AJ105: 0 | AK105: 0 | AL105: =AL68*AL103 -> 0 | AM105: 0 | AN105: 0 | AO105: 0 | AP105: 0 | AQ105: 0 | AR105: 0 | AS105: 0 | AT105: 0 | AU105: 0 | AV105: 0 | AW105: 0 | AX105: 0 | AY105: 0 | AZ105: 0 | BA105: 0 | BB105: 0 | BC105: 0 | BD105: 0 | BE105: 0 | BF105: 0 | BG105: 0 | BH105: 0 | BI105: 0 | BJ105: 0 | BK105: 0 | BL105: 0 | BM105: 0 | BN105: 0 | BO105: 0 | BP105: 0 | BQ105: 0 | BR105: =BR68*BR103 -> 0 | BS105: 0 | BT105: 0 | BU105: 0 | BV105: 0 | BW105: 0 | BX105: 0 | BY105: 0 | BZ105: 0 | CA105: 0 | CB105: 0 | CC105: 0 | CD105: 0 | CE105: 0 | CF105: 0 | CG105: 0 | CH105: 0 | CI105: 0 | CJ105: 0 | CK105: 0 | CL105: 0 | CM105: 0 | CN105: 0 | CO105: 0 | CP105: 0 | CQ105: 0 | CR105: 0 | CS105: 0 | CT105: 0 | CU105: 0 | CV105: 0 | CW105: 0 | CX105: 0 | CY105: 0 | CZ105: 0 | DA105: 0 | DB105: =DB68*DB103 -> 0 | DC105: 0
E106: CCbg | F106: =F86*F104 -> 0 | G106: 0 | H106: 0 | I106: 0 | J106: 0 | K106: 0 | L106: 0 | M106: 0 | N106: 0 | O106: 0 | P106: 0 | Q106: 0 | R106: 0 | S106: 0 | T106: 0 | U106: 0 | V106: 0 | W106: 0 | X106: 0 | Y106: 0 | Z106: 0 | AA106: 0 | AB106: 0 | AC106: 0 | AD106: 0 | AE106: 0 | AF106: 0 | AG106: 0 | AH106: 0 | AI106: 0 | AJ106: 0 | AK106: 0 | AL106: =AL86*AL104 -> 0 | AM106: 0 | AN106: 0 | AO106: 0 | AP106: 0 | AQ106: 0 | AR106: 0 | AS106: 0 | AT106: 0 | AU106: 0 | AV106: 0 | AW106: 0 | AX106: 0 | AY106: 0 | AZ106: 0 | BA106: 0 | BB106: 0 | BC106: 0 | BD106: 0 | BE106: 0 | BF106: 0 | BG106: 0 | BH106: 0 | BI106: 0 | BJ106: 0 | BK106: 0 | BL106: 0 | BM106: 0 | BN106: 0 | BO106: 0 | BP106: 0 | BQ106: 0 | BR106: =BR86*BR104 -> 0 | BS106: 0 | BT106: 0 | BU106: 0 | BV106: 0 | BW106: 0 | BX106: 0 | BY106: 0 | BZ106: 0 | CA106: 0 | CB106: 0 | CC106: 0 | CD106: 0 | CE106: 0 | CF106: 0 | CG106: 0 | CH106: 0 | CI106: 0 | CJ106: 0 | CK106: 0 | CL106: 0 | CM106: 0 | CN106: 0 | CO106: 0 | CP106: 0 | CQ106: 0 | CR106: 0 | CS106: 0 | CT106: 0 | CU106: 0 | CV106: 0 | CW106: 0 | CX106: 0 | CY106: 0 | CZ106: 0 | DA106: 0 | DB106: =DB86*DB104 -> 0 | DC106: 0
E108: Hdig | F108: 0.5 | G108: 0.5 | H108: 0.5 | I108: 0.5 | J108: 0.5 | K108: 0.5 | L108: 0.5 | M108: 0.5 | N108: 0.5 | O108: 0.5 | P108: 0.5 | Q108: 0.5 | R108: 0.5 | S108: 0.5 | T108: 0.5 | U108: 0.5 | V108: 0.5 | W108: 0.5 | X108: 0.5 | Y108: 0.5 | Z108: 0.5 | AA108: 0.5 | AB108: 0.5 | AC108: 0.5 | AD108: 0.5 | AE108: 0.5 | AF108: 0.5 | AG108: 0.5 | AH108: 0.5 | AI108: 0.5 | AJ108: 0.5 | AK108: 0.5 | AL108: 0.5 | AM108: 0.5 | AN108: 0.5 | AO108: 0.5 | AP108: 0.5 | AQ108: 0.5 | AR108: 0.5 | AS108: 0.5 | AT108: 0.5 | AU108: 0.5 | AV108: 0.5 | AW108: 0.5 | AX108: 0.5 | AY108: 0.5 | AZ108: 0.5 | BA108: 0.5 | BB108: 0.5 | BC108: 0.5 | BD108: 0.5 | BE108: 0.5 | BF108: 0.5 | BG108: 0.5 | BH108: 0.5 | BI108: 0.5 | BJ108: 0.5 | BK108: 0.5 | BL108: 0.5 | BM108: 0.5 | BN108: 0.5 | BO108: 0.5 | BP108: 0.5 | BQ108: 0.5 | BR108: 0.5 | BS108: 0.5 | BT108: 0.5 | BU108: 0.5 | BV108: 0.5 | BW108: 0.5 | BX108: 0.5 | BY108: 0.5 | BZ108: 0.5 | CA108: 0.5 | CB108: 0.5 | CC108: 0.5 | CD108: 0.5 | CE108: 0.5 | CF108: 0.5 | CG108: 0.5 | CH108: 0.5 | CI108: 0.5 | CJ108: 0.5 | CK108: 0.5 | CL108: 0.5 | CM108: 0.5 | CN108: 0.5 | CO108: 0.5 | CP108: 0.5 | CQ108: 0.5 | CR108: 0.5 | CS108: 0.5 | CT108: 0.5 | CU108: 0.5 | CV108: 0.5 | CW108: 0.5 | CX108: 0.5 | CY108: 0.5 | CZ108: 0.5 | DA108: 0.5 | DB108: 1.5 | DC108: 2.5
E109: Cdig | F109: =F108*F70 -> 0 | G109: =G108*G70 -> 0 | H109: 0 | I109: 0 | J109: 0 | K109: 0 | L109: 0 | M109: 0 | N109: 0 | O109: 0 | P109: 0 | Q109: 0 | R109: 0 | S109: 0 | T109: 0 | U109: 0 | V109: 0 | W109: 0 | X109: 0 | Y109: 0 | Z109: 0 | AA109: 0 | AB109: 0 | AC109: 0 | AD109: 0 | AE109: 0 | AF109: 0 | AG109: 0 | AH109: 0 | AI109: 0 | AJ109: 0 | AK109: 0 | AL109: =AL108*AL70 -> 0 | AM109: 0 | AN109: 0 | AO109: 0 | AP109: 0 | AQ109: 0 | AR109: 0 | AS109: 0 | AT109: 0 | AU109: 0 | AV109: 0 | AW109: 0 | AX109: 0 | AY109: 0 | AZ109: 0 | BA109: 0 | BB109: 0 | BC109: 0 | BD109: 0 | BE109: 0 | BF109: 0 | BG109: 0 | BH109: 0 | BI109: 0 | BJ109: 0 | BK109: 0 | BL109: 0 | BM109: 0 | BN109: 0 | BO109: 0 | BP109: 0 | BQ109: 0 | BR109: =BR108*BR70 -> 0 | BS109: 0 | BT109: 0 | BU109: 0 | BV109: 0 | BW109: 0 | BX109: 0 | BY109: 0 | BZ109: 0 | CA109: 0 | CB109: 0 | CC109: 0 | CD109: 0 | CE109: 0 | CF109: 0 | CG109: 0 | CH109: 0 | CI109: 0 | CJ109: 0 | CK109: 0 | CL109: 0 | CM109: 0 | CN109: 0 | CO109: 0 | CP109: 0 | CQ109: 0 | CR109: 0 | CS109: 0 | CT109: 0 | CU109: 0 | CV109: 0 | CW109: 0 | CX109: =CX108*CX70 -> 0 | CY109: =CY108*CY70 -> 0 | CZ109: =CZ108*CZ70 -> 0 | DA109: =DA108*DA70 -> 0 | DB109: =DB108*DB70 -> 0 | DC109: 0
B111: Récapitulatif calcul C hum input | F111: Tableau S5 | G111: Cab | H111: Cbg | I111: CCab | J111: CCbg | L111: Chum | N111: Tableau S6 | P111: Tableau S5 | Q111: Cab | R111: Cbg | S111: CCab | T111: CCbg | V111: Chum | X111: Tableau S6 | Z111: Tableau S5 | AA111: Cab | AB111: Cbg | AC111: CCab | AD111: CCbg | AF111: Chum | AH111: Tableau S6
B112: à horizon 30 ans | E112: à 20 ans | F112: Sans métha | G112: =SUM(F91:Y91)/R142 -> 0.0000 | H112: =SUM(F92:Y92)/R142 -> 0.0000 | I112: =SUM(F96:Y96)/R142 -> 0.0000 | J112: =SUM(F97:Y97)/R142 -> 0.0000 | L112: =SUM(G112:K112) -> 0.0000 | N112: Différence | O112: à 30 ans | P112: Sans métha | Q112: =SUM(F91:AI91)/R143 -> 0.0000 | R112: =SUM(F92:AI92)/R143 -> 0.0000 | S112: =SUM(F96:AI96)/R143 -> 0.0000 | T112: =SUM(F97:AI97)/R143 -> 0.0000 | V112: =SUM(Q112:U112) -> 0.0000 | X112: Différence | Y112: à 100 ans | Z112: Sans métha | AA112: =SUM(F91:DA91)/R144 -> 0.0000 | AB112: =SUM(F92:DA92)/R144 -> 0.0000 | AC112: =SUM(F96:DA96)/R144 -> 0.0000 | AD112: =SUM(F97:DA97)/R144 -> 0.0000 | AF112: =SUM(AA112:AE112) -> 0.0000 | AH112: Différence
F113: Avec métha | G113: =SUM(F100:Y100)/R142 -> 0.0000 | H113: =SUM(F101:Y101)/R142 -> 0.0000 | I113: =SUM(F105:Y105)/R142 -> 0.0000 | J113: =SUM(F106:Y106)/R142 -> 0.0000 | K113: =SUM(F109:Y109)/R142 -> 0 | L113: =SUM(G113:K113) -> 0.0000 | N113: =L113-L112 -> 0.0000 | P113: Avec métha | Q113: =SUM(F100:AI100)/R143 -> 0.0000 | R113: =SUM(F101:AI101)/R143 -> 0.0000 | S113: =SUM(F105:AI105)/R143 -> 0.0000 | T113: =SUM(F106:AI106)/R143 -> 0.0000 | U113: =SUM(F109:AI109)/R143 -> 0 | V113: =SUM(Q113:U113) -> 0.0000 | X113: =V113-V112 -> 0.0000 | Z113: Avec métha | AA113: =SUM(F100:DA100)/R144 -> 0.0000 | AB113: =SUM(F101:DA101)/R144 -> 0.0000 | AC113: =SUM(F105:DA105)/R144 -> 0.0000 | AD113: =SUM(F106:DA106)/R144 -> 0.0000 | AE113: =SUM(F109:DA109)/R144 -> 0 | AF113: =SUM(AA113:AE113) -> 0.0000 | AH113: =AF113-AF112 -> 0.0000
E115: 0 | F115: 1 | G115: 2 | H115: 3 | I115: 4 | J115: 5 | K115: 6 | L115: 7 | M115: 8 | N115: 9 | O115: 10 | P115: 11 | Q115: 12 | R115: 13 | S115: 14 | T115: 15 | U115: 16 | V115: 17 | W115: 18 | X115: 19 | Y115: 20 | Z115: 21 | AA115: 22 | AB115: 23 | AC115: 24 | AD115: 25 | AE115: 26 | AF115: 27 | AG115: 28 | AH115: 29 | AI115: 30 | AJ115: 31 | AK115: 32 | AL115: 33 | AM115: 34 | AN115: 35 | AO115: 36 | AP115: 37 | AQ115: 38 | AR115: 39 | AS115: 40 | AT115: 41 | AU115: 42 | AV115: 43 | AW115: 44 | AX115: 45 | AY115: 46 | AZ115: 47 | BA115: 48 | BB115: 49 | BC115: 50 | BD115: 51 | BE115: 52 | BF115: 53 | BG115: 54 | BH115: 55 | BI115: 56 | BJ115: 57 | BK115: 58 | BL115: 59 | BM115: 60 | BN115: 61 | BO115: 62 | BP115: 63 | BQ115: 64 | BR115: 65 | BS115: 66 | BT115: 67 | BU115: 68 | BV115: 69 | BW115: 70 | BX115: 71 | BY115: 72 | BZ115: 73 | CA115: 74 | CB115: 75 | CC115: 76 | CD115: 77 | CE115: 78 | CF115: 79 | CG115: 80 | CH115: 81 | CI115: 82 | CJ115: 83 | CK115: 84 | CL115: 85 | CM115: 86 | CN115: 87 | CO115: 88 | CP115: 89 | CQ115: 90 | CR115: 91 | CS115: 92 | CT115: 93 | CU115: 94 | CV115: 95 | CW115: 96 | CX115: 97 | CY115: 98 | CZ115: 99 | DA115: 100 | DB115: 101 | DC115: 102
B116: Evolution des variables durant les 30 ans | E116: C hum apport sans métha | F116: =F91+F92+F96+F97 -> 0 | G116: 0 | H116: 0 | I116: 0 | J116: 0 | K116: 0 | L116: 0 | M116: 0 | N116: 0 | O116: 0 | P116: 0 | Q116: 0 | R116: 0 | S116: 0 | T116: 0 | U116: 0 | V116: 0 | W116: 0 | X116: 0 | Y116: 0 | Z116: 0 | AA116: 0 | AB116: 0 | AC116: 0 | AD116: 0 | AE116: 0 | AF116: 0 | AG116: 0 | AH116: 0 | AI116: 0 | AJ116: 0 | AK116: 0 | AL116: =AL91+AL92+AL96+AL97 -> 0 | AM116: 0 | AN116: 0 | AO116: 0 | AP116: 0 | AQ116: 0 | AR116: 0 | AS116: 0 | AT116: 0 | AU116: 0 | AV116: 0 | AW116: 0 | AX116: 0 | AY116: 0 | AZ116: 0 | BA116: 0 | BB116: 0 | BC116: 0 | BD116: 0 | BE116: 0 | BF116: 0 | BG116: 0 | BH116: 0 | BI116: 0 | BJ116: 0 | BK116: 0 | BL116: 0 | BM116: 0 | BN116: 0 | BO116: 0 | BP116: 0 | BQ116: 0 | BR116: =BR91+BR92+BR96+BR97 -> 0 | BS116: 0 | BT116: 0 | BU116: 0 | BV116: 0 | BW116: 0 | BX116: 0 | BY116: 0 | BZ116: 0 | CA116: 0 | CB116: 0 | CC116: 0 | CD116: 0 | CE116: 0 | CF116: 0 | CG116: 0 | CH116: 0 | CI116: 0 | CJ116: 0 | CK116: 0 | CL116: 0 | CM116: 0 | CN116: 0 | CO116: 0 | CP116: 0 | CQ116: 0 | CR116: 0 | CS116: 0 | CT116: 0 | CU116: 0 | CV116: 0 | CW116: 0 | CX116: 0 | CY116: 0 | CZ116: 0 | DA116: 0 | DB116: =DB91+DB92+DB96+DB97 -> 0 | DC116: 0
E117: Dégradation du C actif par rapport à l'année n-1 | F117: =E119*$F$135 ->  | AL117: =AK119*$F$135 ->  | BR117: =BQ119*$F$135 ->  | DB117: =DA119*$F$135 ->  | DC117: =DB119*$F$135 -> 
E118: Différence apport - dégradation | F118: =F116-F117 ->  | AL118: =AL116-AL117 ->  | BR118: =BR116-BR117 ->  | CX118: =CX116-CX117 ->  | CY118: =CY116-CY117 ->  | CZ118: =CZ116-CZ117 ->  | DA118: =DA116-DA117 ->  | DB118: =DB116-DB117 -> 
D119: Cactive | E119: =(E121-E120) -> 17.5 | F119: =E119+F116-F117 ->  | AL119: =AK119+AL116-AL117 ->  | BR119: =BQ119+BR116-BR117 ->  | DB119: =DA119+DB116-DB117 ->  | DC119: =DB119+DC116-DC117 -> 
D120: Cstable | E120: =E121*R148 -> 32.5 | F120: =E120 -> 32.5 | G120: 32.5 | H120: 32.5 | I120: 32.5 | J120: 32.5 | K120: 32.5 | L120: 32.5 | M120: 32.5 | N120: 32.5 | O120: 32.5 | P120: 32.5 | Q120: 32.5 | R120: 32.5 | S120: 32.5 | T120: 32.5 | U120: 32.5 | V120: 32.5 | W120: 32.5 | X120: 32.5 | Y120: 32.5 | Z120: 32.5 | AA120: 32.5 | AB120: 32.5 | AC120: 32.5 | AD120: 32.5 | AE120: 32.5 | AF120: 32.5 | AG120: 32.5 | AH120: 32.5 | AI120: 32.5 | AJ120: 32.5 | AK120: 32.5 | AL120: =AK120 -> 32.5 | AM120: 32.5 | AN120: 32.5 | AO120: 32.5 | AP120: 32.5 | AQ120: 32.5 | AR120: 32.5 | AS120: 32.5 | AT120: 32.5 | AU120: 32.5 | AV120: 32.5 | AW120: 32.5 | AX120: 32.5 | AY120: 32.5 | AZ120: 32.5 | BA120: 32.5 | BB120: 32.5 | BC120: 32.5 | BD120: 32.5 | BE120: 32.5 | BF120: 32.5 | BG120: 32.5 | BH120: 32.5 | BI120: 32.5 | BJ120: 32.5 | BK120: 32.5 | BL120: 32.5 | BM120: 32.5 | BN120: 32.5 | BO120: 32.5 | BP120: 32.5 | BQ120: 32.5 | BR120: =BQ120 -> 32.5 | BS120: 32.5 | BT120: 32.5 | BU120: 32.5 | BV120: 32.5 | BW120: 32.5 | BX120: 32.5 | BY120: 32.5 | BZ120: 32.5 | CA120: 32.5 | CB120: 32.5 | CC120: 32.5 | CD120: 32.5 | CE120: 32.5 | CF120: 32.5 | CG120: 32.5 | CH120: 32.5 | CI120: 32.5 | CJ120: 32.5 | CK120: 32.5 | CL120: 32.5 | CM120: 32.5 | CN120: 32.5 | CO120: 32.5 | CP120: 32.5 | CQ120: 32.5 | CR120: 32.5 | CS120: 32.5 | CT120: 32.5 | CU120: 32.5 | CV120: 32.5 | CW120: 32.5 | CX120: 32.5 | CY120: 32.5 | CZ120: 32.5 | DA120: 32.5 | DB120: =DA120 -> 32.5 | DC120: =DB120 -> 32.5
D121: SOC total sans méthanisation | E121: =R147 -> 50 | F121: =F120+F119 ->  | AL121: =AL120+AL119 ->  | BR121: =BR120+BR119 ->  | CX121: =CX120+CX119 ->  | CY121: =CY120+CY119 ->  | CZ121: =CZ120+CZ119 ->  | DA121: =DA120+DA119 ->  | DB121: =DB120+DB119 -> 
E122: C hum apport avec métha | F122: =F100+F101+F105+F106+F109 -> 0 | G122: 0 | H122: 0 | I122: 0 | J122: 0 | K122: 0 | L122: 0 | M122: 0 | N122: 0 | O122: 0 | P122: 0 | Q122: 0 | R122: 0 | S122: 0 | T122: 0 | U122: 0 | V122: 0 | W122: 0 | X122: 0 | Y122: 0 | Z122: 0 | AA122: 0 | AB122: 0 | AC122: 0 | AD122: 0 | AE122: 0 | AF122: 0 | AG122: 0 | AH122: 0 | AI122: 0 | AJ122: 0 | AK122: 0 | AL122: =AL100+AL101+AL105+AL106+AL109 -> 0 | AM122: 0 | AN122: 0 | AO122: 0 | AP122: 0 | AQ122: 0 | AR122: 0 | AS122: 0 | AT122: 0 | AU122: 0 | AV122: 0 | AW122: 0 | AX122: 0 | AY122: 0 | AZ122: 0 | BA122: 0 | BB122: 0 | BC122: 0 | BD122: 0 | BE122: 0 | BF122: 0 | BG122: 0 | BH122: 0 | BI122: 0 | BJ122: 0 | BK122: 0 | BL122: 0 | BM122: 0 | BN122: 0 | BO122: 0 | BP122: 0 | BQ122: 0 | BR122: =BR100+BR101+BR105+BR106+BR109 -> 0 | BS122: 0 | BT122: 0 | BU122: 0 | BV122: 0 | BW122: 0 | BX122: 0 | BY122: 0 | BZ122: 0 | CA122: 0 | CB122: 0 | CC122: 0 | CD122: 0 | CE122: 0 | CF122: 0 | CG122: 0 | CH122: 0 | CI122: 0 | CJ122: 0 | CK122: 0 | CL122: 0 | CM122: 0 | CN122: 0 | CO122: 0 | CP122: 0 | CQ122: 0 | CR122: 0 | CS122: 0 | CT122: 0 | CU122: 0 | CV122: 0 | CW122: 0 | CX122: 0 | CY122: 0 | CZ122: 0 | DA122: 0 | DB122: =DB100+DB101+DB105+DB106+DB109 -> 0 | DC122: 0
E123: Dégradation du C actif par rapport à l'année n-1 | F123: =E125*$F$135 ->  | AL123: =AK125*$F$135 ->  | BR123: =BQ125*$F$135 ->  | DB123: =DA125*$F$135 ->  | DC123: =DB125*$F$135 -> 
E124: Différence apport - dégradation | F124: =F122-F123 ->  | AL124: =AL122-AL123 ->  | BR124: =BR122-BR123 ->  | CX124: =CX122-CX123 ->  | CY124: =CY122-CY123 ->  | CZ124: =CZ122-CZ123 ->  | DA124: =DA122-DA123 ->  | DB124: =DB122-DB123 -> 
D125: Cactive | E125: =E127-E126 -> 17.5 | F125: =E125+F122-F123 ->  | AL125: =AK125+AL122-AL123 ->  | BR125: =BQ125+BR122-BR123 ->  | DB125: =DA125+DB122-DB123 ->  | DC125: =DB125+DC122-DC123 -> 
D126: Cstable | E126: =E127*R148 -> 32.5 | F126: =E126 -> 32.5 | G126: 32.5 | H126: 32.5 | I126: 32.5 | J126: 32.5 | K126: 32.5 | L126: 32.5 | M126: 32.5 | N126: 32.5 | O126: 32.5 | P126: 32.5 | Q126: 32.5 | R126: 32.5 | S126: 32.5 | T126: 32.5 | U126: 32.5 | V126: 32.5 | W126: 32.5 | X126: 32.5 | Y126: 32.5 | Z126: 32.5 | AA126: 32.5 | AB126: 32.5 | AC126: 32.5 | AD126: 32.5 | AE126: 32.5 | AF126: 32.5 | AG126: 32.5 | AH126: 32.5 | AI126: 32.5 | AJ126: 32.5 | AK126: 32.5 | AL126: =AK126 -> 32.5 | AM126: 32.5 | AN126: 32.5 | AO126: 32.5 | AP126: 32.5 | AQ126: 32.5 | AR126: 32.5 | AS126: 32.5 | AT126: 32.5 | AU126: 32.5 | AV126: 32.5 | AW126: 32.5 | AX126: 32.5 | AY126: 32.5 | AZ126: 32.5 | BA126: 32.5 | BB126: 32.5 | BC126: 32.5 | BD126: 32.5 | BE126: 32.5 | BF126: 32.5 | BG126: 32.5 | BH126: 32.5 | BI126: 32.5 | BJ126: 32.5 | BK126: 32.5 | BL126: 32.5 | BM126: 32.5 | BN126: 32.5 | BO126: 32.5 | BP126: 32.5 | BQ126: 32.5 | BR126: =BQ126 -> 32.5 | BS126: 32.5 | BT126: 32.5 | BU126: 32.5 | BV126: 32.5 | BW126: 32.5 | BX126: 32.5 | BY126: 32.5 | BZ126: 32.5 | CA126: 32.5 | CB126: 32.5 | CC126: 32.5 | CD126: 32.5 | CE126: 32.5 | CF126: 32.5 | CG126: 32.5 | CH126: 32.5 | CI126: 32.5 | CJ126: 32.5 | CK126: 32.5 | CL126: 32.5 | CM126: 32.5 | CN126: 32.5 | CO126: 32.5 | CP126: 32.5 | CQ126: 32.5 | CR126: 32.5 | CS126: 32.5 | CT126: 32.5 | CU126: 32.5 | CV126: 32.5 | CW126: 32.5 | CX126: 32.5 | CY126: 32.5 | CZ126: 32.5 | DA126: 32.5 | DB126: =DA126 -> 32.5 | DC126: =DB126 -> 32.5
D127: SOC total avec méthanisation | E127: =E121 -> 50 | F127: =F126+F125 ->  | AL127: =AL126+AL125 ->  | BR127: =BR126+BR125 ->  | CX127: =CX126+CX125 ->  | CY127: =CY126+CY125 ->  | CZ127: =CZ126+CZ125 ->  | DA127: =DA126+DA125 ->  | DB127: =DB126+DB125 -> 
B129: SOC stocks increase | F129: Variation du SOC t C / ha / an | G129: Variation du SOC kg C / ha / an | H129: Equivalence CO2 kg CO2 / ha / an
B130: à horizon 20 ans | F130: =(AVERAGE(W127:AA127)-AVERAGE(W121:AA121))/R142 ->  | G130: =F130*1000 ->  | H130: =G130/12*44 ->  | I130: =F130/E121*1000 ->  | J130: relatif pour 1000 par an
B131: à horizon 30 ans | F131: =(AVERAGE(AG127:AK127)-AVERAGE(AG121:AK121))/R143 ->  | G131: =F131*1000 ->  | H131: =G131/12*44 ->  | I131: =F131/E121*1000 ->  | J131: relatif pour 1000 par an
B132: à horizon 100 ans | F132: =(AVERAGE(CY127:DC127)-AVERAGE(CY121:DC121))/R144 ->  | G132: =F132*1000 ->  | H132: =G132/12*44 ->  | I132: =F132/E121*1000 ->  | J132: relatif pour 1000 par an
B134: Fonctions de l'environnements et paramètres | E134: k0 | F134: 0.29
E135: k | F135: =F134*F139*F148*F156*F162*F168*F175 ->  | I135: Plus k est grand, plus la dégradation est grande, plus SOC diminue rapidement
E139: f(T) | F139: =F143/(1+F144*EXP(-F145*F142)) -> 0.1710085286 | Q139: Cas numéro | R139: 1
Q140: Réduction du rendement de la culture suivante | R140: 4 | S140: % par t MS/ha/an au dessus de 5tMS/ha/an
R141: évalutation
E142: T | F142: =X163 -> 0 | Q142: Nombre d'année | R142: 20 | S142: ans | AB142: 6 et 8 : pas assez de stockage
E143: aT | F143: 25 | Q143: Nombre d'année | R143: 30 | S143: ans | AB143: 13 : un peu trop de stockage
E144: bT | F144: =(F143-1)*EXP(F145*F146) -> 145.1915391 | Q144: Nombre d'année | R144: 100 | S144: ans
E145: cT | F145: 0.12
E146: Tref | F146: 15 | Q146: Depth | R146: 25 | S146: modifiable ?
Q147: Ctot initial | R147: 50 | S147: tC/ha
E148: f(H) | F148: =1/(1+F153*EXP(-F154*(F150+F152-F151)/1000)) -> 0.9708737864 | Q148: % C stable | R148: 0.65
E150: P | F150: =Y163 -> 0
E151: PET | F151: =Z163 -> 0
E152: IW (irrigation water) | F152: =AA163 -> 0
E153: aH | F153: 0.03
E154: bH | F154: 5.247
Q155: Typically, an energy cover crop yield of 7 t DM ha−1 (with 20% DM content) corresponded approximately to a digestate application of 35 m3 ha−1 once in the rotation
E156: f(A) | F156: =EXP(-F159*F158/100*1000) -> 
V157: Si plusieurs CIVE dans une rotation ?
E158: A | F158: =T163 ->  | G158: % | AB158: Moutarde par défaut --> CIMS ? Rendement plus élevé ?
E159: 2 | F159: 0.002519 | G159: g/kg | Q159: Cas | R159: 2 | T159: Culture suivant la CIVE | U159: Rendement (t DM/ha/an) | V159: Année de la CIVE et de la culture suivante dans la rotation | W159: Durée totale de la rotation en année | Z159: Type de CIVE | AA159: Rendement de la CIVE (t DM/ha/an) | AB159: Sans méthanitasion | AC159: Rendement de la CIVE (t DM/ha/an)
T160: =VLOOKUP($R$159,$E$185:$X$693,19,FALSE) ->  | U160: =VLOOKUP($R$159,$E$185:$X$693,20,FALSE) -> 0 | V160: =VLOOKUP($R$159,$E$185:$X$693,15,FALSE) -> 0 | W160: =VLOOKUP($R$159,$E$185:$X$693,16,FALSE) -> 0 | Z160: =VLOOKUP($R$159,$E$185:$X$693,13,FALSE) -> 0 | AA160: =VLOOKUP($R$159,$E$185:$X$693,14,FALSE) -> 0 | AB160: =VLOOKUP($R$159,$E$185:$X$693,11,FALSE) ->  | AC160: =VLOOKUP($R$159,$E$185:$X$693,12,FALSE) -> 
E162: f(CaCO3) | F162: =1/(1+F165*F164/100*1000) ->  | H162: j'ai multiplié par *0,21 pour cas 6 et c'est ok. Mais pas pour les autres cas… | T162: Clay (%) | U162: CaCO3 (%) | V162: pH | W162: C:N | X162: T | Y162: Rainfall (mm) | Z162: PET (mm) | AA162: IW (total irrigation water over the rotation)
T163: =VLOOKUP($R$159,$E$185:$M$693,3,FALSE) ->  | U163: =VLOOKUP($R$159,$E$185:$M$693,4,FALSE) ->  | V163: =VLOOKUP($R$159,$E$185:$M$693,5,FALSE) -> 0 | W163: =VLOOKUP($R$159,$E$185:$M$693,6,FALSE) ->  | X163: =VLOOKUP($R$159,$E$185:$M$693,7,FALSE) -> 0 | Y163: =VLOOKUP($R$159,$E$185:$M$693,8,FALSE) -> 0 | Z163: =VLOOKUP($R$159,$E$185:$M$693,9,FALSE) -> 0 | AA163: =VLOOKUP($R$159,$E185:$N$693,10,FALSE) -> 0
E164: CaCO3 | F164: =U163 ->  | G164: %
E165: cm | F165: 0.0015 | G165: g/kg
E168: f(pH) | F168: =EXP(-F172*(F171-F173)*(F171-F173)) -> 0.0003059771904 | T168: HI harvest index | U168: SRR shoot:root ratio | V168: beta (a crop-specific parameter related to root distributions) | W168: Hag humification coefficient of aboveground residues | X168: Hbg the humification coefficient of belowground residues is equal to 0.4 for all crops | AB168: Table S2 Soil characteristics of the first layer (0-25 cm) used in AMG for the different case study
Q169: Blé d'hiver | R169: Winter wheat | S169: Primary crop | T169: 0.49 | U169: 6.84 | V169: 0.96 | W169: 0.22 | X169: 0.4 | AB169: Type de sol | AC169: Clay (%) | AD169: CaCO3 (%) | AE169: pH | AF169: C:N
Q170: Orge d'hiver | R170: Winter barley | S170: Primary crop | T170: 0.51 | U170: 9.45 | V170: 0.94 | W170: 0.22 | X170: 0.4 | AB170: Sable limoneux | AC170: 9 | AD170: 0.5 | AF170: 10
E171: pH | F171: =V163 -> 0 | Q171: Colza | R171: Rapeseed | S171: Primary crop | T171: 0.25 | U171: 4.9 | V171: 0.92 | W171: 0.23 | X171: 0.4 | AB171: Sable crayeux | AC171: 10 | AD171: 25 | AF171: 10
E172: apH | F172: 0.112 | Q172: Betterave | R172: Sugar beet | S172: Primary crop | T172: 0.78 | U172: 55.97 | V172: 0.95 | W172: 0.32 | X172: 0.4 | AB172: Limon sableux | AC172: 14 | AD172: 0.5 | AF172: 10
E173: bpH | F173: 8.5 | Q173: Soja | R173: Soybean | S173: Primary crop | T173: 0.32 | U173: 5.19 | V173: 0.94 | W173: 0.28 | X173: 0.4 | AB173: Limon moyen | AC173: 16.5 | AD173: 0.5 | AF173: 10
Q174: Maïs grain | R174: Grain maize | S174: Primary crop | T174: 0.54 | U174: 5.6 | V174: 0.95 | W174: 0.23 | X174: 0.4 | AB174: Limon argileux | AC174: 22.5 | AD174: 0.5 | AF174: 10
E175: f(C/N) | F175: =0.8*EXP(-F178*(F177-F179)*(F177-F179))+0.2 ->  | Q175: Tournesol | R175: Sunflower | S175: Primary crop | T175: 0.33 | U175: 5.66 | V175: 0.93 | W175: 0.25 | X175: 0.4 | AB175: Argile sableuse | AC175: 30 | AD175: 0.5 | AF175: 10
Q176: Moutarde blanche | R176: Mustard | S176: Primary crop | T176: 0 | U176: 5.66 | V176: 0.93 | W176: 0.31 | X176: 0.4 | AB176: Argile limoneuse | AC176: 35 | AD176: 0.5 | AF176: 10
E177: C/N | F177: =W163 ->  | P177: (ensilage céréal immature) | Q177: CIVE d'hiver | R177: Silage winter cereals | S177: Winter energy cover crop | T177: 0.9 | U177: 6 | V177: 0.94 | W177: 0.31 | X177: 0.4 | AB177: Argile lourde | AC177: 40 | AD177: 0.5 | AF177: 10
E178: aCN | F178: 0.06 | P178: (ensilage de maïs) | Q178: CIVE d'été | R178: Silage maize | S178: Summer energy cover crop | T178: 0.9 | U178: 5.6 | V178: 0.95 | W178: 0.23 | X178: 0.4 | AB178: Cranette | AC178: 11 | AD178: 60 | AF178: 10
E179: bCN | F179: 11 | Q179: Culture dédiée | AB179: Limon crayeux | AC179: 13.5 | AD179: 45 | AF179: 10
Q180: CIPAN | AB180: Argilo-calcaire | AC180: 32 | AD180: 40 | AF180: 10
Q181: Sol nu
F183: Table S2 Soil characteristics of the first layer (0-25 cm) used in AMG for the different case study | K183: Table S1: Climate characteristics of thecase studiesfor the reference period (1981-2010) | O183: Production agricole | AA183: Estimation du stockage potentiel
B184: https://www6.hautsdefrance.inrae.fr/agroimpact/Nos-dispositifs-outils/Modeles-et-outils-d-aide-a-la-decision/AMG-et-SIMEOS-AMG/AMG-model-description | D184: Substrat CIVE numéro | E184: Numéro du cas CIVE (pour l'incrémentation) | F184: Type | G184: Clay (%) | H184: CaCO3 (%) | I184: pH | J184: C:N | K184: Temperature (°C) | L184: Rainfall (mm) | M184: PET (mm) | N184: Irrigation (mm) | O184: Sans métha CC | P184: t DM / ha | Q184: Avec métha CC | R184: Rendement CIVE t DM / ha | S184: Place de la culture suivant la CC | T184: Nombre de culture | U184: Nombre d'insertion de CC sur 30 ans | V184: Cultures principaless suivantes | W184: Primary crop following the CC | X184: Crop grain (or root for sugarbeet) yields (tDMha-1) of the primarycrops used in AMG | Y184: Nombre d'insertion de CC sur 100 ans | AA184: tC / ha / an à 20 ans | AB184: kg CO2 eq / ha / an à 20 ans | AC184: tC / ha / an à 30 ans | AD184: kg CO2 eq / ha / an à 30 ans | AE184: tC / ha / an à 100 ans | AF184: kg CO2 eq / ha / an à 100 ans
B185: https://www6.hautsdefrance.inrae.fr/agroimpact/content/download/3760/36367/version/1/file/AMG_detailed_model_description.pdf | D185: Substrat 4 | E185: 1 | F185: =_xlfn.XLOOKUP(D185,'Description des substrats'!$D$20:$D$22,'Description des substrats'!$J$20:$J$22,0) -> 0 | G185: =VLOOKUP(F185,$AB$170:$AF$180,2,FALSE) ->  | H185: =VLOOKUP(F185,$AB$170:$AF$180,3,FALSE) ->  | I185: =_xlfn.XLOOKUP(D185,'Description des substrats'!$D$20:$D$22,'Description des substrats'!$K$20:$K$22,0) -> 0 | J185: =VLOOKUP(F185,$AB$170:$AF$180,5,FALSE) ->  | K185: =_xlfn.XLOOKUP(D185,'Description des substrats'!$D$20:$D$22,'Description des substrats'!$L$20:$L$22,0) -> 0 | L185: =_xlfn.XLOOKUP(D185,'Description des substrats'!$D$20:$D$22,'Description des substrats'!$M$20:$M$22,0) -> 0 | M185: =_xlfn.XLOOKUP(D185,'Description des substrats'!$D$20:$D$22,'Description des substrats'!$N$20:$N$22,0) -> 0 | N185: =_xlfn.XLOOKUP(D185,'Description des substrats'!$D$20:$D$22,'Description des substrats'!$O$20:$O$22,0) -> 0 | O185: =IF(_xlfn.XLOOKUP(D185,'Description des substrats'!$D$20:$D$22,'Description des substrats'!$I$20:$I$22,0)="CIPAN","Mustard","") ->  | P185: =IF(O185="Mustard",2,"") ->  | Q185: =_xlfn.XLOOKUP(D185,'Données projet substrat'!$B$6:$B$306, 'Données projet substrat'!$D$6:$D$306,0) -> 0 | R185: =_xlfn.XLOOKUP(D185,'Description des substrats'!$D$17:$D$20,'Description des substrats'!$G$17:$G$20,0) -> 0 | S185: =_xlfn.XLOOKUP(D185,'Description des substrats'!$D$20:$D$22,'Description des substrats'!$Q$20:$Q$22,0) -> 0 | T185: =_xlfn.XLOOKUP(D185,'Description des substrats'!$D$20:$D$22,'Description des substrats'!$P$20:$P$22,0) -> 0 | U185: =30/T185 ->  | V185: =_xlfn.XLOOKUP(D185,'Description des substrats'!$D$20:$D$22,'Description des substrats'!$R$20:$R$22,0) -> 0 | W185: =VLOOKUP(V185,$Q$168:$R$174,2,FALSE) ->  | X185: =_xlfn.XLOOKUP(D185,'Description des substrats'!$D$20:$D$22,'Description des substrats'!$S$20:$S$22,0) -> 0 | Y185: =100/T185 ->  | AA185: 0 | AB185: =IFERROR(-AA185/12*44*1000,0) -> 0 | AC185: 0 | AD185: =IFERROR(-AC185/12*44*1000,0) -> 0 | AE185: 0 | AF185: =IFERROR(-AE185/12*44*1000,0) -> 0 | AG185: =IFERROR(-AF185/12*44*1000,0) -> 0
B186: https://www6.hautsdefrance.inrae.fr/agroimpact/content/download/3760/36367/version/1/file/AMG_detailed_model_description.pdf | D186: Substrat 5 | E186: 2 | F186: =_xlfn.XLOOKUP(D186,'Description des substrats'!$D$20:$D$22,'Description des substrats'!$J$20:$J$22,0) -> 0 | G186: =VLOOKUP(F186,$AB$170:$AF$180,2,FALSE) ->  | H186: =VLOOKUP(F186,$AB$170:$AF$180,3,FALSE) ->  | I186: =_xlfn.XLOOKUP(D186,'Description des substrats'!$D$20:$D$22,'Description des substrats'!$K$20:$K$22,0) -> 0 | J186: =VLOOKUP(F186,$AB$170:$AF$180,5,FALSE) ->  | K186: =_xlfn.XLOOKUP(D186,'Description des substrats'!$D$20:$D$22,'Description des substrats'!$L$20:$L$22,0) -> 0 | L186: =_xlfn.XLOOKUP(D186,'Description des substrats'!$D$20:$D$22,'Description des substrats'!$M$20:$M$22,0) -> 0 | M186: =_xlfn.XLOOKUP(D186,'Description des substrats'!$D$20:$D$22,'Description des substrats'!$N$20:$N$22,0) -> 0 | N186: =_xlfn.XLOOKUP(D186,'Description des substrats'!$D$20:$D$22,'Description des substrats'!$O$20:$O$22,0) -> 0 | O186: =IF(_xlfn.XLOOKUP(D186,'Description des substrats'!$D$20:$D$22,'Description des substrats'!$I$20:$I$22,0)="CIPAN","Mustard","") ->  | P186: =IF(O186="Mustard",2,"") ->  | Q186: =_xlfn.XLOOKUP(D186,'Données projet substrat'!$B$6:$B$305, 'Données projet substrat'!$D$6:$D$305,0) -> 0 | R186: =_xlfn.XLOOKUP(D186,'Description des substrats'!$D$17:$D$20,'Description des substrats'!$G$17:$G$20,0) -> 0 | S186: =_xlfn.XLOOKUP(D186,'Description des substrats'!$D$20:$D$22,'Description des substrats'!$Q$20:$Q$22,0) -> 0 | T186: =_xlfn.XLOOKUP(D186,'Description des substrats'!$D$20:$D$22,'Description des substrats'!$P$20:$P$22,0) -> 0 | U186: =30/T186 ->  | V186: =_xlfn.XLOOKUP(D186,'Description des substrats'!$D$20:$D$22,'Description des substrats'!$R$20:$R$22,0) -> 0 | W186: =VLOOKUP(V186,$Q$168:$R$174,2,FALSE) ->  | X186: =_xlfn.XLOOKUP(D186,'Description des substrats'!$D$20:$D$22,'Description des substrats'!$S$20:$S$22,0) -> 0 | Y186: =100/T186 ->  | AA186: 0 | AB186: =IFERROR(-AA186/12*44*1000,0) -> 0 | AC186: 0 | AD186: =IFERROR(-AC186/12*44*1000,0) -> 0 | AE186: 0 | AF186: =IFERROR(-AE186/12*44*1000,0) -> 0 | AG186: =IFERROR(-AF186/12*44*1000,0) -> 0

Sheet Calculs fonctionnement (hidden)
A1: Calculs de fonctionnement
A3: 1. Caractérisation du mélange de substrat/ du digestat | I3: si séparation
B4: Entrée Digesteur | C4: Teneur Entrée Digesteur (kg/t MB) | D4: Sortie Digesteur (brut) | E4: Teneur Sortie Digesteur (kg/t MB) | F4: Evolution de la composition en absolue | G4: Taux de capture en phase solide | H4: Part du digestat brut non séparé (avant recirculation) | I4: Envoi digestat brut en séparation | J4: Digestat phase liquide avant recirculation | K4: Phase liquide recirculée | L4: Entrée stockage digestat brut avec recirculation | M4: Entrée stockage digestat phase liquide | N4: Entrée stockage digestat phase solide | P4: Sortie stockage digestat phase brut pour épandage | Q4: Sortie stockage digestat phase liquide pour épandage | R4: Sortie stockage digestat phase solide pour épandage | U4: Epandage digestat phase brut | V4: Epandage digestat phase liquide | W4: Epandage digestat phase solide | Y4: Mineral Fertilizer Equivalent | Z4: Digestat épandu phase brut | AA4: Digestat épandu phase liquide | AB4: Digestat épandu phase solide
A5: MB (t) | B5: ='Données projet substrat'!G4 -> 0.0 | C5: / | D5: ='Données projet substrat'!BA4 -> 0.00 | E5: / | F5: =(D5-B5)/B5 ->  | G5: =IF('Données projet'!B87="centrifugeuse",'BDD modélisation ICV'!B82,IF('Données projet'!B87="presse à vis",'BDD modélisation ICV'!C82,0)) -> 0% | H5: =D5*(1-'Données projet'!B$88) -> 0.00 | I5: =IF(G5=0,0,D5-H5) -> 0.00 | J5: =IF(G5=0,0,((1-G5)*I5)) -> 0.00 | K5: =IF(G5=0,0,J5*'Données projet'!$B$89) -> 0.00 | L5: =IF(G5=0,H5,H5+K5) -> 0.00 | M5: =IF(G5=0,0,J5-K5) -> 0.00 | N5: =IF(G5=0,0,(G5*I5)) -> 0.00 | O5: MB (t) | P5: =L5-(L6-P6) -> 0.00 | Q5: =M5-(M6-Q6) -> 0.00 | R5: =N5-(N6-R6) -> 0.00 | T5: Ntot (kg) | U5: =P8 -> 0.00 | V5: =Q8 -> 0.00 | W5: 0.00
A6: MS (t) | B6: ='Données projet substrat'!V4 -> 0.0 | C6: =B6*1000/$B$5 ->  | D6: ='Données projet substrat'!W4 -> 0.00 | E6: =D6*1000/$D$5 ->  | F6: =(D6-B6)/B6 ->  | G6: =IF('Données projet'!B87="centrifugeuse",'BDD modélisation ICV'!B83,IF('Données projet'!B87="presse à vis",'BDD modélisation ICV'!C83,0)) -> 0% | H6: =D6*(1-'Données projet'!B$88) -> 0.00 | I6: =IF(G6=0,0,D6-H6) -> 0.00 | J6: =IF(G6=0,0,((1-G6)*I6)) -> 0.00 | K6: =IF(G6=0,0,J6*'Données projet'!$B$89) -> 0.00 | L6: =IF(G6=0,H6,H6+K6) -> 0.00 | M6: =IF(G6=0,0,J6-K6) -> 0.00 | N6: =IF(G6=0,0,(G6*I6)) -> 0.00 | O6: MS (t) | P6: =L6*(1-'BDD modélisation ICV'!B93) -> 0 | Q6: =M6*(1-'BDD modélisation ICV'!C93) -> 0 | R6: =N6*(1-'BDD modélisation ICV'!D93) -> 0 | T6: NH4+ (kg) | U6: 0 | V6: 0 | W6: 0 | Y6: N-NH4+ (kg) | Z6: =U6/18*14 -> 0 | AA6: =V6/18*14 -> 0 | AB6: =W6/18*14 -> 0
A7: MO (t) | B7: ='Données projet substrat'!X4 -> 0.0 | C7: =B7*1000/$B$5 ->  | D7: ='Données projet substrat'!Y4 -> 0.00 | E7: =D7*1000/$D$5 ->  | F7: =(D7-B7)/B7 ->  | G7: =IF('Données projet'!B87="centrifugeuse",'BDD modélisation ICV'!B84,IF('Données projet'!B87="presse à vis",'BDD modélisation ICV'!C84,0)) -> 0% | H7: =D7*(1-'Données projet'!B$88) -> 0.00 | I7: 0.00 | J7: 0.00 | K7: =IF(G7=0,0,J7*'Données projet'!$B$89) -> 0.00 | L7: =IF(G7=0,H7,H7+K7) -> 0.00 | M7: 0.00 | N7: 0.00 | O7: MO (t) | P7: =L7*(1-'BDD modélisation ICV'!B94) -> 0 | Q7: =M7*(1-'BDD modélisation ICV'!C94) -> 0 | R7: =N7*(1-'BDD modélisation ICV'!D94) -> 0 | T7: Norg (kg) | U7: 0 | V7: 0 | W7: 0 | Y7: Norg-mineralisé (kg) | Z7: =U7*'BDD modélisation ICV'!B126 -> 0.00 | AA7: =V7*'BDD modélisation ICV'!C126 -> 0.00 | AB7: =W7*'BDD modélisation ICV'!D126 -> 0.00
A8: Ntot (kg) | B8: ='Données projet substrat'!AR4 -> 0.0 | C8: =B8/$B$5 ->  | D8: =B8 -> 0.00 | E8: =D8/$D$5 ->  | F8: =(D8-B8)/B8 ->  | I8: =I9+I10 -> 0.00 | J8: 0.00 | K8: =K9+K10 -> 0.00 | L8: 0.00 | M8: 0.00 | N8: 0.00 | O8: Ntot (kg) | P8: =P9+P10 -> 0.00 | Q8: =Q9+Q10 -> 0.00 | R8: =R9+R10 -> 0.00 | T8: NH4+ (kg)/N tot | U8: =IFERROR(P9/P8,0) -> 0 | V8: =IFERROR(Q9/Q8,0) -> 0 | W8: =IFERROR(R9/R8,0) -> 0 | Y8: N-pertes emissions (kg) | Z8: =U11+U12+U15+U18 -> 0 | AA8: =V11+V12+V15+V18 -> 0 | AB8: =W11+W12+W15+W18 -> 0
A9: NH4+ (kg) | B9: ='Données projet substrat'!AS4 -> 0.0 | D9: ='Données projet substrat'!AT4*1000 -> 0.00 | G9: =IF('Données projet'!B87="centrifugeuse",'BDD modélisation ICV'!B86,IF('Données projet'!B87="presse à vis",'BDD modélisation ICV'!C86,0)) -> 0% | H9: =D9*(1-'Données projet'!B$88) -> 0.00 | I9: 0.00 | J9: 0.00 | K9: =IF(G9=0,0,J9*'Données projet'!$B$89) -> 0.00 | L9: =IF(G9=0,H9,H9+K9) -> 0.00 | M9: 0.00 | N9: 0.00 | O9: NH4+ (kg) | P9: =L9*(1-'BDD modélisation ICV'!B96)-L16*18/14 -> 0 | Q9: =M9*(1-'BDD modélisation ICV'!C96)-M16*18/14 -> 0 | R9: =N9*(1-'BDD modélisation ICV'!D96)*18/14 -> 0 | T9: Emissions de N_NH3 avant abattement | U9: =U6*'BDD modélisation ICV'!B107/18*14 -> 0 | V9: =V6*'BDD modélisation ICV'!C107/18*14 -> 0 | W9: =W6*'BDD modélisation ICV'!D107/18*14 -> 0
A10: Norg (kg) | B10: =B8-B9 -> 0.0 | D10: =D8-D9 -> 0.0 | G10: =IF('Données projet'!B87="centrifugeuse",'BDD modélisation ICV'!B85,IF('Données projet'!B87="presse à vis",'BDD modélisation ICV'!C85,0)) -> 0% | H10: =D10*(1-'Données projet'!B$88) -> 0.00 | I10: 0.00 | J10: 0.00 | K10: =IF(G10=0,0,J10*'Données projet'!$B$89) -> 0.00 | L10: =IF(G10=0,H10,H10+K10) -> 0.00 | M10: 0.00 | N10: 0.00 | O10: Norg (kg) | P10: =L10*(1-'BDD modélisation ICV'!B95)-L18/44*28 -> 0 | Q10: =M10*(1-'BDD modélisation ICV'!C95)-M18/44*28 -> 0 | R10: =N10*(1-'BDD modélisation ICV'!D95)-N18/44*28 -> 0 | T10: Facteur d'abatemment | U10: =_xlfn.XLOOKUP('Données projet'!B93,'BDD modélisation ICV'!A118:A121,'BDD modélisation ICV'!B118:B121,0) -> 0 | V10: =VLOOKUP('Données projet'!B94,'BDD modélisation ICV'!A118:B121,2,0) -> 0 | W10: =VLOOKUP('Données projet'!B95,'BDD modélisation ICV'!D118:E121,2,FALSE) -> 0
A11: P2O5 (kg) | B11: ='Données projet substrat'!AU4 -> 0.0 | D11: ='Données projet substrat'!AU4 -> 0.00 | G11: =IF('Données projet'!B87="centrifugeuse",'BDD modélisation ICV'!B87,IF('Données projet'!B87="presse à vis",'BDD modélisation ICV'!C87,0)) -> 0% | H11: =D11*(1-'Données projet'!B$88) -> 0.00 | I11: 0.00 | J11: 0.00 | K11: =IF(G11=0,0,J11*'Données projet'!$B$89) -> 0.00 | L11: =IF(G11=0,H11,H11+K11) -> 0.00 | M11: 0.00 | N11: 0.00 | O11: P2O5 (kg) | P11: =L11 -> 0.00 | Q11: 0.00 | R11: 0.00 | T11: Emissions de N_NH3 après abattement | U11: =U9*(1-U10) -> 0 | V11: =V9*(1-V10) -> 0 | W11: =W9*(1-W10) -> 0 | Y11: N-assimilable (kg) / Ntot (kg) | Z11: =IFERROR(Z14/U5,0) -> 0 | AA11: =IFERROR(AA14/V5,0) -> 0 | AB11: =IFERROR(AB14/W5,0) -> 0
A12: K2O (kg) | B12: ='Données projet substrat'!AV4 -> 0.0 | D12: ='Données projet substrat'!AV4 -> 0.00 | F12: =(D12-B12)/B12 ->  | G12: =IF('Données projet'!B87="centrifugeuse",'BDD modélisation ICV'!B88,IF('Données projet'!B87="presse à vis",'BDD modélisation ICV'!C88,0)) -> 0% | H12: =D12*(1-'Données projet'!B$88) -> 0.00 | I12: 0.00 | J12: 0.00 | K12: =IF(G12=0,0,J12*'Données projet'!$B$89) -> 0.00 | L12: =IF(G12=0,H12,H12+K12) -> 0.00 | M12: 0.00 | N12: 0.00 | O12: K2O (kg) | P12: 0.00 | Q12: 0.00 | R12: 0.00 | T12: Emissions de N-Nox | U12: =(U5-U11)*'BDD modélisation ICV'!B108 -> 0 | V12: =(V5-V11)*'BDD modélisation ICV'!C108 -> 0 | W12: =(W5-W11)*'BDD modélisation ICV'!D108 -> 0
A13: C (kg) | B13: ='Données projet substrat'!AW4 -> 0.0 | D13: ='Données projet substrat'!AZ4*1000 -> 0.00 | F13: =(D13-B13)/B13 ->  | G13: =G7 -> 0% | H13: =D13*(1-'Données projet'!B$88) -> 0.00 | I13: 0.00 | J13: 0.00 | K13: =IF(G13=0,0,J13*'Données projet'!$B$89) -> 0.00 | L13: =IF(G13=0,H13,H13+K13) -> 0.00 | M13: 0.00 | N13: 0.00 | O13: C (kg) | P13: =L13*(1-'BDD modélisation ICV'!B97) -> 0 | Q13: =M13*(1-'BDD modélisation ICV'!C97) -> 0 | R13: =N13*(1-'BDD modélisation ICV'!D97) -> 0 | T13: Emissions de N2O indirect (via NH3 et Nox) | U13: =(U11+U12)*'BDD modélisation ICV'!B110 -> 0 | V13: =(V11+V12)*'BDD modélisation ICV'!C110 -> 0 | W13: =(W11+W12)*'BDD modélisation ICV'!D110 -> 0
K14: Emissions de CH4 | L14: =IF('Données projet'!B91="couvert avec récupération du biogaz",0,(L13-P13)*'BDD modélisation ICV'!B101/12*16) -> 0 | M14: =IF('Données projet'!B90="couvert avec récupération du biogaz",0,(M13-Q13)*'BDD modélisation ICV'!C101/12*16) -> 0 | N14: =(N13-R13)*'BDD modélisation ICV'!D101/12*16 -> 0 | Y14: MFE - N (kg) | Z14: =Z6+Z7-Z8 -> 0.00 | AA14: =AA6+AA7-AA8 -> 0.00 | AB14: =AB6+AB7-AB8 -> 0.00
K15: Emissions de CO2 | L15: =(L13-P13)*(1-'BDD modélisation ICV'!B101)/12*44 -> 0 | M15: =(M13-Q13)*(1-'BDD modélisation ICV'!C101)/12*44 -> 0 | N15: =(N13-R13)*(1-'BDD modélisation ICV'!D101)/12*44 -> 0 | T15: Lessivage de N-NO3- | U15: =(U5)*'BDD modélisation ICV'!B111 -> 0 | V15: =(V5)*'BDD modélisation ICV'!C111 -> 0 | W15: =(W5)*'BDD modélisation ICV'!D111 -> 0 | Y15: MFE - P2O5 (kg) | Z15: =P11*0.95 -> 0.00 | AA15: =Q11*0.95 -> 0.00 | AB15: =R11*0.95 -> 0.00
K16: Emissions de N_NH3 | L16: =IF(OR('Données projet'!B91="couvert avec récupération du biogaz",'Données projet'!B91="couvert"),L9*'BDD modélisation ICV'!B102/18*14*0.3,L9*'BDD modélisation ICV'!B102/18*14) -> 0 | M16: =IF(OR('Données projet'!B90="couvert avec récupération du biogaz",'Données projet'!B90="couvert"),M9*'BDD modélisation ICV'!C102/18*14*0.3,M9*'BDD modélisation ICV'!C102/18*14) -> 0 | N16: =(N9-R9)*'BDD modélisation ICV'!D102/18*14 -> 0.00 | O16: Débit de chantier d'épandage (h) | P16: =P5/'BDD modélisation ICV'!B122 -> 0 | Q16: =Q5/'BDD modélisation ICV'!B122 -> 0 | R16: =R5/'BDD modélisation ICV'!E122 -> 0 | T16: Emissions de N-N2O indirect (via NO3-) | U16: =U15*'BDD modélisation ICV'!B112 -> 0 | V16: =V15*'BDD modélisation ICV'!C112 -> 0 | W16: =W15*'BDD modélisation ICV'!D112 -> 0 | Y16: MFE - K2O (kg) | Z16: =P12 -> 0.00 | AA16: =Q12 -> 0.00 | AB16: =R12 -> 0.00
K17: Emissions de N2O (indirect) | L17: =(L16*0.01)/28*44 -> 0 | M17: =(M16*0.01)/28*44 -> 0 | N17: 0 | O17: L de diesel pour l'épandage | P17: =P16*'BDD ITK culture'!R14 -> 0 | Q17: =Q16*'BDD ITK culture'!R14 -> 0 | R17: =R16*'BDD ITK culture'!S14 -> 0
K18: Emissions de N2O (direct) | L18: =IF(OR('Données projet'!B91="couvert avec récupération du biogaz",'Données projet'!B91="couvert"),L9*'BDD modélisation ICV'!B103/28*44*0.3,L9*'BDD modélisation ICV'!B103/28*44) -> 0 | M18: =IF(OR('Données projet'!B91="couvert avec récupération du biogaz",'Données projet'!B91="couvert"),M9*'BDD modélisation ICV'!C103/28*44*0.3,M9*'BDD modélisation ICV'!C103/28*44) -> 0 | N18: =((N9-R9)*'BDD modélisation ICV'!D103)/28*44 -> 0 | O18: kg de diesel pour l'épandage | P18: =P17*'BDD modélisation ICV'!A135 -> 0 | Q18: =Q17*'BDD modélisation ICV'!A135 -> 0 | R18: =R17*'BDD modélisation ICV'!A135 -> 0 | T18: Emissions directes de N-N2O | U18: =U5*'BDD modélisation ICV'!B113 -> 0 | V18: =V5*'BDD modélisation ICV'!C113 -> 0 | W18: =W5*'BDD modélisation ICV'!D113 -> 0 | Y18: N-répartition entre les phases | Z18: =IFERROR(Z14/SUM($Z$14:$AB$14),0) -> 0 | AA18: =IFERROR(AA14/SUM($Z$14:$AB$14),0) -> 0 | AB18: =IFERROR(AB14/SUM($Z$14:$AB$14),0) -> 0
K19: kg eq CO2 20 ans | L19: =L14*FC_CH4B20+(L18+L17)*FC_N2O20 -> 0 | M19: =M14*FC_CH4B20+(M18+M17)*FC_N2O20 -> 0 | N19: =N14*FC_CH4B20+(N18+N17)*FC_N2O20 -> 0 | O19: kg eq CO2 20 ans | P19: =$P$18*('BDD export Ecoinvent - SIMAPRO'!D8+'BDD export Ecoinvent - SIMAPRO'!E8) -> 0 | Q19: =$Q$18*('BDD export Ecoinvent - SIMAPRO'!D8+'BDD export Ecoinvent - SIMAPRO'!E8) -> 0 | R19: =$R$18*('BDD export Ecoinvent - SIMAPRO'!D8+'BDD export Ecoinvent - SIMAPRO'!E8) -> 0 | Y19: N (kg) -digestat sur CIVES et cultures principales du système de méthanisation | Z19: ='Données projet substrat'!CD4 -> 0.00
K20: kg eq CO2 100 ans | L20: =L14*FC_CH4B100+(L17+L18)*FC_N2O100 -> 0 | M20: =M14*FC_CH4B100+(M17+M18)*FC_N2O100 -> 0 | N20: =N14*FC_CH4B100+(N17+N18)*FC_N2O100 -> 0 | O20: kg eq CO2 100 ans | P20: =$P$18*('BDD export Ecoinvent - SIMAPRO'!D9+'BDD export Ecoinvent - SIMAPRO'!E9) -> 0 | Q20: =$Q$18*('BDD export Ecoinvent - SIMAPRO'!D9+'BDD export Ecoinvent - SIMAPRO'!E9) -> 0 | R20: =$R$18*('BDD export Ecoinvent - SIMAPRO'!D9+'BDD export Ecoinvent - SIMAPRO'!E9) -> 0 | T20: Emissions totales de N-N2O | U20: =U13+U16+U18 -> 0 | V20: =V13+V16+V18 -> 0 | W20: =W13+W16+W18 -> 0
O21: Ressources fossiles et nucléaires (kWh eq) | P21: =$P$18*('BDD export Ecoinvent - SIMAPRO'!D10+'BDD export Ecoinvent - SIMAPRO'!E10) -> 0 | Q21: =$Q$18*('BDD export Ecoinvent - SIMAPRO'!D10+'BDD export Ecoinvent - SIMAPRO'!E10) -> 0 | R21: =$R$18*('BDD export Ecoinvent - SIMAPRO'!D10+'BDD export Ecoinvent - SIMAPRO'!E10) -> 0 | T21: kg eq CO2 20 ans | U21: =U20/28*44*FC_N2O20 -> 0 | V21: =V20/28*44*FC_N2O20 -> 0 | W21: =W20/28*44*FC_N2O20 -> 0 | Y21: N (kg) -digestat sur CIVES et cultures principales du système de méthanisation - répartition entre les phases produites par le système | Z21: =$Z$19*Z18 -> 0 | AA21: =$Z$19*AA18 -> 0 | AB21: =$Z$19*AB18 -> 0
K22: Emissions de N_N2O (direct) | L22: =IF(OR('Données projet'!B91="couvert avec récupération du biogaz",'Données projet'!B91="couvert"),L9*'BDD modélisation ICV'!B103*0.3,L9*'BDD modélisation ICV'!B103) -> 0 | M22: =IF(OR('Données projet'!B91="couvert avec récupération du biogaz",'Données projet'!B91="couvert"),M9*'BDD modélisation ICV'!C103*0.3,M9*'BDD modélisation ICV'!C103) -> 0 | N22: =((N9-R9)*'BDD modélisation ICV'!D103) -> 0 | T22: kg eq CO2 100 ans | U22: =U20/28*44*FC_N2O100 -> 0 | V22: =V20/28*44*FC_N2O100 -> 0 | W22: =W20/28*44*FC_N2O100 -> 0 | Y22: N (kg) - exporté | Z22: =IF(Z14-Z21<0,0,Z14-Z21) -> 0.00 | AA22: =IF(AA14-AA21<0,0,AA14-AA21) -> 0.00 | AB22: =IF(AB14-AB21<0,0,AB14-AB21) -> 0.00
B23: Cultures dédiées | C23: Cultures dédiées déclassées | D23: CIVE d'hiver | E23: CIVE d'été | Y23: P2O5 (kg) - exporté | Z23: =IFERROR(Z15*Z22/Z14,0) -> 0 | AA23: =IFERROR(AA15*AA22/AA14,0) -> 0 | AB23: =IFERROR(AB15*AB22/AB14,0) -> 0
A24: t de MS issu d'un ensilage | B24: =SUMIF('Données projet substrat'!D6:D1795,"Cultures principales",'Données projet substrat'!V6:V1795) -> 0 | C24: =SUMIF('Données projet substrat'!D6:D1795,"Cultures principales déclassées",'Données projet substrat'!V6:V1795) -> 0 | D24: =SUMIF('Données projet substrat'!D6:D1795,"CIVE d'hiver",'Données projet substrat'!V6:V1795) -> 0 | E24: =SUMIF('Données projet substrat'!D6:D1795,"CIVE d'été",'Données projet substrat'!V6:V1795) -> 0 | K24: kg CO2 biogénique | L24: =L15 -> 0 | M24: =M15 -> 0 | N24: =N15 -> 0 | T24: Sommes | Y24: K2O (kg) - exporté | Z24: =IFERROR(Z16*Z22/Z14,0) -> 0 | AA24: =IFERROR(AA16*AA22/AA14,0) -> 0 | AB24: =IFERROR(AB16*AB22/AB14,0) -> 0
A25: Emissions de CH4 | B25: =SUM(B24:C24)*1000*'BDD modélisation ICV'!E6/1000 -> 0 | D25: =SUM(D24:E24)*1000*'BDD modélisation ICV'!E6/1000 -> 0 | K25: Emissions de méthane rapportées à la production exprimée | T25: N_NH3 | U25: =SUM(L16:N16,U11:W11,U12:W12) -> 0
A26: Emissions de N2O (direct) | B26: =SUM(B24:C24)/1000*'BDD modélisation ICV'!F6*1000 -> 0 | D26: =SUM(D24:E24)/1000*'BDD modélisation ICV'!F6*1000 -> 0 | K26: =SUM(L26:N26) ->  | L26: =L14/($C$80*1000) ->  | M26: =M14/($C$80*1000) ->  | N26: =N14/($C$80*1000) ->  | T26: N_N20 direct | U26: =SUM(L22:N22)*28/44+SUM(U18:W18) -> 0
A27: kg eq CO2 20 ans | B27: =B25*FC_CH4B20+B26*FC_N2O20 -> 0 | D27: =D25*FC_CH4B20+D26*FC_N2O20 -> 0 | T27: N_NO3- | U27: =SUM(U15:W15) -> 0
A28: kg eq CO2 100 ans | B28: =B25*FC_CH4B100+B26*FC_N2O100 -> 0 | D28: =D25*FC_CH4B100+D26*FC_N2O100 -> 0 | L28: =IF(OR('Données projet'!B91="couvert avec récupération du biogaz",'Données projet'!B91="couvert"),L9*'BDD modélisation ICV'!B102/18*14*0.7,L9*'BDD modélisation ICV'!B102/18*14) -> 0 | M28: =IF(OR('Données projet'!B90="couvert avec récupération du biogaz",'Données projet'!B90="couvert"),M9*'BDD modélisation ICV'!C102/18*14*0.7,M9*'BDD modélisation ICV'!C102/18*14) -> 0 | U28: =SUM(U25:U27) -> 0
A31: 2. ITK
A32: Consommation tracteurs | B32: Cultures principales | C32: CIVES
A33: Consommation diesel (kg) | B33: =SUMIF('Données projet substrat'!D6:D1795,"Cultures principales",'Données projet substrat'!BQ6:BQ1795) -> 0.00 | C33: =SUMIF('Données projet substrat'!D6:D1795,"CIVE*",'Données projet substrat'!BQ6:BQ1795) -> 0.00
A34: kg eq CO2 20 ans | B34: =$B$33*('BDD export Ecoinvent - SIMAPRO'!D8+'BDD export Ecoinvent - SIMAPRO'!E8) -> 0.00 | C34: =$C$33*('BDD export Ecoinvent - SIMAPRO'!D8+'BDD export Ecoinvent - SIMAPRO'!E8) -> 0.00
A35: kg eq CO2 100 ans | B35: =$B$33*('BDD export Ecoinvent - SIMAPRO'!D9+'BDD export Ecoinvent - SIMAPRO'!E9) -> 0.00 | C35: =$C$33*('BDD export Ecoinvent - SIMAPRO'!D9+'BDD export Ecoinvent - SIMAPRO'!E9) -> 0.00
A36: Ressources fossiles et nucléaires (kWh eq) | B36: =B33*('BDD export Ecoinvent - SIMAPRO'!E10+'BDD export Ecoinvent - SIMAPRO'!D10) -> 0.00 | C36: =C33*('BDD export Ecoinvent - SIMAPRO'!E10+'BDD export Ecoinvent - SIMAPRO'!D10) -> 0.00
A37: Fertlisation minérale | B37: Cultures principales | C37: CIVES
A38: Fertilisation N (kg) | B38: =SUMIF('Données projet substrat'!D6:D1795,"Cultures principales",'Données projet substrat'!CB6:CB1795) -> 0.00 | C38: =SUMIF('Données projet substrat'!D6:D1795,"CIVE*",'Données projet substrat'!CB6:CB1795) -> 0.00
A39: Fertilisation K (kg) | B39: =SUMIF('Données projet substrat'!D6:D1795,"Cultures principales",'Données projet substrat'!CE6:CE1795) -> 0.00 | C39: =SUMIF('Données projet substrat'!D6:D1795,"CIVE*",'Données projet substrat'!CE6:CE1795) -> 0.00
A40: Fertilisation P (kg) | B40: =SUMIF('Données projet substrat'!D6:D1795,"Cultures principales",'Données projet substrat'!CF6:CF1795) -> 0.00 | C40: =SUMIF('Données projet substrat'!D6:D1795,"CIVE*",'Données projet substrat'!CF6:CF1795) -> 0.00
A41: kg eq CO2 20 ans | B41: =$B$38*('BDD export Ecoinvent - SIMAPRO'!G8+'BDD export Ecoinvent - SIMAPRO'!D49)+$B$39*'BDD export Ecoinvent - SIMAPRO'!I8+$B$40*'BDD export Ecoinvent - SIMAPRO'!H8 -> 0.00 | C41: =$C$38*('BDD export Ecoinvent - SIMAPRO'!G8+'BDD export Ecoinvent - SIMAPRO'!D49)+$C$39*'BDD export Ecoinvent - SIMAPRO'!I8+$C$40*'BDD export Ecoinvent - SIMAPRO'!H8 -> 0.00
A42: kg eq CO2 100 ans | B42: =$B$38*('BDD export Ecoinvent - SIMAPRO'!G9+'BDD export Ecoinvent - SIMAPRO'!D50)+$B$39*'BDD export Ecoinvent - SIMAPRO'!I9+$B$40*'BDD export Ecoinvent - SIMAPRO'!H9 -> 0.00 | C42: =$C$38*('BDD export Ecoinvent - SIMAPRO'!G9+'BDD export Ecoinvent - SIMAPRO'!D50)+$C$39*'BDD export Ecoinvent - SIMAPRO'!I9+$C$40*'BDD export Ecoinvent - SIMAPRO'!H9 -> 0.00
A43: Ressources fossiles et nucléaires (kWh eq) | B43: =$B$38*'BDD export Ecoinvent - SIMAPRO'!G10+$B$39*'BDD export Ecoinvent - SIMAPRO'!I10+$B$40*'BDD export Ecoinvent - SIMAPRO'!H10 -> 0.00 | C43: =$C$38*'BDD export Ecoinvent - SIMAPRO'!G10+$C$39*'BDD export Ecoinvent - SIMAPRO'!I10+$C$40*'BDD export Ecoinvent - SIMAPRO'!H10 -> 0.00
A44: Fertilisation organique | B44: Cultures principales | C44: CIVES
A45: Fertilisation N (kg) | B45: =SUMIF('Données projet substrat'!D6:D1795,"Cultures principales",'Données projet substrat'!CC6:CC1795) -> 0.00 | C45: =SUMIF('Données projet substrat'!D6:D1795,"CIVE*",'Données projet substrat'!CC6:CC1795) -> 0.00 | F45: Epandage d'effluent organique suivant IPCC (2019) - Cultures principales | G45: Epandage d'effluent organique suivant IPCC (2019) - CIVES
A46: Fertilisation K (kg) | B46: =SUMIF('Données projet substrat'!D6:D1795,"Cultures principales",'Données projet substrat'!CE6:CE1795) -> 0.00 | C46: =SUMIF('Données projet substrat'!D6:D1795,"CIVE*",'Données projet substrat'!CE6:CE1795) -> 0.00 | E46: Ntot (kg) | F46: =B45 -> 0.00 | G46: =C45 -> 0.00
A47: Fertilisation P (kg) | B47: =SUMIF('Données projet substrat'!D6:D1795,"Cultures principales",'Données projet substrat'!CF6:CF1795) -> 0.00 | C47: =SUMIF('Données projet substrat'!D6:D1795,"CIVE*",'Données projet substrat'!CF6:CF1795) -> 0.00 | E47: Emissions de N_NH3 après abattement | F47: =F46*'BDD modélisation ICV'!$H$109 -> 0 | G47: =G46*'BDD modélisation ICV'!$H$109 -> 0
A48: kg eq CO2 20 ans | B48: =F53 -> 0.00 | C48: =G53 -> 0.00 | E48: Emissions de N2O indirect (via NH3 et Nox) | F48: =F47*'BDD modélisation ICV'!$H$110 -> 0 | G48: =G47*'BDD modélisation ICV'!$H$110 -> 0
A49: kg eq CO2 100 ans | B49: =F54 -> 0.00 | C49: =G54 -> 0.00 | E49: Lessivage de N-NO3- | F49: =F46*'BDD modélisation ICV'!$H$111 -> 0 | G49: =G46*'BDD modélisation ICV'!$H$111 -> 0
A50: kg CO2 biogénique | E50: Emissions de N-N2O indirect (via NO3-) | F50: =F49*'BDD modélisation ICV'!$H$112 -> 0 | G50: =G49*'BDD modélisation ICV'!$H$112 -> 0
A51: Ressources fossiles et nucléaires (kWh eq) | E51: Emissions directes de N-N2O | F51: =F46*'BDD modélisation ICV'!$H$113 -> 0 | G51: =G46*'BDD modélisation ICV'!$H$113 -> 0
A52: Application de produits phytosanitaires | B52: Cultures principales | C52: CIVES | E52: Emissions totales de N-N2O | F52: =F48+F50+F51 -> 0 | G52: =G48+G50+G51 -> 0
A53: Phytosanitaires (kg) | B53: =SUMIF('Données projet substrat'!D6:D1795,"Cultures principales",'Données projet substrat'!CG6:CG1795) -> 0.00 | C53: =SUMIF('Données projet substrat'!D6:D1795,"CIVE*",'Données projet substrat'!CG6:CG1795) -> 0.00 | E53: kg eq CO2 20 ans | F53: =F52/28*44*FC_N2O20 -> 0 | G53: =G52/28*44*FC_N2O20 -> 0
A54: kg eq CO2 20 ans | B54: =$B$53*'BDD export Ecoinvent - SIMAPRO'!J8 -> 0.00 | C54: =$C$53*'BDD export Ecoinvent - SIMAPRO'!J8 -> 0.00 | E54: kg eq CO2 100 ans | F54: =F52/28*44*FC_N2O100 -> 0 | G54: =G52/28*44*FC_N2O100 -> 0
A55: kg eq CO2 100 ans | B55: =$B$53*'BDD export Ecoinvent - SIMAPRO'!J9 -> 0.00 | C55: =$C$53*'BDD export Ecoinvent - SIMAPRO'!J9 -> 0.00
A56: Ressources fossiles et nucléaires (kWh eq) | B56: =$B$53*'BDD export Ecoinvent - SIMAPRO'!J10 -> 0.00 | C56: =$C$53*'BDD export Ecoinvent - SIMAPRO'!J10 -> 0.00
A58: 3. Transport
A59: Transport collecte au diesel (t.km) | B59: =SUMPRODUCT('Données projet substrat'!I6:I1880,(1-'Données projet substrat'!J6:J1880))+SUMPRODUCT(IF('Données projet substrat'!E6:E1880="Soupe de déconditionnement",'Données projet substrat'!G6:G1880*(1-'Données projet substrat'!J6:J1880)*'Données projet'!$B$18)) -> 0
A60: kg eq CO2 20 ans | B60: =B59*'BDD export Ecoinvent - SIMAPRO'!F8 -> 0.00
A61: kg eq CO2 100 ans | B61: =B59*'BDD export Ecoinvent - SIMAPRO'!F9 -> 0.00
A62: Ressources fossiles et nucléaires (kWh eq) | B62: =B59*'BDD export Ecoinvent - SIMAPRO'!F10 -> 0.00
A63: Transport collecte au bioGNV (t.km) | B63: =SUMPRODUCT('Données projet substrat'!I6:I1880,'Données projet substrat'!J6:J1880) -> 0
A64: Transport digestat (t.km) | B64: ='Données projet'!B92*SUM(P5:R5) -> 
A65: kg eq CO2 20 ans | B65: =B64*'BDD export Ecoinvent - SIMAPRO'!F8 -> 
A66: kg eq CO2 100 ans | B66: =B64*'BDD export Ecoinvent - SIMAPRO'!F9 -> 
A67: kg CO2 biogénique
A68: Ressources fossiles et nucléaires (kWh eq) | B68: =B64*'BDD export Ecoinvent - SIMAPRO'!F10 -> 
A70: 4. Emissions fugitives
A71: % émissions fugitives | B71: ='Données projet'!C83 -> 5.0%
A72: GES émis à 100 ans | B72: =(B28+D28+B35+B180+B42+B49+B55+C35+F180+C42+C49+C55+SUMIF('Données projet substrat'!F6:F14,"Fumier",'Données projet substrat'!CI6:CI14)+SUMIF('Données projet substrat'!F6:F14,"Lisier",'Données projet substrat'!CI6:CI14)+B61+C218*B213+C219*L213*L211+IF(B218=1,B239,C213*C211+C219*M213)+F87+B96+B199+C218*D211*D213+B87+C218*K211*K213+B109+B128+C218*G211*G213+C218*H211*H213+B146+C218*I211*I213+B154+B167+C218*J211*J213+B192+B180+C218*E211*E213+C218*F211*F213+L20+M20+N20+P20+U22+Q20+V22+R20+W22+B66)/1000 -> 
A73: GES évités à 100 ans | B73: =(-B246-B265-B269-B273-B250-B254-B304-B259)/1000 -> 0.00
A74: Score net aggrégé à 100 ans (t éq CO2) | B74: =B72+B73 -> 
A76: 5. Flux de gaz (énergie primaire)
A77: Calculs généraux (cogé ET épuration/injection)
B78: Volume (m3) | C78: Masse (t) | D78: MJ | E78: kWh | F78: Résultats des infrastructures du digesteur
A79: Digesteur
A80: CH4 produit dans le digesteur | B80: ='Données projet substrat'!AB4 -> 0.00 | C80: =B80*massevol_CH4/1000 -> 0.00 | D80: =C80*1000*PCI_CH4 -> 0.00 | E80: =D80/3.6 -> 0.00
A81: CO2 produit dans le digesteur | B81: ='Données projet substrat'!AI4 -> 0.00 | C81: =B81*massevol_CO2/1000 -> 0.00
A82: % CH4 | B82: =B80/(B80+B81) ->  | C82: =C80/(C80+C81) -> 
A83: Biogaz total produit dans le digesteur | B83: =B80+B81 -> 0.00 | C83: =C80+C81 -> 0.00
A84: CH4 émissions fugitives | B84: =B80*B71 -> 0.00 | C84: =B84*massevol_CH4/1000 -> 0.00 | D84: =C84*1000*PCI_CH4 -> 0.00 | E84: =D84/3.6 -> 0.00
A85: CO2 émissions fugitives | B85: =B81*B71 -> 0.00 | C85: =B85*massevol_CO2/1000 -> 0.00
A86: kg eq CO2 20 ans | B86: =C84*1000*FC_CH4B20 -> 0.00 | E86: kg eq CO2 20 ans | F86: =B83*'BDD export Ecoinvent - SIMAPRO'!X8*3.36311842881788E-08 -> 0.00
A87: kg eq CO2 100 ans | B87: =C84*1000*FC_CH4B100 -> 0.00 | E87: kg eq CO2 100 ans | F87: =B83*'BDD export Ecoinvent - SIMAPRO'!X9*3.36311842881788E-08 -> 0.00
A88: kg CO2 biogénique | B88: =C85*1000 -> 0.00 | E88: Ressources fossiles et nucléaires (kWh eq) | F88: =B83*'BDD export Ecoinvent - SIMAPRO'!X10*3.36311842881788E-08 -> 0.00
A90: Torchère
A91: CH4 torché | B91: =(B80-B84)*'Données projet'!B26 -> 0.00 | C91: =B91*massevol_CH4/1000 -> 0.00 | D91: =C91*1000*PCI_CH4 -> 0.00 | E91: =D91/3.6 -> 0.00
A92: CH4 torché imbrulé | B92: =B91*'BDD modélisation ICV'!$B$72 -> 0.00 | C92: =B92*massevol_CH4/1000 -> 0.00E+00 | D92: =C92*1000*PCI_CH4 -> 0.00 | E92: =D92/3.6 -> 0.00
A93: N2O produit par la combustion | B93: =E91*'BDD modélisation ICV'!$C$71 -> 0.00E+00 | C93: =B93*massevol_N2O/1000 -> 0.00E+00
A94: CO2 torché | B94: =(B81-B85)*'BDD modélisation ICV'!$B$71 -> 0.00 | C94: =B94*massevol_CO2/1000 -> 0.00
A95: kg eq CO2 20 ans | B95: =C92*1000*FC_CH4B20+C93*1000*FC_N2O20 -> 0.00
A96: kg eq CO2 100 ans | B96: =C92*1000*FC_CH4B100+C93*1000*FC_N2O100 -> 0.00
A97: kg CO2 biogénique | B97: =(C91*(44/16)+C94)*1000 -> 0.00
A99: Installation en cogénération
A100: Cogénérateur
A101: Biogaz détourné en épuration pour autoconsommation | B101: =B83*'Données projet'!B57 -> 0.00 | C101: =C102+C103 -> 0.00
A102: CH4 détourné en épuration pour autoconsommation | B102: =B80*'Données projet'!B57 -> 0.00 | C102: =B102*massevol_CH4/1000 -> 0.00 | D102: =C102*1000*PCI_CH4 -> 0.00 | E102: =D102/3.6 -> 0.00
A103: CO2 détourné en épuration pour autoconsommation | B103: =B81*'Données projet'!B57 -> 0.00 | C103: =B103*massevol_CO2/1000 -> 0.00
A104: CH4 total envoyé en cogé | B104: =IF('Données projet'!B9="cogénération",B80-B84-B91-B102,B114) -> 0.00 | C104: =B104*massevol_CH4/1000 -> 0.00 | D104: =C104*1000*PCI_CH4 -> 0.00 | E104: =D104/3.6 -> 0.00
A105: CH4 imbrulé en cogé | B105: =B104*'BDD modélisation ICV'!B73 -> 0.00 | C105: =B105*massevol_CH4/1000 -> 0.00 | D105: =C105*1000*PCI_CH4 -> 0.00 | E105: =D105/3.6 -> 0.00
A106: CH4 total valorisable | B106: =B104-B105 -> 0.00 | C106: =C104-C105 -> 0.00 | D106: =C106*1000*PCI_CH4 -> 0.00 | E106: =D106/3.6 -> 0.00
A107: CO2 total contenu dans le biogaz | B107: =IF('Données projet'!B9="cogénération",B81-B85-B94,0) -> 0.00 | C107: =B107*massevol_CO2/1000 -> 0.00
A108: kg eq CO2 20 ans | B108: =C105*1000*FC_CH4B20 -> 0.00
A109: kg eq CO2 100 ans | B109: =C105*1000*FC_CH4B100 -> 0.00
A110: kg CO2 biogénique | B110: =0 -> 0.00
A112: Installation en épuration/injection
A113: Epurateur
A114: Biogaz détourné vers une cogénatrice pour autoconsommation | B114: =B115+B116 -> 0.00 | C114: =C115+C116 -> 0.00
A115: CH4 détourné vers une cogénatrice pour autoconsommation | B115: =((B80-B84-B91)*('Données projet'!B60))*(1-'BDD modélisation ICV'!B73) -> 0.00 | C115: =B115*massevol_CH4/1000 -> 0.00 | D115: =C115*1000*PCI_CH4 -> 0.00 | E115: =D115/3.6 -> 0.00
A116: CO2 détourné vers une cogénatrice pour autoconsommation | B116: =(B81-B85-B94)*('Données projet'!B60) -> 0.00 | C116: =B116*massevol_CO2/1000 -> 0.00
A117: Biogaz en entrée d'épurateur | B117: =IF('Données projet'!B9="Epuration/injection",(B83-B84-B85-B91-B94)*(1-'Données projet'!B60),B101) -> 0.00 | C117: =IF('Données projet'!B9="Epuration/injection",C119+C118,0) -> 0.00
A118: CH4 en entrée d'épurateur | B118: =IF('Données projet'!B9="Epuration/injection",(B80-B84-B91)*(1-'Données projet'!B60),B102) -> 0.00 | C118: =B118*massevol_CH4/1000 -> 0.00 | D118: =C118*1000*PCI_CH4 -> 0.00 | E118: =D118/3.6 -> 0.00
A119: CO2 en entrée d'épurateur | B119: =IF('Données projet'!B9="Epuration/injection",(B81-B85-B94)*(1-'Données projet'!B60),B103) -> 0.00 | C119: =B119*massevol_CO2/1000 -> 0.00
A120: Rendement épurateur | B120: =IF('Données projet'!B61="membranaire",'BDD modélisation ICV'!B48,'BDD modélisation ICV'!$B$49) -> 97.0%
A121: Pureté du biométhane | B121: ='BDD modélisation ICV'!$D$48 -> 97.0%
A122: Off-gaz (CH4) | B122: =B118*(1-B120) -> 0.00 | C122: =B122*massevol_CH4/1000 -> 0.00 | D122: =C122*1000*PCI_CH4 -> 0.00 | E122: =D122/3.6 -> 0.00
A123: Off-gaz (CO2) | B123: =B119-B125 -> 0.00 | C123: =B123*massevol_CO2/1000 -> 0.00
A124: Biométhane en sortie d'épurateur (CH4) | B124: =(B118*B120) -> 0.00 | C124: =B124*massevol_CH4/1000 -> 0.00 | D124: =D118-D122 -> 0.00 | E124: =E118-E122 -> 0.00
A125: Biométhane en sortie d'épurateur (CO2) | B125: =B124/B121*(1-B121) -> 0.00 | C125: =B125*massevol_CO2/1000 -> 0.00
A126: Consommation de charbon actif (kg) | B126: ='BDD modélisation ICV'!B51*'Calculs fonctionnement'!B117/1000 -> 0.00
A127: kg eq CO2 20 ans | B127: =B126*'BDD export Ecoinvent - SIMAPRO'!W8 -> 0.00
A128: kg eq CO2 100 ans | B128: =B126*'BDD export Ecoinvent - SIMAPRO'!W9 -> 0.00
A129: Ressources fossiles et nucléaires (kWh eq) | B129: =B126*'BDD export Ecoinvent - SIMAPRO'!W10 -> 0.00
A130: kg CO2 biogénique | B130: =C122*(44/16)*1000+C123*1000 -> 0.00
A132: Valorisation CO2
A133: Rendement de la valorisation | B133: ='Données projet'!B64 -> 0%
A134: CO2 total récupéré | B134: =B123*B133 -> 0.00 | C134: =B134*massevol_CO2/1000 -> 0.00
A136: Poste d'injection
A137: Biométhane en entrée (CH4) | B137: =B124*(1-'Données projet'!B69) -> 0.00 | C137: =B137*massevol_CH4/1000 -> 0.00 | D137: =C137*1000*PCI_CH4 -> 0.00 | E137: =D137/3.6 -> 0.00
A138: Biométhane en entrée (CO2) | B138: =B125*(1-'Données projet'!B69) -> 0.00 | C138: =B138*massevol_CO2/1000 -> 0.00
A139: % de pertes | B139: ='BDD modélisation ICV'!E40 -> 0.10%
A140: Pertes de biométhane (CH4) | B140: =B137*B139 -> 0.00 | C140: =B140*massevol_CH4/1000 -> 0.00 | D140: =C140*1000*PCI_CH4 -> 0.00 | E140: =D140/3.6 -> 0.00
A141: Pertes de biométhane (CO2) | B141: =B138*B139 -> 0.00 | C141: =B141*massevol_CO2/1000 -> 0.00
A142: Biométhane injecté dans le réseau (CH4) | B142: =B137-B140 -> 0.00 | C142: =B142*massevol_CH4/1000 -> 0.00 | D142: =C142*1000*PCI_CH4 -> 0.00 | E142: =D142/3.6 -> 0.00
A143: Biométhane injecté dans le réseau (CO2) | B143: =B138-B141 -> 0.00 | C143: =B143*massevol_CO2/1000 -> 0.00
A144: Quantité de THT consommée | C144: =(B142+B143)*'BDD modélisation ICV'!B41/1000000 -> 0.00E+00
A145: kg eq CO2 20 ans | B145: =C140*1000*FC_CH4B20*B121+C144*1000*'BDD export Ecoinvent - SIMAPRO'!U8 -> 0.00
A146: kg eq CO2 100 ans | B146: =C140*1000*FC_CH4B100*B121+C144*1000*'BDD export Ecoinvent - SIMAPRO'!U9 -> 0.00
A147: Ressources fossiles et nucléaires (kWh eq) | B147: =C144*1000*'BDD export Ecoinvent - SIMAPRO'!U10 -> 0.00
A148: kg CO2 biogénique | B148: =C141*1000 -> 0.00
A150: Combustion du biométhane en chaudière
A151: Biométhane injecté dans le réseau et brûlé en chaudière (CH4) | B151: =B142 -> 0.00 | C151: =B151*massevol_CH4/1000 -> 0.00 | D151: =C151*1000*PCI_CH4 -> 0.00 | E151: =D151/3.6 -> 0.00
A152: Biométhane injecté dans le réseau et brûlé en chaudière (CO2) | B152: =B143 -> 0.00 | C152: =B152*massevol_CO2/1000 -> 0.00
A153: kg eq CO2 20 ans | B153: =($C$151+$C$152)*1000*'BDD export Ecoinvent - SIMAPRO'!P8 -> 0.00
A154: kg eq CO2 100 ans | B154: =($C$151+$C$152)*1000*'BDD export Ecoinvent - SIMAPRO'!P9 -> 0.00
A155: Ressources fossiles et nucléaires (kWh eq) | B155: =($C$151+$C$152)*1000*'BDD export Ecoinvent - SIMAPRO'!P10 -> 0.00
A156: kg CO2 biogénique | B156: =C151*(44/16)+C152 -> 0.00
A158: Station GNV
A159: Biométhane en entrée (CH4) | B159: =B124*'Données projet'!B69 -> 0.00 | C159: =B159*massevol_CH4/1000 -> 0.00 | D159: =C159*1000*PCI_CH4 -> 0.00 | E159: =D159/3.6 -> 0.00
A160: Biométhane en entrée (CO2) | B160: =B125*'Données projet'!B69 -> 0.00 | C160: =B160*massevol_CO2/1000 -> 0.00
A161: % de pertes au remplissage du réservoire et d'imbrûlés dans le moteur | B161: ='BDD modélisation ICV'!E42 -> 1.01%
A162: Pertes de biométhane (CH4) | B162: =B159*B161 -> 0.00 | C162: =B162*massevol_CH4/1000 -> 0.00 | D162: =C162*1000*PCI_CH4 -> 0.00 | E162: =D162/3.6 -> 0.00
A163: Pertes de biométhane (CO2) | B163: =B160*B161 -> 0.00 | C163: =B163*massevol_CO2/1000 -> 0.00
A164: Biométhane injecté en station (CH4) | B164: =B159-B162 -> 0.00 | C164: =B164*massevol_CH4/1000 -> 0.00 | D164: =C164*1000*PCI_CH4 -> 0.00 | E164: =D164/3.6 -> 0.00
A165: Biométhane injecté en station (CO2) | B165: =B160-B163 -> 0.00 | C165: =B165*massevol_CO2/1000 -> 0.00
A166: kg eq CO2 20 ans | B166: =C162*1000*FC_CH4B20 -> 0.00
A167: kg eq CO2 100 ans | B167: =C162*1000*FC_CH4B100 -> 0.00
A168: kg CO2 biogénique | B168: =C163*1000 -> 0.00
A170: Combustion de biométhane (autoconsommation dans tracteurs)
B171: Cultures principales | F171: CIVES
A172: Biométhane utilisé en tracteur | B172: =IF('Données projet'!B68="oui",C172/massevol_biométhane*1000,0) -> 0.00 | C172: =SUMIF('Données projet substrat'!D6:D1884,"Cultures principales",'Données projet substrat'!BR6:BR1884)/1000 -> 0.00 | F172: =IF('Données projet'!B68="oui",G172/massevol_biométhane*1000,0) -> 0.00 | G172: =SUMIF('Données projet substrat'!D6:D1884,"CIVE*",'Données projet substrat'!BR6:BR1884)/1000 -> 0.00
A173: dont CH4 | B173: =B172*0.97 -> 0.00 | C173: =B173*massevol_CH4/1000 -> 0.00 | D173: =C173*1000*PCI_CH4 -> 0.00 | E173: =D173/3.6 -> 0.00 | F173: =F172*0.97 -> 0.00 | G173: =F173*massevol_CH4/1000 -> 0.00 | H173: =G173*1000*PCI_CH4 -> 0.00 | I173: =H173/3.6 -> 0.00
A174: dont CO2 | B174: =B172-B173 -> 0.00 | C174: =B174*massevol_CO2/1000 -> 0.00 | F174: =F172-F173 -> 0.00 | G174: =F174*massevol_CO2/1000 -> 0.00
A175: % de pertes l'injection dans le réservoir et à l'utilisation | B175: ='BDD modélisation ICV'!E42 -> 1.01% | F175: ='BDD modélisation ICV'!E42 -> 1.01%
A176: Pertes de CH4 | B176: =B173*B175 -> 0.00 | C176: =B176*massevol_CH4/1000 -> 0.00 | D176: =C176*1000*PCI_CH4 -> 0.00 | E176: =D176/3.6 -> 0.00 | F176: =F173*F175 -> 0.00 | G176: =F176*massevol_CH4/1000 -> 0.00 | H176: =G176*1000*PCI_CH4 -> 0.00 | I176: =H176/3.6 -> 0.00
A177: Pertes de biométhane (C02) | B177: =B174*B175 -> 0.00 | C177: =B177*massevol_CO2/1000 -> 0.00 | F177: =F174*F175 -> 0.00 | G177: =F177*massevol_CO2/1000 -> 0.00
A178: CH4 brûlé en moteur | B178: =B173-B176 -> 0.00 | C178: =B178*massevol_CH4/1000 -> 0.00 | D178: =C178*1000*PCI_CH4 -> 0.00 | E178: =D178/3.6 -> 0.00 | F178: =F173-F176 -> 0.00 | G178: =F178*massevol_CH4/1000 -> 0.00 | H178: =G178*1000*PCI_CH4 -> 0.00 | I178: =H178/3.6 -> 0.00
A179: kg eq CO2 20 ans | B179: =C176*1000*FC_CH4B20 -> 0.00 | F179: =G176*1000*FC_CH4B20 -> 0.00
A180: kg eq CO2 100 ans | B180: =C176*1000*FC_CH4B100 -> 0.00 | F180: =G176*1000*FC_CH4B100 -> 0.00
A181: kg CO2 biogénique | B181: =C177*1000+C178*1000*44/16 -> 0.00 | F181: =G177*1000+G178*1000*44/16 -> 0.00
A183: Combustion de biométhane (véhicules bioGNV)
A184: Biométhane utilisé en GNV | B184: =B164+B165-B172-F172 -> 0.00 | C184: =B184*massevol_biométhane/1000 -> 0.00
A185: dont CH4 | B185: =B184*B121 -> 0.00 | C185: =B185*massevol_CH4/1000 -> 0.00 | D185: =C185*1000*PCI_CH4 -> 0 | E185: =D185/3.6 -> 0.00
A186: dont CO2 | B186: =B184*(1-B121) -> 0.00 | C186: =B186*massevol_CO2/1000 -> 0.00
A187: % de pertes l'injection dans le réservoir et à l'utilisation | B187: ='BDD modélisation ICV'!E42 -> 1.01%
A188: Pertes de biométhane (CH4) | B188: =B185*B187 -> 0.00 | C188: =B188*massevol_CH4/1000 -> 0.00 | D188: =C188*1000*PCI_CH4 -> 0.00 | E188: =D188/3.6 -> 0.00
A189: Pertes de biométhane (CO2) | B189: =B186*B187 -> 0.00 | C189: =B189*massevol_CO2/1000 -> 0.00
A190: CH4 brûlé | B190: =B185-B188 -> 0.00 | C190: =B190*massevol_CH4/1000 -> 0.00 | D190: =C190*1000*PCI_CH4 -> 0.00 | E190: =D190/3.6 -> 0.00
A191: kg eq CO2 20 ans | B191: =C188*1000*FC_CH4B20 -> 0.00
A192: kg eq CO2 100 ans | B192: =C188*1000*FC_CH4B100 -> 0.00
A193: kg CO2 biogénique | B193: =C189*1000+C190*1000*44/16 -> 0.00
A195: Traitement de l'air (consommation d'eau)
A196: Quantité d'air traité (m3) | B196: =IF('Données projet'!B25="oui",B83*'BDD modélisation ICV'!B76,0) -> 0
A197: Consommation d'eau (m3) | B197: =B196*'BDD modélisation ICV'!B77 -> 0.00
A198: kg eq CO2 20 ans | B198: =$B$197*'BDD export Ecoinvent - SIMAPRO'!T8 -> 0.00
A199: kg eq CO2 100 ans | B199: =$B$197*'BDD export Ecoinvent - SIMAPRO'!T9 -> 0.00
A200: Ressources fossiles et nucléaires (kWh eq) | B200: =$B$197*'BDD export Ecoinvent - SIMAPRO'!T10 -> 0.00
A202: 6. Flux d'énergie secondaire | D202: Consommation de biométhane par les cultures
B204: Electrique | L204: Thermique
B205: Broyage | C205: Digestion | D205: Traitement de l'air | E205: Presse à vis | F205: Centrifugeuse | G205: Epuration | H205: Capture et liquéfaction CO2 | I205: Injection dans le réseau | J205: Injection en station bioGNV | K205: Auxiliaires (en cas d'installation en cogé) | L205: Hygiénisation | M205: Chauffage digesteur
A206: Consommation unitaire | B206: ='BDD modélisation ICV'!B4 -> 8 | C206: =IF('Données projet'!B9="cogénération",'BDD modélisation ICV'!B61,'BDD modélisation ICV'!B44) -> 0.49 | D206: ='BDD modélisation ICV'!B78 -> 0.001 | E206: ='BDD modélisation ICV'!B7 -> 0.6 | F206: ='BDD modélisation ICV'!B8 -> 1.2 | G206: ='BDD modélisation ICV'!B39 -> 0.35 | H206: ='BDD modélisation ICV'!B43 -> 0.35 | I206: ='BDD modélisation ICV'!B40 -> 0.12 | J206: ='BDD modélisation ICV'!B42 -> 0.267 | K206: ='BDD modélisation ICV'!D59 -> 4.5% | L206: ='BDD modélisation ICV'!C5 -> 170 | M206: =IF('Données projet'!B9="cogénération",'Données projet'!B72,'BDD modélisation ICV'!B34) -> 6%
A207: Unité | B207: kWhe/t de matière entrante | C207: kWhe/Nm3 de CH4 produit | D207: kWh/Nm3 d'air traité | E207: kWhe/t de matière entrante | F207: kWhe/t de matière entrante | G207: kWhe/Nm3 de gaz entrant | H207: kWhe/kg CO2 valorisé | I207: kWhe/Nm3 de gaz entrant | J207: kWhe/kg GNV | K207: % de kWh produits | L207: kWht/t de matière entrante | M207: % de kWh
A208: Quantité entrante | B208: ='Données projet substrat'!T4 -> 0.0 | C208: =B80 -> 0.00 | D208: =B196 -> 0.00 | E208: =I5 -> 0.0 | F208: =IF('Données projet'!B87="centrifugeuse",I5,0) -> 0.0 | G208: =B117 -> 0.00 | H208: =C134 -> 0.00 | I208: =B124+B125 -> 0.00 | J208: =(C164+C165)*1000 -> 0.00 | K208: =IF(B230=0,C230*1000,B230*1000) -> 0.00 | L208: ='Données projet substrat'!U4 -> 0.0 | M208: =IF('Données projet'!B9="cogénération",B231*1000,E124) -> 0.0
A209: Consommation théorique (kWh) | B209: =B206*B208 -> 0.00 | C209: =C206*C208 -> 0.00 | D209: =D206*D208 -> 0.00 | E209: =E206*E208 -> 0.00 | F209: 0.00 | G209: =G206*G208 -> 0.00 | H209: 0.00 | I209: =I206*I208 -> 0.00 | J209: 0.00 | K209: =K206*K208 -> 0.00 | L209: =L206*L208 -> 0.00 | M209: =M206*M208 -> 0.00
A210: Cas déclaré: 0=à ne pas prendre en compte; 1=à prendre en compte | B210: =IF('Données projet'!B37="oui",0,1) -> 1 | C210: 0 | D210: 0 | E210: =IF('Données projet'!B87="presse à vis",IF('Données projet'!B38="Oui",0,1),0) -> 0 | F210: =IF('Données projet'!B87="centrifugeuse",IF('Données projet'!B38="Oui",0,1),0) -> 0 | G210: 0 | H210: 0 | I210: 0 | J210: 0 | K210: 0 | L210: =IF('Données projet'!B52="Oui",0,1) -> 1 | M210: 0 | N210: comprend chauffage par défaut
A211: Cas calculé: 0=à ne pas prendre en compte; 1=à prendre en compte | B211: 1 | C211: 1 | D211: =IF('Données projet'!B25="Oui",1,0) -> 0 | E211: =IF('Données projet'!B87="presse à vis",1,0) -> 0 | F211: =IF('Données projet'!B87="centrifugeuse",1,0) -> 0 | G211: =IF('Données projet'!B9="Epuration/injection",1,IF('Données projet'!B56="oui",1,0)) -> 0 | H211: =IF('Données projet'!B63="Oui",1,0) -> 0 | I211: =IF('Données projet'!B9="Epuration/injection",1,IF('Données projet'!B56="oui",1,0)) -> 0 | J211: =IF('Données projet'!B68="Oui",1,0) -> 0 | K211: =IF('Données projet'!B9="cogénération",1,0) -> 0 | L211: 1 | M211: 1
A212: kg eq CO2 20 ans | B212: =B209*('Données projet'!$B$29*'BDD export Ecoinvent - SIMAPRO'!$R$8+'Données projet'!$B$35*'BDD export Ecoinvent - SIMAPRO'!$S$8) -> 0.00 | C212: =C209*('Données projet'!$B$29*'BDD export Ecoinvent - SIMAPRO'!$R$8+'Données projet'!$B$35*'BDD export Ecoinvent - SIMAPRO'!$S$8) -> 0.00 | D212: =D209*('Données projet'!$B$29*'BDD export Ecoinvent - SIMAPRO'!$R$8+'Données projet'!$B$35*'BDD export Ecoinvent - SIMAPRO'!$S$8) -> 0.00 | E212: =E209*('Données projet'!$B$29*'BDD export Ecoinvent - SIMAPRO'!$R$8+'Données projet'!$B$35*'BDD export Ecoinvent - SIMAPRO'!$S$8) -> 0.00 | F212: =F209*('Données projet'!$B$29*'BDD export Ecoinvent - SIMAPRO'!$R$8+'Données projet'!$B$35*'BDD export Ecoinvent - SIMAPRO'!$S$8) -> 0.00 | G212: =G209*('Données projet'!$B$29*'BDD export Ecoinvent - SIMAPRO'!$R$8+'Données projet'!$B$35*'BDD export Ecoinvent - SIMAPRO'!$S$8) -> 0.00 | H212: =H209*('Données projet'!$B$29*'BDD export Ecoinvent - SIMAPRO'!$R$8+'Données projet'!$B$35*'BDD export Ecoinvent - SIMAPRO'!$S$8) -> 0.00 | I212: =I209*('Données projet'!$B$29*'BDD export Ecoinvent - SIMAPRO'!$R$8+'Données projet'!$B$35*'BDD export Ecoinvent - SIMAPRO'!$S$8) -> 0.00 | J212: =J209*('Données projet'!$B$29*'BDD export Ecoinvent - SIMAPRO'!$R$8+'Données projet'!$B$35*'BDD export Ecoinvent - SIMAPRO'!$S$8) -> 0.00 | K212: =K209*('Données projet'!$B$29*'BDD export Ecoinvent - SIMAPRO'!$R$8+'Données projet'!$B$35*'BDD export Ecoinvent - SIMAPRO'!$S$8) -> 0.00 | L212: =L209*'Données projet'!$B$41*'BDD export Ecoinvent - SIMAPRO'!$N$8 -> 0.00 | M212: =IF('Données projet'!B9="cogénération",0,IF('Données projet'!B59="oui",0,M209*'Données projet'!B41*'BDD export Ecoinvent - SIMAPRO'!N8)) -> 0.00
A213: kg eq CO2 100 ans | B213: =B209*('Données projet'!$B$29*'BDD export Ecoinvent - SIMAPRO'!$R$9+'Données projet'!$B$35*'BDD export Ecoinvent - SIMAPRO'!$S$9) -> 0.00 | C213: =C209*('Données projet'!$B$29*'BDD export Ecoinvent - SIMAPRO'!$R$9+'Données projet'!$B$35*'BDD export Ecoinvent - SIMAPRO'!$S$9) -> 0.00 | D213: =D209*('Données projet'!$B$29*'BDD export Ecoinvent - SIMAPRO'!$R$9+'Données projet'!$B$35*'BDD export Ecoinvent - SIMAPRO'!$S$9) -> 0.00 | E213: =E209*('Données projet'!$B$29*'BDD export Ecoinvent - SIMAPRO'!$R$9+'Données projet'!$B$35*'BDD export Ecoinvent - SIMAPRO'!$S$9) -> 0.00 | F213: =F209*('Données projet'!$B$29*'BDD export Ecoinvent - SIMAPRO'!$R$9+'Données projet'!$B$35*'BDD export Ecoinvent - SIMAPRO'!$S$9) -> 0.00 | G213: =G209*('Données projet'!$B$29*'BDD export Ecoinvent - SIMAPRO'!$R$9+'Données projet'!$B$35*'BDD export Ecoinvent - SIMAPRO'!$S$9) -> 0.00 | H213: =H209*('Données projet'!$B$29*'BDD export Ecoinvent - SIMAPRO'!$R$9+'Données projet'!$B$35*'BDD export Ecoinvent - SIMAPRO'!$S$9) -> 0.00 | I213: =I209*('Données projet'!$B$29*'BDD export Ecoinvent - SIMAPRO'!$R$9+'Données projet'!$B$35*'BDD export Ecoinvent - SIMAPRO'!$S$9) -> 0.00 | J213: =J209*('Données projet'!$B$29*'BDD export Ecoinvent - SIMAPRO'!$R$9+'Données projet'!$B$35*'BDD export Ecoinvent - SIMAPRO'!$S$9) -> 0.00 | K213: =K209*('Données projet'!$B$29*'BDD export Ecoinvent - SIMAPRO'!$R$9+'Données projet'!$B$35*'BDD export Ecoinvent - SIMAPRO'!$S$9) -> 0.00 | L213: =L209*'Données projet'!$B$41*'BDD export Ecoinvent - SIMAPRO'!$N$9 -> 0.00 | M213: =IF('Données projet'!B9="cogénération",0,IF('Données projet'!B59="oui",0,M209*'Données projet'!B41*'BDD export Ecoinvent - SIMAPRO'!N9)) -> 0.00
A214: Ressources fossiles et nucléaires (kWh eq) | B214: =B209*('Données projet'!$B$29*'BDD export Ecoinvent - SIMAPRO'!$R$10+'Données projet'!$B$35*'BDD export Ecoinvent - SIMAPRO'!$S$10) -> 0.00 | C214: =C209*('Données projet'!$B$29*'BDD export Ecoinvent - SIMAPRO'!$R$10+'Données projet'!$B$35*'BDD export Ecoinvent - SIMAPRO'!$S$10) -> 0.00 | D214: =D209*('Données projet'!$B$29*'BDD export Ecoinvent - SIMAPRO'!$R$10+'Données projet'!$B$35*'BDD export Ecoinvent - SIMAPRO'!$S$10) -> 0.00 | E214: =E209*('Données projet'!$B$29*'BDD export Ecoinvent - SIMAPRO'!$R$10+'Données projet'!$B$35*'BDD export Ecoinvent - SIMAPRO'!$S$10) -> 0.00 | F214: =F209*('Données projet'!$B$29*'BDD export Ecoinvent - SIMAPRO'!$R$10+'Données projet'!$B$35*'BDD export Ecoinvent - SIMAPRO'!$S$10) -> 0.00 | G214: =G209*('Données projet'!$B$29*'BDD export Ecoinvent - SIMAPRO'!$R$10+'Données projet'!$B$35*'BDD export Ecoinvent - SIMAPRO'!$S$10) -> 0.00 | H214: =H209*('Données projet'!$B$29*'BDD export Ecoinvent - SIMAPRO'!$R$10+'Données projet'!$B$35*'BDD export Ecoinvent - SIMAPRO'!$S$10) -> 0.00 | I214: =I209*('Données projet'!$B$29*'BDD export Ecoinvent - SIMAPRO'!$R$10+'Données projet'!$B$35*'BDD export Ecoinvent - SIMAPRO'!$S$10) -> 0.00 | J214: =J209*('Données projet'!$B$29*'BDD export Ecoinvent - SIMAPRO'!$R$10+'Données projet'!$B$35*'BDD export Ecoinvent - SIMAPRO'!$S$10) -> 0.00 | K214: =K209*('Données projet'!$B$29*'BDD export Ecoinvent - SIMAPRO'!$R$10+'Données projet'!$B$35*'BDD export Ecoinvent - SIMAPRO'!$S$10) -> 0.00 | L214: =L209*'Données projet'!$B$41*'BDD export Ecoinvent - SIMAPRO'!$N$10 -> 0.00 | M214: =IF('Données projet'!B9="cogénération",0,IF('Données projet'!B59="oui",0,M209*'Données projet'!B41*'BDD export Ecoinvent - SIMAPRO'!N10)) -> 0.00
A216: Consommations de l'installation (en cogénération ou en épuration/injection)
A217: Paramètres
A218: Electricité (consommation) | B218: =IF('Données projet'!B36=0,0,1) -> 0 | C218: =1-B218 -> 1
A219: Chaleur (consommation) | B219: =IF('Données projet'!B51=0,0,1) -> 0 | C219: =1-B219 -> 1
... 105 more rows

Sheet Calcul delta (hidden)
A1: Calculs de fonctionnement
A3: 1. Caractérisation du mélange de substrat/ du digestat | I3: si séparation
B4: Entrée Digesteur | C4: Teneur Entrée Digesteur (kg/t MB) | D4: Sortie Digesteur (brut) | E4: Teneur Sortie Digesteur (kg/t MB) | F4: Evolution de la composition en absolue | G4: Taux de capture en phase solide | H4: Part du digestat brut non séparé (avant recirculation) | I4: Envoi digestat brut en séparation | J4: Digestat phase liquide avant recirculation | K4: Phase liquide recirculée | L4: Entrée stockage digestat brut avec recirculation | M4: Entrée stockage digestat phase liquide | N4: Entrée stockage digestat phase solide | P4: Sortie stockage digestat phase brut pour épandage | Q4: Sortie stockage digestat phase liquide pour épandage | R4: Sortie stockage digestat phase solide pour épandage | U4: Epandage digestat phase brut | V4: Epandage digestat phase liquide | W4: Epandage digestat phase solide | Y4: Mineral Fertilizer Equivalent | Z4: Digestat épandu phase brut | AA4: Digestat épandu phase liquide | AB4: Digestat épandu phase solide
A5: MB (t) | B5: ='Données projet substrat'!G4 -> 0.0 | C5: / | D5: ='Données projet substrat'!BA4 -> 0.00 | E5: / | F5: =(D5-B5)/B5 ->  | G5: =IF('Données projet'!B87="centrifugeuse",'BDD modélisation ICV'!B82,IF('Données projet'!B87="presse à vis",'BDD modélisation ICV'!C82,0)) -> 0% | H5: =D5*(1-'Données projet'!B$88) -> 0.00 | I5: =IF(G5=0,0,D5-H5) -> 0.00 | J5: =IF(G5=0,0,((1-G5)*I5)) -> 0.00 | K5: =IF(G5=0,0,J5*'Données projet'!$B$89) -> 0.00 | L5: =IF(G5=0,H5,H5+K5) -> 0.00 | M5: =IF(G5=0,0,J5-K5) -> 0.00 | N5: =IF(G5=0,0,(G5*I5)) -> 0.00 | O5: MB (t) | P5: =L5-(L6-P6) -> 0.00 | Q5: =M5-(M6-Q6) -> 0.00 | R5: =N5-(N6-R6) -> 0.00 | T5: Ntot (kg) | U5: =P8 -> 0.00 | V5: =Q8 -> 0.00 | W5: 0.00
A6: MS (t) | B6: ='Données projet substrat'!V4 -> 0.0 | C6: =B6*1000/$B$5 ->  | D6: ='Données projet substrat'!W4 -> 0.00 | E6: =D6*1000/$D$5 ->  | F6: =(D6-B6)/B6 ->  | G6: =IF('Données projet'!B87="centrifugeuse",'BDD modélisation ICV'!B83,IF('Données projet'!B87="presse à vis",'BDD modélisation ICV'!C83,0)) -> 0% | H6: =D6*(1-'Données projet'!B$88) -> 0.00 | I6: =IF(G6=0,0,D6-H6) -> 0.00 | J6: =IF(G6=0,0,((1-G6)*I6)) -> 0.00 | K6: =IF(G6=0,0,J6*'Données projet'!$B$89) -> 0.00 | L6: =IF(G6=0,H6,H6+K6) -> 0.00 | M6: =IF(G6=0,0,J6-K6) -> 0.00 | N6: =IF(G6=0,0,(G6*I6)) -> 0.00 | O6: MS (t) | P6: =L6*(1-'BDD modélisation ICV'!B93) -> 0 | Q6: =M6*(1-'BDD modélisation ICV'!C93) -> 0 | R6: =N6*(1-'BDD modélisation ICV'!D93) -> 0 | T6: NH4+ (kg) | U6: 0 | V6: 0 | W6: 0 | Y6: N-NH4+ (kg) | Z6: =U6/18*14 -> 0 | AA6: =V6/18*14 -> 0 | AB6: =W6/18*14 -> 0
A7: MO (t) | B7: ='Données projet substrat'!X4 -> 0.0 | C7: =B7*1000/$B$5 ->  | D7: ='Données projet substrat'!Y4 -> 0.00 | E7: =D7*1000/$D$5 ->  | F7: =(D7-B7)/B7 ->  | G7: =IF('Données projet'!B87="centrifugeuse",'BDD modélisation ICV'!B84,IF('Données projet'!B87="presse à vis",'BDD modélisation ICV'!C84,0)) -> 0% | H7: =D7*(1-'Données projet'!B$88) -> 0.00 | I7: 0.00 | J7: 0.00 | K7: =IF(G7=0,0,J7*'Données projet'!$B$89) -> 0.00 | L7: =IF(G7=0,H7,H7+K7) -> 0.00 | M7: 0.00 | N7: 0.00 | O7: MO (t) | P7: =L7*(1-'BDD modélisation ICV'!B94) -> 0 | Q7: =M7*(1-'BDD modélisation ICV'!C94) -> 0 | R7: =N7*(1-'BDD modélisation ICV'!D94) -> 0 | T7: Norg (kg) | U7: 0 | V7: 0 | W7: 0 | Y7: Norg-mineralisé (kg) | Z7: =U7*'BDD modélisation ICV'!B126 -> 0.00 | AA7: =V7*'BDD modélisation ICV'!C126 -> 0.00 | AB7: =W7*'BDD modélisation ICV'!D126 -> 0.00
A8: Ntot (kg) | B8: ='Données projet substrat'!AR4 -> 0.0 | C8: =B8/$B$5 ->  | D8: =B8 -> 0.00 | E8: =D8/$D$5 ->  | F8: =(D8-B8)/B8 ->  | I8: =I9+I10 -> 0.00 | J8: 0.00 | K8: =K9+K10 -> 0.00 | L8: 0.00 | M8: 0.00 | N8: 0.00 | O8: Ntot (kg) | P8: =P9+P10 -> 0.00 | Q8: =Q9+Q10 -> 0.00 | R8: =R9+R10 -> 0.00 | T8: NH4+ (kg)/N tot | U8: =IFERROR(P9/P8,0) -> 0 | V8: =IFERROR(Q9/Q8,0) -> 0 | W8: =IFERROR(R9/R8,0) -> 0 | Y8: N-pertes emissions (kg) | Z8: =U11+U12+U15+U18 -> 0 | AA8: =V11+V12+V15+V18 -> 0 | AB8: =W11+W12+W15+W18 -> 0
A9: NH4+ (kg) | B9: ='Données projet substrat'!AS4 -> 0.0 | D9: ='Données projet substrat'!AT4*1000 -> 0.00 | G9: =IF('Données projet'!B87="centrifugeuse",'BDD modélisation ICV'!B86,IF('Données projet'!B87="presse à vis",'BDD modélisation ICV'!C86,0)) -> 0% | H9: =D9*(1-'Données projet'!B$88) -> 0.00 | I9: 0.00 | J9: 0.00 | K9: =IF(G9=0,0,J9*'Données projet'!$B$89) -> 0.00 | L9: =IF(G9=0,H9,H9+K9) -> 0.00 | M9: 0.00 | N9: 0.00 | O9: NH4+ (kg) | P9: =L9*(1-'BDD modélisation ICV'!B96)-L16*18/14 -> 0 | Q9: =M9*(1-'BDD modélisation ICV'!C96)-M16*18/14 -> 0 | R9: =N9*(1-'BDD modélisation ICV'!D96)*18/14 -> 0 | T9: Emissions de N_NH3 avant abattement | U9: =U6*'BDD modélisation ICV'!B107/18*14 -> 0 | V9: =V6*'BDD modélisation ICV'!C107/18*14 -> 0 | W9: =W6*'BDD modélisation ICV'!D107/18*14 -> 0
A10: Norg (kg) | B10: =B8-B9 -> 0.0 | D10: =D8-D9 -> 0.0 | G10: =IF('Données projet'!B87="centrifugeuse",'BDD modélisation ICV'!B85,IF('Données projet'!B87="presse à vis",'BDD modélisation ICV'!C85,0)) -> 0% | H10: =D10*(1-'Données projet'!B$88) -> 0.00 | I10: 0.00 | J10: 0.00 | K10: =IF(G10=0,0,J10*'Données projet'!$B$89) -> 0.00 | L10: =IF(G10=0,H10,H10+K10) -> 0.00 | M10: 0.00 | N10: 0.00 | O10: Norg (kg) | P10: =L10*(1-'BDD modélisation ICV'!B95)-L18/44*28 -> 0 | Q10: =M10*(1-'BDD modélisation ICV'!C95)-M18/44*28 -> 0 | R10: =N10*(1-'BDD modélisation ICV'!D95)-N18/44*28 -> 0 | T10: Facteur d'abatemment | U10: =_xlfn.XLOOKUP('Données projet'!B93,'BDD modélisation ICV'!A118:A121,'BDD modélisation ICV'!B118:B121,0) -> 0 | V10: =VLOOKUP('Données projet'!B94,'BDD modélisation ICV'!A118:B121,2,0) -> 0 | W10: =VLOOKUP('Données projet'!B95,'BDD modélisation ICV'!D118:E121,2,FALSE) -> 0
A11: P2O5 (kg) | B11: ='Données projet substrat'!AU4 -> 0.0 | D11: ='Données projet substrat'!AU4 -> 0.00 | G11: =IF('Données projet'!B87="centrifugeuse",'BDD modélisation ICV'!B87,IF('Données projet'!B87="presse à vis",'BDD modélisation ICV'!C87,0)) -> 0% | H11: =D11*(1-'Données projet'!B$88) -> 0.00 | I11: 0.00 | J11: 0.00 | K11: =IF(G11=0,0,J11*'Données projet'!$B$89) -> 0.00 | L11: =IF(G11=0,H11,H11+K11) -> 0.00 | M11: 0.00 | N11: 0.00 | O11: P2O5 (kg) | P11: =L11 -> 0.00 | Q11: 0.00 | R11: 0.00 | T11: Emissions de N_NH3 après abattement | U11: =U9*(1-U10) -> 0 | V11: =V9*(1-V10) -> 0 | W11: =W9*(1-W10) -> 0 | Y11: N-assimilable (kg) / Ntot (kg) | Z11: =IFERROR(Z14/U5,0) -> 0 | AA11: =IFERROR(AA14/V5,0) -> 0 | AB11: =IFERROR(AB14/W5,0) -> 0
A12: K2O (kg) | B12: ='Données projet substrat'!AV4 -> 0.0 | D12: ='Données projet substrat'!AV4 -> 0.00 | F12: =(D12-B12)/B12 ->  | G12: =IF('Données projet'!B87="centrifugeuse",'BDD modélisation ICV'!B88,IF('Données projet'!B87="presse à vis",'BDD modélisation ICV'!C88,0)) -> 0% | H12: =D12*(1-'Données projet'!B$88) -> 0.00 | I12: 0.00 | J12: 0.00 | K12: =IF(G12=0,0,J12*'Données projet'!$B$89) -> 0.00 | L12: =IF(G12=0,H12,H12+K12) -> 0.00 | M12: 0.00 | N12: 0.00 | O12: K2O (kg) | P12: 0.00 | Q12: 0.00 | R12: 0.00 | T12: Emissions de N-Nox | U12: =(U5-U11)*'BDD modélisation ICV'!B108 -> 0 | V12: =(V5-V11)*'BDD modélisation ICV'!C108 -> 0 | W12: =(W5-W11)*'BDD modélisation ICV'!D108 -> 0
A13: C (kg) | B13: ='Données projet substrat'!AW4 -> 0.0 | D13: ='Données projet substrat'!AZ4*1000 -> 0.00 | F13: =(D13-B13)/B13 ->  | G13: =G7 -> 0% | H13: =D13*(1-'Données projet'!B$88) -> 0.00 | I13: 0.00 | J13: 0.00 | K13: =IF(G13=0,0,J13*'Données projet'!$B$89) -> 0.00 | L13: =IF(G13=0,H13,H13+K13) -> 0.00 | M13: 0.00 | N13: 0.00 | O13: C (kg) | P13: =L13*(1-'BDD modélisation ICV'!B97) -> 0 | Q13: =M13*(1-'BDD modélisation ICV'!C97) -> 0 | R13: =N13*(1-'BDD modélisation ICV'!D97) -> 0 | T13: Emissions de N2O indirect (via NH3 et Nox) | U13: =(U11+U12)*'BDD modélisation ICV'!B110 -> 0 | V13: =(V11+V12)*'BDD modélisation ICV'!C110 -> 0 | W13: =(W11+W12)*'BDD modélisation ICV'!D110 -> 0
K14: Emissions de CH4 | L14: =IF('Données projet'!B91="couvert avec récupération du biogaz",0,(L13-P13)*'BDD modélisation ICV'!B101/12*16) -> 0 | M14: =IF('Données projet'!B90="couvert avec récupération du biogaz",0,(M13-Q13)*'BDD modélisation ICV'!C101/12*16) -> 0 | N14: =(N13-R13)*'BDD modélisation ICV'!D101/12*16 -> 0 | Y14: MFE - N (kg) | Z14: =Z6+Z7-Z8 -> 0.00 | AA14: =AA6+AA7-AA8 -> 0.00 | AB14: =AB6+AB7-AB8 -> 0.00
K15: Emissions de CO2 | L15: =(L13-P13)*(1-'BDD modélisation ICV'!B101)/12*44 -> 0 | M15: =(M13-Q13)*(1-'BDD modélisation ICV'!C101)/12*44 -> 0 | N15: =(N13-R13)*(1-'BDD modélisation ICV'!D101)/12*44 -> 0 | T15: Lessivage de N-NO3- | U15: =(U5)*'BDD modélisation ICV'!B111 -> 0 | V15: =(V5)*'BDD modélisation ICV'!C111 -> 0 | W15: =(W5)*'BDD modélisation ICV'!D111 -> 0 | Y15: MFE - P2O5 (kg) | Z15: =P11*0.95 -> 0.00 | AA15: =Q11*0.95 -> 0.00 | AB15: =R11*0.95 -> 0.00
K16: Emissions de N_NH3 | L16: =IF(OR('Données projet'!B91="couvert avec récupération du biogaz",'Données projet'!B91="couvert"),L9*'BDD modélisation ICV'!B102/18*14*0.3,L9*'BDD modélisation ICV'!B102/18*14) -> 0 | M16: =IF(OR('Données projet'!B90="couvert avec récupération du biogaz",'Données projet'!B90="couvert"),M9*'BDD modélisation ICV'!C102/18*14*0.3,M9*'BDD modélisation ICV'!C102/18*14) -> 0 | N16: =(N9-R9)*'BDD modélisation ICV'!D102/18*14 -> 0.00 | O16: Débit de chantier d'épandage (h) | P16: =P5/'BDD modélisation ICV'!B122 -> 0 | Q16: =Q5/'BDD modélisation ICV'!B122 -> 0 | R16: =R5/'BDD modélisation ICV'!E122 -> 0 | T16: Emissions de N-N2O indirect (via NO3-) | U16: =U15*'BDD modélisation ICV'!B112 -> 0 | V16: =V15*'BDD modélisation ICV'!C112 -> 0 | W16: =W15*'BDD modélisation ICV'!D112 -> 0 | Y16: MFE - K2O (kg) | Z16: =P12 -> 0.00 | AA16: =Q12 -> 0.00 | AB16: =R12 -> 0.00
K17: Emissions de N2O (indirect) | L17: =(L16*0.01)/28*44 -> 0 | M17: =(M16*0.01)/28*44 -> 0 | N17: 0 | O17: L de diesel pour l'épandage | P17: =P16*'BDD ITK culture'!R14 -> 0 | Q17: =Q16*'BDD ITK culture'!R14 -> 0 | R17: =R16*'BDD ITK culture'!S14 -> 0
K18: Emissions de N2O (direct) | L18: =IF(OR('Données projet'!B91="couvert avec récupération du biogaz",'Données projet'!B91="couvert"),L9*'BDD modélisation ICV'!B103/28*44*0.3,L9*'BDD modélisation ICV'!B103/28*44) -> 0 | M18: =IF(OR('Données projet'!B91="couvert avec récupération du biogaz",'Données projet'!B91="couvert"),M9*'BDD modélisation ICV'!C103/28*44*0.3,M9*'BDD modélisation ICV'!C103/28*44) -> 0 | N18: =((N9-R9)*'BDD modélisation ICV'!D103)/28*44 -> 0 | O18: kg de diesel pour l'épandage | P18: =P17*'BDD modélisation ICV'!A135 -> 0 | Q18: =Q17*'BDD modélisation ICV'!A135 -> 0 | R18: =R17*'BDD modélisation ICV'!A135 -> 0 | T18: Emissions directes de N-N2O | U18: =U5*'BDD modélisation ICV'!B113 -> 0 | V18: =V5*'BDD modélisation ICV'!C113 -> 0 | W18: =W5*'BDD modélisation ICV'!D113 -> 0 | Y18: N-répartition entre les phases | Z18: =IFERROR(Z14/SUM($Z$14:$AB$14),0) -> 0 | AA18: =IFERROR(AA14/SUM($Z$14:$AB$14),0) -> 0 | AB18: =IFERROR(AB14/SUM($Z$14:$AB$14),0) -> 0
K19: kg eq CO2 20 ans | L19: =L14*FC_CH4B20+(L18+L17)*FC_N2O20 -> 0 | M19: =M14*FC_CH4B20+(M18+M17)*FC_N2O20 -> 0 | N19: =N14*FC_CH4B20+(N18+N17)*FC_N2O20 -> 0 | O19: kg eq CO2 20 ans | P19: =$P$18*('BDD export Ecoinvent - SIMAPRO'!D8+'BDD export Ecoinvent - SIMAPRO'!E8) -> 0 | Q19: =$Q$18*('BDD export Ecoinvent - SIMAPRO'!D8+'BDD export Ecoinvent - SIMAPRO'!E8) -> 0 | R19: =$R$18*('BDD export Ecoinvent - SIMAPRO'!D8+'BDD export Ecoinvent - SIMAPRO'!E8) -> 0 | Y19: N (kg) -digestat sur CIVES et cultures principales du système de méthanisation | Z19: ='Données projet substrat'!CD4 -> 0.00
K20: kg eq CO2 100 ans | L20: =L14*FC_CH4B100+(L17+L18)*FC_N2O100 -> 0 | M20: =M14*FC_CH4B100+(M17+M18)*FC_N2O100 -> 0 | N20: =N14*FC_CH4B100+(N17+N18)*FC_N2O100 -> 0 | O20: kg eq CO2 100 ans | P20: =$P$18*('BDD export Ecoinvent - SIMAPRO'!D9+'BDD export Ecoinvent - SIMAPRO'!E9) -> 0 | Q20: =$Q$18*('BDD export Ecoinvent - SIMAPRO'!D9+'BDD export Ecoinvent - SIMAPRO'!E9) -> 0 | R20: =$R$18*('BDD export Ecoinvent - SIMAPRO'!D9+'BDD export Ecoinvent - SIMAPRO'!E9) -> 0 | T20: Emissions totales de N-N2O | U20: =U13+U16+U18 -> 0 | V20: =V13+V16+V18 -> 0 | W20: =W13+W16+W18 -> 0
O21: Ressources fossiles et nucléaires (kWh eq) | P21: =$P$18*('BDD export Ecoinvent - SIMAPRO'!D10+'BDD export Ecoinvent - SIMAPRO'!E10) -> 0 | Q21: =$Q$18*('BDD export Ecoinvent - SIMAPRO'!D10+'BDD export Ecoinvent - SIMAPRO'!E10) -> 0 | R21: =$R$18*('BDD export Ecoinvent - SIMAPRO'!D10+'BDD export Ecoinvent - SIMAPRO'!E10) -> 0 | T21: kg eq CO2 20 ans | U21: =U20/28*44*FC_N2O20 -> 0 | V21: =V20/28*44*FC_N2O20 -> 0 | W21: =W20/28*44*FC_N2O20 -> 0 | Y21: N (kg) -digestat sur CIVES et cultures principales du système de méthanisation - répartition entre les phases produites par le système | Z21: =$Z$19*Z18 -> 0 | AA21: =$Z$19*AA18 -> 0 | AB21: =$Z$19*AB18 -> 0
K22: Emissions de N_N2O (direct) | L22: =IF(OR('Données projet'!B91="couvert avec récupération du biogaz",'Données projet'!B91="couvert"),L9*'BDD modélisation ICV'!B103*0.3,L9*'BDD modélisation ICV'!B103) -> 0 | M22: =IF(OR('Données projet'!B91="couvert avec récupération du biogaz",'Données projet'!B91="couvert"),M9*'BDD modélisation ICV'!C103*0.3,M9*'BDD modélisation ICV'!C103) -> 0 | N22: =((N9-R9)*'BDD modélisation ICV'!D103) -> 0 | T22: kg eq CO2 100 ans | U22: =U20/28*44*FC_N2O100 -> 0 | V22: =V20/28*44*FC_N2O100 -> 0 | W22: =W20/28*44*FC_N2O100 -> 0 | Y22: N (kg) - exporté | Z22: =IF(Z14-Z21<0,0,Z14-Z21) -> 0.00 | AA22: =IF(AA14-AA21<0,0,AA14-AA21) -> 0.00 | AB22: 0.00
B23: Cultures dédiées | C23: Cultures dédiées déclassées | D23: CIVE d'hiver | E23: CIVE d'été | Y23: P2O5 (kg) - exporté | Z23: =IFERROR(Z15*Z22/Z14,0) -> 0 | AA23: =IFERROR(AA15*AA22/AA14,0) -> 0 | AB23: =IFERROR(AB15*AB22/AB14,0) -> 0
A24: t de MS issu d'un ensilage | B24: =SUMIF('Données projet substrat'!D6:D1795,"Cultures principales",'Données projet substrat'!V6:V1795) -> 0 | C24: =SUMIF('Données projet substrat'!D6:D1795,"Cultures principales déclassées",'Données projet substrat'!V6:V1795) -> 0 | D24: =SUMIF('Données projet substrat'!D6:D1795,"CIVE d'hiver",'Données projet substrat'!V6:V1795) -> 0 | E24: =SUMIF('Données projet substrat'!D6:D1795,"CIVE d'été",'Données projet substrat'!V6:V1795) -> 0 | K24: kg CO2 biogénique | L24: =L15 -> 0 | M24: =M15 -> 0 | N24: =N15 -> 0 | T24: Sommes | Y24: K2O (kg) - exporté | Z24: =IFERROR(Z16*Z22/Z14,0) -> 0 | AA24: =IFERROR(AA16*AA22/AA14,0) -> 0 | AB24: =IFERROR(AB16*AB22/AB14,0) -> 0
A25: Emissions de CH4 | B25: =SUM(B24:C24)*1000*'BDD modélisation ICV'!E6/1000 -> 0 | D25: =SUM(D24:E24)*1000*'BDD modélisation ICV'!E6/1000 -> 0 | K25: Emissions de méthane rapportées à la production exprimée | T25: N_NH3 | U25: =SUM(L16:N16,U11:W11,U12:W12) -> 0
A26: Emissions de N2O (direct) | B26: =SUM(B24:C24)/1000*'BDD modélisation ICV'!F6*1000 -> 0 | D26: =SUM(D24:E24)/1000*'BDD modélisation ICV'!F6*1000 -> 0 | K26: =SUM(L26:N26) ->  | L26: =L14/($C$80*1000) ->  | M26: =M14/($C$80*1000) ->  | N26: =N14/($C$80*1000) ->  | T26: N_N20 direct | U26: =SUM(L22:N22)*28/44+SUM(U18:W18) -> 0
A27: kg eq CO2 20 ans | B27: =B25*FC_CH4B20+B26*FC_N2O20 -> 0 | D27: =D25*FC_CH4B20+D26*FC_N2O20 -> 0 | T27: N_NO3- | U27: =SUM(U15:W15) -> 0
A28: kg eq CO2 100 ans | B28: =B25*FC_CH4B100+B26*FC_N2O100 -> 0 | D28: =D25*FC_CH4B100+D26*FC_N2O100 -> 0 | L28: =IF(OR('Données projet'!B91="couvert avec récupération du biogaz",'Données projet'!B91="couvert"),L9*'BDD modélisation ICV'!B102/18*14*0.7,L9*'BDD modélisation ICV'!B102/18*14) -> 0 | M28: =IF(OR('Données projet'!B90="couvert avec récupération du biogaz",'Données projet'!B90="couvert"),M9*'BDD modélisation ICV'!C102/18*14*0.7,M9*'BDD modélisation ICV'!C102/18*14) -> 0 | U28: =SUM(U25:U27) -> 0
A31: 2. ITK
A32: Consommation tracteurs | B32: Cultures principales | C32: CIVES
A33: Consommation diesel (kg) | B33: =SUMIF('Données projet substrat'!D6:D1795,"Cultures principales",'Données projet substrat'!BQ6:BQ1795) -> 0.00 | C33: =SUMIF('Données projet substrat'!D6:D1795,"CIVE*",'Données projet substrat'!BQ6:BQ1795) -> 0.00
A34: kg eq CO2 20 ans | B34: =$B$33*('BDD export Ecoinvent - SIMAPRO'!D8+'BDD export Ecoinvent - SIMAPRO'!E8) -> 0.00 | C34: =$C$33*('BDD export Ecoinvent - SIMAPRO'!D8+'BDD export Ecoinvent - SIMAPRO'!E8) -> 0.00
A35: kg eq CO2 100 ans | B35: =$B$33*('BDD export Ecoinvent - SIMAPRO'!D9+'BDD export Ecoinvent - SIMAPRO'!E9) -> 0.00 | C35: =$C$33*('BDD export Ecoinvent - SIMAPRO'!D9+'BDD export Ecoinvent - SIMAPRO'!E9) -> 0.00
A36: Ressources fossiles et nucléaires (kWh eq) | B36: =B33*('BDD export Ecoinvent - SIMAPRO'!E10+'BDD export Ecoinvent - SIMAPRO'!D10) -> 0.00 | C36: =C33*('BDD export Ecoinvent - SIMAPRO'!E10+'BDD export Ecoinvent - SIMAPRO'!D10) -> 0.00
A37: Fertlisation minérale | B37: Cultures principales | C37: CIVES
A38: Fertilisation N (kg) | B38: =SUMIF('Données projet substrat'!D6:D1795,"Cultures principales",'Données projet substrat'!CB6:CB1795) -> 0.00 | C38: =SUMIF('Données projet substrat'!D6:D1795,"CIVE*",'Données projet substrat'!CB6:CB1795) -> 0.00
A39: Fertilisation K (kg) | B39: =SUMIF('Données projet substrat'!D6:D1795,"Cultures principales",'Données projet substrat'!CE6:CE1795) -> 0.00 | C39: =SUMIF('Données projet substrat'!D6:D1795,"CIVE*",'Données projet substrat'!CE6:CE1795) -> 0.00
A40: Fertilisation P (kg) | B40: =SUMIF('Données projet substrat'!D6:D1795,"Cultures principales",'Données projet substrat'!CF6:CF1795) -> 0.00 | C40: =SUMIF('Données projet substrat'!D6:D1795,"CIVE*",'Données projet substrat'!CF6:CF1795) -> 0.00
A41: kg eq CO2 20 ans | B41: =$B$38*('BDD export Ecoinvent - SIMAPRO'!G8+'BDD export Ecoinvent - SIMAPRO'!D49)+$B$39*'BDD export Ecoinvent - SIMAPRO'!I8+$B$40*'BDD export Ecoinvent - SIMAPRO'!H8 -> 0.00 | C41: =$C$38*('BDD export Ecoinvent - SIMAPRO'!G8+'BDD export Ecoinvent - SIMAPRO'!D49)+$C$39*'BDD export Ecoinvent - SIMAPRO'!I8+$C$40*'BDD export Ecoinvent - SIMAPRO'!H8 -> 0.00
A42: kg eq CO2 100 ans | B42: =$B$38*('BDD export Ecoinvent - SIMAPRO'!G9+'BDD export Ecoinvent - SIMAPRO'!D50)+$B$39*'BDD export Ecoinvent - SIMAPRO'!I9+$B$40*'BDD export Ecoinvent - SIMAPRO'!H9 -> 0.00 | C42: =$C$38*('BDD export Ecoinvent - SIMAPRO'!G9+'BDD export Ecoinvent - SIMAPRO'!D50)+$C$39*'BDD export Ecoinvent - SIMAPRO'!I9+$C$40*'BDD export Ecoinvent - SIMAPRO'!H9 -> 0.00
A43: Ressources fossiles et nucléaires (kWh eq) | B43: =$B$38*'BDD export Ecoinvent - SIMAPRO'!G10+$B$39*'BDD export Ecoinvent - SIMAPRO'!I10+$B$40*'BDD export Ecoinvent - SIMAPRO'!H10 -> 0.00 | C43: =$C$38*'BDD export Ecoinvent - SIMAPRO'!G10+$C$39*'BDD export Ecoinvent - SIMAPRO'!I10+$C$40*'BDD export Ecoinvent - SIMAPRO'!H10 -> 0.00
A44: Fertilisation organique | B44: Cultures principales | C44: CIVES
A45: Fertilisation N (kg) | B45: =SUMIF('Données projet substrat'!D6:D1795,"Cultures principales",'Données projet substrat'!CC6:CC1795) -> 0.00 | C45: =SUMIF('Données projet substrat'!D6:D1795,"CIVE*",'Données projet substrat'!CC6:CC1795) -> 0.00 | F45: Epandage d'effluent organique suivant IPCC (2019) - Cultures principales | G45: Epandage d'effluent organique suivant IPCC (2019) - CIVES
A46: Fertilisation K (kg) | B46: =SUMIF('Données projet substrat'!D6:D1795,"Cultures principales",'Données projet substrat'!CE6:CE1795) -> 0.00 | C46: =SUMIF('Données projet substrat'!D6:D1795,"CIVE*",'Données projet substrat'!CE6:CE1795) -> 0.00 | E46: Ntot (kg) | F46: =B45 -> 0.00 | G46: =C45 -> 0.00
A47: Fertilisation P (kg) | B47: =SUMIF('Données projet substrat'!D6:D1795,"Cultures principales",'Données projet substrat'!CF6:CF1795) -> 0.00 | C47: =SUMIF('Données projet substrat'!D6:D1795,"CIVE*",'Données projet substrat'!CF6:CF1795) -> 0.00 | E47: Emissions de N_NH3 après abattement | F47: =F46*'BDD modélisation ICV'!$H$109 -> 0 | G47: =G46*'BDD modélisation ICV'!$H$109 -> 0
A48: kg eq CO2 20 ans | B48: =F53 -> 0.00 | C48: =G53 -> 0.00 | E48: Emissions de N2O indirect (via NH3 et Nox) | F48: =F47*'BDD modélisation ICV'!$H$110 -> 0 | G48: =G47*'BDD modélisation ICV'!$H$110 -> 0
A49: kg eq CO2 100 ans | B49: =F54 -> 0.00 | C49: =G54 -> 0.00 | E49: Lessivage de N-NO3- | F49: =F46*'BDD modélisation ICV'!$H$111 -> 0 | G49: =G46*'BDD modélisation ICV'!$H$111 -> 0
A50: kg CO2 biogénique | E50: Emissions de N-N2O indirect (via NO3-) | F50: =F49*'BDD modélisation ICV'!$H$112 -> 0 | G50: =G49*'BDD modélisation ICV'!$H$112 -> 0
A51: Ressources fossiles et nucléaires (kWh eq) | E51: Emissions directes de N-N2O | F51: =F46*'BDD modélisation ICV'!$H$113 -> 0 | G51: =G46*'BDD modélisation ICV'!$H$113 -> 0
A52: Application de produits phytosanitaires | B52: Cultures principales | C52: CIVES | E52: Emissions totales de N-N2O | F52: =F48+F50+F51 -> 0 | G52: =G48+G50+G51 -> 0
A53: Phytosanitaires (kg) | B53: =SUMIF('Données projet substrat'!D6:D1795,"Cultures principales",'Données projet substrat'!CG6:CG1795) -> 0.00 | C53: =SUMIF('Données projet substrat'!D6:D1795,"CIVE*",'Données projet substrat'!CG6:CG1795) -> 0.00 | E53: kg eq CO2 20 ans | F53: =F52/28*44*FC_N2O20 -> 0 | G53: =G52/28*44*FC_N2O20 -> 0
A54: kg eq CO2 20 ans | B54: =$B$53*'BDD export Ecoinvent - SIMAPRO'!J8 -> 0.00 | C54: =$C$53*'BDD export Ecoinvent - SIMAPRO'!J8 -> 0.00 | E54: kg eq CO2 100 ans | F54: =F52/28*44*FC_N2O100 -> 0 | G54: =G52/28*44*FC_N2O100 -> 0
A55: kg eq CO2 100 ans | B55: =$B$53*'BDD export Ecoinvent - SIMAPRO'!J9 -> 0.00 | C55: =$C$53*'BDD export Ecoinvent - SIMAPRO'!J9 -> 0.00
A56: Ressources fossiles et nucléaires (kWh eq) | B56: =$B$53*'BDD export Ecoinvent - SIMAPRO'!J10 -> 0.00 | C56: =$C$53*'BDD export Ecoinvent - SIMAPRO'!J10 -> 0.00
A58: 3. Transport
A59: Transport collecte au diesel (t.km) | B59: =SUMPRODUCT('Données projet substrat'!I6:I1880,(1-'Données projet substrat'!J6:J1880))+SUMPRODUCT(IF('Données projet substrat'!E6:E1880="Soupe de déconditionnement",'Données projet substrat'!G6:G1880*(1-'Données projet substrat'!J6:J1880)*'Données projet'!$B$18)) -> 0
A60: kg eq CO2 20 ans | B60: =B59*'BDD export Ecoinvent - SIMAPRO'!F8 -> 0.00
A61: kg eq CO2 100 ans | B61: =B59*'BDD export Ecoinvent - SIMAPRO'!F9 -> 0.00
A62: Ressources fossiles et nucléaires (kWh eq) | B62: =B59*'BDD export Ecoinvent - SIMAPRO'!F10 -> 0.00
A63: Transport collecte au bioGNV (t.km) | B63: =SUMPRODUCT('Données projet substrat'!I6:I1880,'Données projet substrat'!J6:J1880) -> 0
A64: Transport digestat (t.km) | B64: ='Données projet'!B92*SUM(P5:R5) -> 
A65: kg eq CO2 20 ans | B65: =B64*'BDD export Ecoinvent - SIMAPRO'!F8 -> 
A66: kg eq CO2 100 ans | B66: =B64*'BDD export Ecoinvent - SIMAPRO'!F9 -> 
A67: kg CO2 biogénique
A68: Ressources fossiles et nucléaires (kWh eq) | B68: =B64*'BDD export Ecoinvent - SIMAPRO'!F10 -> 
A70: 4. Emissions fugitives
A71: % émissions fugitives | B71: 11.6% | C71: --> Paramètre variabledu SOLVER (doit être supérieur à 0). À chaque lancement de calcul complet, recréer la liaison vers "='Calculs fonctionnement'!B71" avant de relancer le SOLVER
A72: GES émis à 100 ans | B72: =(B28+D28+B35+B180+B42+B49+B55+C35+F180+C42+C49+C55+SUMIF('Données projet substrat'!F6:F14,"Fumier",'Données projet substrat'!CI6:CI14)+SUMIF('Données projet substrat'!F6:F14,"Lisier",'Données projet substrat'!CI6:CI14)+B61+C218*B213+C219*L213*L211+IF(B218=1,B239,C213*C211+C219*M213)+F87+B96+B199+C218*D211*D213+B87+C218*K211*K213+B109+B128+C218*G211*G213+C218*H211*H213+B146+C218*I211*I213+B154+B167+C218*J211*J213+B192+B180+C218*E211*E213+C218*F211*F213+L20+M20+N20+P20+U22+Q20+V22+R20+W22+B66)/1000 -> 
A73: GES évités à 100 ans | B73: =(-B246-B265-B269-B273-B250-B254-B304-B259)/1000 -> 0.00 | D73: Cellule E73 à faire apparaitre dans les résultats si le SOLVER est appliqué | E73: =IF(B74>0,"",B71) -> 
A74: Score net aggrégé à 100 ans (t éq CO2) | B74: =B72+B73 ->  | C74: Si score négatif, objectif du solveur = annuler le score net aggrégé
A76: 5. Flux de gaz (énergie primaire)
A77: Calculs généraux (cogé ET épuration/injection)
B78: Volume (m3) | C78: Masse (t) | D78: MJ | E78: kWh | F78: Résultats des infrastructures du digesteur
A79: Digesteur
A80: CH4 produit dans le digesteur | B80: ='Données projet substrat'!AB4 -> 0.00 | C80: =B80*massevol_CH4/1000 -> 0.00 | D80: =C80*1000*PCI_CH4 -> 0.00 | E80: =D80/3.6 -> 0.00
A81: CO2 produit dans le digesteur | B81: ='Données projet substrat'!AI4 -> 0.00 | C81: =B81*massevol_CO2/1000 -> 0.00
A82: % CH4 | B82: =B80/(B80+B81) ->  | C82: =C80/(C80+C81) -> 
A83: Biogaz total produit dans le digesteur | B83: =B80+B81 -> 0.00 | C83: =C80+C81 -> 0.00
A84: CH4 émissions fugitives | B84: =B80*B71 -> 0.00 | C84: =B84*massevol_CH4/1000 -> 0.00 | D84: =C84*1000*PCI_CH4 -> 0.00 | E84: =D84/3.6 -> 0.00
A85: CO2 émissions fugitives | B85: =B81*B71 -> 0.00 | C85: =B85*massevol_CO2/1000 -> 0.00
A86: kg eq CO2 20 ans | B86: =C84*1000*FC_CH4B20 -> 0.00 | E86: kg eq CO2 20 ans | F86: =B83*'BDD export Ecoinvent - SIMAPRO'!X8*3.36311842881788E-08 -> 0.00
A87: kg eq CO2 100 ans | B87: =C84*1000*FC_CH4B100 -> 0.00 | E87: kg eq CO2 100 ans | F87: =B83*'BDD export Ecoinvent - SIMAPRO'!X9*3.36311842881788E-08 -> 0.00
A88: kg CO2 biogénique | B88: =C85*1000 -> 0.00 | E88: Ressources fossiles et nucléaires (kWh eq) | F88: =B83*'BDD export Ecoinvent - SIMAPRO'!X10*3.36311842881788E-08 -> 0.00
A90: Torchère
A91: CH4 torché | B91: =(B80-B84)*'Données projet'!B26 -> 0.00 | C91: =B91*massevol_CH4/1000 -> 0.00 | D91: =C91*1000*PCI_CH4 -> 0.00 | E91: =D91/3.6 -> 0.00
A92: CH4 torché imbrulé | B92: =B91*'BDD modélisation ICV'!$B$72 -> 0.00 | C92: =B92*massevol_CH4/1000 -> 0.00E+00 | D92: =C92*1000*PCI_CH4 -> 0.00 | E92: =D92/3.6 -> 0.00
A93: N2O produit par la combustion | B93: =E91*'BDD modélisation ICV'!$C$71 -> 0.00E+00 | C93: =B93*massevol_N2O/1000 -> 0.00E+00
A94: CO2 torché | B94: =(B81-B85)*'BDD modélisation ICV'!$B$71 -> 0.00 | C94: =B94*massevol_CO2/1000 -> 0.00
A95: kg eq CO2 20 ans | B95: =C92*1000*FC_CH4B20+C93*1000*FC_N2O20 -> 0.00
A96: kg eq CO2 100 ans | B96: =C92*1000*FC_CH4B100+C93*1000*FC_N2O100 -> 0.00
A97: kg CO2 biogénique | B97: =(C91*(44/16)+C94)*1000 -> 0.00
A99: Installation en cogénération
A100: Cogénérateur
A101: Biogaz détourné en épuration pour autoconsommation | B101: =B83*'Données projet'!B57 -> 0.00 | C101: =C102+C103 -> 0.00
A102: CH4 détourné en épuration pour autoconsommation | B102: =B80*'Données projet'!B57 -> 0.00 | C102: =B102*massevol_CH4/1000 -> 0.00 | D102: =C102*1000*PCI_CH4 -> 0.00 | E102: =D102/3.6 -> 0.00
A103: CO2 détourné en épuration pour autoconsommation | B103: =B81*'Données projet'!B57 -> 0.00 | C103: =B103*massevol_CO2/1000 -> 0.00
A104: CH4 total envoyé en cogé | B104: =IF('Données projet'!B9="cogénération",B80-B84-B91-B102,B114) -> 0.00 | C104: =B104*massevol_CH4/1000 -> 0.00 | D104: =C104*1000*PCI_CH4 -> 0.00 | E104: =D104/3.6 -> 0.00
A105: CH4 imbrulé en cogé | B105: =B104*'BDD modélisation ICV'!B73 -> 0.00 | C105: =B105*massevol_CH4/1000 -> 0.00 | D105: =C105*1000*PCI_CH4 -> 0.00 | E105: =D105/3.6 -> 0.00
A106: CH4 total valorisable | B106: =B104-B105 -> 0.00 | C106: =C104-C105 -> 0.00 | D106: =C106*1000*PCI_CH4 -> 0.00 | E106: =D106/3.6 -> 0.00
A107: CO2 total contenu dans le biogaz | B107: =IF('Données projet'!B9="cogénération",B81-B85-B94,0) -> 0.00 | C107: =B107*massevol_CO2/1000 -> 0.00
A108: kg eq CO2 20 ans | B108: =C105*1000*FC_CH4B20 -> 0.00
A109: kg eq CO2 100 ans | B109: =C105*1000*FC_CH4B100 -> 0.00
A110: kg CO2 biogénique | B110: =0 -> 0.00
A112: Installation en épuration/injection
A113: Epurateur
A114: Biogaz détourné vers une cogénatrice pour autoconsommation | B114: =B115+B116 -> 0.00 | C114: =C115+C116 -> 0.00
A115: CH4 détourné vers une cogénatrice pour autoconsommation | B115: =((B80-B84-B91)*('Données projet'!B60))*(1-'BDD modélisation ICV'!B73) -> 0.00 | C115: =B115*massevol_CH4/1000 -> 0.00 | D115: =C115*1000*PCI_CH4 -> 0.00 | E115: =D115/3.6 -> 0.00
A116: CO2 détourné vers une cogénatrice pour autoconsommation | B116: =(B81-B85-B94)*('Données projet'!B60) -> 0.00 | C116: =B116*massevol_CO2/1000 -> 0.00
A117: Biogaz en entrée d'épurateur | B117: =IF('Données projet'!B9="Epuration/injection",(B83-B84-B85-B91-B94)*(1-'Données projet'!B60),B101) -> 0.00 | C117: =IF('Données projet'!B9="Epuration/injection",C119+C118,0) -> 0.00
A118: CH4 en entrée d'épurateur | B118: =IF('Données projet'!B9="Epuration/injection",(B80-B84-B91)*(1-'Données projet'!B60),B102) -> 0.00 | C118: =B118*massevol_CH4/1000 -> 0.00 | D118: =C118*1000*PCI_CH4 -> 0.00 | E118: =D118/3.6 -> 0.00
A119: CO2 en entrée d'épurateur | B119: =IF('Données projet'!B9="Epuration/injection",(B81-B85-B94)*(1-'Données projet'!B60),B103) -> 0.00 | C119: =B119*massevol_CO2/1000 -> 0.00
A120: Rendement épurateur | B120: =IF('Données projet'!B61="membranaire",'BDD modélisation ICV'!B48,'BDD modélisation ICV'!$B$49) -> 97.0%
A121: Pureté du biométhane | B121: ='BDD modélisation ICV'!$D$48 -> 97.0%
A122: Off-gaz (CH4) | B122: =B118*(1-B120) -> 0.00 | C122: =B122*massevol_CH4/1000 -> 0.00 | D122: =C122*1000*PCI_CH4 -> 0.00 | E122: =D122/3.6 -> 0.00
A123: Off-gaz (CO2) | B123: =B119-B125 -> 0.00 | C123: =B123*massevol_CO2/1000 -> 0.00
A124: Biométhane en sortie d'épurateur (CH4) | B124: =(B118*B120) -> 0.00 | C124: =B124*massevol_CH4/1000 -> 0.00 | D124: =D118-D122 -> 0.00 | E124: =E118-E122 -> 0.00
A125: Biométhane en sortie d'épurateur (CO2) | B125: =B124/B121*(1-B121) -> 0.00 | C125: =B125*massevol_CO2/1000 -> 0.00
A126: Consommation de charbon actif (kg) | B126: ='BDD modélisation ICV'!B51*'Calculs fonctionnement'!B117/1000 -> 0.00
A127: kg eq CO2 20 ans | B127: =B126*'BDD export Ecoinvent - SIMAPRO'!W8 -> 0.00
A128: kg eq CO2 100 ans | B128: =B126*'BDD export Ecoinvent - SIMAPRO'!W9 -> 0.00
A129: Ressources fossiles et nucléaires (kWh eq) | B129: =B126*'BDD export Ecoinvent - SIMAPRO'!W10 -> 0.00
A130: kg CO2 biogénique | B130: =C122*(44/16)*1000+C123*1000 -> 0.00
A132: Valorisation CO2
A133: Rendement de la valorisation | B133: ='Données projet'!B64 -> 0%
A134: CO2 total récupéré | B134: =B123*B133 -> 0.00 | C134: =B134*massevol_CO2/1000 -> 0.00
A136: Poste d'injection
A137: Biométhane en entrée (CH4) | B137: =B124*(1-'Données projet'!B69) -> 0.00 | C137: =B137*massevol_CH4/1000 -> 0.00 | D137: =C137*1000*PCI_CH4 -> 0.00 | E137: =D137/3.6 -> 0.00
A138: Biométhane en entrée (CO2) | B138: =B125*(1-'Données projet'!B69) -> 0.00 | C138: =B138*massevol_CO2/1000 -> 0.00
A139: % de pertes | B139: ='BDD modélisation ICV'!E40 -> 0.10%
A140: Pertes de biométhane (CH4) | B140: =B137*B139 -> 0.00 | C140: =B140*massevol_CH4/1000 -> 0.00 | D140: =C140*1000*PCI_CH4 -> 0.00 | E140: =D140/3.6 -> 0.00
A141: Pertes de biométhane (CO2) | B141: =B138*B139 -> 0.00 | C141: =B141*massevol_CO2/1000 -> 0.00
A142: Biométhane injecté dans le réseau (CH4) | B142: =B137-B140 -> 0.00 | C142: =B142*massevol_CH4/1000 -> 0.00 | D142: =C142*1000*PCI_CH4 -> 0.00 | E142: =D142/3.6 -> 0.00
A143: Biométhane injecté dans le réseau (CO2) | B143: =B138-B141 -> 0.00 | C143: =B143*massevol_CO2/1000 -> 0.00
A144: Quantité de THT consommée | C144: =(B142+B143)*'BDD modélisation ICV'!B41/1000000 -> 0.00E+00
A145: kg eq CO2 20 ans | B145: =C140*1000*FC_CH4B20*B121+C144*1000*'BDD export Ecoinvent - SIMAPRO'!U8 -> 0.00
A146: kg eq CO2 100 ans | B146: =C140*1000*FC_CH4B100*B121+C144*1000*'BDD export Ecoinvent - SIMAPRO'!U9 -> 0.00
A147: Ressources fossiles et nucléaires (kWh eq) | B147: =C144*1000*'BDD export Ecoinvent - SIMAPRO'!U10 -> 0.00
A148: kg CO2 biogénique | B148: =C141*1000 -> 0.00
A150: Combustion du biométhane en chaudière
A151: Biométhane injecté dans le réseau et brûlé en chaudière (CH4) | B151: =B142 -> 0.00 | C151: =B151*massevol_CH4/1000 -> 0.00 | D151: =C151*1000*PCI_CH4 -> 0.00 | E151: =D151/3.6 -> 0.00
A152: Biométhane injecté dans le réseau et brûlé en chaudière (CO2) | B152: =B143 -> 0.00 | C152: =B152*massevol_CO2/1000 -> 0.00
A153: kg eq CO2 20 ans | B153: =($C$151+$C$152)*1000*'BDD export Ecoinvent - SIMAPRO'!P8 -> 0.00
A154: kg eq CO2 100 ans | B154: =($C$151+$C$152)*1000*'BDD export Ecoinvent - SIMAPRO'!P9 -> 0.00
A155: Ressources fossiles et nucléaires (kWh eq) | B155: =($C$151+$C$152)*1000*'BDD export Ecoinvent - SIMAPRO'!P10 -> 0.00
A156: kg CO2 biogénique | B156: =C151*(44/16)+C152 -> 0.00
A158: Station GNV
A159: Biométhane en entrée (CH4) | B159: =B124*'Données projet'!B69 -> 0.00 | C159: =B159*massevol_CH4/1000 -> 0.00 | D159: =C159*1000*PCI_CH4 -> 0.00 | E159: =D159/3.6 -> 0.00
A160: Biométhane en entrée (CO2) | B160: =B125*'Données projet'!B69 -> 0.00 | C160: =B160*massevol_CO2/1000 -> 0.00
A161: % de pertes au remplissage du réservoire et d'imbrûlés dans le moteur | B161: ='BDD modélisation ICV'!E42 -> 1.01%
A162: Pertes de biométhane (CH4) | B162: =B159*B161 -> 0.00 | C162: =B162*massevol_CH4/1000 -> 0.00 | D162: =C162*1000*PCI_CH4 -> 0.00 | E162: =D162/3.6 -> 0.00
A163: Pertes de biométhane (CO2) | B163: =B160*B161 -> 0.00 | C163: =B163*massevol_CO2/1000 -> 0.00
A164: Biométhane injecté en station (CH4) | B164: =B159-B162 -> 0.00 | C164: =B164*massevol_CH4/1000 -> 0.00 | D164: =C164*1000*PCI_CH4 -> 0.00 | E164: =D164/3.6 -> 0.00
A165: Biométhane injecté en station (CO2) | B165: =B160-B163 -> 0.00 | C165: =B165*massevol_CO2/1000 -> 0.00
A166: kg eq CO2 20 ans | B166: =C162*1000*FC_CH4B20 -> 0.00
A167: kg eq CO2 100 ans | B167: =C162*1000*FC_CH4B100 -> 0.00
A168: kg CO2 biogénique | B168: =C163*1000 -> 0.00
A170: Combustion de biométhane (autoconsommation dans tracteurs)
B171: Cultures principales | F171: CIVES
A172: Biométhane utilisé en tracteur | B172: =IF('Données projet'!B68="oui",C172/massevol_biométhane*1000,0) -> 0.00 | C172: =SUMIF('Données projet substrat'!D6:D1884,"Cultures principales",'Données projet substrat'!BR6:BR1884)/1000 -> 0.00 | F172: =IF('Données projet'!B68="oui",G172/massevol_biométhane*1000,0) -> 0.00 | G172: =SUMIF('Données projet substrat'!D6:D1884,"CIVE*",'Données projet substrat'!BR6:BR1884)/1000 -> 0.00
A173: dont CH4 | B173: =B172*0.97 -> 0.00 | C173: =B173*massevol_CH4/1000 -> 0.00 | D173: =C173*1000*PCI_CH4 -> 0.00 | E173: =D173/3.6 -> 0.00 | F173: =F172*0.97 -> 0.00 | G173: =F173*massevol_CH4/1000 -> 0.00 | H173: =G173*1000*PCI_CH4 -> 0.00 | I173: =H173/3.6 -> 0.00
A174: dont CO2 | B174: =B172-B173 -> 0.00 | C174: =B174*massevol_CO2/1000 -> 0.00 | F174: =F172-F173 -> 0.00 | G174: =F174*massevol_CO2/1000 -> 0.00
A175: % de pertes l'injection dans le réservoir et à l'utilisation | B175: ='BDD modélisation ICV'!E42 -> 1.01% | F175: ='BDD modélisation ICV'!E42 -> 1.01%
A176: Pertes de CH4 | B176: =B173*B175 -> 0.00 | C176: =B176*massevol_CH4/1000 -> 0.00 | D176: =C176*1000*PCI_CH4 -> 0.00 | E176: =D176/3.6 -> 0.00 | F176: =F173*F175 -> 0.00 | G176: =F176*massevol_CH4/1000 -> 0.00 | H176: =G176*1000*PCI_CH4 -> 0.00 | I176: =H176/3.6 -> 0.00
A177: Pertes de biométhane (C02) | B177: =B174*B175 -> 0.00 | C177: =B177*massevol_CO2/1000 -> 0.00 | F177: =F174*F175 -> 0.00 | G177: =F177*massevol_CO2/1000 -> 0.00
A178: CH4 brûlé en moteur | B178: =B173-B176 -> 0.00 | C178: =B178*massevol_CH4/1000 -> 0.00 | D178: =C178*1000*PCI_CH4 -> 0.00 | E178: =D178/3.6 -> 0.00 | F178: =F173-F176 -> 0.00 | G178: =F178*massevol_CH4/1000 -> 0.00 | H178: =G178*1000*PCI_CH4 -> 0.00 | I178: =H178/3.6 -> 0.00
A179: kg eq CO2 20 ans | B179: =C176*1000*FC_CH4B20 -> 0.00 | F179: =G176*1000*FC_CH4B20 -> 0.00
A180: kg eq CO2 100 ans | B180: =C176*1000*FC_CH4B100 -> 0.00 | F180: =G176*1000*FC_CH4B100 -> 0.00
A181: kg CO2 biogénique | B181: =C177*1000+C178*1000*44/16 -> 0.00 | F181: =G177*1000+G178*1000*44/16 -> 0.00
A183: Combustion de biométhane (véhicules bioGNV)
A184: Biométhane utilisé en GNV | B184: =B164+B165-B172-F172 -> 0.00 | C184: =B184*massevol_biométhane/1000 -> 0.00
A185: dont CH4 | B185: =B184*B121 -> 0.00 | C185: =B185*massevol_CH4/1000 -> 0.00 | D185: =C185*1000*PCI_CH4 -> 0 | E185: =D185/3.6 -> 0.00
A186: dont CO2 | B186: =B184*(1-B121) -> 0.00 | C186: =B186*massevol_CO2/1000 -> 0.00
A187: % de pertes l'injection dans le réservoir et à l'utilisation | B187: ='BDD modélisation ICV'!E42 -> 1.01%
A188: Pertes de biométhane (CH4) | B188: =B185*B187 -> 0.00 | C188: =B188*massevol_CH4/1000 -> 0.00 | D188: =C188*1000*PCI_CH4 -> 0.00 | E188: =D188/3.6 -> 0.00
A189: Pertes de biométhane (CO2) | B189: =B186*B187 -> 0.00 | C189: =B189*massevol_CO2/1000 -> 0.00
A190: CH4 brûlé | B190: =B185-B188 -> 0.00 | C190: =B190*massevol_CH4/1000 -> 0.00 | D190: =C190*1000*PCI_CH4 -> 0.00 | E190: =D190/3.6 -> 0.00
A191: kg eq CO2 20 ans | B191: =C188*1000*FC_CH4B20 -> 0.00
A192: kg eq CO2 100 ans | B192: =C188*1000*FC_CH4B100 -> 0.00
A193: kg CO2 biogénique | B193: =C189*1000+C190*1000*44/16 -> 0.00
A195: Traitement de l'air (consommation d'eau)
A196: Quantité d'air traité (m3) | B196: =IF('Données projet'!B25="oui",B83*'BDD modélisation ICV'!B76,0) -> 0
A197: Consommation d'eau (m3) | B197: =B196*'BDD modélisation ICV'!B77 -> 0.00
A198: kg eq CO2 20 ans | B198: =$B$197*'BDD export Ecoinvent - SIMAPRO'!T8 -> 0.00
A199: kg eq CO2 100 ans | B199: =$B$197*'BDD export Ecoinvent - SIMAPRO'!T9 -> 0.00
A200: Ressources fossiles et nucléaires (kWh eq) | B200: =$B$197*'BDD export Ecoinvent - SIMAPRO'!T10 -> 0.00
A202: 6. Flux d'énergie secondaire | D202: Consommation de biométhane par les cultures
B204: Electrique | L204: Thermique
B205: Broyage | C205: Digestion | D205: Traitement de l'air | E205: Presse à vis | F205: Centrifugeuse | G205: Epuration | H205: Capture et liquéfaction CO2 | I205: Injection dans le réseau | J205: Injection en station bioGNV | K205: Auxiliaires (en cas d'installation en cogé) | L205: Hygiénisation | M205: Chauffage digesteur
A206: Consommation unitaire | B206: ='BDD modélisation ICV'!B4 -> 8 | C206: =IF('Données projet'!B9="cogénération",'BDD modélisation ICV'!B61,'BDD modélisation ICV'!B44) -> 0.49 | D206: ='BDD modélisation ICV'!B78 -> 0.001 | E206: ='BDD modélisation ICV'!B7 -> 0.6 | F206: ='BDD modélisation ICV'!B8 -> 1.2 | G206: ='BDD modélisation ICV'!B39 -> 0.35 | H206: ='BDD modélisation ICV'!B43 -> 0.35 | I206: ='BDD modélisation ICV'!B40 -> 0.12 | J206: ='BDD modélisation ICV'!B42 -> 0.267 | K206: ='BDD modélisation ICV'!D59 -> 4.5% | L206: ='BDD modélisation ICV'!C5 -> 170 | M206: =IF('Données projet'!B9="cogénération",'Données projet'!B72,'BDD modélisation ICV'!B34) -> 6%
A207: Unité | B207: kWhe/t de matière entrante | C207: kWhe/Nm3 de CH4 produit | D207: kWh/Nm3 d'air traité | E207: kWhe/t de matière entrante | F207: kWhe/t de matière entrante | G207: kWhe/Nm3 de gaz entrant | H207: kWhe/kg CO2 valorisé | I207: kWhe/Nm3 de gaz entrant | J207: kWhe/kg GNV | K207: % de kWh produits | L207: kWht/t de matière entrante | M207: % de kWh
A208: Quantité entrante | B208: ='Données projet substrat'!T4 -> 0.0 | C208: =B80 -> 0.00 | D208: =B196 -> 0.00 | E208: =I5 -> 0.0 | F208: =IF('Données projet'!B87="centrifugeuse",I5,0) -> 0.0 | G208: =B117 -> 0.00 | H208: =C134 -> 0.00 | I208: =B124+B125 -> 0.00 | J208: =(C164+C165)*1000 -> 0.00 | K208: =IF(B230=0,C230*1000,B230*1000) -> 0.00 | L208: ='Données projet substrat'!U4 -> 0.0 | M208: =IF('Données projet'!B9="cogénération",B231*1000,E124) -> 0.0
A209: Consommation théorique (kWh) | B209: =B206*B208 -> 0.00 | C209: =C206*C208 -> 0.00 | D209: =D206*D208 -> 0.00 | E209: =E206*E208 -> 0.00 | F209: 0.00 | G209: =G206*G208 -> 0.00 | H209: 0.00 | I209: =I206*I208 -> 0.00 | J209: 0.00 | K209: =K206*K208 -> 0.00 | L209: =L206*L208 -> 0.00 | M209: =M206*M208 -> 0.00
A210: Cas déclaré: 0=à ne pas prendre en compte; 1=à prendre en compte | B210: =IF('Données projet'!B37="oui",0,1) -> 1 | C210: 0 | D210: 0 | E210: =IF('Données projet'!B87="presse à vis",IF('Données projet'!B38="Oui",0,1),0) -> 0 | F210: =IF('Données projet'!B87="centrifugeuse",IF('Données projet'!B38="Oui",0,1),0) -> 0 | G210: 0 | H210: 0 | I210: 0 | J210: 0 | K210: 0 | L210: =IF('Données projet'!B52="Oui",0,1) -> 1 | M210: 0
A211: Cas calculé: 0=à ne pas prendre en compte; 1=à prendre en compte | B211: 1 | C211: 1 | D211: =IF('Données projet'!B25="Oui",1,0) -> 0 | E211: =IF('Données projet'!B87="presse à vis",1,0) -> 0 | F211: =IF('Données projet'!B87="centrifugeuse",1,0) -> 0 | G211: =IF('Données projet'!B9="Epuration/injection",1,IF('Données projet'!B56="oui",1,0)) -> 0 | H211: =IF('Données projet'!B63="Oui",1,0) -> 0 | I211: =IF('Données projet'!B9="Epuration/injection",1,IF('Données projet'!B56="oui",1,0)) -> 0 | J211: =IF('Données projet'!B68="Oui",1,0) -> 0 | K211: =IF('Données projet'!B9="cogénération",1,0) -> 0 | L211: 1 | M211: 1
A212: kg eq CO2 20 ans | B212: =B209*('Données projet'!$B$29*'BDD export Ecoinvent - SIMAPRO'!$R$8+'Données projet'!$B$35*'BDD export Ecoinvent - SIMAPRO'!$S$8) -> 0.00 | C212: =C209*('Données projet'!$B$29*'BDD export Ecoinvent - SIMAPRO'!$R$8+'Données projet'!$B$35*'BDD export Ecoinvent - SIMAPRO'!$S$8) -> 0.00 | D212: =D209*('Données projet'!$B$29*'BDD export Ecoinvent - SIMAPRO'!$R$8+'Données projet'!$B$35*'BDD export Ecoinvent - SIMAPRO'!$S$8) -> 0.00 | E212: =E209*('Données projet'!$B$29*'BDD export Ecoinvent - SIMAPRO'!$R$8+'Données projet'!$B$35*'BDD export Ecoinvent - SIMAPRO'!$S$8) -> 0.00 | F212: =F209*('Données projet'!$B$29*'BDD export Ecoinvent - SIMAPRO'!$R$8+'Données projet'!$B$35*'BDD export Ecoinvent - SIMAPRO'!$S$8) -> 0.00 | G212: =G209*('Données projet'!$B$29*'BDD export Ecoinvent - SIMAPRO'!$R$8+'Données projet'!$B$35*'BDD export Ecoinvent - SIMAPRO'!$S$8) -> 0.00 | H212: =H209*('Données projet'!$B$29*'BDD export Ecoinvent - SIMAPRO'!$R$8+'Données projet'!$B$35*'BDD export Ecoinvent - SIMAPRO'!$S$8) -> 0.00 | I212: =I209*('Données projet'!$B$29*'BDD export Ecoinvent - SIMAPRO'!$R$8+'Données projet'!$B$35*'BDD export Ecoinvent - SIMAPRO'!$S$8) -> 0.00 | J212: =J209*('Données projet'!$B$29*'BDD export Ecoinvent - SIMAPRO'!$R$8+'Données projet'!$B$35*'BDD export Ecoinvent - SIMAPRO'!$S$8) -> 0.00 | K212: =K209*('Données projet'!$B$29*'BDD export Ecoinvent - SIMAPRO'!$R$8+'Données projet'!$B$35*'BDD export Ecoinvent - SIMAPRO'!$S$8) -> 0.00 | L212: =L209*'Données projet'!$B$41*'BDD export Ecoinvent - SIMAPRO'!$M$8 -> 0.00 | M212: =IF('Données projet'!B9="cogénération",0,IF('Données projet'!B59="oui",0,M209*'Données projet'!B41*'BDD export Ecoinvent - SIMAPRO'!N8)) -> 0.00
A213: kg eq CO2 100 ans | B213: =B209*('Données projet'!$B$29*'BDD export Ecoinvent - SIMAPRO'!$R$9+'Données projet'!$B$35*'BDD export Ecoinvent - SIMAPRO'!$S$9) -> 0.00 | C213: =C209*('Données projet'!$B$29*'BDD export Ecoinvent - SIMAPRO'!$R$9+'Données projet'!$B$35*'BDD export Ecoinvent - SIMAPRO'!$S$9) -> 0.00 | D213: =D209*('Données projet'!$B$29*'BDD export Ecoinvent - SIMAPRO'!$R$9+'Données projet'!$B$35*'BDD export Ecoinvent - SIMAPRO'!$S$9) -> 0.00 | E213: =E209*('Données projet'!$B$29*'BDD export Ecoinvent - SIMAPRO'!$R$9+'Données projet'!$B$35*'BDD export Ecoinvent - SIMAPRO'!$S$9) -> 0.00 | F213: =F209*('Données projet'!$B$29*'BDD export Ecoinvent - SIMAPRO'!$R$9+'Données projet'!$B$35*'BDD export Ecoinvent - SIMAPRO'!$S$9) -> 0.00 | G213: =G209*('Données projet'!$B$29*'BDD export Ecoinvent - SIMAPRO'!$R$9+'Données projet'!$B$35*'BDD export Ecoinvent - SIMAPRO'!$S$9) -> 0.00 | H213: =H209*('Données projet'!$B$29*'BDD export Ecoinvent - SIMAPRO'!$R$9+'Données projet'!$B$35*'BDD export Ecoinvent - SIMAPRO'!$S$9) -> 0.00 | I213: =I209*('Données projet'!$B$29*'BDD export Ecoinvent - SIMAPRO'!$R$9+'Données projet'!$B$35*'BDD export Ecoinvent - SIMAPRO'!$S$9) -> 0.00 | J213: =J209*('Données projet'!$B$29*'BDD export Ecoinvent - SIMAPRO'!$R$9+'Données projet'!$B$35*'BDD export Ecoinvent - SIMAPRO'!$S$9) -> 0.00 | K213: =K209*('Données projet'!$B$29*'BDD export Ecoinvent - SIMAPRO'!$R$9+'Données projet'!$B$35*'BDD export Ecoinvent - SIMAPRO'!$S$9) -> 0.00 | L213: =L209*'Données projet'!$B$41*'BDD export Ecoinvent - SIMAPRO'!$M$9 -> 0.00 | M213: =IF('Données projet'!B9="cogénération",0,IF('Données projet'!B59="oui",0,M209*'Données projet'!B41*'BDD export Ecoinvent - SIMAPRO'!N9)) -> 0.00
A214: Ressources fossiles et nucléaires (kWh eq) | B214: =B209*('Données projet'!$B$29*'BDD export Ecoinvent - SIMAPRO'!$R$10+'Données projet'!$B$35*'BDD export Ecoinvent - SIMAPRO'!$S$10) -> 0.00 | C214: =C209*('Données projet'!$B$29*'BDD export Ecoinvent - SIMAPRO'!$R$10+'Données projet'!$B$35*'BDD export Ecoinvent - SIMAPRO'!$S$10) -> 0.00 | D214: =D209*('Données projet'!$B$29*'BDD export Ecoinvent - SIMAPRO'!$R$10+'Données projet'!$B$35*'BDD export Ecoinvent - SIMAPRO'!$S$10) -> 0.00 | E214: =E209*('Données projet'!$B$29*'BDD export Ecoinvent - SIMAPRO'!$R$10+'Données projet'!$B$35*'BDD export Ecoinvent - SIMAPRO'!$S$10) -> 0.00 | F214: =F209*('Données projet'!$B$29*'BDD export Ecoinvent - SIMAPRO'!$R$10+'Données projet'!$B$35*'BDD export Ecoinvent - SIMAPRO'!$S$10) -> 0.00 | G214: =G209*('Données projet'!$B$29*'BDD export Ecoinvent - SIMAPRO'!$R$10+'Données projet'!$B$35*'BDD export Ecoinvent - SIMAPRO'!$S$10) -> 0.00 | H214: =H209*('Données projet'!$B$29*'BDD export Ecoinvent - SIMAPRO'!$R$10+'Données projet'!$B$35*'BDD export Ecoinvent - SIMAPRO'!$S$10) -> 0.00 | I214: =I209*('Données projet'!$B$29*'BDD export Ecoinvent - SIMAPRO'!$R$10+'Données projet'!$B$35*'BDD export Ecoinvent - SIMAPRO'!$S$10) -> 0.00 | J214: =J209*('Données projet'!$B$29*'BDD export Ecoinvent - SIMAPRO'!$R$10+'Données projet'!$B$35*'BDD export Ecoinvent - SIMAPRO'!$S$10) -> 0.00 | K214: =K209*('Données projet'!$B$29*'BDD export Ecoinvent - SIMAPRO'!$R$10+'Données projet'!$B$35*'BDD export Ecoinvent - SIMAPRO'!$S$10) -> 0.00 | L214: =L209*'Données projet'!$B$41*'BDD export Ecoinvent - SIMAPRO'!$M$10 -> 0.00 | M214: =IF('Données projet'!B9="cogénération",0,IF('Données projet'!B59="oui",0,M209*'Données projet'!B41*'BDD export Ecoinvent - SIMAPRO'!N10)) -> 0.00
A216: Consommations de l'installation (en cogénération ou en épuration/injection)
A217: Paramètres
A218: Electricité (consommation) | B218: =IF('Données projet'!B36=0,0,1) -> 0 | C218: =1-B218 -> 1
A219: Chaleur (consommation) | B219: =IF('Données projet'!B51=0,0,1) -> 0 | C219: =1-B219 -> 1
... 105 more rows

Sheet Résultats (hidden)
C4: Par indicateur
C5: Chiffre --> désagrégé (surtout stockage de carbone)
C6: Histo
C7: Sankey ?
D8: Résultat changement climatique | F8: résultats déagrégés | G8: émis | H8: évités
D9: à 20 ans et 100 ans | G9: production substrats
G10: stockage de carbone dans les sols
D11: En histogramme | G11: transport | H11: transport évité
G12: prétraitement
G13: digestion | H13: évitement traitement de référence
G14: valorisation biogaz | H14: évitement énergie
G15: transport digestat
G16: épandage digestat | H16: évitement engrais
F18: résultats agrégés | G18: émis | H18: évités | I18: Stockage de carbone
F19: cibler les étapes contributrices, proposer une listes d’actions correctives
F21: émussion fugitive d'inversion des bénéfices
D24: Résultats indicateur énergie | F24: résultats déagrégés | G24: émis | H24: évités
G25: production substrats
D26: En histogramme | G26: transport | H26: transport évité
G27: prétraitement
G28: digestion | H28: évitement traitement de référence
G29: valorisation biogaz | H29: évitement énergie
G30: transport digestat
G31: épandage digestat | H31: évitement engrais
F33: résultats agrégés | G33: émis | H33: évités
F34: cibler les étapes contributrices, proposer une listes d’actions correctives
F36: ratio entre production d'énergie de l'unité et sa consommation d'énergie sur une année
F37: kWh valorisés : électricité, thermique biogaz/biométhane, kWh compressé pour le transport
F38: kWh consommé : tracteur (diesel et biométhane), diesel transport, élec et GN thermique provenant d'une source exterieur à l'unité
D40: Résultats indicateur azote
D47: Résultats d'indicateur d'économie cicrulaire et de bonnes pratiques

Sheet Calculs d'impacts (hidden)
B22: 1) Résultats détaillés pour chaque poste | S22: Conso thermique déclaré ? | AN22: séparer diesel/bioGNV/biométhane/elec/chaleur
B23: Stockage de carbone par les CIVE | G23: Impacts des substrats cultivés (cultures principales) | K23: Impacts des substrats cultivés (CIVE) | O23: Stockage des effluents bruts | Q23: Transport | R23: Pré-traitements | T23: Digestion | W23: Cogénération | Y23: Valorisation en biométhane | AE23: Gestion du digestat | AN23: Emissions évités par les substitutions
G24: Production et combustion du carburant | H24: Fertilisation minérale | I24: Fertilisation organique | J24: Traitement phytosanitaire | K24: Production et combustion du carburant | L24: Fertilisation minérale | M24: Fertilisation organique | N24: Traitement phytosanitaire | O24: Fumiers | P24: Lisiers | Q24: Transport des substrats | R24: Broyage | S24: Hygiénisation | T24: Digesteur | U24: Torchère et traitement des airs viciés | V24: Emissions Fugitives Structurelle | W24: Auxiliaire | X24: Imbrulés de combustion en cogénératrice | Y24: Epuration | Z24: Capture et liquéfaction CO2 | AA24: Injection | AB24: Combustion en chaudière | AC24: Injection en station bioGNV | AD24: Imbrûlé de combustion en moteur de véhicule | AE24: Presse à vis | AF24: Centrifugeuse | AG24: Stockage du digestat brut | AH24: Stockage du digestat liquide | AI24: Stockage du digestat solide | AJ24: Epandage du digestat brut | AK24: Epandage du digestat liquide | AL24: Epandage du digestat solide | AM24: Transport du digestat | AN24: Evitées par la substitution de diesel de la culture CIPAN par les CIVE | AO24: Evitées par la substitution d'énergie | AP24: Evitées par la substitution de traitement de déchets et d'effluents | AQ24: Evitées par la substitution de transport de déchets | AR24: Evitées par la substitution d'engrais | AS24: Evitées par la production de CO2 biogénique (évitement du transport de CO2 fossile)
B25: t C 20 ans | C25: ='Données projet substrat'!BV4 -> 0.00 | E25: GES émis | F25: kg eq CO2 20 ans | G25: ='Calculs fonctionnement'!B27+'Calculs fonctionnement'!B34+'Calculs fonctionnement'!B179 -> 0.00 | H25: ='Calculs fonctionnement'!B41 -> 0.00 | I25: ='Calculs fonctionnement'!B48 -> 0.00 | J25: ='Calculs fonctionnement'!B54 -> 0.00 | K25: ='Calculs fonctionnement'!D27+'Calculs fonctionnement'!C34+'Calculs fonctionnement'!F179 -> 0.00 | L25: ='Calculs fonctionnement'!C41 -> 0.00 | M25: ='Calculs fonctionnement'!C48 -> 0.00 | N25: ='Calculs fonctionnement'!C54 -> 0.00 | O25: =SUMIF('Données projet substrat'!F6:F14,"Fumier",'Données projet substrat'!CH6:CH14) -> 0.00 | P25: =SUMIF('Données projet substrat'!F6:F14,"Lisier",'Données projet substrat'!CH6:CH14) -> 0.00 | Q25: ='Calculs fonctionnement'!B60 -> 0.00 | R25: ='Calculs fonctionnement'!C218*'Calculs fonctionnement'!B212 -> 0.00 | S25: ='Calculs fonctionnement'!C219*'Calculs fonctionnement'!L211*'Calculs fonctionnement'!L212 -> 0.00 | T25: =IF('Calculs fonctionnement'!B218=1,'Calculs fonctionnement'!B238,'Calculs fonctionnement'!C212*'Calculs fonctionnement'!C211+'Calculs fonctionnement'!C219*'Calculs fonctionnement'!M212)+'Calculs fonctionnement'!F86 -> 0.00 | U25: ='Calculs fonctionnement'!B95+'Calculs fonctionnement'!B198+'Calculs fonctionnement'!C218*'Calculs fonctionnement'!D211*'Calculs fonctionnement'!D212 -> 0.00 | V25: ='Calculs fonctionnement'!B86 -> 0.00 | W25: ='Calculs fonctionnement'!C218*'Calculs fonctionnement'!K211*'Calculs fonctionnement'!K212 -> 0.00 | X25: ='Calculs fonctionnement'!B108 -> 0.00 | Y25: ='Calculs fonctionnement'!B127+'Calculs fonctionnement'!C218*'Calculs fonctionnement'!G211*'Calculs fonctionnement'!G212 -> 0.00 | Z25: ='Calculs fonctionnement'!C218*'Calculs fonctionnement'!H211*'Calculs fonctionnement'!H212 -> 0.00 | AA25: ='Calculs fonctionnement'!B145+'Calculs fonctionnement'!C218*'Calculs fonctionnement'!I211*'Calculs fonctionnement'!I212 -> 0.00 | AB25: ='Calculs fonctionnement'!B153 -> 0.00 | AC25: ='Calculs fonctionnement'!B166+'Calculs fonctionnement'!C218*'Calculs fonctionnement'!J211*'Calculs fonctionnement'!J212 -> 0.00 | AD25: ='Calculs fonctionnement'!B191+'Calculs fonctionnement'!B179 -> 0.00 | AE25: ='Calculs fonctionnement'!C218*'Calculs fonctionnement'!E211*'Calculs fonctionnement'!E212 -> 0.00 | AF25: ='Calculs fonctionnement'!C218*'Calculs fonctionnement'!F211*'Calculs fonctionnement'!F212 -> 0.00 | AG25: ='Calculs fonctionnement'!L19 -> 0.00 | AH25: ='Calculs fonctionnement'!M19 -> 0.00 | AI25: ='Calculs fonctionnement'!N19 -> 0.00 | AJ25: ='Calculs fonctionnement'!P19+'Calculs fonctionnement'!U21 -> 0.00 | AK25: ='Calculs fonctionnement'!Q19+'Calculs fonctionnement'!V21 -> 0.00 | AL25: ='Calculs fonctionnement'!R19+'Calculs fonctionnement'!W21 -> 0.00 | AM25: ='Calculs fonctionnement'!B65 -> 
B26: t eq CO2 20 ans | C26: ='Données projet substrat'!BW4 -> 0.00 | E26: GES évités | F26: kg eq CO2 20 ans | AN26: =-'Calculs fonctionnement'!B245 -> 0.00 | AO26: =-'Calculs fonctionnement'!B264-'Calculs fonctionnement'!B268-'Calculs fonctionnement'!B272 -> 0.00 | AP26: =-'Calculs fonctionnement'!B249 -> 0.00 | AQ26: =-'Calculs fonctionnement'!B253 -> 0.00 | AR26: =-'Calculs fonctionnement'!B303 -> 0.00 | AS26: =-'Calculs fonctionnement'!B258 -> 0.00
B27: t C 100 ans | C27: ='Données projet substrat'!BY4 -> 0.00 | E27: GES émis | F27: kg eq CO2 100 ans | G27: ='Calculs fonctionnement'!B28+'Calculs fonctionnement'!B35+'Calculs fonctionnement'!B180 -> 0.00 | H27: ='Calculs fonctionnement'!B42 -> 0.00 | I27: ='Calculs fonctionnement'!B49 -> 0.00 | J27: ='Calculs fonctionnement'!B55 -> 0.00 | K27: ='Calculs fonctionnement'!D28+'Calculs fonctionnement'!C35+'Calculs fonctionnement'!F180 -> 0.00 | L27: ='Calculs fonctionnement'!C42 -> 0.00 | M27: ='Calculs fonctionnement'!C49 -> 0.00 | N27: ='Calculs fonctionnement'!C55 -> 0.00 | O27: =SUMIF('Données projet substrat'!F6:F14,"Fumier",'Données projet substrat'!CI6:CI14) -> 0.00 | P27: =SUMIF('Données projet substrat'!F6:F14,"Lisier",'Données projet substrat'!CI6:CI14) -> 0.00 | Q27: ='Calculs fonctionnement'!B61 -> 0.00 | R27: ='Calculs fonctionnement'!C218*'Calculs fonctionnement'!B213 -> 0.00 | S27: ='Calculs fonctionnement'!C219*'Calculs fonctionnement'!L211*'Calculs fonctionnement'!L213 -> 0.00 | T27: =IF('Calculs fonctionnement'!B218=1,'Calculs fonctionnement'!B239,'Calculs fonctionnement'!C213*'Calculs fonctionnement'!C211+'Calculs fonctionnement'!C219*'Calculs fonctionnement'!M213)+'Calculs fonctionnement'!F87 -> 0.00 | U27: ='Calculs fonctionnement'!B96+'Calculs fonctionnement'!B199+'Calculs fonctionnement'!C218*'Calculs fonctionnement'!D211*'Calculs fonctionnement'!D213 -> 0.00 | V27: ='Calculs fonctionnement'!B87 -> 0.00 | W27: ='Calculs fonctionnement'!C218*'Calculs fonctionnement'!K211*'Calculs fonctionnement'!K213 -> 0.00 | X27: ='Calculs fonctionnement'!B109 -> 0.00 | Y27: ='Calculs fonctionnement'!B128+'Calculs fonctionnement'!C218*'Calculs fonctionnement'!G211*'Calculs fonctionnement'!G213 -> 0.00 | Z27: ='Calculs fonctionnement'!C218*'Calculs fonctionnement'!H211*'Calculs fonctionnement'!H213 -> 0.00 | AA27: ='Calculs fonctionnement'!B146+'Calculs fonctionnement'!C218*'Calculs fonctionnement'!I211*'Calculs fonctionnement'!I213 -> 0.00 | AB27: ='Calculs fonctionnement'!B154 -> 0.00 | AC27: ='Calculs fonctionnement'!B167+'Calculs fonctionnement'!C218*'Calculs fonctionnement'!J211*'Calculs fonctionnement'!J213 -> 0.00 | AD27: ='Calculs fonctionnement'!B192+'Calculs fonctionnement'!B180 -> 0.00 | AE27: ='Calculs fonctionnement'!C218*'Calculs fonctionnement'!E211*'Calculs fonctionnement'!E213 -> 0.00 | AF27: ='Calculs fonctionnement'!C218*'Calculs fonctionnement'!F211*'Calculs fonctionnement'!F213 -> 0.00 | AG27: ='Calculs fonctionnement'!L20 -> 0.00 | AH27: ='Calculs fonctionnement'!M20 -> 0.00 | AI27: ='Calculs fonctionnement'!N20 -> 0.00 | AJ27: ='Calculs fonctionnement'!P20+'Calculs fonctionnement'!U22 -> 0.00 | AK27: ='Calculs fonctionnement'!Q20+'Calculs fonctionnement'!V22 -> 0.00 | AL27: ='Calculs fonctionnement'!R20+'Calculs fonctionnement'!W22 -> 0.00 | AM27: ='Calculs fonctionnement'!B66 -> 
B28: t eq CO2 100 ans | C28: ='Données projet substrat'!BZ4 -> 0.00 | E28: GES évités | F28: kg eq CO2 100 ans | AN28: =-'Calculs fonctionnement'!B246 -> 0.00 | AO28: =-'Calculs fonctionnement'!B265-'Calculs fonctionnement'!B269-'Calculs fonctionnement'!B273 -> 0.00 | AP28: =-'Calculs fonctionnement'!B250 -> 0.00 | AQ28: =-'Calculs fonctionnement'!B254 -> 0.00 | AR28: =-'Calculs fonctionnement'!B304 -> 0.00 | AS28: =-'Calculs fonctionnement'!B259 -> 0.00
E29: Enérgie consommée | F29: Ressources fossiles et nucléaires (kWh eq) | G29: ='Calculs fonctionnement'!B36 -> 0.00 | H29: ='Calculs fonctionnement'!B43 -> 0.00 | I29: ='Calculs fonctionnement'!B51 -> 0.00 | J29: ='Calculs fonctionnement'!B56 -> 0.00 | K29: ='Calculs fonctionnement'!C36 -> 0.00 | L29: ='Calculs fonctionnement'!C43 -> 0.00 | M29: ='Calculs fonctionnement'!C51 -> 0.00 | N29: ='Calculs fonctionnement'!C56 -> 0.00 | Q29: ='Calculs fonctionnement'!B62 -> 0.00 | R29: ='Calculs fonctionnement'!C218*'Calculs fonctionnement'!B214 -> 0.00 | S29: ='Calculs fonctionnement'!C219*'Calculs fonctionnement'!L211*'Calculs fonctionnement'!L214 -> 0.00 | T29: =IF('Calculs fonctionnement'!B218=1,'Calculs fonctionnement'!B240,'Calculs fonctionnement'!C214*'Calculs fonctionnement'!C211+'Calculs fonctionnement'!C219*'Calculs fonctionnement'!M214) -> 0.00 | U29: ='Calculs fonctionnement'!B200+'Calculs fonctionnement'!C218*'Calculs fonctionnement'!D211*'Calculs fonctionnement'!D214 -> 0.00 | W29: ='Calculs fonctionnement'!C218*'Calculs fonctionnement'!K211*'Calculs fonctionnement'!K214 -> 0.00 | Y29: ='Calculs fonctionnement'!B129+'Calculs fonctionnement'!C218*'Calculs fonctionnement'!G211*'Calculs fonctionnement'!G214 -> 0.00 | Z29: ='Calculs fonctionnement'!C218*'Calculs fonctionnement'!H211*'Calculs fonctionnement'!H214 -> 0.00 | AA29: ='Calculs fonctionnement'!B147+'Calculs fonctionnement'!C218*'Calculs fonctionnement'!I211*'Calculs fonctionnement'!I214 -> 0.00 | AB29: ='Calculs fonctionnement'!B155 -> 0.00 | AC29: ='Calculs fonctionnement'!C218*'Calculs fonctionnement'!J211*'Calculs fonctionnement'!J214 -> 0.00 | AE29: ='Calculs fonctionnement'!C218*'Calculs fonctionnement'!E211*'Calculs fonctionnement'!E214 -> 0.00 | AF29: ='Calculs fonctionnement'!C218*'Calculs fonctionnement'!F211*'Calculs fonctionnement'!F214 -> 0.00 | AJ29: ='Calculs fonctionnement'!P21 -> 0.00 | AK29: ='Calculs fonctionnement'!Q21 -> 0.00 | AL29: ='Calculs fonctionnement'!R21 -> 0.00 | AM29: ='Calculs fonctionnement'!B68 -> 
E30: Enérgie évitée | F30: Ressources fossiles et nucléaires (kWh eq) | AN30: =-'Calculs fonctionnement'!B247 -> 0.00 | AO30: =-'Calculs fonctionnement'!B266-'Calculs fonctionnement'!B270-'Calculs fonctionnement'!B274 -> 0.00 | AP30: =-'Calculs fonctionnement'!B251 -> 0.00 | AQ30: =-'Calculs fonctionnement'!B255 -> 0.00 | AR30: =-'Calculs fonctionnement'!B305 -> 0.00 | AS30: =-'Calculs fonctionnement'!B260 -> 0.00
B32: 2) Première agrégation (Résultats détaillés)
B33: Stockage de carbone par les CIVE | L33: Toutes les consommations électriques si c'est déclaré
G34: Production de substrats cultivés (cultures dédiées) | H34: Production de substrats cultivés (CIVE) | I34: Stockage des effluents d'élevage | J34: Transport des substrats | K34: Prétraitement | L34: Méthaniseur | M34: Méthaniseur (estimation des émissions fugitives structurelles) | N34: Valorisation du biogaz en cogénération | O34: Valorisation du biogaz en injection (biométhane et BioGNV) | P34: Valorisation du digestat (séparation, stockage et épandage) | Q34: Valorisation du digestat (transport) | R34: Evitées par la substitution de diesel de la culture CIPAN par les CIVE | S34: Evitées par la substitution d'énergie | T34: Evitées par la substitution de traitement de déchets et d'effluents | U34: Evitées par la substitution de transport de déchets | V34: Evitées par la substitution d'engrais | W34: Evitées par la production de CO2 biogénique (évitement du transport de CO2 fossile)
B35: t C 20 ans | C35: =C25 -> 0.00 | E35: GES émis | F35: kg eq CO2 20 ans | G35: =SUM(G25:J25) -> 0.00 | H35: =SUM(K24:N24) -> 0.00 | I35: =SUM(O25:P25) -> 0.00 | J35: =Q25 -> 0.00 | K35: =SUM(R25:S25) -> 0.00 | L35: =SUM(T25:U25) -> 0.00 | M35: =V25 -> 0.00 | N35: =SUM(W25:X25) -> 0.00 | O35: =SUM(Y25:AD25) -> 0.00 | P35: =SUM(AE25:AL25) -> 0.00 | Q35: =AM25 -> 
B36: t eq CO2 20 ans | C36: =C26 -> 0.00 | E36: GES évités | F36: kg eq CO2 20 ans | R36: =AN26 -> 0.00 | S36: =AO26 -> 0.00 | T36: =AP26 -> 0.00 | U36: 0.00 | V36: 0.00 | W36: 0.00
B37: t C 100 ans | C37: =C27 -> 0.00 | E37: GES émis | F37: kg eq CO2 100 ans | G37: =SUM(G27:J27) -> 0.00 | H37: =SUM(K27:N27) -> 0.00 | I37: =SUM(O27:P27) -> 0.00 | J37: =Q27 -> 0.00 | K37: =SUM(R27:S27) -> 0.00 | L37: =SUM(T27:U27) -> 0.00 | M37: =V27 -> 0.00 | N37: =SUM(W27:X27) -> 0.00 | O37: =SUM(Y27:AD27) -> 0.00 | P37: =SUM(AE27:AL27) -> 0.00 | Q37: =AM27 -> 
B38: t eq CO2 100 ans | C38: =C28 -> 0.00 | E38: GES évités | F38: kg eq CO2 100 ans | R38: =AN28 -> 0.00 | S38: 0.00 | T38: 0.00 | U38: 0.00 | V38: 0.00 | W38: 0.00
E39: Enérgie consommée | F39: Ressources fossiles et nucléaires (kWh eq) | G39: =SUM(G29:J29) -> 0.00 | H39: =SUM(K29:N29) -> 0.00 | I39: =SUM(O29:P29) -> 0.00 | J39: =Q29 -> 0.00 | K39: =SUM(R29:S29) -> 0.00 | L39: =SUM(T29:U29) -> 0.00 | M39: =V29 -> 0.00 | N39: =SUM(W29:X29) -> 0.00 | O39: =SUM(Y29:AD29) -> 0.00 | P39: =SUM(AE29:AL29) -> 0.00 | Q39: =AM29 -> 
E40: Enérgie évitée | F40: Ressources fossiles et nucléaires (kWh eq) | R40: =AN30 -> 0.00 | S40: =AO30 -> 0.00 | T40: =AP30 -> 0.00 | U40: 0.00 | V40: 0.00 | W40: 0.00
B42: 3) Résultats agrégés (tableau de bord)
B43: Stockage de carbone par les CIVE
G44: Emissions générées | H44: Emissions évitées
B45: t C 20 ans | C45: =C35 -> 0.00 | E45: GES émis | F45: t eq CO2 20 ans | G45: =SUM(G35:Q35)/1000 -> 
B46: t eq CO2 20 ans | C46: =C36 -> 0.00 | E46: GES évités | F46: t eq CO2 20 ans | H46: =SUM(R36:W36)/1000 -> 0
B47: t C 100 ans | C47: =C37 -> 0.00 | E47: GES émis | F47: t eq CO2 100 ans | G47: =SUM(G37:Q37)/1000 -> 
B48: t eq CO2 100 ans | C48: =C38 -> 0.00 | E48: GES évités | F48: t eq CO2 100 ans | H48: =SUM(R38:W38)/1000 -> 0
E49: Enérgie consommée | F49: Ressources fossiles et nucléaires (MWh eq) | G49: =SUM(G39:Q39)/1000 -> 
E50: Enérgie évitée | F50: Ressources fossiles et nucléaires (MWh eq) | H50: =SUM(R40:W40)/1000 -> 0
E52: Score net aggrégé GES émis à 20 ans (t) | F52: =IFERROR(G45+H46,0) -> 0.00 | H52: =IF(F52>0,IF(F52<G45*20%,"orange","rouge"),IF(ABS(F52)<G45*20%,"orange","vert")) -> 
E53: Score net aggrégé GES émis à 100 ans (t) | F53: =IFERROR(G47+H48,0) -> 0.00 | H53: =IF(F53>0,IF(F53<G47*20%,"orange","rouge"),IF(ABS(F53)<G47*20%,"orange","vert")) -> 
E54: Score net aggrégé ressources fossiles et nucléaires (MWh) | F54: =IFERROR(G49+H50,0) -> 0.00
F55: rouge si positif / vert si négatif
B57: Graphique de résultats
B58: 20 ans tonnes) | C58: Production de substrats cultivés (cultures dédiées) | D58: Production de substrats cultivés (CIVE) | E58: Stockage des effluents d'élevage | F58: Transport des substrats | G58: Prétraitement | H58: Méthaniseur | I58: Méthaniseur (estimation des émissions fugitives structurelles) | J58: Valorisation du biogaz en cogénération | K58: Valorisation du biogaz en injection (biométhane et BioGNV) | L58: Valorisation du digestat (séparation, stockage et épandage) | M58: Valorisation du digestat (transport) | N58: Evitées par la substitution de diesel de la culture CIPAN par les CIVE | O58: Evitées par la substitution d'énergie | P58: Evitées par la substitution de traitement de déchets et d'effluents | Q58: Evitées par la substitution de transport de déchets | R58: Evitées par la substitution d'engrais | S58: Evitées par la production de CO2 biogénique (évitement du transport de CO2 fossile)
B59: Emissions GES générés | C59: =G35/1000 -> 0.00 | D59: 0.00 | E59: 0.00 | F59: 0.00 | G59: 0.00 | H59: 0.00 | I59: =M35/1000 -> 0.00 | J59: 0.00 | K59: 0.00 | L59: 0.00
B60: Emissions GES évités | N60: =R36/1000 -> 0.00 | O60: 0.00 | P60: 0.00 | Q60: 0.00 | R60: 0.00 | S60: 0.00
B61: 100 ans (onnes) | C61: Production de substrats cultivés (cultures dédiées) | D61: Production de substrats cultivés (CIVE) | E61: Stockage des effluents d'élevage | F61: Transport des substrats | G61: Prétraitement | H61: Méthaniseur | I61: Méthaniseur (estimation des émissions fugitives structurelles) | J61: Valorisation du biogaz en cogénération | K61: Valorisation du biogaz en injection (biométhane et BioGNV) | L61: Valorisation du digestat (séparation, stockage et épandage) | M61: Valorisation du digestat (transport) | N61: Evitées par la substitution de diesel de la culture CIPAN par les CIVE | O61: Evitées par la substitution d'énergie | P61: Evitées par la substitution de traitement de déchets et d'effluents | Q61: Evitées par la substitution de transport de déchets | R61: Evitées par la substitution d'engrais | S61: Evitées par la production de CO2 biogénique (évitement du transport de CO2 fossile)
B62: Emissions GES générés | C62: =G37/1000 -> 0.00 | D62: =H37/1000 -> 0.00 | E62: 0.00 | F62: 0.00 | G62: 0.00 | H62: 0.00 | I62: 0.00 | J62: 0.00 | K62: 0.00 | L62: 0.00
B63: Emissions GES évités | N63: =R38/1000 -> 0.00 | O63: 0.00 | P63: 0.00 | Q63: 0.00 | R63: 0.00 | S63: 0.00
B64: énergie (kWh) | C64: Production de substrats cultivés (cultures dédiées) | D64: Production de substrats cultivés (CIVE) | E64: Stockage des effluents d'élevage | F64: Transport des substrats | G64: Prétraitement | H64: Méthaniseur | I64: Méthaniseur (estimation des émissions fugitives structurelles) | J64: Valorisation du biogaz en cogénération | K64: Valorisation du biogaz en injection (biométhane et BioGNV) | L64: Valorisation du digestat (séparation, stockage et épandage) | M64: Valorisation du digestat (transport) | N64: Evitées par la substitution de diesel de la culture CIPAN par les CIVE | O64: Evitées par la substitution d'énergie | P64: Evitées par la substitution de traitement de déchets et d'effluents | Q64: Evitées par la substitution de transport de déchets | R64: Evitées par la substitution d'engrais | S64: Evitées par la production de CO2 biogénique (évitement du transport de CO2 fossile) | T64: seuil critique
B65: Energie fossile et nucléaire consommée | C65: =G39 -> 0.00 | D65: =H39 -> 0.00 | E65: 0.00 | F65: 0.00 | G65: 0.00 | H65: 0.00 | I65: 0.00 | J65: 0.00 | K65: 0.00 | L65: 0.00 | T65: =-SUM(N66:S66) -> 0.00
B66: Energie fossile et nucléaire évitée | N66: =R40 -> 0.00 | O66: 0.00 | P66: 0.00 | Q66: 0.00 | R66: 0.00 | S66: 0.00 | T66: =-SUM(N66:S66) -> 0.00
B68: Résultats énergétiques
B69: TRE | C69: ='Calculs fonctionnement'!B334 -> 
B70: V | C70: ='Calculs fonctionnement'!B330 -> 

Sheet Résultats tableau de bord
B2: ='Données projet'!B6 -> 0
B3: =TODAY() -> 2024-01-29 | C3: Diagnostic DIGES 3 - Tableau de bord des résultats
B4: ='Données projet'!B7 -> 0
D8: Résultats sur l'indicateur de changement climatique à horizon 100 ans | O8: Résultats techniques | U8: Résultats énergétiques
N9: • Type d'installation : | Q9: ='Données projet'!B8 -> Votre choix | T9: • Taux de retour énergétique : | W9: ='Calculs d''impacts'!C69 -> 
N10: • Type de valorisation du biogaz : | Q10: ='Données projet'!B9 -> Votre choix
N11: • Type de voie de digestion : | Q11: ='Description des substrats'!E6 -> Humide | T11: L’unité produit | V11: =W9 -> 
I12: BILAN NET : | J12: ='Calculs d''impacts'!F53 -> 0.00 | K12: tonnes équivalent CO2 | N12: • Type de torchère : | Q12: =IF('Données projet'!B76="Oui","automatique","manuelle") -> manuelle | T12: fois plus d’énergie qu’elle n’en dépense. Un taux proche de 1 correspond à un gain énergétique nul. Plus le taux est élevé, meilleur est le ratio entre la production d'énergie au regard de la consommation par l'unité.
N13: • Tonnage annuel de matière brute : | Q13: ='Calculs fonctionnement'!B5 -> 0 | R13: t
O14: Production de biométhane
I15: Feu tricolore : | N15: • Capacité moyenne annuelle : | Q15: ='Données projet'!B10 -> 0 | R15: Nm3.h
I16: ='Calculs d''impacts'!$H$53 ->  | N16: • Capacité annuel de production : | Q16: ='Données projet'!B11 -> 0 | R16: GWh/an | T16: • Energie valorisée : | V16: ='Calculs d''impacts'!C70 -> 
O17: Cogénération ou chaleur seule | T17: (% d'énergie primaire convertie en énergie finale)
N18: • Puissance électrique installée : | Q18: ='Données projet'!B12 -> 0 | R18: kW élec.
I19: Feu rouge : situation défavorable | N19: • Puissance thermique installée : | Q19: ='Données projet'!B13 -> 0 | R19: kW th.
I20: Feu orange : zone d'incertitude
I21: Feu vert : situation favorable | N21: =IF($I$16="rouge","l","") ->  | O21: =IF($I$16="orange","l","") ->  | P21: =IF($I$16="vert","l","") -> 
O30: Résultats de flux d'azote | U30: Attention
D31: • Taux d'émissions fugitives calculé pour l'installation (en pourcentage de la production annuelle de méthane contenu dans le biogaz) : | J31: ='Calculs fonctionnement'!B71 -> 5.00% | T31: Le stockage du carbone dans le sol n'a pas été calculé: donnée(s) manquante(s) pour 1 ou plusieurs substrats
D32: • Emissions fugitives hypothétiques : δ100ans = | H32: ='Calcul delta'!B71*'Calcul delta'!C80 -> 0.00 | I32: kg de méthane sur un an.
D33: soit | E33: ='Calcul delta'!B71*100 -> 11.57 | F33: % de la production annuelle de méthane contenu dans le biogaz | N33: • Evitement de fertilisants de synthèse (hors digestat épandu sur les CIVE et les cultures principales) : | T33: Des informations de l'onglet Economie circulaire et Enjeux biodiversité n'ont pas été saisies.
D34: Le δ correspond au seuil d’émissions fugitives potentielles au-delà duquel on observe une inversion des bénéfices de l’unité sur le changement climatique (plus l’indicateur est élevé plus le risque d’inversion des bénéfices est faible) | N34: ='Résultats détaillés'!W161 -> 0.00 | O34: kg UN/an
N35: • Equivalence en surface de SAU ferilisée (pour une dose de 170 UN/ha, hors CIVE et cultures principales) :
D36: • Estimation par AMG d’un stockage de carbone de : | H36: ='Calculs d''impacts'!C47 -> 0.00 | I36: tonnes de carbone par an au sein de
D37: la matière organique du sol. Soit un équivalent CO2 de | I37: ='Calculs d''impacts'!C48 -> 0.00 | J37: t CO2 eq / an | N37: ='Résultats détaillés'!W163 -> 0.00 | O37: ha de SAU / an
D38: sous l’hypothèse du maintien des pratiques de culture des CIVE et de la teneur en carbone stable.

Sheet Résultats détaillés
B2: ='Données projet'!B6 -> 0
B3: =TODAY() -> 2024-01-29 | C3: Diagnostic DIGES 3 - Résultats détaillés
B4: ='Données projet'!B7 -> 0
C6: Résultats techniques
D8: • Type d'installation : | I8: ='Données projet'!B8 -> Votre choix | L8: • Liste des principaux substrats :
D9: • Type de valorisation du biogaz : | I9: ='Données projet'!B9 -> Votre choix | L9: Numéro du substrat | N9: Nom du substrat | R9: % en MB du mélange | T9: % de production de l'énergie primaire
D10: • Type de voie de digestion : | I10: ='Description des substrats'!E6 -> Humide
D11: • TSH estimé pour votre installation | I11: ='Données projet'!B23 ->  | J11: jours | L11: Substrat 2 | N11: Bovin - Lisiers autres | R11: 50.9% | T11: 18.5%
D12: • Type de torchère : | I12: =IF('Données projet'!B76="Oui","Automatique","Manuelle") -> Manuelle | L12: Substrat 9 | N12: Féculerie/ transformation de pomme de terre | R12: 11.0% | T12: 16.6%
D13: • Distance moyenne de transport des substrats : | I13: ='Données projet substrat'!H4 ->  | J13: km | L13: Substrat 8 | N13: Soupe de déconditionnement | R13: 9.5% | T13: 13.0%
D14: • Distance maximale de transport des substrats : | I14: =MAX('Données projet substrat'!H6:H2086) -> 0 | J14: km | L14: Substrat 1 | N14: Volaille - Fumier (autres), fientes | R14: 7.7% | T14: 13.1%
D15: • Distance moyenne de transport du digestat : | I15: ='Données projet'!B92 ->  | J15: km | L15: Substrat 4 | N15: Céréales immatures, ensilées, non ensilées | R15: 7.0% | T15: 11.2%
D16: • Tonnage annuel de matière brute : | I16: ='Données projet substrat'!G4 -> 0 | J16: tonnes | L16: TOTAL | R16: =SUM(R11:S15) -> 86.0% | T16: =SUM(T11:U15) -> 72.5%
D17: • Capacité moyenne annuelle de production de biométhane : | I17: ='Données projet'!B10 -> 0 | J17: Nm3.h
D18: • Capacité annuelle de production de biométhane : | I18: ='Données projet'!B11 -> 0 | J18: GWh / an
D19: • Puissance électrique installée (kWe, si cogénération) | I19: ='Données projet'!B12 -> 0 | J19: kW électriques
D20: • Puissance thermique installée (kWth, si cogénération ou chaleur seule) | I20: ='Données projet'!B13 -> 0 | J20: kW thermiques
P26: Etapes les plus contributrices:
P27: 1 | Q27: =Feuil1!I17 -> Méthaniseur (estimation des émissions fugitives structurelles)
C28: Résultats sur l'indicateur de changement climatique à horizon 100 ans | P28: 2 | Q28: =Feuil1!I18 -> Valorisation du digestat (séparation, stockage et épandage)
P29: 3 | Q29: =Feuil1!I19 -> Valorisation du biogaz en cogénération
P46: • Taux d'émissions fugitives calculé pour l'installation (en pourcentage de la production annuelle de méthane contenu dans le biogaz) :
W47: ='Calculs fonctionnement'!B71 -> 5.00%
P48: • Emissions fugitives hypothétiques : δ100ans = | T48: ='Résultats tableau de bord'!H32 -> 0.00 | U48: kg de méthane
P49: Soit | Q49: ='Résultats tableau de bord'!E33 -> 11.57 | R49: % de la production annuelle de méthane contenu dans le biogaz
P50: Le δ correspond au seuil d’émissions fugitives au-delà duquel on observe une inversion des bénéfices de l’unité sur le changement climatique, plus l’indicateur est élevé plus le risque d’inversion des bénéfices est faible)
D54: Feu tricolore : | F54: ='Calculs d''impacts'!$H$53 -> 
D55: Feu rouge : situation défavorable | H55: BILAN NET : | I55: ='Calculs d''impacts'!F53 -> 0.00 | J55: tonnes équivalent CO2 | P55: =IF($F$54="rouge","l","") ->  | Q55: =IF($F$54="orange","l","") ->  | R55: =IF($F$54="vert","l","") -> 
D56: Feu orange : zone d'incertitude
D57: Feu vert : situation favorable
D59: • Estimation par AMG d’un stockage de carbone : | H59: ='Calculs d''impacts'!C47 -> 0.00 | I59: tonnes de carbone par an au sein de la matière organique du sol.
D60: Soit un équivalent CO2 de : | F60: ='Calculs d''impacts'!C48 -> 0.00 | G60: t CO2 eq / an | I60: sous l’hypothèse du maintien des pratiques de culture des CIVE
D61: et de la teneur en carbone stable.
P67: Etapes les plus contributrices:
P68: 1 | Q68: =Feuil1!I3 -> Valorisation du digestat (séparation, stockage et épandage)
C69: Résultats sur l'indicateur de changement climatique à horizon 20 ans | P69: 2 | Q69: =Feuil1!I4 -> Méthaniseur (estimation des émissions fugitives structurelles)
P70: 3 | Q70: =Feuil1!I5 -> Valorisation du biogaz en cogénération
D95: Feu tricolore : | F95: ='Calculs d''impacts'!H52 -> 
D96: Feu rouge : situation défavorable | H96: BILAN : | I96: ='Calculs d''impacts'!F52 -> 0.00 | J96: tonnes équivalent CO2 | O96: =IF($F$95="rouge","l","") ->  | P96: =IF($F$95="orange","l","") ->  | Q96: =IF($F$95="vert","l","") -> 
D97: Feu orange : zone d'incertitude
D98: Feu vert : situation favorable
D100: • Estimation par AMG d’un stockage de carbone : | H100: ='Calculs d''impacts'!$C$45 -> 0.00 | I100: tonnes de carbone par an au sein de la matière organique du sol.
D101: Soit un équivalent CO2 de : | F101: ='Calculs d''impacts'!$C$46 -> 0.00 | G101: t CO2 eq / an | I101: sous l’hypothèse du maintien des pratiques de culture des CIVE
D102: et de la teneur en carbone stable.
C110: Résultats énergétiques
D112: • Taux de Retour Energétique : | G112: ='Calculs d''impacts'!C69 -> 
D113: L’unité produit X fois plus d’énergie qu’elle n’en dépense pour la produire. Un taux proche de 1 correspond à un gain énergétique nul. Plus le taux est élevé, meilleur est le ratio entre la production d'énergie au regard de la consommation par l'unité.
D114: • Energie Valorisée : | F114: ='Calculs d''impacts'!C70 -> 
D115: • Répartition des consommations et substitutions d'énergie fossile et nucléaire (le seuil critique figure un niveau de consommation d’énergie qui serait supérieur aux évitements) :
C141: Indicateur azote | O141: Emissions azotées et indicateurs du pouvoir fertilisant du digestat
D143: • Répartition des apports d'azote introduits dans le mélange de substrats : | P143: • Répartition du devenir de l'azote introduit dans le mélange de substrats :
P158: • Pourcentage de l'azote valorisable au regard de l'azote introduit dans le digesteur : | X158: =SUM('Calculs fonctionnement'!Z14:AB14)/'Calculs fonctionnement'!B8 -> 
P159: • Pourcentage de l'azote disponible pour d'autres cultures que les CIVE et cultures principales au regard de l'azote introduit dans le digesteur :
X160: =SUM('Calculs fonctionnement'!Z22:AB22)/'Calculs fonctionnement'!B8 -> 
P161: • Unité d'azote exportée et générant des évitements de fertilisants : | W161: =SUM('Calculs fonctionnement'!Z22:AB22) -> 0.00 | X161: UN/an
P162: • Equivalences en surface de SAU fertilisée (pour une dose de 170 UN/ha, hors CIVE et cultures principales) :
W163: =W161/170 -> 0.00 | X163: ha de SAU/an
C167: Résultats Economie circulaire et Enjeux Biodiversité
E169: 1. Gestion des cultures - méthanisation agricole
E170: SAU occuppé par les cultures principales | M170: ='Données projet'!B100 -> 0% | T170: %
E171: SAU occupé par les CIVE d'été : | M171: ='Données projet'!B101 -> 0% | T171: %
E172: SAU occupé par les CIVE d'hiver : | M172: ='Données projet'!B102 -> 0% | T172: %
E173: SAU occupé par les prairies : | M173: ='Données projet'!B103 -> 0% | T173: %
E174: 2. Gestion des CIVE
E175: Irrigation des CIVE : | M175: ='Données projet'!B105 -> Votre choix
E176: Usage de perticides sur les CIVE : | M176: ='Données projet'!B106 -> Votre choix
E177: Fertilisation minérale des CIVE : | M177: ='Données projet'!B107 -> Votre choix
E178: Pratique de techniques culturales simplifiées sur les CIVE : | M178: ='Données projet'!B108 -> Votre choix
E179: Au moins une des CIVE est cultivée avec au moins deux espèces végétales différentes : | M179: ='Données projet'!B109 -> Votre choix
E180: 3. Exploitation
E181: % de substitution des engrais minéraux sur l'exploitation : | M181: ='Données projet'!B111 -> 0% | T181: %
E182: L'exploitation a obtenu une certification HVE niveau 3 : | M182: ='Données projet'!B112 -> Votre choix
E183: L'exploitation a obtenu une certification Agriculture Biologique : | M183: ='Données projet'!B113 -> Votre choix
E184: L'exploitation a réalisé des bilans humiques et/ou des analyses de la qualité des sols : | M184: ='Données projet'!B114 -> Votre choix
E185: 4. Economie circulaire et Intégration dans le territoire
E186: L'exploitation est gouvernée localement : | M186: ='Données projet'!B116 -> Votre choix
E187: Hauteur du financement de l'exploitation par des acteurs locaux (agriculteurs, collectivités, citoyens, entreprises…) : | M187: ='Données projet'!B117 -> Votre choix
E188: Hauteur de l'implication de la collectivité locale dans l'exploitation (approvisionnement en biodéchets, achat d'énergie, concertation…) : | M188: ='Données projet'!B118 -> Votre choix
E189: Hauteur de la valorisation du digestat sur les terres des actionnaires agricoles : | M189: ='Données projet'!B119 -> Votre choix
E190: 5. Plateforme et aménagement du site de méthanisation
E191: Surface du site de méthanisation : | M191: ='Données projet'!B121 -> 0
E192: Le site de méthanisation a été installé sur une surface déjà artificialisée : | M192: ='Données projet'!B122 -> Votre choix
E193: % de surface au sol imperméabilisée par l'installation : | M193: ='Données projet'!B123 -> 80% | T193: %
E194: Prise en compte des préconisations de l'ICPE dans l'intégration paysagère du projet : | M194: ='Données projet'!B124 -> Votre choix
E195: Nombre de mètres de linéaires de haies plantés sur l'installation : | M195: ='Données projet'!B125 -> 0 | T195: m

Sheet Résultats bruts
B4: Diagnostic DIGES 3 - Résultats bruts
C6: 1) Résultats d'impact sur le changement climatique à horizon 100 ans | E6: Impact sur le changement climatique à horizon 100 ans (tonnes équivalent CO2)
C7: Emissions générées par l’unité | D7: Production de substrats cultivés (cultures dédiées) | E7: ='Calculs d''impacts'!C62 -> 0.00
D8: Production de substrats cultivés (CIVE) | E8: ='Calculs d''impacts'!D62 -> 0.00
D9: Stockage des effluents bruts | E9: ='Calculs d''impacts'!E62 -> 0.00
D10: Transport des substrats | E10: ='Calculs d''impacts'!F62 -> 0.00
D11: Prétraitement | E11: ='Calculs d''impacts'!G62 -> 0.00
D12: Méthaniseur | E12: ='Calculs d''impacts'!H62 -> 0.00
D13: Méthaniseur (estimation des émissions fugitives structurelles) | E13: ='Calculs d''impacts'!I62 -> 0.00
D14: Valorisation du biogaz en cogénération | E14: ='Calculs d''impacts'!J62 -> 0.00
D15: Valorisation du biogaz en injection (biométhane et BioGNV) | E15: ='Calculs d''impacts'!K62 -> 0.00
D16: Valorisation du digestat (séparation, stockage et épandage) | E16: ='Calculs d''impacts'!L62 -> 0.00
D17: Valorisation du digestat (transport) | E17: ='Calculs d''impacts'!M62 -> 
C18: Emissions évitées par les filières de références | D18: Evitées par la substitution de diesel (CIVE à la place de CIPAN) | E18: ='Calculs d''impacts'!N63 -> 0.00
D19: Evitées par la substitution d'énergie | E19: ='Calculs d''impacts'!O63 -> 0.00
D20: Evitées par la substitution de traitement de déchets et d'effluents | E20: ='Calculs d''impacts'!P63 -> 0.00
D21: Evitées par la substitution de transport de déchets | E21: ='Calculs d''impacts'!Q63 -> 0.00
D22: Evitées par la substitution d'engrais | E22: ='Calculs d''impacts'!R63 -> 0.00
D23: Evitées par la production de CO2 biogénique (évitement du transport de CO2 fossile) | E23: ='Calculs d''impacts'!S63 -> 0.00
C24: BILAN NET | E24: =SUM(E7:E23) -> 
C28: 2) Résultats d'impacts sur l'utilisation de ressources fossiles et nucléaires | E28: Ressources fossiles et nucléaires (kWh eq)
C29: Energie fossile et nucléaire consommée par l'unité | D29: Production de substrats cultivés (cultures dédiées) | E29: ='Calculs d''impacts'!C65 -> 0.00
D30: Production de substrats cultivés (CIVE) | E30: ='Calculs d''impacts'!D65 -> 0.00
D31: Stockage des effluents bruts et biodéchets | E31: ='Calculs d''impacts'!E65 -> 0.00
D32: Transport des substrats | E32: ='Calculs d''impacts'!F65 -> 0.00
D33: Prétraitement | E33: ='Calculs d''impacts'!G65 -> 0.00
D34: Méthaniseur | E34: ='Calculs d''impacts'!H65 -> 0.00
D35: Méthaniseur (estimation des émissions fugitives structurelles) | E35: ='Calculs d''impacts'!I65 -> 0.00
D36: Valorisation du biogaz en cogénération | E36: ='Calculs d''impacts'!J65 -> 0.00
D37: Valorisation du biogaz en injection (biométhane et BioGNV) | E37: ='Calculs d''impacts'!K65 -> 0.00
D38: Valorisation du digestat (séparation, stockage et épandage) | E38: ='Calculs d''impacts'!L65 -> 0.00
D39: Valorisation du digestat (transport) | E39: ='Calculs d''impacts'!M65 -> 
C40: Energie fossile et nucléaire évitée par les filières de références | D40: Evitées par la substitution de diesel (CIVE à la place de CIPAN) | E40: ='Calculs d''impacts'!N66 -> 0.00
D41: Evitées par la substitution d'énergie | E41: ='Calculs d''impacts'!O66 -> 0.00
D42: Evitées par la substitution de traitement de déchets et d'effluents | E42: ='Calculs d''impacts'!P66 -> 0.00
D43: Evitées par la substitution de transport de déchets | E43: ='Calculs d''impacts'!Q66 -> 0.00
D44: Evitées par la substitution d'engrais | E44: ='Calculs d''impacts'!R66 -> 0.00
D45: Evitées par la production de CO2 biogénique (évitement du transport de CO2 fossile) | E45: ='Calculs d''impacts'!S66 -> 0.00
C46: BILAN NET | E46: =SUM(E29:E45) -> 

Sheet BDD ITK culture (hidden)
I3: Epandage différencier en ferti minéral et orga | K3: destruction chimique ?
C4: Nombre de passages réalisés | D4: Déchaumage | E4: Labour | F4: Reprise (Chisel) | G4: Préparation lit (vibroculteur) | H4: Semis | I4: Fertilisation minérale | J4: Fertilisation organique | K4: Protection des plantes (épandeur porté) | L4: Récolte (ensileuse) | M4: Transport sur l'exploitation
C5: ITK CIPAN | D5: 2 | E5: 0 | F5: 0 | G5: 0 | H5: 1 | I5: 0 | J5: 0 | K5: 1 | L5: 0 | M5: 0
C6: ITK simplifié | D6: 0 | E6: 0 | F6: 0 | G6: 0 | H6: 1 | I6: 0 | J6: 1 | K6: 0 | L6: 1 | M6: 0 | N6: En semis direct
C7: ITK moyen | D7: 1 | E7: 0 | F7: 0 | G7: 0 | H7: 1 | I7: 1 | J7: 1 | K7: 1 | L7: 1 | M7: 0
C8: ITK soutenu | D8: 1 | E8: 0 | F8: 1 | G8: 1 | H8: 1 | I8: 2 | J8: 1 | K8: 1 | L8: 1 | M8: 0 | N8: labour plutôt sur la culture suivante | O8: ferti un orga et un min en complément
L9: Fauchage pluis andennage
C10: Agribalyse 3.1 | L10: zone d'élevage, préfannage puis ramassage
C11: Nom renseigné | D11: Cover-crop, cover-crop 4m | E11: Ploughing | F11: Cultivateur chisel 4.5m | G11: Vibroculteur, 5m | H11: Semis combi, semoir, mécanique | I11: Epandage azote liquide, pulvérisateur, trainé 2500l | J11: Epandage fumier | K11: Protection phytosanitaire, avec le pulvérisateur 2500l | L11: Ensilage (ensileuse 600 cv avec benne attelée) | M11: Transport maïs fourrage 110 cv, benne, 2 essieux -15 t | R11: Epandage lisier | S11: Epandage fumier
C12: Nom de l'inventaire | D12: Soil maintenance, with cover crop 4m/hr/FR | E12: Ploughing, with 5 or 6 soc plough/hr/FR | F12: Soil decompactation, with 4.5m chisel/hr/FR | G12: Harrowing, with vibrating tine cultivator (standard equipment) 5m/hr/FR | H12: Sowing or planting, with classic seeder and harrow/hr/FR | I12: Fertilizing or plant protection, with sprayer, 2500 l/hr/FR | J12: Fertilizing, solid manure or compost (charging and spreading), with frontal bucket and 5t spreader/hr/FR | K12: Fertilizing or plant protection, with sprayer, 2500 l/hr/FR | L12: Harvesting silage grass, with hay chopper and blower/hr/FR | M12: Transporting to farm, with trailer (<15t) heavy tractor/hr/FR | R12: Fertilizing, slurry, with tanker/hr/FR | S12: Fertilizing, solid manure or compost (charging and spreading), with frontal bucket and 5t spreader/hr/FR
C13: Consommation diesel (L/ha) | D13: 10 | E13: 24.9 | F13: 15.75 | G13: 5.1 | H13: 13.97 | I13: 1.04 | J13: =S13 -> 6.1 | K13: 1.04 | L13: 26.8 | M13: 15.13 | N13: Agibalyse V3.1 - Annexe J, tableau 153 - Colonne "Conso. Carburant par hectare". p. 289 | Q13: Consommation diesel (L/ha) | R13: 5 | S13: 6.1
Q14: Consommation diesel (L/h) | R14: 5 | S14: 4.88
C15: L de Diesel / ha | N15: Total en L par hectare | O15: Total en kg par hectare
C16: ITK CIPAN | D16: =D5*D$13 -> 20 | E16: 0 | F16: 0 | G16: 0 | H16: 13.97 | I16: 0 | J16: =J5*J$13 -> 0 | K16: 1.04 | L16: 0 | M16: 0 | N16: =SUM(D16:M16) -> 35.01 | O16: =SUM(D16:M16)*'BDD modélisation ICV'!$A$135 -> 29.0583
C17: =C6 -> ITK simplifié | D17: =D6*D$13 -> 0 | E17: 0 | F17: 0 | G17: 0 | H17: 13.97 | I17: 0 | J17: =J6*J$13 -> 6.1 | K17: 0 | L17: 26.8 | M17: 0 | N17: =SUM(D17:M17) -> 46.87 | O17: =SUM(D17:M17)*'BDD modélisation ICV'!$A$135 -> 38.9021
C18: =C7 -> ITK moyen | D18: =D7*D$13 -> 10 | E18: 0 | F18: 0 | G18: 0 | H18: 13.97 | I18: 1.04 | J18: =J7*J$13 -> 6.1 | K18: 1.04 | L18: 26.8 | M18: 0 | N18: =SUM(D18:M18) -> 58.95 | O18: =SUM(D18:M18)*'BDD modélisation ICV'!$A$135 -> 48.9285
C19: =C8 -> ITK soutenu | D19: =D8*D$13 -> 10 | E19: 0 | F19: 15.75 | G19: 5.1 | H19: 13.97 | I19: 2.08 | J19: =J8*J$13 -> 6.1 | K19: 1.04 | L19: 26.8 | M19: 0 | N19: =SUM(D19:M19) -> 80.84 | O19: =SUM(D19:M19)*'BDD modélisation ICV'!$A$135 -> 67.0972
C22: 20% légumineuses dans CIVE => évitement de 20 UN/ha (bonne pratique pour qualité des sols?)
C23: diminution rendement sur culture suivante si CIVE
C24: stockage carbone par CIVE
E26: Légende :
C27: Non concerné | E27: Sources des données | F27: Référence
C28: =C17 -> ITK simplifié | E28: Cellule verte | F28: Cellule dont la valeur numérique est utilisée et modifiable
C29: =C18 -> ITK moyen | E29: Cellule orange | F29: Cellule remplie par une formule qui utilisée et modifiable
C30: =C19 -> ITK soutenu | E30: Cellule rouge | F30: Cellule non utilisé dans le reste du calculateur
C38: Fauche (faucheuse de 7m, traction 300 cv) | D38: Fanage andainage avec faneuse andaineuse 3 m | E38: Pressage foin (4 t ms/ha) avec presse ronde
C39: Mowing, with rotary mower 7m/hr/FR | D39: Haying, with tedder/hr/FR | E39: Baling, with round baler (straw)/ha/FR
C40: 4.23 | D40: 1 | E40: 11.7 | F40: =SUM(C40:E40) -> 16.93

Sheet BDD modélisation ICV (hidden)
A2: Traitements des substrats et digestats
A3: JRC 2017 (p.43) // REDII | B3: Consommation électrique (kWh/t de matière entrante) | C3: Consommation thermique (kWh/t de matière entrante) | D3: Consommation de diesel (L de diesel/t MS de substrat en sortie) | E3: Emission de CH4 (g CH4 /kg MS de CIVE en sortie) | F3: Emission de N2O (g N2O / kg MS de CIVE en sortie)
A4: Broyage | B4: 8 | H4: GT Biogaz du Comité Stratégique de filière
A5: Hygiénisation | C5: 170 | H5: Vargas et al., 2015
A6: Tassement de silos d'ensilage | D6: 1.775707481 | E6: 8.0951e-05 | F6: 0.00019942 | G6: 63,375 MJ/t de MS de substrat <=> 63,375 (MJ/t substrat)/35,69 (MJ/L diesel)=1,775707481 L diesel/t substrat | H6: 10% de perte en MS (valeur JRC 2017)
A7: Presse à vis | B7: 0.6 | H7: Vargas et al. 2017 (Quantis)
A8: Centrifugeuse | B8: =B7*2 -> 1.2 | G8: hypothèse de consommation d'une centrifugeuse : presse à vis*2
A10: Taux d'expression de BMP
A11: TSH | B11: Récupération biogaz (du digestat brut OU liquide) | C11: Taux d'expression du BMP (%)
A12: >80j | B12: oui | C12: 100 | H12: Sys-métha (Bareha et al., 2021)
A13: >80j | B13: non | C13: 95 | H13: Sys-métha (Bareha et al., 2021)
A14: <80j | B14: oui | C14: 95 | H14: Sys-métha (Bareha et al., 2021)
A15: <80j | B15: non | C15: 90 | H15: Sys-métha (Bareha et al., 2021)
A20: Légende :
A21: Sources des données | B21: Référence
A22: Cellule verte | B22: Cellule dont la valeur numérique est utilisée et modifiable
A23: Cellule orange | B23: Cellule remplie par une formule qui utilisée et modifiable
A24: Cellule rouge | B24: Cellule non utilisé dans le reste du calculateur
A32: Consommations énergétiques en épuration/injection
A33: Usage | B33: % consommation biogaz (DREAL Bretagne 2022) | C33: % consommation énergie primaire (ADEME grand ouest 2022) | D33: % kWh vendus
A34: Chauffage | B34: 6% | C34: 3%
A35: Electricité | C35: 7%
A36: Total | D36: 9%
A38: Procédé | B38: Consommation d'électricité | C38: Unité | D38: % consommation électrique de l'unité de méthanisation | E38: Pertes
A39: Epuration (DREAL Bretagne) | B39: 0.35 | C39: kWh/Nm3 de gaz entrant | D39: 61 | H39: DREAL Bretagne, 2022
A40: Injection dans le réseau | B40: 0.12 | C40: kWh/Nm3 de gaz entrant | E40: 0.10% | F40: 0,1% de pertes à l'injection | G40: Données pour un réseau de MPC 16 bars (montée en pression à 17 bars) | H40: Rex GrDF, ACV ENEA Consulting/Quantis, 2017
A41: Conso de tétrahydrothiophène | B41: 0.0275 | C41: g de THT/Nm3 | F41: seulement en injection directe dans le réseau | H41: GESTi'métha
A42: Injection directe en station GNV | B42: 0.267 | C42: kWh/kg GNC | E42: =0.09%+0.92% -> 1.01% | F42: 0,09% de pertes au remplissage du réservoir à la station | G42: 0,92% du biométhane du réservoir sont imbrulés | H42: Clark et al., 2017
A43: Capture du CO2 | B43: 0.35 | C43: kWh/kg CO2 valorisé | H43: CTBM, 2020; CTBM & CSF NSE - GT Biogaz, 2023
A44: Conso électrique (hors épuration) | B44: 0.49 | C44: kWh/Nm3 de CH4 produit | H44: DREAL Bretagne 2020
A46: Rendement de l'épurateur
B47: Rendement (% du CH4 transformé en biométhane) | C47: Off-gaz | D47: Pureté du biométhane
A48: Membranaire | B48: 99.3% | C48: =1-B48 -> 0.7% | D48: 97.0% | H48: COPIL et RED II (Solagro, INRAE Transfert, 2022)
A49: PSA | B49: 97% | C49: =1-B49 -> 3.0%
A51: Consommation de charbon actif | B51: 0.15 | C51: g/Nm3 de biogaz | H51: Esnouf et al., 2021; Vargas et al., 2015, Calculateur GES’ti métha
B53: Rendement (% du CO2 des off gaz qui est capté)
A54: Capture et liquéfaction du CO2 | B54: 90.0% | H54: CTBM & CSF NSE - GT Biogaz, 2023
A56: Consommations énergétiques en cogénération
A57: Usage | B57: % production électrique (PROdige) | C57: % production électrique (ADEME Grand Est 2022) | D57: % consommation électrique (DREAL Bretagne 2021) | E57: % chaleur produite (PROdige) | F57: % autoconsommation thermique (ADEME Grand Est 2022)
A58: Consommation d'électricité | B58: 10% | C58: 14.0%
A59: Consommations auxiliaires | D59: 4.5%
A60: Valorisation thermique | C60: 29.0% | E60: 57.0% | F60: 22.0%
A61: Consommation électrique | B61: 0.39 | C61: kWh/Nm3 de CH4 produit | D61: DREAL Bretagne 2020
A63: Rendement en cogénération
B64: Cogénérateur
A65: Taux de conversion électrique (%) | B65: 39.7% | H65: ADEME & APCA, 2022
A66: Taux de conversion thermique (%) | B66: 40.0% | H66: RED II et Bilan IDF 2020 / AREC IDF, 2022
A67: Chaleur valorisée (%) | B67: 57.0% | H67: PROdige
A69: Gaz torché et imbrulés
B70: % du gaz (après émissions fugitives) | C70: kg N20/kWh brûlé
A71: Gaz torché | B71: 1.5% | C71: 3.60E-07 | H71: AREC IDF, 2022;
A72: Imbrulés en torchère | B72: 3.0% | H72: INRAE Transfert, Esnouf, 2021
A73: Imbrulés en cogé | B73: 1.7% | H73: Berger et al., 2022; JRC European commission, 2017
A75: Traitement de l'air viscié
A76: Quantité d'air traité | B76: 374 | C76: m3/Nm3 d'air traité | H76: Ges'ti métha
A77: Conso eau | B77: 5e-06 | C77: m3/Nm3 d'air traité | H77: Ges'ti métha
A78: Conso électricité | B78: 0.001 | C78: kWh/Nm3 de biogaz | H78: Ges'ti métha
A80: Taux de capture en phase solide selon le type de séparation du digestat
B81: Centrifugeuse | C81: Presse à vis
A82: MB | B82: 29% | C82: 10%
A83: MS | B83: 81% | C83: 32% | H83: Bareha et al., 2022
A84: MO | B84: 83% | C84: 38% | D84: Taux de capture MO= taux de capture C | H84: Bareha et al., 2023
A85: Norg | B85: 78% | C85: 19% | H85: Bareha et al., 2024
A86: NH4+ | B86: 29% | C86: 10% | H86: Bareha et al., 2025
A87: P | B87: 92% | C87: 28% | H87: Bareha et al., 2026
A88: K | B88: 45% | C88: 11% | H88: Bareha et al., 2027
H89: Bareha et al., 2028
A90: Taux de dégradation et facteurs d'émissions au stockage du digestat | E90: Méthasim
A91: Taux de dégradation
B92: Digestat brut | C92: Phase liquide | D92: Phase solide | F92: Digestat solide | G92: Phase liquide non couverte | H92: Phase liquide couverte | I92: Phase brut non couverte | J92: Phase brut couverte
A93: MS | B93: =IF('Données projet'!$B$91="Ouvert",'BDD modélisation ICV'!I93,'BDD modélisation ICV'!J93) -> 4% | C93: =IF('Données projet'!$B$90="Ouvert",'BDD modélisation ICV'!G93,'BDD modélisation ICV'!H93) -> 7% | D93: ='BDD modélisation ICV'!F93 -> 22% | F93: 22% | G93: 7% | H93: 7% | I93: 4% | J93: 4% | L93: Bareha et al., 2021
A94: MV | B94: =IF('Données projet'!$B$91="Ouvert",'BDD modélisation ICV'!I94,'BDD modélisation ICV'!J94) -> 6% | C94: =IF('Données projet'!$B$90="Ouvert",'BDD modélisation ICV'!G94,'BDD modélisation ICV'!H94) -> 9% | D94: ='BDD modélisation ICV'!F94 -> 30% | F94: 30% | G94: 9% | H94: 9% | I94: 6% | J94: 6% | L94: Bareha et al., 2022
